Workbook

Sheet Introduction
B3: KSU-Farm Financial Benchmarking Tool
B5: A spreadsheet tool to for benchmarking your farm's financial measures based on regions of Kansas, crop acres, and cattle inventory
L8: Version- 6.15.2018
B28: INTRODUCTION
B29: The KSU-Farm Financial Benchmarking tool is designed for producers to compare their financial ratios to farms of similar region, size and enterprise type. The percentage of farms that falls within a range of ratio values gives a distribution so a producer can see where they rank among their peers. Ten-year averages and past year values give two different distributions to benchmark from.
B31: INSTRUCTIONS FOR THE USER:
B32: Be sure to "Enable Content" and "Enable Macros" for the spreadsheet to function correctly. Select the tab for what region of Kansas you would like to benchmark against or "state" to benchmark additional categories. Use the dropdown menus in the tan boxes to select the benchmark category. If the benchmark shows N/A, you have mismatched categories and need to "Start Over". You may add your own farm values to be graphed against benchmark values in the green boxes or leave them as 2017 benchmark averages. You may also use the supplied Balance Sheet and Income Statement frameworks to calculate your own financial ratio values and then click "Enter Your Farm Values" to bring these into the benchmarking spreadsheets.
B35: The benchmarking tables and graphs can either be displayed in a normal distribution format (showing what percentage of farms fall within each range) or a cumlative distribution format (showing what percentage of farms are lower than the range value). Use the buttons on the top of the spreadsheet to switch back and forth between these two formats. This may take a few seconds to run.
B36: FOR MORE INFORMATION:
B37: See Farm Management Guides:
B38: Balance Sheet | E38: Income Statement | H38: Financial Ratios
B39: Developed by: | F39: With Assistance From:
B41: Robin Reid | F41: Kevin Herbel | J41: Mark Dikeman
B42: Extension Associate | F42: Kansas Farm Management Association | J42: Kansas Farm Management Association
B43: Kansas State University | F43: Kansas State University | J43: Kansas State University
B44: robinreid@ksu.edu | F44: kherbel@ksu.edu | J44: dikemanm@ksu.edu
B45: 785-532-0964 | F45: 785-532-8706 | J45: 785-539-0373
B47: ACKNOWLEDGEMENTS:
B48: Funded in part through the 2016/2017 and 2017/2018 CoBank Research Fellow program.

Sheet State
E1: KSU FARM FINANCIAL BENCHMARKING TOOL-State of Kansas | S1: Category | T1: Lookup | U1: 2017 | W1: Operator Age<40 | AI1: 10-Year
S2: Crop Acres | T2: Acres | U2: 2017 KFMA Farms | W2: Current Ratio | X2: Working Capital Ratio | Y2: Debt to Asset Ratio | Z2: Operating Profit Margin | AA2: ROA | AB2: ROE | AC2: Asset Turnover | AD2: Operating Expense Ratio | AE2: Depr Expense Ratio | AF2: Interest Expense Ratio | AG2: NFI Ratio | AJ2: Current Ratio | AK2: Working Capital Ratio | AL2: Debt to Asset Ratio | AM2: Operating Profit Margin | AN2: ROA | AO2: ROE | AP2: Asset Turnover | AQ2: Operating Expense Ratio | AR2: Depr Expense Ratio | AS2: Interest Expense Ratio | AT2: NFI Ratio
E3: Benchmarked by: | G3: =B16 -> Crop Acres | I3: =A17 -> Category: | K3: =IF(B17="","",B17) -> 1000-2000 | L3: =A18 -> Cattle: | N3: =IF(B18="","",B18) -> <100 Cows | S3: Dairy | T3: Dairy | W3: 0 | X3: 5 | Y3: 6 | Z3: 3 | AA3: 14 | AB3: 27 | AC3: 1 | AD3: 8 | AE3: 4 | AF3: 7 | AG3: 2 | AJ3: 0 | AK3: 2 | AL3: 2 | AM3: 2 | AN3: 3 | AO3: 15 | AP3: 0 | AQ3: 2 | AR3: 0 | AS3: 2 | AT3: 0
S4: Operator Age | T4: Age | W4: 5 | X4: 6 | Y4: 6 | Z4: 1 | AA4: 3 | AB4: 7 | AC4: 4 | AD4: 5 | AE4: 12 | AF4: 36 | AG4: 1 | AJ4: 2 | AK4: 1 | AL4: 15 | AM4: 1 | AN4: 4 | AO4: 5 | AP4: 2 | AQ4: 8 | AR4: 6 | AS4: 59 | AT4: 0
E5: Current Ratio | W5: 16 | X5: 11 | Y5: 10 | Z5: 4 | AA5: 14 | AB5: 10 | AC5: 9 | AD5: 16 | AE5: 26 | AF5: 22 | AG5: 4 | AJ5: 13 | AK5: 12 | AL5: 11 | AM5: 1 | AN5: 15 | AO5: 14 | AP5: 15 | AQ5: 28 | AR5: 33 | AS5: 45 | AT5: 4
F6: =U1 -> 2017 | G6: 10-Year | T6: =B16&B17&B18 -> Crop Acres1000-2000<100 Cows | W6: 13 | X6: 22 | Y6: 7 | Z6: 6 | AA6: 14 | AB6: 14 | AC6: 16 | AD6: 17 | AE6: 17 | AF6: 14 | AG6: 13 | AJ6: 24 | AK6: 38 | AL6: 19 | AM6: 7 | AN6: 15 | AO6: 20 | AP6: 18 | AQ6: 46 | AR6: 42 | AS6: 17 | AT6: 1
E7: 0 | F7: =Q7 -> 0 | G7: =R7 -> 0 | Q7: =Q17 -> 0 | R7: =R17 -> 0 | W7: 9 | X7: 24 | Y7: 12 | Z7: 24 | AA7: 20 | AB7: 11 | AC7: 18 | AD7: 20 | AE7: 16 | AF7: 9 | AG7: 27 | AJ7: 15 | AK7: 35 | AL7: 21 | AM7: 16 | AN7: 31 | AO7: 37 | AP7: 29 | AQ7: 35 | AR7: 38 | AS7: 7 | AT7: 34
E8: 0.5 | F8: =Q8 -> 0.09375 | G8: =R8 -> 0.02112676056 | Q8: =Q7+Q18 -> 0.09375 | R8: =R7+R18 -> 0.02112676056 | S8: Acres | W8: 7 | X8: 9 | Y8: 9 | Z8: 24 | AA8: 14 | AB8: 6 | AC8: 16 | AD8: 19 | AE8: 9 | AF8: 2 | AG8: 21 | AJ8: 19 | AK8: 14 | AL8: 23 | AM8: 48 | AN8: 43 | AO8: 22 | AP8: 25 | AQ8: 9 | AR8: 5 | AS8: 2 | AT8: 64
E9: 1 | F9: 0.3229166667 | G9: 0.07042253521 | Q9: 0.3229166667 | R9: 0.07042253521 | S9: <500 | T9: SLT | W9: 7 | X9: 9 | Y9: 12 | Z9: 17 | AA9: 4 | AB9: 3 | AC9: 6 | AD9: 8 | AE9: 6 | AF9: 4 | AG9: 18 | AJ9: 7 | AK9: 19 | AL9: 19 | AM9: 46 | AN9: 18 | AO9: 14 | AP9: 17 | AQ9: 2 | AR9: 7 | AS9: 1 | AT9: 28
E10: 1.5 | F10: 0.4479166667 | G10: 0.2605633803 | Q10: 0.4479166667 | R10: 0.2605633803 | S10: 500-1000 | T10: SIBL | W10: 4 | X10: 3 | Y10: 10 | Z10: 12 | AA10: 5 | AB10: 4 | AC10: 7 | AD10: 1 | AE10: 1 | AF10: 0 | AG10: 5 | AJ10: 5 | AK10: 6 | AL10: 11 | AM10: 12 | AN10: 2 | AO10: 2 | AP10: 9 | AQ10: 1 | AR10: 1 | AS10: 0 | AT10: 2
E11: 2 | F11: 0.5208333333 | G11: 0.3309859155 | Q11: 0.5208333333 | R11: 0.3309859155 | S11: 1000-2000 | T11: SIBH | W11: 3 | X11: 4 | Y11: 24 | Z11: 1 | AA11: 3 | AB11: 1 | AC11: 3 | AD11: 2 | AE11: 5 | AF11: 2 | AG11: 2 | AJ11: 5 | AK11: 6 | AL11: 12 | AM11: 0 | AN11: 2 | AO11: 0 | AP11: 6 | AQ11: 2 | AR11: 1 | AS11: 0 | AT11: 0
E12: 2.5 | F12: 0.5729166667 | G12: 0.485915493 | Q12: 0.5729166667 | R12: 0.485915493 | S12: 2000+ | T12: SGT | W12: 32 | X12: 3 | Z12: 4 | AA12: 5 | AB12: 13 | AC12: 16 | AG12: 3 | AJ12: 43 | AK12: 0 | AM12: 0 | AN12: 0 | AO12: 4 | AP12: 12 | AT12: 0
E13: 3 | F13: 0.6145833333 | G13: 0.5563380282 | Q13: 0.6145833333 | R13: 0.5563380282 | S13: Cattle | V13: Count | W13: 96 | X13: 96 | Y13: 96 | Z13: 96 | AA13: 96 | AB13: 96 | AC13: 96 | AD13: 96 | AE13: 96 | AF13: 96 | AG13: 96 | AI13: Count | AJ13: 133 | AK13: 133 | AL13: 133 | AM13: 133 | AN13: 133 | AO13: 133 | AP13: 133 | AQ13: 133 | AR13: 133 | AS13: 133 | AT13: 133
E14: 3.5 | F14: 0.6458333333 | G14: 0.5704225352 | Q14: 0.6458333333 | R14: 0.5704225352 | S14: None | V14: Average | W14: 1.753713589 | X14: 0.3358118415 | Y14: 0.433517926 | Z14: 0.07619296659 | AA14: 0.02742563624 | AB14: 0.01707408067 | AC14: 0.3599497101 | AD14: 0.7245288798 | AE14: 0.08514552247 | AF14: 0.04504469787 | AG14: 0.1452808998 | AI14: Average | AJ14: 2.492446993 | AK14: 0.4394588199 | AL14: 0.3313595738 | AM14: 0.1660847245 | AN14: 0.06426705235 | AO14: 0.07303569721 | AP14: 0.3869534211 | AQ14: 0.6707171583 | AR14: 0.07960004659 | AS14: 0.03435081789 | AT14: 0.2153319773
A15: BENCHMARK CATEGORY | E15: 4 | F15: 0.6666666667 | G15: 0.5985915493 | Q15: 0.6666666667 | R15: 0.5985915493 | S15: No Cows-Feedlot | V15: Non-ratio average | X15: 158098.6883 | AG15: 68397.58718 | AI15: Non-ratio average | AK15: 264499.9266 | AT15: 129603.252
A16: Benchmark by: | B16: Crop Acres | E16: More | F16: 1 | G16: 1 | Q16: 1 | R16: 1 | S16: <100 Cows
A17: =IF(B16="Dairy", "", "Category:") -> Category: | B17: 1000-2000 | E17: Count | F17: =IF($T$6=$W$1,$W$13,IF($T$6=$W$17,$W$29,IF($T$6=$W$33,$W$45,IF($T$6=$W$49,$W$61,IF($T$6=$W$65,$W$77,IF($T$6=$W$81,$W$93,IF($T$6=$W$97,$W$109,IF($T$6=$W$113,$W$125,IF($T$6=$W$129,$W$141,IF($T$6=$W$145,$W$157,IF(T6=$W$161,$W$173,IF($T$6=$W$177,$W$189,IF($T$6=$W$193,$W$205,IF($T$6=$W$209,$W$221,IF($T$6=$W$225,$W$237,IF($T$6=$W$241,$W$253,IF($T$6=$W$257,$W$269,IF($T$6=$W$273,$W$285,IF($T$6=$W$289,$W$301,IF($T$6=$W$305,$W$317,"N/A")))))))))))))))))))) -> 96 | G17: =IF($T$6=$W$1,$AJ$13,IF($T$6=$W$17,$AJ$29,IF($T$6=$W$33,$AJ$45,IF($T$6=$W$49,$AJ$61,IF($T$6=$W$65,$AJ$77,IF($T$6=$W$81,$AJ$93,IF($T$6=$W$97,$AJ$109,IF($T$6=$W$113,$AJ$125,IF($T$6=$W$129,$AJ$141,IF($T$6=$W$145,$AJ$157, IF($T$6=$W$161,$AJ$173,IF($T$6=$W$177,$AJ$189,IF($T$6=$W$193,$AJ$205,IF($T$6=$W$209,$AJ$221,IF($T$6=$W$225,$AJ$237,IF($T$6=$W$241,$AJ$253,IF($T$6=$W$257,$AJ$269,IF($T$6=$W$273,$AJ$285,IF($T$6=$W$289,$AJ$301,IF($T$6=$W$305,$AJ$317,"N/A")))))))))))))))))))) -> 142 | Q17: =IF($T$6=$W$1,W3/$W$13,IF($T$6=$W$17,W19/$W$29,IF($T$6=$W$33,W35/$W$45,IF($T$6=$W$49,W51/$W$61,IF($T$6=$W$65,W67/$W$77,IF($T$6=$W$81,W83/$W$93,IF($T$6=$W$97,W99/$W$109,IF($T$6=$W$113,W115/$W$125,IF($T$6=$W$129,W131/$W$141,IF($T$6=$W$145,W147/$W$157,IF($T$6=$W$161,W163/$W$173,IF($T$6=$W$177,W179/$W$189,IF($T$6=$W$193,W195/$W$205,IF($T$6=$W$209,W211/$W$221,IF($T$6=$W$225,W227/$W$237,IF($T$6=$W$241,W243/$W$253,IF($T$6=$W$257,W259/$W$269,IF($T$6=$W$273,W275/$W$285,IF($T$6=$W$289,W291/$W$301,IF($T$6=$W$305,W307/$W$317,"N/A")))))))))))))))))))) -> 0 | R17: =IF($T$6=$W$1,AJ3/$AJ$13,IF($T$6=$W$17,AJ19/$AJ$29,IF($T$6=$W$33,AJ35/$AJ$45,IF($T$6=$W$49,AJ51/$AJ$61,IF($T$6=$W$65,AJ67/$AJ$77,IF($T$6=$W$81,AJ83/$AJ$93,IF($T$6=$W$97,AJ99/$AJ$109,IF($T$6=$W$113,AJ115/$AJ$125,IF($T$6=$W$129,AJ131/$AJ$141,IF($T$6=$W$145,AJ147/$AJ$157,IF($T$6=$W$161,AJ163/$AJ$173,IF($T$6=$W$177,AJ179/$AJ$189,IF($T$6=$W$193,AJ195/$AJ$205,IF($T$6=$W$209,AJ211/$AJ$221,IF($T$6=$W$225,AJ227/$AJ$237,IF($T$6=$W$241,AJ243/$AJ$253,IF($T$6=$W$257,AJ259/$AJ$269,IF($T$6=$W$273,AJ275/$AJ$285,IF($T$6=$W$289,AJ291/$AJ$301,IF($T$6=$W$305,AJ307/$AJ$317,"N/A")))))))))))))))))))) -> 0 | S17: 100+ Cows | W17: Operator Age40-60
A18: =(IF(B16="Crop Acres","Cattle:","")) -> Cattle: | B18: <100 Cows | E18: Average | F18: =IF($T$6=$W$1,$W$14,IF($T$6=$W$17,$W$30,IF($T$6=$W$33,$W$46,IF($T$6=$W$49,$W$62,IF($T$6=$W$65,$W$78,IF($T$6=$W$81,$W$94,IF($T$6=$W$97,$W$110,IF($T$6=$W$113,$W$126,IF($T$6=$W$129,$W$142,IF($T$6=$W$145,$W$158,IF($T$6=$W$161,$W$174,IF($T$6=$W$177,$W$190,IF($T$6=$W$193,$W$206,IF($T$6=$W$209,$W$222,IF($T$6=$W$225,$W$238,IF($T$6=$W$241,$W$254,IF($T$6=$W$257,$W$270,IF($T$6=$W$273,$W$286,IF($T$6=$W$289,$W$302,IF($T$6=$W$305,$W$318,"N/A")))))))))))))))))))) -> 2.060457121 | G18: =IF($T$6=$W$1,$AJ$14,IF($T$6=$W$17,$AJ$30,IF($T$6=$W$33,$AJ$46,IF($T$6=$W$49,$AJ$62,IF($T$6=$W$65,$AJ$78,IF($T$6=$W$81,$AJ$94,IF($T$6=$W$97,$AJ$110,IF($T$6=$W$113,$AJ$126,IF($T$6=$W$129,$AJ$142,IF($T$6=$W$145,$AJ$158,IF($T$6=$W$161,$AJ$174,IF($T$6=$W$177,$AJ$190,IF($T$6=$W$193,$AJ$206,IF($T$6=$W$209,$AJ$222,IF($T$6=$W$225,$AJ$238,IF($T$6=$W$241,$AJ$254,IF($T$6=$W$257,$AJ$270,IF($T$6=$W$273,$AJ$286,IF($T$6=$W$289,$AJ$302,IF($T$6=$W$305,$AJ$318,"N/A")))))))))))))))))))) -> 3.008968738 | Q18: 0.09375 | R18: 0.02112676056 | W18: Current Ratio | X18: Working Capital Ratio | Y18: Debt to Asset Ratio | Z18: Operating Profit Margin | AA18: ROA | AB18: ROE | AC18: Asset Turnover | AD18: Operating Expense Ratio | AE18: Depr Expense Ratio | AF18: Interest Expense Ratio | AG18: NFI Ratio | AJ18: Current Ratio | AK18: Working Capital Ratio | AL18: Debt to Asset Ratio | AM18: Operating Profit Margin | AN18: ROA | AO18: ROE | AP18: Asset Turnover | AQ18: Operating Expense Ratio | AR18: Depr Expense Ratio | AS18: Interest Expense Ratio | AT18: NFI Ratio
Q19: 0.2291666667 | R19: 0.04929577465 | W19: 0 | X19: 27 | Y19: 25 | Z19: 15 | AA19: 23 | AB19: 73 | AC19: 0 | AD19: 2 | AE19: 1 | AF19: 31 | AG19: 11 | AJ19: 0 | AK19: 8 | AL19: 13 | AM19: 8 | AN19: 18 | AO19: 51 | AP19: 0 | AQ19: 2 | AR19: 2 | AS19: 11 | AT19: 2
F20: =IF(B22=F18,"","Your Farm") ->  | G20: =IF(B22=F18,"",B22) ->  | Q20: 0.125 | R20: 0.1901408451 | S20: Age | W20: 38 | X20: 24 | Y20: 55 | Z20: 9 | AA20: 33 | AB20: 54 | AC20: 25 | AD20: 8 | AE20: 24 | AF20: 127 | AG20: 8 | AJ20: 18 | AK20: 12 | AL20: 135 | AM20: 6 | AN20: 14 | AO20: 43 | AP20: 12 | AQ20: 12 | AR20: 33 | AS20: 265 | AT20: 1
A21: YOUR FARM VALUES* | Q21: 0.07291666667 | R21: 0.07042253521 | S21: <40 | W21: 77 | X21: 64 | Y21: 55 | Z21: 23 | AA21: 79 | AB21: 112 | AC21: 135 | AD21: 39 | AE21: 70 | AF21: 118 | AG21: 26 | AJ21: 63 | AK21: 61 | AL21: 104 | AM21: 15 | AN21: 51 | AO21: 116 | AP21: 124 | AQ21: 99 | AR21: 122 | AS21: 186 | AT21: 6
A22: Current Ratio: | B22: =S37 -> 2.060457121 | Q22: 0.05208333333 | R22: 0.1549295775 | S22: 40-60 | W22: 81 | X22: 95 | Y22: 60 | Z22: 61 | AA22: 145 | AB22: 92 | AC22: 92 | AD22: 86 | AE22: 106 | AF22: 63 | AG22: 71 | AJ22: 90 | AK22: 121 | AL22: 106 | AM22: 27 | AN22: 171 | AO22: 203 | AP22: 186 | AQ22: 218 | AR22: 217 | AS22: 92 | AT22: 32
A23: Working Capital Ratio: | B23: 0.4221611336 | Q23: 0.04166666667 | R23: 0.07042253521 | S23: >60 | W23: 40 | X23: 69 | Y23: 77 | Z23: 101 | AA23: 71 | AB23: 38 | AC23: 57 | AD23: 110 | AE23: 89 | AF23: 31 | AG23: 141 | AJ23: 66 | AK23: 154 | AL23: 95 | AM23: 91 | AN23: 219 | AO23: 121 | AP23: 107 | AQ23: 173 | AR23: 148 | AS23: 33 | AT23: 180
A24: Debt to Asset Ratio: | B24: 0.2256484535 | Q24: 0.03125 | R24: 0.01408450704 | W24: 14 | X24: 44 | Y24: 43 | Z24: 118 | AA24: 40 | AB24: 19 | AC24: 44 | AD24: 91 | AE24: 66 | AF24: 11 | AG24: 115 | AJ24: 52 | AK24: 111 | AL24: 66 | AM24: 258 | AN24: 93 | AO24: 44 | AP24: 83 | AQ24: 87 | AR24: 58 | AS24: 15 | AT24: 306
A25: Operating Profit Margin | B25: 0.0001663512016 | Q25: 0.02083333333 | R25: 0.02816901408 | W25: 15 | X25: 33 | Y25: 38 | Z25: 67 | AA25: 7 | AB25: 4 | AC25: 25 | AD25: 36 | AE25: 23 | AF25: 10 | AG25: 32 | AJ25: 32 | AK25: 59 | AL25: 34 | AM25: 189 | AN25: 34 | AO25: 15 | AP25: 46 | AQ25: 13 | AR25: 20 | AS25: 6 | AT25: 79
A26: Rate of Return on Farm Assets | B26: 3.142416904e-05 | E26: Working Captial Ratio | Q26: 0.3333333333 | R26: 0.4014084507 | W26: 10 | X26: 20 | Y26: 14 | Z26: 10 | AA26: 5 | AB26: 4 | AC26: 5 | AD26: 18 | AE26: 7 | AF26: 4 | AG26: 2 | AJ26: 27 | AK26: 42 | AL26: 25 | AM26: 16 | AN26: 8 | AO26: 5 | AP26: 19 | AQ26: 4 | AR26: 9 | AS26: 3 | AT26: 6
A27: Rate of Return on Farm Equity | B27: -0.01162002214 | F27: =U1 -> 2017 | G27: 10-Year | S27: Your Farm Line-Current Ratio | W27: 10 | X27: 14 | Y27: 39 | Z27: 2 | AA27: 0 | AB27: 3 | AC27: 10 | AD27: 16 | AE27: 20 | AF27: 11 | AG27: 0 | AJ27: 20 | AK27: 23 | AL27: 34 | AM27: 2 | AN27: 2 | AO27: 3 | AP27: 14 | AQ27: 4 | AR27: 3 | AS27: 1 | AT27: 0
A28: Asset Turnover Rate | B28: 0.1889025672 | E28: -0.5 | F28: =Q28 -> 0.03125 | G28: =R28 -> 0.01408450704 | Q28: =Q38 -> 0.03125 | R28: =R38 -> 0.01408450704 | S28: X's | T28: =IF(B22<4.5,B22,4.5) -> 2.060457121 | U28: =IF(B22<4.5,B22,4.5) -> 2.060457121 | W28: 121 | X28: 16 | Z28: 0 | AA28: 3 | AB28: 7 | AC28: 13 | AG28: 0 | AJ28: 244 | AK28: 21 | AM28: 0 | AN28: 2 | AO28: 11 | AP28: 21 | AT28: 0
A29: Operating Expense Ratio | B29: 0.7287621955 | E29: =E28+0.25 -> -0.25 | F29: =Q29 -> 0.1354166667 | G29: =R29 -> 0.02112676056 | Q29: =Q28+Q39 -> 0.1354166667 | R29: =R28+R39 -> 0.02112676056 | S29: Y's | T29: 0 | U29: 1 | V29: Count | W29: 406 | X29: 406 | Y29: 406 | Z29: 406 | AA29: 406 | AB29: 406 | AC29: 406 | AD29: 406 | AE29: 406 | AF29: 406 | AG29: 406 | AI29: Count | AJ29: 612 | AK29: 612 | AL29: 612 | AM29: 612 | AN29: 612 | AO29: 612 | AP29: 612 | AQ29: 612 | AR29: 612 | AS29: 612 | AT29: 612
A30: Depreciation Expense Ratio | B30: 0.1128956722 | E30: =E29+0.25 -> 0 | F30: 0.3229166667 | G30: 0.07042253521 | Q30: 0.3229166667 | R30: 0.07042253521 | S30: =IF(B22=F18,U1 &" Average","Your Farm") -> 2017 Average | V30: Average | W30: 1.765169923 | X30: 0.3573746148 | Y30: 0.3006581064 | Z30: 0.04461486459 | AA30: 0.01095893351 | AB30: -0.001103340432 | AC30: 0.2456341314 | AD30: 0.7641911712 | AE30: 0.09444435063 | AF30: 0.04434221469 | AG30: 0.09702226349 | AI30: Average | AJ30: 2.65207575 | AK30: 0.5134433237 | AL30: 0.2471780348 | AM30: 0.1385690707 | AN30: 0.04058636159 | AO30: 0.03883906745 | AP30: 0.2928962531 | AQ30: 0.6936542149 | AR30: 0.08348800838 | AS30: 0.03484614704 | AT30: 0.1880116297
A31: Interest Expense Ratio | B31: 0.04850252382 | E31: 0.25 | F31: 0.4791666667 | G31: 0.3169014085 | Q31: 0.4791666667 | R31: 0.3169014085 | S31: Your Farm Line-Working Capital Ratio | V31: Non-ratio average | X31: 277013.7716 | AG31: 75205.40638 | AI31: Non-ratio average | AK31: 344135.266 | AT31: 126014.7502
A32: Net Farm Income Ratio: | B32: 0.1098396085 | E32: 0.5 | F32: 0.625 | G32: 0.5774647887 | Q32: 0.625 | R32: 0.5774647887 | S32: X's | T32: =IF(B23>1.75,1.75,B23) -> 0.4221611336 | U32: =IF(B23>1.75,1.75,B23) -> 0.4221611336
A33: *Defaults to Averages for 2017 if not entered | E33: 0.75 | F33: 0.7604166667 | G33: 0.7253521127 | Q33: 0.7604166667 | R33: 0.7253521127 | S33: Y's | T33: 0 | U33: 1 | W33: Operator Age>60
E34: 1 | F34: 0.84375 | G34: 0.8661971831 | Q34: 0.84375 | R34: 0.8661971831 | S34: =IF(B23=F39,U1 &" Average","Your Farm") -> 2017 Average | W34: Current Ratio | X34: Working Capital Ratio | Y34: Debt to Asset Ratio | Z34: Operating Profit Margin | AA34: ROA | AB34: ROE | AC34: Asset Turnover | AD34: Operating Expense Ratio | AE34: Depr Expense Ratio | AF34: Interest Expense Ratio | AG34: NFI Ratio | AJ34: Current Ratio | AK34: Working Capital Ratio | AL34: Debt to Asset Ratio | AM34: Operating Profit Margin | AN34: ROA | AO34: ROE | AP34: Asset Turnover | AQ34: Operating Expense Ratio | AR34: Depr Expense Ratio | AS34: Interest Expense Ratio | AT34: NFI Ratio
E35: 1.25 | F35: 0.875 | G35: 0.9295774648 | Q35: 0.875 | R35: 0.9295774648 | W35: 1 | X35: 29 | Y35: 100 | Z35: 33 | AA35: 28 | AB35: 57 | AC35: 0 | AD35: 6 | AE35: 0 | AF35: 99 | AG35: 18 | AJ35: 0 | AK35: 3 | AL35: 31 | AM35: 9 | AN35: 6 | AO35: 24 | AP35: 0 | AQ35: 3 | AR35: 0 | AS35: 29 | AT35: 0
E36: 1.5 | F36: 0.9479166667 | G36: 0.9577464789 | Q36: 0.9479166667 | R36: 0.9577464789 | W36: 37 | X36: 25 | Y36: 155 | Z36: 21 | AA36: 31 | AB36: 74 | AC36: 137 | AD36: 10 | AE36: 33 | AF36: 182 | AG36: 14 | AJ36: 8 | AK36: 8 | AL36: 185 | AM36: 7 | AN36: 12 | AO36: 25 | AP36: 63 | AQ36: 20 | AR36: 22 | AS36: 224 | AT36: 2
E37: More | F37: 1 | G37: 1 | Q37: 1 | R37: 1 | S37: =$F$18 -> 2.060457121 | W37: 65 | X37: 48 | Y37: 89 | Z37: 57 | AA37: 128 | AB37: 229 | AC37: 205 | AD37: 48 | AE37: 76 | AF37: 107 | AG37: 40 | AJ37: 22 | AK37: 19 | AL37: 78 | AM37: 10 | AN37: 46 | AO37: 118 | AP37: 156 | AQ37: 80 | AR37: 102 | AS37: 107 | AT37: 7
E38: Count | F38: =F17 -> 96 | G38: =G17 -> 142 | Q38: =IF($T$6=$W$1,X3/$F$38,IF($T$6=$W$17,X19/$F$38,IF($T$6=$W$33,X35/$F$38,IF($T$6=$W$49,X51/$F$38,IF($T$6=$W$65,X67/$F$38,IF($T$6=$W$81,X83/$F$38,IF($T$6=$W$97,X99/$F$38,IF($T$6=$W$113,X115/$F$38,IF($T$6=$W$129,X131/$F$38,IF($T$6=$W$145,X147/$F$38,IF($T$6=$W$161,X163/$F$38,IF($T$6=$W$177,X179/$F$38,IF($T$6=$W$193,X195/$F$38,IF($T$6=$W$209,X211/$F$38,IF($T$6=$W$225,X227/$F$38,IF($T$6=$W$241,X243/$F$38,IF($T$6=$W$257,X259/$F$38,IF($T$6=$W$273,X275/$F$38,IF($T$6=$W$289,X291/$F$38,IF($T$6=$W$305,X307/$F$38,"N/A")))))))))))))))))))) -> 0.03125 | R38: =IF($T$6=$W$1,AK3/$G$38,IF($T$6=$W$17,AK19/$G$38,IF($T$6=$W$33,AK35/$G$38,IF($T$6=$W$49,AK51/$G$38,IF($T$6=$W$65,AK67/$G$38,IF($T$6=$W$81,AK83/$G$38,IF($T$6=$W$97,AK99/$G$38,IF($T$6=$W$113,AK115/$G$38,IF($T$6=$W$129,AK131/$G$38,IF($T$6=$W$145,AK147/$G$38,IF($T$6=$W$161,AK163/$G$38,IF($T$6=$W$177,AK179/$G$38,IF($T$6=$W$193,AK195/$G$38,IF($T$6=$W$209,AK211/$G$38,IF($T$6=$W$225,AK227/$G$38,IF($T$6=$W$241,AK243/$G$38,IF($T$6=$W$257,AK259/$G$38,IF($T$6=$W$273,AK275/$G$38,IF($T$6=$W$289,AK291/$G$38,IF($T$6=$W$305,AK307/$G$38,"N/A")))))))))))))))))))) -> 0.01408450704 | S38: =$F$39 -> 0.4221611336 | W38: 63 | X38: 66 | Y38: 63 | Z38: 83 | AA38: 239 | AB38: 122 | AC38: 86 | AD38: 88 | AE38: 103 | AF38: 66 | AG38: 110 | AJ38: 41 | AK38: 61 | AL38: 61 | AM38: 31 | AN38: 174 | AO38: 196 | AP38: 106 | AQ38: 140 | AR38: 121 | AS38: 46 | AT38: 16
E39: Average | F39: =IF($T$6=$W$1,$X$14,IF($T$6=$W$17,$X$30,IF($T$6=$W$33,$X$46,IF($T$6=$W$49,$X$62,IF($T$6=$W$65,$X$78,IF($T$6=$W$81,$X$94,IF($T$6=$W$97,$X$110,IF($T$6=$W$113,$X$126,IF($T$6=$W$129,$X$142,IF($T$6=$W$145,$X$158,IF($T$6=$W$161,$X$174,IF($T$6=$W$177,$X$190,IF($T$6=$W$193,$X$206,IF($T$6=$W$209,$X$222,IF($T$6=$W$225,$X$238,IF($T$6=$W$241,$X$254,IF($T$6=$W$257,$X$270,IF($T$6=$W$273,$X$286,IF($T$6=$W$289,$X$302,IF($T$6=$W$305,$X$318,"N/A")))))))))))))))))))) -> 0.4221611336 | G39: =IF($T$6=$W$1,$AK$14,IF($T$6=$W$17,$AK$30,IF($T$6=$W$33,$AK$46,IF($T$6=$W$49,$AK$62,IF($T$6=$W$65,$AK$78,IF($T$6=$W$81,$AK$94,IF($T$6=$W$97,$AK$110,IF($T$6=$W$113,$AK$126,IF($T$6=$W$129,$AK$142,IF($T$6=$W$145,$AK$158,IF($T$6=$W$161,$AK$174,IF($T$6=$W$177,$AK$190,IF($T$6=$W$193,$AK$206,IF($T$6=$W$209,$AK$222,IF($T$6=$W$225,$AK$238,IF($T$6=$W$241,$AK$254,IF($T$6=$W$257,$AK$270,IF($T$6=$W$273,$AK$286,IF($T$6=$W$289,$AK$302,IF($T$6=$W$305,$AK$318,"N/A")))))))))))))))))))) -> 0.5507135635 | Q39: 0.1041666667 | R39: 0.007042253521 | S39: =$F$59 -> 0.2256484535 | W39: 26 | X39: 66 | Y39: 38 | Z39: 137 | AA39: 65 | AB39: 20 | AC39: 36 | AD39: 131 | AE39: 92 | AF39: 22 | AG39: 168 | AJ39: 40 | AK39: 76 | AL39: 26 | AM39: 72 | AN39: 151 | AO39: 53 | AP39: 46 | AQ39: 110 | AR39: 90 | AS39: 15 | AT39: 131
E40: Working Capital Avg. | Q40: 0.1875 | R40: 0.04929577465 | S40: =$F$81 -> 0.0001663512016 | W40: 24 | X40: 76 | Y40: 25 | Z40: 120 | AA40: 17 | AB40: 5 | AC40: 24 | AD40: 114 | AE40: 81 | AF40: 22 | AG40: 121 | AJ40: 20 | AK40: 71 | AL40: 24 | AM40: 171 | AN40: 30 | AO40: 8 | AP40: 29 | AQ40: 54 | AR40: 52 | AS40: 5 | AT40: 188
F41: =IF($T$6=$W$1,$X$15,IF($T$6=$W$17,$X$31,IF($T$6=$W$33,$X$47,IF($T$6=$W$49,$X$63,IF($T$6=$W$65,$X$79,IF($T$6=$W$81,$X$95,IF($T$6=$W$97,$X$111,IF($T$6=$W$113,$X$127,IF($T$6=$W$129,$X$143,IF($T$6=$W$145,$X$159,IF($T$6=$W$161,$X$175,IF($T$6=$W$177,$X$191,IF($T$6=$W$193,$X$207,IF($T$6=$W$209,$X$223,IF($T$6=$W$225,$X$239,IF($T$6=$W$241,$X$255,IF($T$6=$W$257,$X$271,IF($T$6=$W$273,$X$287,IF($T$6=$W$289,$X$303,IF($T$6=$W$305,$X$319,"N/A")))))))))))))))))))) -> 188488.9891 | G41: =IF($T$6=$W$1,$AK$15,IF($T$6=$W$17,$AK$31,IF($T$6=$W$33,$AK$47,IF($T$6=$W$49,$AK$63,IF($T$6=$W$65,$AK$79,IF($T$6=$W$81,$AK$95,IF($T$6=$W$97,$AK$111,IF($T$6=$W$113,$AK$127,IF($T$6=$W$129,$AK$143,IF($T$6=$W$145,$AK$159,IF($T$6=$W$161,$AK$175,IF($T$6=$W$177,$AK$191,IF($T$6=$W$193,$AK$207,IF($T$6=$W$209,$AK$223,IF($T$6=$W$225,$AK$239,IF($T$6=$W$241,$AK$255,IF($T$6=$W$257,$AK$271,IF($T$6=$W$273,$AK$287,IF($T$6=$W$289,$AK$303,IF($T$6=$W$305,$AK$319,"N/A")))))))))))))))))))) -> 273307.0743 | Q41: 0.15625 | R41: 0.2464788732 | S41: =$F$102 -> 3.142416904e-05 | W41: 15 | X41: 60 | Y41: 17 | Z41: 48 | AA41: 9 | AB41: 6 | AC41: 13 | AD41: 61 | AE41: 64 | AF41: 10 | AG41: 35 | AJ41: 29 | AK41: 71 | AL41: 8 | AM41: 110 | AN41: 8 | AO41: 3 | AP41: 11 | AQ41: 15 | AR41: 27 | AS41: 2 | AT41: 71
Q42: 0.1458333333 | R42: 0.2605633803 | S42: =$F$123 -> -0.01162002214 | W42: 13 | X42: 36 | Y42: 15 | Z42: 14 | AA42: 0 | AB42: 0 | AC42: 4 | AD42: 28 | AE42: 24 | AF42: 3 | AG42: 11 | AJ42: 14 | AK42: 41 | AL42: 7 | AM42: 17 | AN42: 2 | AO42: 0 | AP42: 8 | AQ42: 5 | AR42: 11 | AS42: 1 | AT42: 13
F43: =IF(B23=F39,"","Your Farm") ->  | G43: =IF(B23=F39,"",B23) ->  | Q43: 0.1354166667 | R43: 0.1478873239 | S43: =$F$144 -> 0.1889025672 | W43: 12 | X43: 28 | Y43: 17 | Z43: 4 | AA43: 0 | AB43: 1 | AC43: 3 | AD43: 33 | AE43: 46 | AF43: 8 | AG43: 2 | AJ43: 12 | AK43: 24 | AL43: 9 | AM43: 2 | AN43: 0 | AO43: 0 | AP43: 2 | AQ43: 2 | AR43: 4 | AS43: 0 | AT43: 1
Q44: 0.08333333333 | R44: 0.1408450704 | S44: =$F$164 -> 0.7287621955 | W44: 263 | X44: 85 | Z44: 2 | AA44: 2 | AB44: 5 | AC44: 11 | AG44: 0 | AJ44: 243 | AK44: 55 | AM44: 0 | AN44: 0 | AO44: 2 | AP44: 8 | AT44: 0
Q45: 0.03125 | R45: 0.06338028169 | S45: =$F$185 -> 0.1128956722 | V45: Count | W45: 519 | X45: 519 | Y45: 519 | Z45: 519 | AA45: 519 | AB45: 519 | AC45: 519 | AD45: 519 | AE45: 519 | AF45: 519 | AG45: 519 | AI45: Count | AJ45: 429 | AK45: 429 | AL45: 429 | AM45: 429 | AN45: 429 | AO45: 429 | AP45: 429 | AQ45: 429 | AR45: 429 | AS45: 429 | AT45: 429
Q46: 0.07291666667 | R46: 0.02816901408 | S46: =$F$206 -> 0.04850252382 | V46: Average | W46: 2.612258479 | X46: 0.6170736779 | Y46: 0.1586555794 | Z46: 0.00129613329 | AA46: 0.0002132345913 | AB46: -0.007725129989 | AC46: 0.1645159437 | AD46: 0.7643083685 | AE46: 0.1072662303 | AF46: 0.03797901105 | AG46: 0.09044639011 | AI46: Average | AJ46: 3.386031998 | AK46: 0.6773044554 | AL46: 0.1593736939 | AM46: 0.1185389337 | AN46: 0.02564485362 | AO46: 0.02189687796 | AP46: 0.2163411871 | AQ46: 0.6944462597 | AR46: 0.087831792 | AS46: 0.03026227108 | AT46: 0.1874596772
E47: Debt to Asset Ratio | Q47: 0.05208333333 | R47: 0.04225352113 | S47: =$F$228 -> 0.1098396085 | V47: Non-ratio average | X47: 328359.7379 | AG47: 48128.69843 | AI47: Non-ratio average | AK47: 346699.7337 | AT47: 95957.17206
F48: =U1 -> 2017 | G48: 10-Year
E49: 0 | F49: =Q49 -> 0.1041666667 | G49: =R49 -> 0.01408450704 | Q49: =Q58 -> 0.1041666667 | R49: =R58 -> 0.01408450704 | S49: Your Farm Line-Debt to Asset | W49: Crop Acres<500None
E50: 0.1 | F50: =Q50 -> 0.28125 | G50: =R50 -> 0.2605633803 | Q50: =Q49+Q59 -> 0.28125 | R50: 0.2605633803 | S50: X's | T50: =IF(B24>0.8,0.8,B24) -> 0.2256484535 | U50: =T50 -> 0.2256484535 | W50: Current Ratio | X50: Working Capital Ratio | Y50: Debt to Asset Ratio | Z50: Operating Profit Margin | AA50: ROA | AB50: ROE | AC50: Asset Turnover | AD50: Operating Expense Ratio | AE50: Depr Expense Ratio | AF50: Interest Expense Ratio | AG50: NFI Ratio | AJ50: Current Ratio | AK50: Working Capital Ratio | AL50: Debt to Asset Ratio | AM50: Operating Profit Margin | AN50: ROA | AO50: ROE | AP50: Asset Turnover | AQ50: Operating Expense Ratio | AR50: Depr Expense Ratio | AS50: Interest Expense Ratio | AT50: NFI Ratio
E51: 0.2 | F51: 0.4270833333 | G51: 0.3802816901 | Q51: 0.4270833333 | R51: 0.3802816901 | S51: Y's | T51: 0 | U51: 1 | W51: 0 | X51: 5 | Y51: 19 | Z51: 8 | AA51: 4 | AB51: 9 | AC51: 0 | AD51: 5 | AE51: 2 | AF51: 17 | AG51: 5 | AJ51: 0 | AK51: 1 | AL51: 8 | AM51: 2 | AN51: 4 | AO51: 5 | AP51: 0 | AQ51: 2 | AR51: 0 | AS51: 10 | AT51: 0
E52: 0.3 | F52: 0.53125 | G52: 0.5985915493 | Q52: 0.53125 | R52: 0.5985915493 | S52: =IF(B24=F59,U1 &" Average","Your Farm") -> 2017 Average | W52: 7 | X52: 4 | Y52: 14 | Z52: 2 | AA52: 3 | AB52: 4 | AC52: 20 | AD52: 0 | AE52: 8 | AF52: 17 | AG52: 4 | AJ52: 3 | AK52: 2 | AL52: 21 | AM52: 2 | AN52: 4 | AO52: 5 | AP52: 11 | AQ52: 3 | AR52: 9 | AS52: 20 | AT52: 0
E53: 0.4 | F53: 0.71875 | G53: 0.7676056338 | Q53: 0.71875 | R53: 0.7676056338 | W53: 6 | X53: 4 | Y53: 4 | Z53: 4 | AA53: 8 | AB53: 25 | AC53: 19 | AD53: 6 | AE53: 13 | AF53: 6 | AG53: 3 | AJ53: 4 | AK53: 4 | AL53: 6 | AM53: 3 | AN53: 8 | AO53: 12 | AP53: 17 | AQ53: 14 | AR53: 13 | AS53: 11 | AT53: 3
E54: 0.5 | F54: 0.8229166667 | G54: 0.8661971831 | Q54: 0.8229166667 | R54: 0.8661971831 | W54: 2 | X54: 2 | Y54: 1 | Z54: 6 | AA54: 29 | AB54: 11 | AC54: 5 | AD54: 7 | AE54: 5 | AF54: 2 | AG54: 5 | AJ54: 3 | AK54: 6 | AL54: 4 | AM54: 5 | AN54: 21 | AO54: 19 | AP54: 7 | AQ54: 13 | AR54: 14 | AS54: 6 | AT54: 1
E55: 0.6 | F55: 0.8854166667 | G55: 0.9154929577 | Q55: 0.8854166667 | R55: 0.9154929577 | W55: 0 | X55: 8 | Y55: 6 | Z55: 13 | AA55: 5 | AB55: 3 | AC55: 3 | AD55: 14 | AE55: 7 | AF55: 3 | AG55: 12 | AJ55: 3 | AK55: 9 | AL55: 2 | AM55: 12 | AN55: 9 | AO55: 3 | AP55: 4 | AQ55: 10 | AR55: 5 | AS55: 2 | AT55: 10
E56: 0.7 | F56: 0.90625 | G56: 0.9647887324 | Q56: 0.90625 | R56: 0.9647887324 | W56: 1 | X56: 3 | Y56: 3 | Z56: 13 | AA56: 3 | AB56: 0 | AC56: 0 | AD56: 7 | AE56: 4 | AF56: 2 | AG56: 17 | AJ56: 1 | AK56: 3 | AL56: 3 | AM56: 11 | AN56: 2 | AO56: 1 | AP56: 4 | AQ56: 4 | AR56: 7 | AS56: 1 | AT56: 19
E57: More | F57: =Q57 -> 1 | G57: 1 | Q57: 1 | R57: 1 | W57: 2 | X57: 6 | Y57: 0 | Z57: 4 | AA57: 1 | AB57: 1 | AC57: 0 | AD57: 4 | AE57: 2 | AF57: 2 | AG57: 3 | AJ57: 1 | AK57: 8 | AL57: 0 | AM57: 11 | AN57: 1 | AO57: 0 | AP57: 3 | AQ57: 3 | AR57: 3 | AS57: 0 | AT57: 14
E58: Count | F58: =F38 -> 96 | G58: =G38 -> 142 | Q58: =IF($T$6=$W$1,Y3/$F$58,IF($T$6=$W$17,Y19/$F$58,IF($T$6=$W$33,Y35/$F$58,IF($T$6=$W$49,Y51/$F$58,IF($T$6=$W$65,Y67/$F$58,IF($T$6=$W$81,Y83/$F$58,IF($T$6=$W$97,Y99/$F$58,IF($T$6=$W$113,Y115/$F$58,IF($T$6=$W$129,Y131/$F$58,IF($T$6=$W$145,Y147/$F$58,IF($T$6=$W$161,Y163/$F$58, IF($T$6=$W$177,Y179/$F$58,IF($T$6=$W$193,Y195/$F$58,IF($T$6=$W$209,Y211/$F$58,IF($T$6=$W$225,Y227/$F$58,IF($T$6=$W$241,Y243/$F$58,IF($T$6=$W$257,Y259/$F$58,IF($T$6=$W$273,Y275/$F$58,IF($T$6=$W$289,Y291/$F$58,IF($T$6=$W$305,Y307/$F$58,"N/A")))))))))))))))))))) -> 0.1041666667 | R58: =IF($T$6=$W$1,AL3/$G$38,IF($T$6=$W$17,AL19/$G$38,IF($T$6=$W$33,AL35/$G$38,IF($T$6=$W$49,AL51/$G$38,IF($T$6=$W$65,AL67/$G$38,IF($T$6=$W$81,AL83/$G$38,IF($T$6=$W$97,AL99/$G$38,IF($T$6=$W$113,AL115/$G$38,IF($T$6=$W$129,AL131/$G$38,IF($T$6=$W$145,AL147/$G$38,IF($T$6=$W$161,AL163/$G$38,IF($T$6=$W$177,AL179/$G$38,IF($T$6=$W$193,AL195/$G$38,IF($T$6=$W$209,AL211/$G$38,IF($T$6=$W$225,AL227/$G$38,IF($T$6=$W$241,AL243/$G$38,IF($T$6=$W$257,AL259/$G$38,IF($T$6=$W$273,AL275/$G$38,IF($T$6=$W$289,AL291/$G$38,IF($T$6=$W$305,AL307/$G$38,"N/A")))))))))))))))))))) -> 0.01408450704 | W58: 0 | X58: 2 | Y58: 4 | Z58: 1 | AA58: 0 | AB58: 0 | AC58: 0 | AD58: 2 | AE58: 3 | AF58: 0 | AG58: 2 | AJ58: 1 | AK58: 2 | AL58: 0 | AM58: 4 | AN58: 1 | AO58: 2 | AP58: 0 | AQ58: 0 | AR58: 0 | AS58: 1 | AT58: 3
E59: Average | F59: =IF($T$6=$W$1,$Y$14,IF($T$6=$W$17,$Y$30,IF($T$6=$W$33,$Y$46,IF($T$6=$W$49,$Y$62,IF($T$6=$W$65,$Y$78,IF($T$6=$W$81,$Y$94,IF($T$6=$W$97,$Y$110,IF($T$6=$W$113,$Y$126,IF($T$6=$W$129,$Y$142,IF($T$6=$W$145,$Y$158,IF($T$6=$W$161,$Y$174,IF($T$6=$W$177,$Y$190,IF($T$6=$W$193,$Y$206,IF($T$6=$W$209,$Y$222,IF($T$6=$W$225,$Y$238,IF($T$6=$W$241,$Y$254,IF($T$6=$W$257,$Y$270,IF($T$6=$W$273,$Y$286,IF($T$6=$W$289,$Y$302,IF($T$6=$W$305,$Y$318,"N/A")))))))))))))))))))) -> 0.2256484535 | G59: =IF($T$6=$W$1,$AL$14,IF($T$6=$W$17,$AL$30,IF($T$6=$W$33,$AL$46,IF($T$6=$W$49,$AL$62,IF($T$6=$W$65,$AL$78,IF($T$6=$W$81,$AL$94,IF($T$6=$W$97,$AL$110,IF($T$6=$W$113,$AL$126,IF($T$6=$W$129,$AL$142,IF($T$6=$W$145,$AL$158,IF($T$6=$W$161,$AL$174,IF($T$6=$W$177,$AL$190,IF($T$6=$W$193,$AL$206,IF($T$6=$W$209,$AL$222,IF($T$6=$W$225,$AL$238,IF($T$6=$W$241,$AL$254,IF($T$6=$W$257,$AL$270,IF($T$6=$W$273,$AL$286,IF($T$6=$W$289,$AL$302,IF($T$6=$W$305,$AL$318,"N/A")))))))))))))))))))) -> 0.2212271658 | Q59: 0.1770833333 | R59: 0.2464788732 | W59: 0 | X59: 6 | Y59: 2 | Z59: 1 | AA59: 0 | AB59: 0 | AC59: 0 | AD59: 8 | AE59: 9 | AF59: 4 | AG59: 0 | AJ59: 2 | AK59: 2 | AL59: 7 | AM59: 1 | AN59: 1 | AO59: 0 | AP59: 1 | AQ59: 2 | AR59: 0 | AS59: 0 | AT59: 1
Q60: 0.1458333333 | R60: 0.1197183099 | W60: 35 | X60: 13 | Z60: 1 | AA60: 0 | AB60: 0 | AC60: 6 | AG60: 2 | AJ60: 33 | AK60: 14 | AM60: 0 | AN60: 0 | AO60: 4 | AP60: 4 | AT60: 0
Q61: 0.1041666667 | R61: 0.2183098592 | V61: Count | W61: 53 | X61: 53 | Y61: 53 | Z61: 53 | AA61: 53 | AB61: 53 | AC61: 53 | AD61: 53 | AE61: 53 | AF61: 53 | AG61: 53 | AI61: Count | AJ61: 51 | AK61: 51 | AL61: 51 | AM61: 51 | AN61: 51 | AO61: 51 | AP61: 51 | AQ61: 51 | AR61: 51 | AS61: 51 | AT61: 51
Q62: 0.1875 | R62: 0.1690140845 | V62: Average | W62: 4.13869896 | X62: 0.9532201023 | Y62: 0.1003955339 | Z62: -0.0953234013 | AA62: -0.01093680421 | AB62: -0.01689784614 | AC62: 0.1147336757 | AD62: 0.7439962018 | AE62: 0.1128278437 | AF62: 0.03563433089 | AG62: 0.1075416235 | AI62: Average | AJ62: 6.006629034 | AK62: 0.8950014671 | AL62: 0.09824880083 | AM62: 0.07376519027 | AN62: 0.01258574948 | AO62: 0.007882272621 | AP62: 0.1706190879 | AQ62: 0.6376635302 | AR62: 0.07816763684 | AS62: 0.02780462111 | AT62: 0.2563642119
F63: =IF(B24=F59,"","Your Farm") ->  | G63: =IF(B24=F59,"",B24) ->  | Q63: 0.1041666667 | R63: 0.0985915493 | V63: Non-ratio average | X63: 128839.3838 | AG63: 14535.56894 | AI63: Non-ratio average | AK63: 117060.1481 | AT63: 33530.70772
Q64: 0.0625 | R64: 0.04929577465
Q65: 0.02083333333 | R65: 0.04929577465 | W65: Crop Acres<500No Cows-Feedlot
Q66: 0.09375 | R66: 0.03521126761 | W66: Current Ratio | X66: Working Capital Ratio | Y66: Debt to Asset Ratio | Z66: Operating Profit Margin | AA66: ROA | AB66: ROE | AC66: Asset Turnover | AD66: Operating Expense Ratio | AE66: Depr Expense Ratio | AF66: Interest Expense Ratio | AG66: NFI Ratio | AJ66: Current Ratio | AK66: Working Capital Ratio | AL66: Debt to Asset Ratio | AM66: Operating Profit Margin | AN66: ROA | AO66: ROE | AP66: Asset Turnover | AQ66: Operating Expense Ratio | AR66: Depr Expense Ratio | AS66: Interest Expense Ratio | AT66: NFI Ratio
W67: 0 | X67: 2 | Y67: 1 | Z67: 2 | AA67: 2 | AB67: 3 | AC67: 1 | AD67: 1 | AE67: 1 | AF67: 3 | AG67: 1 | AJ67: 0 | AK67: 0 | AL67: 0 | AM67: 0 | AN67: 1 | AO67: 6 | AP67: 0 | AQ67: 0 | AR67: 0 | AS67: 1 | AT67: 0
E68: Operating Profit Margin Ratio | W68: 0 | X68: 2 | Y68: 0 | Z68: 0 | AA68: 0 | AB68: 3 | AC68: 4 | AD68: 0 | AE68: 2 | AF68: 1 | AG68: 1 | AJ68: 0 | AK68: 0 | AL68: 2 | AM68: 1 | AN68: 0 | AO68: 2 | AP68: 3 | AQ68: 0 | AR68: 8 | AS68: 2 | AT68: 0
F69: =U1 -> 2017 | G69: 10-Year | W69: 4 | X69: 1 | Y69: 2 | Z69: 1 | AA69: 2 | AB69: 1 | AC69: 4 | AD69: 1 | AE69: 5 | AF69: 1 | AG69: 0 | AJ69: 3 | AK69: 3 | AL69: 0 | AM69: 1 | AN69: 3 | AO69: 1 | AP69: 5 | AQ69: 1 | AR69: 5 | AS69: 1 | AT69: 0
E70: -0.6 | F70: =Q70 -> 0.04166666667 | G70: =R70 -> 0 | Q70: =Q80 -> 0.04166666667 | R70: =R80 -> 0 | W70: 5 | X70: 1 | Y70: 0 | Z70: 0 | AA70: 4 | AB70: 3 | AC70: 2 | AD70: 3 | AE70: 0 | AF70: 1 | AG70: 3 | AJ70: 6 | AK70: 4 | AL70: 4 | AM70: 3 | AN70: 5 | AO70: 5 | AP70: 6 | AQ70: 5 | AR70: 3 | AS70: 8 | AT70: 3
E71: -0.45 | F71: =Q71 -> 0.07291666667 | G71: =R71 -> 0.02112676056 | Q71: =Q70+Q81 -> 0.07291666667 | R71: =R70+R81 -> 0.02112676056 | S71: Your Farm Line-Operating Profit Margin Ratio | W71: 1 | X71: 2 | Y71: 0 | Z71: 3 | AA71: 2 | AB71: 1 | AC71: 0 | AD71: 2 | AE71: 1 | AF71: 2 | AG71: 1 | AJ71: 2 | AK71: 2 | AL71: 2 | AM71: 2 | AN71: 6 | AO71: 2 | AP71: 2 | AQ71: 3 | AR71: 1 | AS71: 3 | AT71: 8
E72: -0.3 | F72: 0.1770833333 | G72: 0.02816901408 | Q72: 0.1770833333 | R72: 0.02816901408 | S72: X's | T72: =IF(B25>0.75,0.75,B25) -> 0.0001663512016 | U72: =T72 -> 0.0001663512016 | W72: 0 | X72: 1 | Y72: 4 | Z72: 0 | AA72: 1 | AB72: 0 | AC72: 0 | AD72: 3 | AE72: 2 | AF72: 2 | AG72: 4 | AJ72: 0 | AK72: 7 | AL72: 4 | AM72: 3 | AN72: 1 | AO72: 1 | AP72: 1 | AQ72: 6 | AR72: 0 | AS72: 1 | AT72: 5
E73: -0.15 | F73: 0.3125 | G73: 0.07042253521 | Q73: 0.3125 | R73: 0.07042253521 | S73: Y's | T73: 0 | U73: 1 | W73: 0 | X73: 1 | Y73: 1 | Z73: 3 | AA73: 0 | AB73: 0 | AC73: 1 | AD73: 0 | AE73: 0 | AF73: 1 | AG73: 1 | AJ73: 1 | AK73: 0 | AL73: 0 | AM73: 4 | AN73: 1 | AO73: 0 | AP73: 0 | AQ73: 2 | AR73: 0 | AS73: 0 | AT73: 1
E74: 0 | F74: 0.5416666667 | G74: 0.161971831 | Q74: 0.5416666667 | R74: 0.161971831 | S74: =IF(B25=F81,U1 &" Average","Your Farm") -> 2017 Average | W74: 0 | X74: 0 | Y74: 2 | Z74: 1 | AA74: 1 | AB74: 0 | AC74: 0 | AD74: 0 | AE74: 0 | AF74: 0 | AG74: 0 | AJ74: 1 | AK74: 0 | AL74: 2 | AM74: 2 | AN74: 0 | AO74: 0 | AP74: 0 | AQ74: 0 | AR74: 0 | AS74: 1 | AT74: 0
E75: 0.15 | F75: 0.8541666667 | G75: 0.6549295775 | Q75: 0.8541666667 | R75: 0.6549295775 | W75: 0 | X75: 1 | Y75: 2 | Z75: 1 | AA75: 0 | AB75: 0 | AC75: 0 | AD75: 2 | AE75: 1 | AF75: 1 | AG75: 0 | AJ75: 0 | AK75: 0 | AL75: 3 | AM75: 1 | AN75: 0 | AO75: 0 | AP75: 0 | AQ75: 0 | AR75: 0 | AS75: 0 | AT75: 0
E76: 0.3 | F76: 0.96875 | G76: 0.985915493 | Q76: 0.96875 | R76: 0.985915493 | W76: 2 | X76: 1 | Z76: 1 | AA76: 0 | AB76: 1 | AC76: 0 | AG76: 1 | AJ76: 4 | AK76: 1 | AM76: 0 | AN76: 0 | AO76: 0 | AP76: 0 | AT76: 0
E77: 0.45 | F77: 1 | G77: 1 | Q77: 1 | R77: 1 | V77: Count | W77: 12 | X77: 12 | Y77: 12 | Z77: 12 | AA77: 12 | AB77: 12 | AC77: 12 | AD77: 12 | AE77: 12 | AF77: 12 | AG77: 12 | AI77: Count | AJ77: 17 | AK77: 17 | AL77: 17 | AM77: 17 | AN77: 17 | AO77: 17 | AP77: 17 | AQ77: 17 | AR77: 17 | AS77: 17 | AT77: 17
E78: 0.6 | F78: 1 | G78: 1 | Q78: 1 | R78: 1 | V78: Average | W78: 1.383685297 | X78: 0.5567380408 | Y78: 0.3786668475 | Z78: -0.2270279713 | AA78: -0.0248486917 | AB78: -0.06208304462 | AC78: 0.1094521154 | AD78: 0.9081653318 | AE78: 0.06962192368 | AF78: 0.09400794376 | AG78: -0.07179519928 | AI78: Average | AJ78: 1.689588374 | AK78: 0.5314809349 | AL78: 0.3673939389 | AM78: 0.1599076563 | AN78: 0.02807619629 | AO78: 0.0161368755 | AP78: 0.1755775611 | AQ78: 0.8024464451 | AR78: 0.02821796531 | AS78: 0.05532854105 | AT78: 0.1140070485
E79: More | F79: 1 | G79: 1 | Q79: 1 | R79: 1 | V79: Non-ratio average | X79: 139591.8958 | AG79: -18001.335 | AI79: Non-ratio average | AK79: 282258.3018 | AT79: 60546.73611
E80: Count | F80: =F58 -> 96 | G80: =G58 -> 142 | Q80: =IF($T$6=$W$1,Z3/$F$80,IF($T$6=$W$17,Z19/$F$80,IF($T$6=$W$33,Z35/$F$80,IF($T$6=$W$49,Z51/$F$80,IF($T$6=$W$65,Z67/$F$80,IF($T$6=$W$81,Z83/$F$80,IF($T$6=$W$97,Z99/$F$80,IF($T$6=$W$113,Z115/$F$80,IF($T$6=$W$129,Z131/$F$80,IF($T$6=$W$145,Z147/$F$80,IF($T$6=$W$161,Z163/$F$80,IF($T$6=$W$177,Z179/$F$58,IF($T$6=$W$193,Z195/$F$58,IF($T$6=$W$209,Z211/$F$58,IF($T$6=$W$225,Z227/$F$58,IF($T$6=$W$241,Z243/$F$58,IF($T$6=$W$257,Z259/$F$58,IF($T$6=$W$273,Z275/$F$58,IF($T$6=$W$289,Z291/$F$58,IF($T$6=$W$305,Z307/$F$58,"N/A")))))))))))))))))))) -> 0.04166666667 | R80: =IF($T$6=$W$1,AM3/$G$38,IF($T$6=$W$17,AM19/$G$38,IF($T$6=$W$33,AM35/$G$38,IF($T$6=$W$49,AM51/$G$38,IF($T$6=$W$65,AM67/$G$38,IF($T$6=$W$81,AM83/$G$38,IF($T$6=$W$97,AM99/$G$38,IF($T$6=$W$113,AM115/$G$38,IF($T$6=$W$129,AM131/$G$38,IF($T$6=$W$145,AM147/$G$38,IF($T$6=$W$161,AM163/$G$38,IF($T$6=$W$177,AM179/$G$38,IF($T$6=$W$193,AM195/$G$38,IF($T$6=$W$209,AM211/$G$38,IF($T$6=$W$225,AM227/$G$38,IF($T$6=$W$241,AM243/$G$38,IF($T$6=$W$257,AM259/$G$38,IF($T$6=$W$273,AM275/$G$38,IF($T$6=$W$289,AM291/$G$38,IF($T$6=$W$305,AM307/$G$38,"N/A")))))))))))))))))))) -> 0
E81: Average | F81: =IF($T$6=$W$1,$Z$14,IF($T$6=$W$17,$Z$30,IF($T$6=$W$33,$Z$46,IF($T$6=$W$49,$Z$62,IF($T$6=$W$65,$Z$78,IF($T$6=$W$81,$Z$94,IF($T$6=$W$97,$Z$110,IF($T$6=$W$113,$Z$126,IF($T$6=$W$129,$Z$142,IF($T$6=$W$145,$Z$158,IF($T$6=W161,Z174,IF($T$6=$W$177,$Z$190,IF($T$6=$W$193,$Z$206,IF($T$6=$W$209,$Z$222,IF($T$6=$W$225,$Z$238,IF($T$6=$W$241,$Z$254,IF($T$6=$W$257,$Z$270,IF($T$6=$W$273,$Z$286,IF($T$6=$W$289,$Z$302,IF($T$6=$W$305,$Z$318,"N/A")))))))))))))))))))) -> 0.0001663512016 | G81: =IF($T$6=$W$1,$AM$14,IF($T$6=$W$17,$AM$30,IF($T$6=$W$33,$AM$46,IF($T$6=$W$49,$AM$62,IF($T$6=$W$65,$AM$78,IF($T$6=$W$81,$AM$94,IF($T$6=$W$97,$AM$110,IF($T$6=$W$113,$AM$126,IF($T$6=$W$129,$AM$142,IF($T$6=$W$145,$AM$158,IF($T$6=$W$161,$AM$174,IF($T$6=$W$177,$AM$190,IF($T$6=$W$193,$AM$206,IF($T$6=$W$209,$AM$222,IF($T$6=$W$225,$AM$238,IF($T$6=$W$241,$AM$254,IF($T$6=$W$257,$AM$270,IF($T$6=$W$273,$AM$286,IF($T$6=$W$289,$AM$302,IF($T$6=$W$305,$AM$318,"N/A")))))))))))))))))))) -> 0.1264665801 | Q81: 0.03125 | R81: 0.02112676056 | W81: Crop Acres<500<100 Cows
Q82: 0.1041666667 | R82: 0.007042253521 | W82: Current Ratio | X82: Working Capital Ratio | Y82: Debt to Asset Ratio | Z82: Operating Profit Margin | AA82: ROA | AB82: ROE | AC82: Asset Turnover | AD82: Operating Expense Ratio | AE82: Depr Expense Ratio | AF82: Interest Expense Ratio | AG82: NFI Ratio | AJ82: Current Ratio | AK82: Working Capital Ratio | AL82: Debt to Asset Ratio | AM82: Operating Profit Margin | AN82: ROA | AO82: ROE | AP82: Asset Turnover | AQ82: Operating Expense Ratio | AR82: Depr Expense Ratio | AS82: Interest Expense Ratio | AT82: NFI Ratio
Q83: 0.1354166667 | R83: 0.04225352113 | W83: 0 | X83: 6 | Y83: 9 | Z83: 10 | AA83: 8 | AB83: 9 | AC83: 0 | AD83: 3 | AE83: 1 | AF83: 11 | AG83: 7 | AJ83: 0 | AK83: 3 | AL83: 7 | AM83: 13 | AN83: 7 | AO83: 17 | AP83: 0 | AQ83: 1 | AR83: 0 | AS83: 5 | AT83: 1
Q84: 0.2291666667 | R84: 0.09154929577 | W84: 5 | X84: 1 | Y84: 14 | Z84: 1 | AA84: 3 | AB84: 7 | AC84: 18 | AD84: 1 | AE84: 6 | AF84: 12 | AG84: 1 | AJ84: 3 | AK84: 2 | AL84: 30 | AM84: 4 | AN84: 8 | AO84: 11 | AP84: 21 | AQ84: 6 | AR84: 8 | AS84: 31 | AT84: 2
F85: =IF(B25=F81,"","Your Farm") ->  | G85: =IF(B25=F81,"",B25) ->  | Q85: 0.3125 | R85: 0.4929577465 | W85: 5 | X85: 3 | Y85: 3 | Z85: 7 | AA85: 10 | AB85: 14 | AC85: 12 | AD85: 10 | AE85: 11 | AF85: 8 | AG85: 1 | AJ85: 6 | AK85: 4 | AL85: 15 | AM85: 6 | AN85: 22 | AO85: 36 | AP85: 36 | AQ85: 11 | AR85: 20 | AS85: 16 | AT85: 6
Q86: 0.1145833333 | R86: 0.3309859155 | W86: 3 | X86: 5 | Y86: 9 | Z86: 8 | AA86: 14 | AB86: 6 | AC86: 8 | AD86: 3 | AE86: 8 | AF86: 7 | AG86: 6 | AJ86: 6 | AK86: 10 | AL86: 7 | AM86: 13 | AN86: 30 | AO86: 10 | AP86: 14 | AQ86: 11 | AR86: 26 | AS86: 16 | AT86: 11
Q87: 0.03125 | R87: 0.01408450704 | W87: 4 | X87: 7 | Y87: 3 | Z87: 6 | AA87: 4 | AB87: 5 | AC87: 5 | AD87: 10 | AE87: 6 | AF87: 4 | AG87: 14 | AJ87: 5 | AK87: 21 | AL87: 8 | AM87: 22 | AN87: 9 | AO87: 4 | AP87: 2 | AQ87: 20 | AR87: 11 | AS87: 6 | AT87: 29
Q88: 0 | R88: 0 | W88: 2 | X88: 8 | Y88: 2 | Z88: 4 | AA88: 6 | AB88: 2 | AC88: 0 | AD88: 10 | AE88: 4 | AF88: 1 | AG88: 5 | AJ88: 8 | AK88: 11 | AL88: 6 | AM88: 10 | AN88: 5 | AO88: 3 | AP88: 7 | AQ88: 21 | AR88: 8 | AS88: 4 | AT88: 18
E89: Rate of Return on Farm Assets | Q89: 0 | R89: 0 | W89: 1 | X89: 5 | Y89: 3 | Z89: 5 | AA89: 1 | AB89: 1 | AC89: 1 | AD89: 2 | AE89: 6 | AF89: 1 | AG89: 8 | AJ89: 6 | AK89: 12 | AL89: 5 | AM89: 8 | AN89: 1 | AO89: 1 | AP89: 1 | AQ89: 6 | AR89: 3 | AS89: 2 | AT89: 12
F90: =U1 -> 2017 | G90: 10-Year | W90: 1 | X90: 3 | Y90: 2 | Z90: 6 | AA90: 0 | AB90: 0 | AC90: 0 | AD90: 1 | AE90: 2 | AF90: 0 | AG90: 3 | AJ90: 4 | AK90: 7 | AL90: 1 | AM90: 6 | AN90: 0 | AO90: 0 | AP90: 0 | AQ90: 2 | AR90: 3 | AS90: 1 | AT90: 3
E91: -0.1 | F91: =Q91 -> 0.07291666667 | G91: =R91 -> 0 | Q91: =Q101 -> 0.07291666667 | R91: =R101 -> 0 | W91: 3 | X91: 3 | Y91: 2 | Z91: 0 | AA91: 0 | AB91: 0 | AC91: 2 | AD91: 7 | AE91: 3 | AF91: 3 | AG91: 2 | AJ91: 1 | AK91: 5 | AL91: 3 | AM91: 0 | AN91: 0 | AO91: 0 | AP91: 0 | AQ91: 4 | AR91: 3 | AS91: 1 | AT91: 0
E92: -0.06 | F92: =Q92 -> 0.1354166667 | G92: =R92 -> 0.02816901408 | Q92: =Q91+Q102 -> 0.1354166667 | R92: =R91+R102 -> 0.02816901408 | W92: 23 | X92: 6 | Z92: 0 | AA92: 1 | AB92: 3 | AC92: 1 | AG92: 0 | AJ92: 43 | AK92: 7 | AM92: 0 | AN92: 0 | AO92: 0 | AP92: 1 | AT92: 0
E93: -0.02 | F93: 0.3541666667 | G93: 0.1056338028 | Q93: 0.3541666667 | R93: 0.1056338028 | S93: Your Farm Line-Return on Assets | V93: Count | W93: 47 | X93: 47 | Y93: 47 | Z93: 47 | AA93: 47 | AB93: 47 | AC93: 47 | AD93: 47 | AE93: 47 | AF93: 47 | AG93: 47 | AI93: Count | AJ93: 82 | AK93: 82 | AL93: 82 | AM93: 82 | AN93: 82 | AO93: 82 | AP93: 82 | AQ93: 82 | AR93: 82 | AS93: 82 | AT93: 82
E94: 0.02 | F94: 0.75 | G94: 0.3309859155 | Q94: 0.75 | R94: 0.3309859155 | S94: X's | T94: =IF(B26>0.24,0.24,B26) -> 3.142416904e-05 | U94: =T94 -> 3.142416904e-05 | V94: Average | W94: 2.058646805 | X94: 0.4770999966 | Y94: 0.1742794149 | Z94: -0.1574787634 | AA94: -0.01609769229 | AB94: -0.02674474227 | AC94: 0.1022213532 | AD94: 0.7542507685 | AE94: 0.08486813869 | AF94: 0.07061707304 | AG94: 0.09026401973 | AI94: Average | AJ94: 2.029262984 | AK94: 0.5584339209 | AL94: 0.1918882788 | AM94: -0.06093043718 | AN94: -0.008941797802 | AO94: -0.02246541964 | AP94: 0.1467542039 | AQ94: 0.7459495548 | AR94: 0.06809307616 | AS94: 0.05236083097 | AT94: 0.1335965381
E95: 0.06 | F95: 0.90625 | G95: 0.7605633803 | Q95: 0.90625 | R95: 0.7605633803 | S95: Y's | T95: 0 | U95: 1 | V95: Non-ratio average | X95: 50020.28128 | AG95: 9463.491277 | AI95: Non-ratio average | AK95: 80845.19834 | AT95: 19340.94298
E96: 0.1 | F96: 0.9375 | G96: 0.9577464789 | Q96: 0.9375 | R96: 0.9577464789 | S96: =IF(B26=F102,U1 &" Average","Your Farm") -> 2017 Average
E97: 0.14 | F97: 0.9791666667 | G97: 1 | Q97: 0.9791666667 | R97: 1 | W97: Crop Acres<500100+ Cows
E98: 0.18 | F98: 0.9895833333 | G98: 1 | Q98: 0.9895833333 | R98: 1 | W98: Current Ratio | X98: Working Capital Ratio | Y98: Debt to Asset Ratio | Z98: Operating Profit Margin | AA98: ROA | AB98: ROE | AC98: Asset Turnover | AD98: Operating Expense Ratio | AE98: Depr Expense Ratio | AF98: Interest Expense Ratio | AG98: NFI Ratio | AJ98: Current Ratio | AK98: Working Capital Ratio | AL98: Debt to Asset Ratio | AM98: Operating Profit Margin | AN98: ROA | AO98: ROE | AP98: Asset Turnover | AQ98: Operating Expense Ratio | AR98: Depr Expense Ratio | AS98: Interest Expense Ratio | AT98: NFI Ratio
E99: 0.22 | F99: 0.9895833333 | G99: 1 | Q99: 0.9895833333 | R99: 1 | W99: 0 | X99: 1 | Y99: 5 | Z99: 6 | AA99: 6 | AB99: 10 | AC99: 0 | AD99: 0 | AE99: 0 | AF99: 3 | AG99: 1 | AJ99: 0 | AK99: 1 | AL99: 0 | AM99: 0 | AN99: 0 | AO99: 6 | AP99: 0 | AQ99: 0 | AR99: 0 | AS99: 1 | AT99: 0
E100: More | F100: =Q100 -> 1 | G100: =R100 -> 1 | Q100: 1 | R100: 1 | W100: 1 | X100: 1 | Y100: 6 | Z100: 4 | AA100: 2 | AB100: 3 | AC100: 8 | AD100: 1 | AE100: 6 | AF100: 5 | AG100: 3 | AJ100: 1 | AK100: 2 | AL100: 15 | AM100: 0 | AN100: 2 | AO100: 5 | AP100: 7 | AQ100: 3 | AR100: 5 | AS100: 15 | AT100: 0
E101: Count | F101: =F80 -> 96 | G101: =G80 -> 142 | Q101: =IF($T$6=$W$1,AA3/$F$101,IF($T$6=$W$17,AA19/$F$101,IF($T$6=$W$33,AA35/$F$101,IF($T$6=$W$49,AA51/$F$101,IF($T$6=$W$65,AA67/$F$101,IF($T$6=$W$81,AA83/$F$101,IF($T$6=$W$97,AA99/$F$101,IF($T$6=$W$113,AA115/$F$101,IF($T$6=$W$129,AA131/$F$101,IF($T$6=$W$145,AA147/$F$101,IF($T$6=$W$161,AA163/$F$101,IF($T$6=$W$177,AA179/$F$58,IF($T$6=$W$193,AA195/$F$58,IF($T$6=$W$209,AA211/$F$58,IF($T$6=$W$225,AA227/$F$58,IF($T$6=$W$241,AA243/$F$58,IF($T$6=$W$257,AA259/$F$58,IF($T$6=$W$273,AA275/$F$58,IF($T$6=$W$289,AA291/$F$58,IF($T$6=$W$305,AA307/$F$58,"N/A")))))))))))))))))))) -> 0.07291666667 | R101: =IF($T$6=$W$1,AN3/$G$38,IF($T$6=$W$17,AN19/$G$38,IF($T$6=$W$33,AN35/$G$38,IF($T$6=$W$49,AN51/$G$38,IF($T$6=$W$65,AN67/$G$38,IF($T$6=$W$81,AN83/$G$38,IF($T$6=$W$97,AN99/$G$38,IF($T$6=$W$113,AN115/$G$38,IF($T$6=$W$129,AN131/$G$38,IF($T$6=$W$145,AN147/$G$38,IF($T$6=$W$161,AN163/$G$38,IF($T$6=$W$177,AN179/$G$38,IF($T$6=$W$193,AN195/$G$38,IF($T$6=$W$209,AN211/$G$38,IF($T$6=$W$225,AN227/$G$38,IF($T$6=$W$241,AN243/$G$38,IF($T$6=$W$257,AN259/$G$38,IF($T$6=$W$273,AN275/$G$38,IF($T$6=$W$289,AN291/$G$38,IF($T$6=$W$305,AN307/$G$38,"N/A")))))))))))))))))))) -> 0 | W101: 4 | X101: 3 | Y101: 6 | Z101: 6 | AA101: 8 | AB101: 11 | AC101: 14 | AD101: 3 | AE101: 6 | AF101: 10 | AG101: 5 | AJ101: 3 | AK101: 1 | AL101: 7 | AM101: 4 | AN101: 10 | AO101: 10 | AP101: 15 | AQ101: 5 | AR101: 10 | AS101: 12 | AT101: 1
E102: Average | F102: =IF($T$6=$W$1,$AA$14,IF($T$6=$W$17,$AA$30,IF($T$6=$W$33,$AA$46,IF($T$6=$W$49,$AA$62,IF($T$6=$W$65,$AA$78,IF($T$6=$W$81,$AA$94,IF($T$6=$W$97,$AA$110,IF($T$6=$W$113,$AA$126,IF($T$6=$W$129,$AA$142,IF($T$6=$W$145,$AA$158,IF($T$6=$W$161,AA174,IF($T$6=$W$177,$AA$190,IF($T$6=$W$193,$AA$206,IF($T$6=$W$209,$AA$222,IF($T$6=$W$225,$AA$238,IF($T$6=$W$241,$AA$254,IF($T$6=$W$257,$AA$270,IF($T$6=$W$273,$AA$286,IF($T$6=$W$289,$AA$302,IF($T$6=$W$305,$AA$318,"N/A")))))))))))))))))))) -> 3.142416904e-05 | G102: =IF($T$6=$W$1,$AN$14,IF($T$6=$W$17,$AN$30,IF($T$6=$W$33,$AN$46,IF($T$6=$W$49,$AN$62,IF($T$6=$W$65,$AN$78,IF($T$6=$W$81,$AN$94,IF($T$6=$W$97,$AN$110,IF($T$6=$W$113,$AN$126,IF($T$6=$W$129,$AN$142,IF($T$6=$W$145,$AN$158,IF($T$6=$W$161,$AN$174,IF($T$6=$W$177,$AN$190,IF($T$6=$W$193,$AN$206,IF($T$6=$W$209,$AN$222,IF($T$6=$W$225,$AN$238,IF($T$6=$W$241,$AN$254,IF($T$6=$W$257,$AN$270,IF($T$6=$W$273,$AN$286,IF($T$6=$W$289,$AN$302,IF($T$6=$W$305,$AN$318,"N/A")))))))))))))))))))) -> 0.03308668495 | Q102: 0.0625 | R102: 0.02816901408 | W102: 8 | X102: 8 | Y102: 2 | Z102: 1 | AA102: 12 | AB102: 5 | AC102: 5 | AD102: 3 | AE102: 9 | AF102: 9 | AG102: 8 | AJ102: 5 | AK102: 8 | AL102: 2 | AM102: 7 | AN102: 12 | AO102: 11 | AP102: 6 | AQ102: 11 | AR102: 13 | AS102: 2 | AT102: 3
Q103: 0.21875 | R103: 0.07746478873 | W103: 1 | X103: 3 | Y103: 2 | Z103: 3 | AA103: 2 | AB103: 2 | AC103: 5 | AD103: 6 | AE103: 4 | AF103: 2 | AG103: 7 | AJ103: 4 | AK103: 5 | AL103: 3 | AM103: 7 | AN103: 8 | AO103: 3 | AP103: 5 | AQ103: 11 | AR103: 6 | AS103: 4 | AT103: 12
Q104: 0.3958333333 | R104: 0.2253521127 | W104: 0 | X104: 5 | Y104: 3 | Z104: 8 | AA104: 2 | AB104: 1 | AC104: 0 | AD104: 6 | AE104: 2 | AF104: 4 | AG104: 5 | AJ104: 2 | AK104: 8 | AL104: 4 | AM104: 9 | AN104: 5 | AO104: 0 | AP104: 3 | AQ104: 5 | AR104: 3 | AS104: 3 | AT104: 14
Q105: 0.15625 | R105: 0.4295774648 | W105: 1 | X105: 6 | Y105: 3 | Z105: 3 | AA105: 1 | AB105: 0 | AC105: 1 | AD105: 5 | AE105: 2 | AF105: 0 | AG105: 3 | AJ105: 2 | AK105: 7 | AL105: 3 | AM105: 10 | AN105: 0 | AO105: 1 | AP105: 1 | AQ105: 3 | AR105: 0 | AS105: 1 | AT105: 7
F106: =IF(B26=F102,"","Your Farm") ->  | G106: =IF(B26=F102,"",B26) ->  | Q106: 0.03125 | R106: 0.1971830986 | W106: 3 | X106: 2 | Y106: 1 | Z106: 1 | AA106: 0 | AB106: 0 | AC106: 0 | AD106: 6 | AE106: 2 | AF106: 0 | AG106: 1 | AJ106: 2 | AK106: 3 | AL106: 1 | AM106: 1 | AN106: 1 | AO106: 0 | AP106: 1 | AQ106: 0 | AR106: 0 | AS106: 0 | AT106: 1
Q107: 0.04166666667 | R107: 0.04225352113 | W107: 0 | X107: 2 | Y107: 5 | Z107: 1 | AA107: 0 | AB107: 0 | AC107: 0 | AD107: 3 | AE107: 2 | AF107: 0 | AG107: 0 | AJ107: 0 | AK107: 1 | AL107: 3 | AM107: 0 | AN107: 0 | AO107: 1 | AP107: 0 | AQ107: 0 | AR107: 1 | AS107: 0 | AT107: 0
Q108: 0.01041666667 | R108: 0 | W108: 15 | X108: 2 | Z108: 0 | AA108: 0 | AB108: 1 | AC108: 0 | AG108: 0 | AJ108: 19 | AK108: 2 | AM108: 0 | AN108: 0 | AO108: 1 | AP108: 0 | AT108: 0
Q109: 0 | R109: 0 | V109: Count | W109: 33 | X109: 33 | Y109: 33 | Z109: 33 | AA109: 33 | AB109: 33 | AC109: 33 | AD109: 33 | AE109: 33 | AF109: 33 | AG109: 33 | AI109: Count | AJ109: 38 | AK109: 38 | AL109: 38 | AM109: 38 | AN109: 38 | AO109: 38 | AP109: 38 | AQ109: 38 | AR109: 38 | AS109: 38 | AT109: 38
E110: Rate of Return on Farm Equity | Q110: 0.01041666667 | R110: 0 | V110: Average | W110: 1.529019969 | X110: 0.4029176046 | Y110: 0.2669171537 | Z110: -0.08662505762 | AA110: -0.01173753201 | AB110: -0.02996657801 | AC110: 0.1354981149 | AD110: 0.856847433 | AE110: 0.06126414474 | AF110: 0.05661330709 | AG110: 0.02527511518 | AI110: Average | AJ110: 2.333417363 | AK110: 0.4597820695 | AL110: 0.1921824415 | AM110: 0.04800377262 | AN110: 0.008193503904 | AO110: -0.001129728566 | AP110: 0.1706845828 | AQ110: 0.7218844682 | AR110: 0.05958947563 | AS110: 0.04062295772 | AT110: 0.1779030985
F111: =U1 -> 2017 | G111: 10-Year | V111: Non-ratio average | X111: 162099.5918 | AG111: 10168.54515 | AI111: Non-ratio average | AK111: 122551.809 | AT111: 47418.8708
E112: -0.1 | F112: =Q112 -> 0.08333333333 | G112: =R112 -> 0.05633802817 | Q112: =Q122 -> 0.08333333333 | R112: =R122 -> 0.05633802817
E113: -0.05 | F113: =Q113 -> 0.3229166667 | G113: =R113 -> 0.1197183099 | Q113: =Q112+Q123 -> 0.3229166667 | R113: =R112+R123 -> 0.1197183099 | W113: Crop Acres500-1000None
E114: 0 | F114: 0.6145833333 | G114: 0.2746478873 | Q114: 0.6145833333 | R114: 0.2746478873 | W114: Current Ratio | X114: Working Capital Ratio | Y114: Debt to Asset Ratio | Z114: Operating Profit Margin | AA114: ROA | AB114: ROE | AC114: Asset Turnover | AD114: Operating Expense Ratio | AE114: Depr Expense Ratio | AF114: Interest Expense Ratio | AG114: NFI Ratio | AJ114: Current Ratio | AK114: Working Capital Ratio | AL114: Debt to Asset Ratio | AM114: Operating Profit Margin | AN114: ROA | AO114: ROE | AP114: Asset Turnover | AQ114: Operating Expense Ratio | AR114: Depr Expense Ratio | AS114: Interest Expense Ratio | AT114: NFI Ratio
E115: 0.05 | F115: 0.84375 | G115: 0.6971830986 | Q115: 0.84375 | R115: 0.6971830986 | S115: Your Farm Line-Return on Equity | W115: 0 | X115: 9 | Y115: 15 | Z115: 5 | AA115: 7 | AB115: 11 | AC115: 0 | AD115: 1 | AE115: 0 | AF115: 12 | AG115: 4 | AJ115: 0 | AK115: 1 | AL115: 7 | AM115: 1 | AN115: 1 | AO115: 5 | AP115: 0 | AQ115: 0 | AR115: 0 | AS115: 3 | AT115: 0
E116: 0.1 | F116: 0.8958333333 | G116: 0.8873239437 | Q116: 0.8958333333 | R116: 0.8873239437 | S116: X's | T116: =IF(B27>0.35,0.35,B27) -> -0.01162002214 | U116: =T116 -> -0.01162002214 | W116: 12 | X116: 3 | Y116: 18 | Z116: 4 | AA116: 5 | AB116: 14 | AC116: 15 | AD116: 3 | AE116: 6 | AF116: 27 | AG116: 0 | AJ116: 5 | AK116: 5 | AL116: 38 | AM116: 0 | AN116: 3 | AO116: 6 | AP116: 5 | AQ116: 4 | AR116: 5 | AS116: 50 | AT116: 0
E117: 0.15 | F117: 0.9270833333 | G117: 0.9507042254 | Q117: 0.9270833333 | R117: 0.9507042254 | S117: Y's | T117: 0 | U117: 1 | W117: 9 | X117: 9 | Y117: 11 | Z117: 7 | AA117: 26 | AB117: 31 | AC117: 27 | AD117: 8 | AE117: 8 | AF117: 18 | AG117: 7 | AJ117: 6 | AK117: 5 | AL117: 6 | AM117: 3 | AN117: 11 | AO117: 20 | AP117: 24 | AQ117: 22 | AR117: 17 | AS117: 19 | AT117: 0
E118: 0.2 | F118: 0.9375 | G118: 0.985915493 | Q118: 0.9375 | R118: 0.985915493 | S118: =IF(B27=F123,U1 &" Average","Your Farm") -> 2017 Average | W118: 12 | X118: 11 | Y118: 9 | Z118: 19 | AA118: 26 | AB118: 8 | AC118: 13 | AD118: 8 | AE118: 16 | AF118: 5 | AG118: 16 | AJ118: 5 | AK118: 9 | AL118: 10 | AM118: 7 | AN118: 31 | AO118: 37 | AP118: 20 | AQ118: 29 | AR118: 20 | AS118: 6 | AT118: 3
E119: 0.25 | F119: 0.9375 | G119: 0.985915493 | Q119: 0.9375 | R119: 0.985915493 | W119: 1 | X119: 10 | Y119: 8 | Z119: 19 | AA119: 2 | AB119: 2 | AC119: 3 | AD119: 17 | AE119: 6 | AF119: 1 | AG119: 20 | AJ119: 5 | AK119: 17 | AL119: 6 | AM119: 14 | AN119: 29 | AO119: 10 | AP119: 14 | AQ119: 20 | AR119: 25 | AS119: 3 | AT119: 18
E120: 0.3 | F120: 0.9583333333 | G120: 0.985915493 | Q120: 0.9583333333 | R120: 0.985915493 | W120: 2 | X120: 7 | Y120: 1 | Z120: 10 | AA120: 2 | AB120: 1 | AC120: 7 | AD120: 20 | AE120: 12 | AF120: 5 | AG120: 16 | AJ120: 7 | AK120: 11 | AL120: 6 | AM120: 40 | AN120: 7 | AO120: 1 | AP120: 10 | AQ120: 7 | AR120: 9 | AS120: 1 | AT120: 40
E121: More | F121: 1 | G121: 1 | Q121: 1 | R121: 1 | W121: 1 | X121: 6 | Y121: 4 | Z121: 3 | AA121: 0 | AB121: 0 | AC121: 1 | AD121: 6 | AE121: 9 | AF121: 1 | AG121: 4 | AJ121: 4 | AK121: 15 | AL121: 6 | AM121: 17 | AN121: 1 | AO121: 2 | AP121: 7 | AQ121: 0 | AR121: 3 | AS121: 1 | AT121: 20
E122: Count | F122: =F101 -> 96 | G122: =G101 -> 142 | Q122: =IF($T$6=$W$1,AB3/$F$122,IF($T$6=$W$17,AB19/$F$122,IF($T$6=$W$33,AB35/$F$122,IF($T$6=$W$49,AB51/$F$122,IF($T$6=$W$65,AB67/$F$122,IF($T$6=$W$81,AB83/$F$122,IF($T$6=$W$97,AB99/$F$122,IF($T$6=$W$113,AB115/$F$122,IF($T$6=$W$129,AB131/$F$122,IF($T$6=$W$145,AB147/$F$122,IF($T$6=$W$161,AB163/$F$122,IF($T$6=$W$177,AB179/$F$58,IF($T$6=$W$193,AB195/$F$58,IF($T$6=$W$209,AB211/$F$58,IF($T$6=$W$225,AB227/$F$58,IF($T$6=$W$241,AB243/$F$58,IF($T$6=$W$257,AB259/$F$58,IF($T$6=$W$273,AB275/$F$58,IF($T$6=$W$289,AB291/$F$58,IF($T$6=$W$305,AB307/$F$58,"N/A")))))))))))))))))))) -> 0.08333333333 | R122: =IF($T$6=$W$1,AO3/$G$38,IF($T$6=$W$17,AO19/$G$38,IF($T$6=$W$33,AO35/$G$38,IF($T$6=$W$49,AO51/$G$38,IF($T$6=$W$65,AO67/$G$38,IF($T$6=$W$81,AO83/$G$38,IF($T$6=$W$97,AO99/$G$38,IF($T$6=$W$113,AO115/$G$38,IF($T$6=$W$129,AO131/$G$38,IF($T$6=$W$145,AO147/$G$38,IF($T$6=$W$161,AO163/$G$38,IF($T$6=$W$177,AO179/$G$38,IF($T$6=$W$193,AO195/$G$38,IF($T$6=$W$209,AO211/$G$38,IF($T$6=$W$225,AO227/$G$38,IF($T$6=$W$241,AO243/$G$38,IF($T$6=$W$257,AO259/$G$38,IF($T$6=$W$273,AO275/$G$38,IF($T$6=$W$289,AO291/$G$38,IF($T$6=$W$305,AO307/$G$38,"N/A")))))))))))))))))))) -> 0.05633802817 | W122: 1 | X122: 3 | Y122: 0 | Z122: 3 | AA122: 1 | AB122: 0 | AC122: 4 | AD122: 4 | AE122: 5 | AF122: 0 | AG122: 3 | AJ122: 3 | AK122: 4 | AL122: 1 | AM122: 1 | AN122: 0 | AO122: 0 | AP122: 1 | AQ122: 1 | AR122: 4 | AS122: 0 | AT122: 2
E123: Average | F123: =IF($T$6=$W$1,$AB$14,IF($T$6=$W$17,$AB$30,IF($T$6=$W$33,$AB$46,IF($T$6=$W$49,$AB$62,IF($T$6=$W$65,$AB$78,IF($T$6=$W$81,$AB$94,IF($T$6=$W$97,$AB$110,IF($T$6=$W$113,$AB$126,IF($T$6=$W$129,$AB$142,IF($T$6=$W$145,$AB$158,IF($T$6=W161,AB174,IF($T$6=$W$177,$AB$190,IF($T$6=$W$193,$AB$206,IF($T$6=$W$209,$AB$222,IF($T$6=$W$225,$AB$238,IF($T$6=$W$241,$AB$254,IF($T$6=$W$257,$AB$270,IF($T$6=$W$273,$AB$286,IF($T$6=$W$289,$AB$302,IF($T$6=$W$305,$AB$318,"N/A")))))))))))))))))))) -> -0.01162002214 | G123: =IF($T$6=$W$1,$AO$14,IF($T$6=$W$17,$AO$30,IF($T$6=$W$33,$AO$46,IF($T$6=$W$49,$AO$62,IF($T$6=$W$65,$AO$78,IF($T$6=$W$81,$AO$94,IF($T$6=$W$97,$AO$110,IF($T$6=$W$113,$AO$126,IF($T$6=$W$129,$AO$142,IF($T$6=$W$145,$AO$158,IF($T$6=$W$161,$AO$174,IF($T$6=$W$177,$AO$190,IF($T$6=$W$193,$AO$206,IF($T$6=$W$209,$AO$222,IF($T$6=$W$225,$AO$238,IF($T$6=$W$241,$AO$254,IF($T$6=$W$257,$AO$270,IF($T$6=$W$273,$AO$286,IF($T$6=$W$289,$AO$302,IF($T$6=$W$305,$AO$318,"N/A")))))))))))))))))))) -> 0.02909981238 | Q123: 0.2395833333 | R123: 0.06338028169 | W123: 3 | X123: 4 | Y123: 5 | Z123: 0 | AA123: 0 | AB123: 1 | AC123: 0 | AD123: 4 | AE123: 9 | AF123: 2 | AG123: 1 | AJ123: 1 | AK123: 2 | AL123: 3 | AM123: 0 | AN123: 0 | AO123: 0 | AP123: 0 | AQ123: 0 | AR123: 0 | AS123: 0 | AT123: 0
Q124: 0.2916666667 | R124: 0.1549295775 | W124: 30 | X124: 9 | Z124: 1 | AA124: 2 | AB124: 3 | AC124: 1 | AG124: 0 | AJ124: 47 | AK124: 14 | AM124: 0 | AN124: 0 | AO124: 2 | AP124: 2 | AT124: 0
Q125: 0.2291666667 | R125: 0.4225352113 | V125: Count | W125: 71 | X125: 71 | Y125: 71 | Z125: 71 | AA125: 71 | AB125: 71 | AC125: 71 | AD125: 71 | AE125: 71 | AF125: 71 | AG125: 71 | AI125: Count | AJ125: 83 | AK125: 83 | AL125: 83 | AM125: 83 | AN125: 83 | AO125: 83 | AP125: 83 | AQ125: 83 | AR125: 83 | AS125: 83 | AT125: 83
Q126: 0.05208333333 | R126: 0.1901408451 | V126: Average | W126: 2.259766837 | X126: 0.4649750617 | Y126: 0.1351398173 | Z126: -0.111083618 | AA126: -0.01724453021 | AB126: -0.02600132865 | AC126: 0.155239184 | AD126: 0.7700267246 | AE126: 0.115096879 | AF126: 0.03859184989 | AG126: 0.07628454653 | AI126: Average | AJ126: 4.511840479 | AK126: 0.6723217457 | AL126: 0.1334780674 | AM126: 0.06754046866 | AN126: 0.01522957365 | AO126: 0.01001949174 | AP126: 0.2254881251 | AQ126: 0.6593413803 | AR126: 0.09276460807 | AS126: 0.02779980239 | AT126: 0.2200942092
F127: =IF(B27=F123,"","Your Farm") ->  | G127: =IF(B27=F123,"",B27) ->  | Q127: 0.03125 | R127: 0.06338028169 | V127: Non-ratio average | X127: 109157.8713 | AG127: 17908.61359 | AI127: Non-ratio average | AK127: 184031.2032 | AT127: 60245.2656
Q128: 0.01041666667 | R128: 0.03521126761
Q129: 0 | R129: 0 | W129: Crop Acres500-1000No Cows-Feedlot
Q130: 0.02083333333 | R130: 0 | W130: Current Ratio | X130: Working Capital Ratio | Y130: Debt to Asset Ratio | Z130: Operating Profit Margin | AA130: ROA | AB130: ROE | AC130: Asset Turnover | AD130: Operating Expense Ratio | AE130: Depr Expense Ratio | AF130: Interest Expense Ratio | AG130: NFI Ratio | AJ130: Current Ratio | AK130: Working Capital Ratio | AL130: Debt to Asset Ratio | AM130: Operating Profit Margin | AN130: ROA | AO130: ROE | AP130: Asset Turnover | AQ130: Operating Expense Ratio | AR130: Depr Expense Ratio | AS130: Interest Expense Ratio | AT130: NFI Ratio
E131: Asset Turnover Rate | Q131: 0.04166666667 | R131: 0.01408450704 | W131: 1 | X131: 2 | Y131: 1 | Z131: 1 | AA131: 1 | AB131: 3 | AC131: 0 | AD131: 0 | AE131: 0 | AF131: 1 | AG131: 0 | AJ131: 0 | AK131: 0 | AL131: 0 | AM131: 0 | AN131: 0 | AO131: 5 | AP131: 0 | AQ131: 0 | AR131: 0 | AS131: 0 | AT131: 0
F132: =U1 -> 2017 | G132: 10-Year | W132: 0 | X132: 0 | Y132: 2 | Z132: 0 | AA132: 2 | AB132: 1 | AC132: 3 | AD132: 0 | AE132: 2 | AF132: 5 | AG132: 0 | AJ132: 0 | AK132: 0 | AL132: 3 | AM132: 0 | AN132: 2 | AO132: 0 | AP132: 3 | AQ132: 2 | AR132: 1 | AS132: 7 | AT132: 0
E133: 0 | F133: =Q133 -> 0 | G133: =R133 -> 0 | Q133: =Q143 -> 0 | R133: =R143 -> 0 | W133: 7 | X133: 5 | Y133: 1 | Z133: 2 | AA133: 3 | AB133: 3 | AC133: 4 | AD133: 3 | AE133: 5 | AF133: 5 | AG133: 2 | AJ133: 3 | AK133: 3 | AL133: 5 | AM133: 0 | AN133: 2 | AO133: 9 | AP133: 9 | AQ133: 1 | AR133: 10 | AS133: 8 | AT133: 0
E134: 0.1 | F134: =Q134 -> 0.15625 | G134: =R134 -> 0.01408450704 | Q134: =Q133+Q144 -> 0.15625 | R134: =R133+R144 -> 0.01408450704 | W134: 5 | X134: 2 | Y134: 1 | Z134: 3 | AA134: 2 | AB134: 2 | AC134: 4 | AD134: 5 | AE134: 6 | AF134: 3 | AG134: 3 | AJ134: 5 | AK134: 3 | AL134: 5 | AM134: 1 | AN134: 13 | AO134: 5 | AP134: 2 | AQ134: 6 | AR134: 5 | AS134: 5 | AT134: 2
E135: 0.2 | F135: 0.4479166667 | G135: 0.2253521127 | Q135: 0.4479166667 | R135: 0.2253521127 | W135: 0 | X135: 2 | Y135: 2 | Z135: 2 | AA135: 3 | AB135: 2 | AC135: 2 | AD135: 1 | AE135: 2 | AF135: 0 | AG135: 4 | AJ135: 6 | AK135: 7 | AL135: 3 | AM135: 7 | AN135: 5 | AO135: 3 | AP135: 4 | AQ135: 8 | AR135: 5 | AS135: 4 | AT135: 11
E136: 0.3 | F136: 0.6875 | G136: 0.5563380282 | Q136: 0.6875 | R136: 0.5563380282 | W136: 1 | X136: 1 | Y136: 2 | Z136: 1 | AA136: 5 | AB136: 1 | AC136: 2 | AD136: 4 | AE136: 2 | AF136: 1 | AG136: 3 | AJ136: 2 | AK136: 4 | AL136: 1 | AM136: 11 | AN136: 1 | AO136: 0 | AP136: 2 | AQ136: 7 | AR136: 3 | AS136: 0 | AT136: 9
E137: 0.4 | F137: 0.8125 | G137: 0.7605633803 | Q137: 0.8125 | R137: 0.7605633803 | S137: Your Farm Line-Asset Turnover Rate | W137: 0 | X137: 2 | Y137: 2 | Z137: 4 | AA137: 0 | AB137: 1 | AC137: 1 | AD137: 3 | AE137: 0 | AF137: 1 | AG137: 5 | AJ137: 1 | AK137: 2 | AL137: 1 | AM137: 4 | AN137: 0 | AO137: 0 | AP137: 0 | AQ137: 0 | AR137: 0 | AS137: 0 | AT137: 2
E138: 0.5 | F138: 0.8645833333 | G138: 0.8732394366 | Q138: 0.8645833333 | R138: 0.8732394366 | S138: X's | T138: =IF(B28>0.9,0.9,B28) -> 0.1889025672 | U138: =T138 -> 0.1889025672 | W138: 1 | X138: 0 | Y138: 2 | Z138: 2 | AA138: 0 | AB138: 1 | AC138: 0 | AD138: 1 | AE138: 0 | AF138: 0 | AG138: 0 | AJ138: 2 | AK138: 2 | AL138: 3 | AM138: 1 | AN138: 0 | AO138: 0 | AP138: 2 | AQ138: 0 | AR138: 0 | AS138: 0 | AT138: 0
E139: 0.6 | F139: 0.9166666667 | G139: 0.9084507042 | Q139: 0.9166666667 | R139: 0.9084507042 | S139: Y's | T139: 0 | U139: 1 | W139: 0 | X139: 2 | Y139: 4 | Z139: 1 | AA139: 0 | AB139: 0 | AC139: 0 | AD139: 0 | AE139: 0 | AF139: 1 | AG139: 0 | AJ139: 0 | AK139: 1 | AL139: 3 | AM139: 0 | AN139: 1 | AO139: 0 | AP139: 0 | AQ139: 0 | AR139: 0 | AS139: 0 | AT139: 0
E140: 0.7 | F140: 0.9270833333 | G140: 0.9507042254 | Q140: 0.9270833333 | R140: 0.9507042254 | S140: =IF(B28=F144,U1 &" Average","Your Farm") -> 2017 Average | W140: 2 | X140: 1 | Z140: 1 | AA140: 1 | AB140: 3 | AC140: 1 | AG140: 0 | AJ140: 5 | AK140: 2 | AM140: 0 | AN140: 0 | AO140: 2 | AP140: 2 | AT140: 0
E141: 0.8 | F141: 0.9479166667 | G141: 0.9718309859 | Q141: 0.9479166667 | R141: 0.9718309859 | V141: Count | W141: 17 | X141: 17 | Y141: 17 | Z141: 17 | AA141: 17 | AB141: 17 | AC141: 17 | AD141: 17 | AE141: 17 | AF141: 17 | AG141: 17 | AI141: Count | AJ141: 24 | AK141: 24 | AL141: 24 | AM141: 24 | AN141: 24 | AO141: 24 | AP141: 24 | AQ141: 24 | AR141: 24 | AS141: 24 | AT141: 24
E142: More | F142: 1 | G142: 1 | Q142: 1 | R142: 1 | V142: Average | W142: 1.436931898 | X142: 0.4694356498 | Y142: 0.3531430164 | Z142: 0.1767169825 | AA142: 0.03309296825 | AB142: 0.02820932683 | AC142: 0.1872653538 | AD142: 0.7098080809 | AE142: 0.04737083509 | AF142: 0.05310756732 | AG142: 0.1897135167 | AI142: Average | AJ142: 1.756968413 | AK142: 0.6246627878 | AL142: 0.2981482646 | AM142: 0.08157296174 | AN142: 0.01422300085 | AO142: 0.00205593471 | AP142: 0.1743592551 | AQ142: 0.7699200039 | AR142: 0.05886582442 | AS142: 0.05156270725 | AT142: 0.1196514644
E143: Count | F143: =F122 -> 96 | G143: =G122 -> 142 | Q143: =IF($T$6=$W$1,AC3/$F$143,IF($T$6=$W$17,AC19/$F$143,IF($T$6=$W$33,AC35/$F$143,IF($T$6=$W$49,AC51/$F$143,IF($T$6=$W$65,AC67/$F$143,IF($T$6=$W$81,AC83/$F$143,IF($T$6=$W$97,AC99/$F$143,IF($T$6=$W$113,AC115/$F$143,IF($T$6=$W$129,AC131/$F$143,IF($T$6=$W$145,AC147/$F$143,IF($T$6=$W$161,AC163/$F$143,IF($T$6=$W$177,AC179/$F$58,IF($T$6=$W$193,AC195/$F$58,IF($T$6=$W$209,AC211/$F$58,IF($T$6=$W$225,AC227/$F$58,IF($T$6=$W$241,AC243/$F$58,IF($T$6=$W$257,AC259/$F$58,IF($T$6=$W$273,AC275/$F$58,IF($T$6=$W$289,AC291/$F$58,IF($T$6=$W$305,AC307/$F$58,"N/A")))))))))))))))))))) -> 0 | R143: =IF($T$6=$W$1,AP3/$G$38,IF($T$6=$W$17,AP19/$G$38,IF($T$6=$W$33,AP35/$G$38,IF($T$6=$W$49,AP51/$G$38,IF($T$6=$W$65,AP67/$G$38,IF($T$6=$W$81,AP83/$G$38,IF($T$6=$W$97,AP99/$G$38,IF($T$6=$W$113,AP115/$G$38,IF($T$6=$W$129,AP131/$G$38,IF($T$6=$W$145,AP147/$G$38,IF($T$6=$W$161,AP163/$G$38,IF($T$6=$W$177,AP179/$G$38,IF($T$6=$W$193,AP195/$G$38,IF($T$6=$W$209,AP211/$G$38,IF($T$6=$W$225,AP227/$G$38,IF($T$6=$W$241,AP243/$G$38,IF($T$6=$W$257,AP259/$G$38,IF($T$6=$W$273,AP275/$G$38,IF($T$6=$W$289,AP291/$G$38,IF($T$6=$W$305,AP307/$G$38,"N/A")))))))))))))))))))) -> 0 | V143: Non-ratio average | X143: 318057.7895 | AG143: 128537.0248 | AI143: Non-ratio average | AK143: 327254.5258 | AT143: 62684.1938
E144: Average | F144: =IF($T$6=$W$1,$AC$14,IF($T$6=$W$17,$AC$30,IF($T$6=$W$33,$AC$46,IF($T$6=$W$49,$AC$62,IF($T$6=$W$65,$AC$78,IF($T$6=$W$81,$AC$94,IF($T$6=$W$97,$AC$110,IF($T$6=$W$113,$AC$126,IF($T$6=$W$129,$AC$142,IF($T$6=$W$145,$AC$158,IF($T$6=W161,AC174,IF($T$6=$W$177,$AC$190,IF($T$6=$W$193,$AC$206,IF($T$6=$W$209,$AC$222,IF($T$6=$W$225,$AC$238,IF($T$6=$W$241,$AC$254,IF($T$6=$W$257,$AC$270,IF($T$6=$W$273,$AC$286,IF($T$6=$W$289,$AC$302,IF($T$6=$W$305,$AC$318,"N/A")))))))))))))))))))) -> 0.1889025672 | G144: =IF($T$6=$W$1,$AP$14,IF($T$6=$W$17,$AP$30,IF($T$6=$W$33,$AP$46,IF($T$6=$W$49,$AP$62,IF($T$6=$W$65,$AP$78,IF($T$6=$W$81,$AP$94,IF($T$6=$W$97,$AP$110,IF($T$6=$W$113,$AP$126,IF($T$6=$W$129,$AP$142,IF($T$6=$W$145,$AP$158,IF($T$6=$W$161,$AP$174,IF($T$6=$W$177,$AP$190,IF($T$6=$W$193,$AP$206,IF($T$6=$W$209,$AP$222,IF($T$6=$W$225,$AP$238,IF($T$6=$W$241,$AP$254,IF($T$6=$W$257,$AP$270,IF($T$6=$W$273,$AP$286,IF($T$6=$W$289,$AP$302,IF($T$6=$W$305,$AP$318,"N/A")))))))))))))))))))) -> 0.2616239398 | Q144: 0.15625 | R144: 0.01408450704
Q145: 0.2916666667 | R145: 0.2112676056 | W145: Crop Acres500-1000<100 Cows
Q146: 0.2395833333 | R146: 0.3309859155 | W146: Current Ratio | X146: Working Capital Ratio | Y146: Debt to Asset Ratio | Z146: Operating Profit Margin | AA146: ROA | AB146: ROE | AC146: Asset Turnover | AD146: Operating Expense Ratio | AE146: Depr Expense Ratio | AF146: Interest Expense Ratio | AG146: NFI Ratio | AJ146: Current Ratio | AK146: Working Capital Ratio | AL146: Debt to Asset Ratio | AM146: Operating Profit Margin | AN146: ROA | AO146: ROE | AP146: Asset Turnover | AQ146: Operating Expense Ratio | AR146: Depr Expense Ratio | AS146: Interest Expense Ratio | AT146: NFI Ratio
Q147: 0.125 | R147: 0.2042253521 | W147: 0 | X147: 3 | Y147: 14 | Z147: 3 | AA147: 5 | AB147: 18 | AC147: 0 | AD147: 0 | AE147: 0 | AF147: 11 | AG147: 1 | AJ147: 0 | AK147: 3 | AL147: 5 | AM147: 2 | AN147: 6 | AO147: 11 | AP147: 0 | AQ147: 1 | AR147: 0 | AS147: 4 | AT147: 0
F148: =IF(B28=F144,"","Your Farm") ->  | G148: =IF(B28=F144,"",B28) ->  | Q148: 0.05208333333 | R148: 0.1126760563 | W148: 5 | X148: 2 | Y148: 15 | Z148: 5 | AA148: 11 | AB148: 9 | AC148: 17 | AD148: 3 | AE148: 7 | AF148: 29 | AG148: 2 | AJ148: 3 | AK148: 1 | AL148: 32 | AM148: 3 | AN148: 1 | AO148: 11 | AP148: 7 | AQ148: 2 | AR148: 9 | AS148: 48 | AT148: 1
Q149: 0.05208333333 | R149: 0.03521126761 | W149: 9 | X149: 9 | Y149: 14 | Z149: 11 | AA149: 22 | AB149: 29 | AC149: 26 | AD149: 9 | AE149: 15 | AF149: 15 | AG149: 6 | AJ149: 11 | AK149: 10 | AL149: 17 | AM149: 3 | AN149: 19 | AO149: 42 | AP149: 33 | AQ149: 13 | AR149: 20 | AS149: 26 | AT149: 1
Q150: 0.01041666667 | R150: 0.04225352113 | W150: 9 | X150: 14 | Y150: 8 | Z150: 20 | AA150: 26 | AB150: 13 | AC150: 11 | AD150: 16 | AE150: 16 | AF150: 9 | AG150: 18 | AJ150: 11 | AK150: 13 | AL150: 14 | AM150: 6 | AN150: 51 | AO150: 29 | AP150: 29 | AQ150: 44 | AR150: 37 | AS150: 17 | AT150: 3
Q151: 0.02083333333 | R151: 0.02112676056 | W151: 7 | X151: 14 | Y151: 7 | Z151: 17 | AA151: 7 | AB151: 3 | AC151: 6 | AD151: 13 | AE151: 12 | AF151: 5 | AG151: 20 | AJ151: 10 | AK151: 29 | AL151: 16 | AM151: 38 | AN151: 19 | AO151: 5 | AP151: 11 | AQ151: 25 | AR151: 24 | AS151: 4 | AT151: 30
E152: Operating Expense Ratio | Q152: 0.05208333333 | R152: 0.02816901408 | W152: 3 | X152: 12 | Y152: 5 | Z152: 10 | AA152: 2 | AB152: 1 | AC152: 8 | AD152: 20 | AE152: 9 | AF152: 3 | AG152: 18 | AJ152: 2 | AK152: 14 | AL152: 7 | AM152: 37 | AN152: 3 | AO152: 3 | AP152: 11 | AQ152: 14 | AR152: 4 | AS152: 3 | AT152: 54
F153: =U1 -> 2017 | G153: 10-Year | W153: 2 | X153: 7 | Y153: 3 | Z153: 9 | AA153: 1 | AB153: 0 | AC153: 1 | AD153: 9 | AE153: 10 | AF153: 2 | AG153: 9 | AJ153: 5 | AK153: 8 | AL153: 4 | AM153: 11 | AN153: 5 | AO153: 2 | AP153: 6 | AQ153: 4 | AR153: 8 | AS153: 2 | AT153: 12
E154: 0.4 | F154: =Q154 -> 0 | G154: =R154 -> 0 | Q154: =Q163 -> 0 | R154: =R163 -> 0 | W154: 2 | X154: 4 | Y154: 2 | Z154: 1 | AA154: 0 | AB154: 2 | AC154: 1 | AD154: 2 | AE154: 1 | AF154: 1 | AG154: 2 | AJ154: 4 | AK154: 7 | AL154: 2 | AM154: 4 | AN154: 0 | AO154: 0 | AP154: 1 | AQ154: 0 | AR154: 1 | AS154: 0 | AT154: 3
E155: 0.5 | F155: =Q155 -> 0.04166666667 | G155: =R155 -> 0.02816901408 | Q155: =Q154+Q164 -> 0.04166666667 | R155: 0.02816901408 | W155: 3 | X155: 2 | Y155: 8 | Z155: 0 | AA155: 1 | AB155: 0 | AC155: 1 | AD155: 4 | AE155: 6 | AF155: 1 | AG155: 0 | AJ155: 2 | AK155: 8 | AL155: 7 | AM155: 0 | AN155: 0 | AO155: 0 | AP155: 1 | AQ155: 1 | AR155: 1 | AS155: 0 | AT155: 0
E156: 0.6 | F156: 0.1354166667 | G156: 0.2323943662 | Q156: 0.1354166667 | R156: 0.2323943662 | W156: 36 | X156: 9 | Z156: 0 | AA156: 1 | AB156: 1 | AC156: 5 | AG156: 0 | AJ156: 56 | AK156: 11 | AM156: 0 | AN156: 0 | AO156: 1 | AP156: 5 | AT156: 0
E157: 0.7 | F157: 0.3854166667 | G157: 0.676056338 | Q157: 0.3854166667 | R157: 0.676056338 | V157: Count | W157: 76 | X157: 76 | Y157: 76 | Z157: 76 | AA157: 76 | AB157: 76 | AC157: 76 | AD157: 76 | AE157: 76 | AF157: 76 | AG157: 76 | AI157: Count | AJ157: 104 | AK157: 104 | AL157: 104 | AM157: 104 | AN157: 104 | AO157: 104 | AP157: 104 | AQ157: 104 | AR157: 104 | AS157: 104 | AT157: 104
E158: 0.8 | F158: 0.59375 | G158: 0.8873239437 | Q158: 0.59375 | R158: 0.8873239437 | V158: Average | W158: 2.476641193 | X158: 0.505690871 | Y158: 0.2010778383 | Z158: -0.08088623419 | AA158: -0.01448304844 | AB158: -0.02821651381 | AC158: 0.1790545522 | AD158: 0.7513808296 | AE158: 0.1089980621 | AF158: 0.0427899124 | AG158: 0.09683119591 | AI158: Average | AJ158: 3.60507891 | AK158: 0.6327179604 | AL158: 0.1960219759 | AM158: 0.0325567071 | AN158: 0.007244673097 | AO158: -0.00249379776 | AP158: 0.2225247497 | AQ158: 0.6834639112 | AR158: 0.08220584267 | AS158: 0.0396286329 | AT158: 0.1947016133
E159: 0.9 | F159: 0.8333333333 | G159: 0.9507042254 | Q159: 0.8333333333 | R159: 0.9507042254 | S159: Your Farm Line-Operating Expense Ratio | V159: Non-ratio average | X159: 139306.6079 | AG159: 26674.84468 | AI159: Non-ratio average | AK159: 164496.812 | AT159: 50619.38602
E160: 1 | F160: 0.9375 | G160: 0.9718309859 | Q160: 0.9375 | R160: 0.9718309859 | S160: X's | T160: =IF(B29>1.2,1.2,B29) -> 0.7287621955 | U160: =T160 -> 0.7287621955
E161: 1.1 | F161: 0.9583333333 | G161: 1 | Q161: 0.9583333333 | R161: 1 | S161: Y's | T161: 0 | U161: 1 | W161: Crop Acres500-1000100+ Cows
E162: More | F162: 1 | G162: 1 | Q162: 1 | R162: 1 | S162: =IF(B29=F164,U1 &" Average","Your Farm") -> 2017 Average | W162: Current Ratio | X162: Working Capital Ratio | Y162: Debt to Asset Ratio | Z162: Operating Profit Margin | AA162: ROA | AB162: ROE | AC162: Asset Turnover | AD162: Operating Expense Ratio | AE162: Depr Expense Ratio | AF162: Interest Expense Ratio | AG162: NFI Ratio | AJ162: Current Ratio | AK162: Working Capital Ratio | AL162: Debt to Asset Ratio | AM162: Operating Profit Margin | AN162: ROA | AO162: ROE | AP162: Asset Turnover | AQ162: Operating Expense Ratio | AR162: Depr Expense Ratio | AS162: Interest Expense Ratio | AT162: NFI Ratio
E163: Count | F163: =F143 -> 96 | G163: =G143 -> 142 | Q163: =IF($T$6=$W$1,AD3/$F$143,IF($T$6=$W$17,AD19/$F$143,IF($T$6=$W$33,AD35/$F$143,IF($T$6=$W$49,AD51/$F$143,IF($T$6=$W$65,AD67/$F$143,IF($T$6=$W$81,AD83/$F$143,IF($T$6=$W$97,AD99/$F$143,IF($T$6=$W$113,AD115/$F$143,IF($T$6=$W$129,AD131/$F$143,IF($T$6=$W$145,AD147/$F$143,IF($T$6=$W$161,AD163/$F$143,IF($T$6=$W$177,AD179/$F$58,IF($T$6=$W$193,AD195/$F$58,IF($T$6=$W$209,AD211/$F$58,IF($T$6=$W$225,AD227/$F$58,IF($T$6=$W$241,AD243/$F$58,IF($T$6=$W$257,AD259/$F$58,IF($T$6=$W$273,AD275/$F$58,IF($T$6=$W$289,AD291/$F$58,IF($T$6=$W$305,AD307/$F$58,"N/A")))))))))))))))))))) -> 0 | R163: =IF($T$6=$W$1,AQ3/$G$38,IF($T$6=$W$17,AQ19/$G$38,IF($T$6=$W$33,AQ35/$G$38,IF($T$6=$W$49,AQ51/$G$38,IF($T$6=$W$65,AQ67/$G$38,IF($T$6=$W$81,AQ83/$G$38,IF($T$6=$W$97,AQ99/$G$38,IF($T$6=$W$113,AQ115/$G$38,IF($T$6=$W$129,AQ131/$G$38,IF($T$6=$W$145,AQ147/$G$38,IF($T$6=$W$161,AQ163/$G$38,IF($T$6=$W$177,AQ179/$G$38,IF($T$6=$W$193,AQ195/$G$38,IF($T$6=$W$209,AQ211/$G$38,IF($T$6=$W$225,AQ227/$G$38,IF($T$6=$W$241,AQ243/$G$38,IF($T$6=$W$257,AQ259/$G$38,IF($T$6=$W$273,AQ275/$G$38,IF($T$6=$W$289,AQ291/$G$38,IF($T$6=$W$305,AQ307/$G$38,"N/A")))))))))))))))))))) -> 0 | W163: 0 | X163: 2 | Y163: 6 | Z163: 1 | AA163: 2 | AB163: 9 | AC163: 0 | AD163: 1 | AE163: 0 | AF163: 6 | AG163: 2 | AJ163: 0 | AK163: 0 | AL163: 2 | AM163: 0 | AN163: 0 | AO163: 0 | AP163: 0 | AQ163: 0 | AR163: 0 | AS163: 2 | AT163: 0
E164: Average | F164: =IF($T$6=$W$1,$AD$14,IF($T$6=$W$17,$AD$30,IF($T$6=$W$33,$AD$46,IF($T$6=$W$49,$AD$62,IF($T$6=$W$65,$AD$78,IF($T$6=$W$81,$AD$94,IF($T$6=$W$97,$AD$110,IF($T$6=$W$113,$AD$126,IF($T$6=$W$129,$AD$142,IF($T$6=$W$145,$AD$158,IF($T$6=W161,AD174,IF($T$6=$W$177,$AD$190,IF($T$6=$W$193,$AD$206,IF($T$6=$W$209,$AD$222,IF($T$6=$W$225,$AD$238,IF($T$6=$W$241,$AD$254,IF($T$6=$W$257,$AD$270,IF($T$6=$W$273,$AD$286,IF($T$6=$W$289,$AD$302,IF($T$6=$W$305,$AD$318,"N/A")))))))))))))))))))) -> 0.7287621955 | G164: =IF($T$6=$W$1,$AQ$14,IF($T$6=$W$17,$AQ$30,IF($T$6=$W$33,$AQ$46,IF($T$6=$W$49,$AQ$62,IF($T$6=$W$65,$AQ$78,IF($T$6=$W$81,$AQ$94,IF($T$6=$W$97,$AQ$110,IF($T$6=$W$113,$AQ$126,IF($T$6=$W$129,$AQ$142,IF($T$6=$W$145,$AQ$158,IF($T$6=$W$161,$AQ$174,IF($T$6=$W$177,$AQ$190,IF($T$6=$W$193,$AQ$206,IF($T$6=$W$209,$AQ$222,IF($T$6=$W$225,$AQ$238,IF($T$6=$W$241,$AQ$254,IF($T$6=$W$257,$AQ$270,IF($T$6=$W$273,$AQ$286,IF($T$6=$W$289,$AQ$302,IF($T$6=$W$305,$AQ$318,"N/A")))))))))))))))))))) -> 0.6639960886 | Q164: 0.04166666667 | R164: 0.02816901408 | W164: 1 | X164: 0 | Y164: 8 | Z164: 3 | AA164: 2 | AB164: 10 | AC164: 10 | AD164: 1 | AE164: 5 | AF164: 16 | AG164: 1 | AJ164: 0 | AK164: 1 | AL164: 12 | AM164: 0 | AN164: 0 | AO164: 5 | AP164: 3 | AQ164: 2 | AR164: 2 | AS164: 16 | AT164: 0
Q165: 0.09375 | R165: 0.2042253521 | W165: 9 | X165: 8 | Y165: 12 | Z165: 5 | AA165: 18 | AB165: 22 | AC165: 25 | AD165: 1 | AE165: 13 | AF165: 11 | AG165: 2 | AJ165: 5 | AK165: 4 | AL165: 9 | AM165: 0 | AN165: 4 | AO165: 13 | AP165: 20 | AQ165: 9 | AR165: 17 | AS165: 15 | AT165: 0
Q166: 0.25 | R166: 0.4436619718 | W166: 7 | X166: 7 | Y166: 8 | Z166: 14 | AA166: 23 | AB166: 7 | AC166: 7 | AD166: 12 | AE166: 9 | AF166: 7 | AG166: 8 | AJ166: 3 | AK166: 3 | AL166: 10 | AM166: 2 | AN166: 20 | AO166: 21 | AP166: 9 | AQ166: 14 | AR166: 16 | AS166: 7 | AT166: 2
Q167: 0.2083333333 | R167: 0.2112676056 | W167: 5 | X167: 10 | Y167: 7 | Z167: 15 | AA167: 4 | AB167: 2 | AC167: 7 | AD167: 16 | AE167: 10 | AF167: 8 | AG167: 25 | AJ167: 2 | AK167: 12 | AL167: 5 | AM167: 11 | AN167: 16 | AO167: 3 | AP167: 6 | AQ167: 16 | AR167: 6 | AS167: 4 | AT167: 13
F168: =IF(B29=F164,"","Your Farm") ->  | G168: =IF(B29=F164,"",B29) ->  | Q168: 0.2395833333 | R168: 0.06338028169 | W168: 2 | X168: 8 | Y168: 4 | Z168: 10 | AA168: 3 | AB168: 1 | AC168: 2 | AD168: 13 | AE168: 8 | AF168: 3 | AG168: 9 | AJ168: 2 | AK168: 13 | AL168: 5 | AM168: 19 | AN168: 4 | AO168: 2 | AP168: 3 | AQ168: 3 | AR168: 4 | AS168: 0 | AT168: 19
Q169: 0.1041666667 | R169: 0.02112676056 | W169: 2 | X169: 4 | Y169: 2 | Z169: 2 | AA169: 0 | AB169: 1 | AC169: 1 | AD169: 5 | AE169: 3 | AF169: 0 | AG169: 3 | AJ169: 2 | AK169: 6 | AL169: 1 | AM169: 11 | AN169: 1 | AO169: 0 | AP169: 2 | AQ169: 1 | AR169: 0 | AS169: 0 | AT169: 10
Q170: 0.02083333333 | R170: 0.02816901408 | W170: 0 | X170: 4 | Y170: 1 | Z170: 1 | AA170: 0 | AB170: 0 | AC170: 0 | AD170: 1 | AE170: 1 | AF170: 0 | AG170: 2 | AJ170: 3 | AK170: 3 | AL170: 0 | AM170: 2 | AN170: 0 | AO170: 0 | AP170: 1 | AQ170: 0 | AR170: 0 | AS170: 1 | AT170: 1
Q171: 0.04166666667 | R171: 0 | W171: 3 | X171: 2 | Y171: 4 | Z171: 1 | AA171: 0 | AB171: 0 | AC171: 0 | AD171: 2 | AE171: 3 | AF171: 1 | AG171: 0 | AJ171: 5 | AK171: 1 | AL171: 1 | AM171: 0 | AN171: 0 | AO171: 0 | AP171: 0 | AQ171: 0 | AR171: 0 | AS171: 0 | AT171: 0
W172: 23 | X172: 7 | Z172: 0 | AA172: 0 | AB172: 0 | AC172: 0 | AG172: 0 | AJ172: 23 | AK172: 2 | AM172: 0 | AN172: 0 | AO172: 1 | AP172: 1 | AT172: 0
E173: Depreciation Expense Ratio | V173: Count | W173: 52 | X173: 52 | Y173: 52 | Z173: 52 | AA173: 52 | AB173: 52 | AC173: 52 | AD173: 52 | AE173: 52 | AF173: 52 | AG173: 52 | AI173: Count | AJ173: 45 | AK173: 45 | AL173: 45 | AM173: 45 | AN173: 45 | AO173: 45 | AP173: 45 | AQ173: 45 | AR173: 45 | AS173: 45 | AT173: 45
F174: =U1 -> 2017 | G174: 10-Year | V174: Average | W174: 2.346548456 | X174: 0.6005365467 | Y174: 0.1958625922 | Z174: -0.08521880736 | AA174: -0.01214447807 | AB174: -0.02436132622 | AC174: 0.1425093644 | AD174: 0.7689705235 | AE174: 0.09023425952 | AF174: 0.04783147222 | AG174: 0.0929637448 | AI174: Average | AJ174: 2.949744056 | AK174: 0.5660476713 | AL174: 0.1703871041 | AM174: 0.08654473873 | AN174: 0.01582067484 | AO174: 0.008801077177 | AP174: 0.1828034271 | AQ174: 0.6926085759 | AR174: 0.06851172005 | AS174: 0.03966152484 | AT174: 0.1992181792
E175: 0 | F175: =Q175 -> 0 | G175: =R175 -> 0 | Q175: =Q184 -> 0 | R175: =R184 -> 0 | V175: Non-ratio average | X175: 200664.2333 | AG175: 31063.053 | AI175: Non-ratio average | AK175: 207160.4732 | AT175: 72909.28726
E176: 0.03 | F176: =Q176 -> 0.02083333333 | G176: =R176 -> 0.007042253521 | Q176: =Q175+Q185 -> 0.02083333333 | R176: 0.007042253521
E177: 0.06 | F177: 0.1666666667 | G177: 0.1690140845 | Q177: 0.1666666667 | R177: 0.1690140845 | W177: Crop Acres1000-2000None | AI177: 10-Year
E178: 0.09 | F178: 0.375 | G178: 0.4647887324 | Q178: 0.375 | R178: 0.4647887324 | W178: Current Ratio | X178: Working Capital Ratio | Y178: Debt to Asset Ratio | Z178: Operating Profit Margin | AA178: ROA | AB178: ROE | AC178: Asset Turnover | AD178: Operating Expense Ratio | AE178: Depr Expense Ratio | AF178: Interest Expense Ratio | AG178: NFI Ratio | AJ178: Current Ratio | AK178: Working Capital Ratio | AL178: Debt to Asset Ratio | AM178: Operating Profit Margin | AN178: ROA | AO178: ROE | AP178: Asset Turnover | AQ178: Operating Expense Ratio | AR178: Depr Expense Ratio | AS178: Interest Expense Ratio | AT178: NFI Ratio
E179: 0.12 | F179: 0.59375 | G179: 0.8169014085 | Q179: 0.59375 | R179: 0.8169014085 | W179: 0 | X179: 5 | Y179: 22 | Z179: 2 | AA179: 8 | AB179: 21 | AC179: 0 | AD179: 1 | AE179: 0 | AF179: 23 | AG179: 1 | AJ179: 0 | AK179: 1 | AL179: 10 | AM179: 0 | AN179: 5 | AO179: 11 | AP179: 0 | AQ179: 3 | AR179: 1 | AS179: 4 | AT179: 0
E180: 0.15 | F180: 0.8020833333 | G180: 0.9295774648 | Q180: 0.8020833333 | R180: 0.9295774648 | W180: 9 | X180: 8 | Y180: 46 | Z180: 4 | AA180: 8 | AB180: 19 | AC180: 20 | AD180: 4 | AE180: 7 | AF180: 66 | AG180: 2 | AJ180: 3 | AK180: 3 | AL180: 51 | AM180: 0 | AN180: 3 | AO180: 4 | AP180: 6 | AQ180: 4 | AR180: 6 | AS180: 90 | AT180: 0
E181: 0.18 | F181: 0.8958333333 | G181: 0.985915493 | Q181: 0.8958333333 | R181: 0.985915493 | S181: Your Farm Line-Depreciation Expense Ratio | W181: 18 | X181: 14 | Y181: 16 | Z181: 11 | AA181: 35 | AB181: 50 | AC181: 45 | AD181: 18 | AE181: 20 | AF181: 33 | AG181: 10 | AJ181: 15 | AK181: 14 | AL181: 28 | AM181: 3 | AN181: 7 | AO181: 25 | AP181: 34 | AQ181: 40 | AR181: 23 | AS181: 39 | AT181: 1
E182: 0.21 | F182: 0.9479166667 | G182: 1 | Q182: 0.9479166667 | R182: 1 | S182: X's | T182: =IF(B30>0.24,0.24,B30) -> 0.1128956722 | U182: =T182 -> 0.1128956722 | W182: 21 | X182: 26 | Y182: 14 | Z182: 20 | AA182: 55 | AB182: 35 | AC182: 27 | AD182: 24 | AE182: 28 | AF182: 10 | AG182: 28 | AJ182: 12 | AK182: 24 | AL182: 20 | AM182: 6 | AN182: 43 | AO182: 67 | AP182: 33 | AQ182: 55 | AR182: 40 | AS182: 13 | AT182: 4
E183: More | F183: 1 | G183: 1 | Q183: 1 | R183: 1 | S183: Y's | T183: 0 | U183: 1 | W183: 10 | X183: 25 | Y183: 18 | Z183: 47 | AA183: 22 | AB183: 7 | AC183: 14 | AD183: 41 | AE183: 27 | AF183: 6 | AG183: 45 | AJ183: 19 | AK183: 36 | AL183: 13 | AM183: 19 | AN183: 58 | AO183: 28 | AP183: 29 | AQ183: 35 | AR183: 34 | AS183: 4 | AT183: 36
E184: Count | F184: =F163 -> 96 | G184: =G163 -> 142 | Q184: =IF($T$6=$W$1,AE3/$F$143,IF($T$6=$W$17,AE19/$F$143,IF($T$6=$W$33,AE35/$F$143,IF($T$6=$W$49,AE51/$F$143,IF($T$6=$W$65,AE67/$F$143,IF($T$6=$W$81,AE83/$F$143,IF($T$6=$W$97,AE99/$F$143,IF($T$6=$W$113,AE115/$F$143,IF($T$6=$W$129,AE131/$F$143,IF($T$6=$W$145,AE147/$F$143,IF($T$6=$W$161,AE163/$F$143,IF($T$6=$W$177,AE179/$F$58,IF($T$6=$W$193,AE195/$F$58,IF($T$6=$W$209,AE211/$F$58,IF($T$6=$W$225,AE227/$F$58,IF($T$6=$W$241,AE243/$F$58,IF($T$6=$W$257,AE259/$F$58,IF($T$6=$W$273,AE275/$F$58,IF($T$6=$W$289,AE291/$F$58,IF($T$6=$W$305,AE307/$F$58,"N/A")))))))))))))))))))) -> 0 | R184: =IF($T$6=$W$1,AR3/$G$38,IF($T$6=$W$17,AR19/$G$38,IF($T$6=$W$33,AR35/$G$38,IF($T$6=$W$49,AR51/$G$38,IF($T$6=$W$65,AR67/$G$38,IF($T$6=$W$81,AR83/$G$38,IF($T$6=$W$97,AR99/$G$38,IF($T$6=$W$113,AR115/$G$38,IF($T$6=$W$129,AR131/$G$38,IF($T$6=$W$145,AR147/$G$38,IF($T$6=$W$161,AR163/$G$38,IF($T$6=$W$177,AR179/$G$38,IF($T$6=$W$193,AR195/$G$38,IF($T$6=$W$209,AR211/$G$38,IF($T$6=$W$225,AR227/$G$38,IF($T$6=$W$241,AR243/$G$38,IF($T$6=$W$257,AR259/$G$38,IF($T$6=$W$273,AR275/$G$38,IF($T$6=$W$289,AR291/$G$38,IF($T$6=$W$305,AR307/$G$38,"N/A")))))))))))))))))))) -> 0 | S184: =IF(B30=F185,U1 &" Average","Your Farm") -> 2017 Average | W184: 5 | X184: 18 | Y184: 7 | Z184: 38 | AA184: 7 | AB184: 5 | AC184: 14 | AD184: 28 | AE184: 28 | AF184: 1 | AG184: 42 | AJ184: 9 | AK184: 21 | AL184: 12 | AM184: 75 | AN184: 23 | AO184: 11 | AP184: 21 | AQ184: 12 | AR184: 22 | AS184: 2 | AT184: 78
E185: Average | F185: =IF($T$6=$W$1,$AE$14,IF($T$6=$W$17,$AE$30,IF($T$6=$W$33,$AE$46,IF($T$6=$W$49,$AE$62,IF($T$6=$W$65,$AE$78,IF($T$6=$W$81,$AE$94,IF($T$6=$W$97,$AE$110,IF($T$6=$W$113,$AE$126,IF($T$6=$W$129,$AE$142,IF($T$6=$W$145,$AE$158,IF($T$6=$W$161,AE174,IF($T$6=$W$177,$AE$190,IF($T$6=$W$193,$AE$206,IF($T$6=$W$209,$AE$222,IF($T$6=$W$225,$AE$238,IF($T$6=$W$241,$AE$254,IF($T$6=$W$257,$AE$270,IF($T$6=$W$273,$AE$286,IF($T$6=$W$289,$AE$302,IF($T$6=$W$305,$AE$318,"N/A")))))))))))))))))))) -> 0.1128956722 | G185: =IF($T$6=$W$1,$AR$14,IF($T$6=$W$17,$AR$30,IF($T$6=$W$33,$AR$46,IF($T$6=$W$49,$AR$62,IF($T$6=$W$65,$AR$78,IF($T$6=$W$81,$AR$94,IF($T$6=$W$97,$AR$110,IF($T$6=$W$113,$AR$126,IF($T$6=$W$129,$AR$142,IF($T$6=$W$145,$AR$158,IF($T$6=$W$161,$AR$174,IF($T$6=$W$177,$AR$190,IF($T$6=$W$193,$AR$206,IF($T$6=$W$209,$AR$222,IF($T$6=$W$225,$AR$238,IF($T$6=$W$241,$AR$254,IF($T$6=$W$257,$AR$270,IF($T$6=$W$273,$AR$286,IF($T$6=$W$289,$AR$302,IF($T$6=$W$305,$AR$318,"N/A")))))))))))))))))))) -> 0.09493027942 | Q185: 0.02083333333 | R185: 0.007042253521 | W185: 4 | X185: 12 | Y185: 8 | Z185: 19 | AA185: 5 | AB185: 3 | AC185: 11 | AD185: 19 | AE185: 16 | AF185: 2 | AG185: 14 | AJ185: 12 | AK185: 23 | AL185: 3 | AM185: 48 | AN185: 12 | AO185: 3 | AP185: 12 | AQ185: 3 | AR185: 18 | AS185: 1 | AT185: 30
Q186: 0.1458333333 | R186: 0.161971831 | W186: 6 | X186: 15 | Y186: 9 | Z186: 2 | AA186: 1 | AB186: 1 | AC186: 3 | AD186: 6 | AE186: 4 | AF186: 1 | AG186: 2 | AJ186: 7 | AK186: 16 | AL186: 8 | AM186: 1 | AN186: 0 | AO186: 2 | AP186: 6 | AQ186: 1 | AR186: 6 | AS186: 0 | AT186: 4
Q187: 0.2083333333 | R187: 0.2957746479 | W187: 1 | X187: 4 | Y187: 4 | Z187: 1 | AA187: 1 | AB187: 0 | AC187: 4 | AD187: 3 | AE187: 14 | AF187: 2 | AG187: 0 | AJ187: 7 | AK187: 7 | AL187: 8 | AM187: 1 | AN187: 1 | AO187: 1 | AP187: 5 | AQ187: 0 | AR187: 3 | AS187: 0 | AT187: 0
Q188: 0.21875 | R188: 0.3521126761 | W188: 70 | X188: 17 | Z188: 0 | AA188: 2 | AB188: 3 | AC188: 6 | AG188: 0 | AJ188: 69 | AK188: 8 | AM188: 0 | AN188: 1 | AO188: 1 | AP188: 7 | AT188: 0
F189: =IF(B30=F185,"","Your Farm") ->  | G189: =IF(B30=F185,"",B30) ->  | Q189: 0.2083333333 | R189: 0.1126760563 | V189: Count | W189: 144 | X189: 144 | Y189: 144 | Z189: 144 | AA189: 144 | AB189: 144 | AC189: 144 | AD189: 144 | AE189: 144 | AF189: 144 | AG189: 144 | AI189: Count | AJ189: 153 | AK189: 153 | AL189: 153 | AM189: 153 | AN189: 153 | AO189: 153 | AP189: 153 | AQ189: 153 | AR189: 153 | AS189: 153 | AT189: 153
Q190: 0.09375 | R190: 0.05633802817 | V190: Average | W190: 2.76025463 | X190: 0.5529027273 | Y190: 0.1596201758 | Z190: -0.01311078013 | AA190: -0.0026034659 | AB190: -0.010853509 | AC190: 0.1985744459 | AD190: 0.7498271785 | AE190: 0.1124342919 | AF190: 0.03249087305 | AG190: 0.1052476566 | AI190: Average | AJ190: 3.553741591 | AK190: 0.6082916853 | AL190: 0.1770615044 | AM190: 0.1266820437 | AN190: 0.03562215055 | AO190: 0.03376681508 | AP190: 0.2811933682 | AQ190: 0.6538966578 | AR190: 0.1015020549 | AS190: 0.02768621448 | AT190: 0.2169150728
Q191: 0.05208333333 | R191: 0.01408450704 | V191: Non-ratio average | X191: 260716.3747 | AG191: 49628.5985 | AI191: Non-ratio average | AK191: 300449.7147 | AT191: 107139.5078
Q192: 0.05208333333 | R192: 0
W193: Crop Acres1000-2000No Cows-Feedlot
E194: Interest Expense Ratio | W194: Current Ratio | X194: Working Capital Ratio | Y194: Debt to Asset Ratio | Z194: Operating Profit Margin | AA194: ROA | AB194: ROE | AC194: Asset Turnover | AD194: Operating Expense Ratio | AE194: Depr Expense Ratio | AF194: Interest Expense Ratio | AG194: NFI Ratio | AJ194: Current Ratio | AK194: Working Capital Ratio | AL194: Debt to Asset Ratio | AM194: Operating Profit Margin | AN194: ROA | AO194: ROE | AP194: Asset Turnover | AQ194: Operating Expense Ratio | AR194: Depr Expense Ratio | AS194: Interest Expense Ratio | AT194: NFI Ratio
F195: =U1 -> 2017 | G195: 10-Year | W195: 0 | X195: 1 | Y195: 0 | Z195: 1 | AA195: 0 | AB195: 3 | AC195: 0 | AD195: 0 | AE195: 0 | AF195: 1 | AG195: 0 | AJ195: 0 | AK195: 1 | AL195: 0 | AM195: 0 | AN195: 0 | AO195: 2 | AP195: 0 | AQ195: 0 | AR195: 0 | AS195: 1 | AT195: 0
E196: 0 | F196: =Q196 -> 0.1041666667 | G196: =R196 -> 0.03521126761 | Q196: =Q205 -> 0.1041666667 | R196: =R205 -> 0.03521126761 | W196: 1 | X196: 0 | Y196: 4 | Z196: 0 | AA196: 1 | AB196: 3 | AC196: 1 | AD196: 1 | AE196: 2 | AF196: 7 | AG196: 1 | AJ196: 2 | AK196: 1 | AL196: 10 | AM196: 0 | AN196: 0 | AO196: 2 | AP196: 0 | AQ196: 1 | AR196: 0 | AS196: 13 | AT196: 0
E197: 0.03 | F197: =Q197 -> 0.3854166667 | G197: =R197 -> 0.4014084507 | Q197: =Q196+Q206 -> 0.3854166667 | R197: 0.4014084507 | W197: 3 | X197: 3 | Y197: 2 | Z197: 0 | AA197: 5 | AB197: 4 | AC197: 7 | AD197: 3 | AE197: 7 | AF197: 6 | AG197: 2 | AJ197: 4 | AK197: 4 | AL197: 5 | AM197: 0 | AN197: 2 | AO197: 6 | AP197: 12 | AQ197: 3 | AR197: 14 | AS197: 6 | AT197: 0
E198: 0.06 | F198: 0.6354166667 | G198: 0.8309859155 | Q198: 0.6354166667 | R198: 0.8309859155 | W198: 5 | X198: 3 | Y198: 2 | Z198: 3 | AA198: 4 | AB198: 3 | AC198: 3 | AD198: 2 | AE198: 5 | AF198: 2 | AG198: 2 | AJ198: 10 | AK198: 6 | AL198: 4 | AM198: 0 | AN198: 12 | AO198: 13 | AP198: 11 | AQ198: 13 | AR198: 7 | AS198: 7 | AT198: 0
E199: 0.09 | F199: 0.84375 | G199: 0.9225352113 | Q199: 0.84375 | R199: 0.9225352113 | W199: 4 | X199: 4 | Y199: 5 | Z199: 3 | AA199: 4 | AB199: 3 | AC199: 4 | AD199: 7 | AE199: 3 | AF199: 4 | AG199: 6 | AJ199: 2 | AK199: 7 | AL199: 1 | AM199: 9 | AN199: 14 | AO199: 7 | AP199: 3 | AQ199: 13 | AR199: 9 | AS199: 4 | AT199: 16
E200: 0.12 | F200: 0.8958333333 | G200: 0.9788732394 | Q200: 0.8958333333 | R200: 0.9788732394 | W200: 1 | X200: 2 | Y200: 4 | Z200: 6 | AA200: 4 | AB200: 2 | AC200: 3 | AD200: 4 | AE200: 1 | AF200: 0 | AG200: 5 | AJ200: 0 | AK200: 0 | AL200: 4 | AM200: 10 | AN200: 4 | AO200: 3 | AP200: 5 | AQ200: 3 | AR200: 3 | AS200: 1 | AT200: 12
... 114 more rows

Sheet NorthWest
E1: KSU FARM FINANCIAL BENCHMARKING TOOL-Northwest Kansas | S1: Acres | T1: Lookup | U1: 2017 | W1: Less than 1500No | AI1: 10-Year
S2: Less than 1500 | T2: LT | U2: 2017 KFMA Farms | W2: Current Ratio | X2: Working Capital Ratio | Y2: Debt to Asset Ratio | Z2: Operating Profit Margin | AA2: ROA | AB2: ROE | AC2: Asset Turnover | AD2: Operating Expense Ratio | AE2: Depr Expense Ratio | AF2: Interest Expense Ratio | AG2: NFI Ratio | AJ2: Current Ratio | AK2: Working Capital Ratio | AL2: Debt to Asset Ratio | AM2: Operating Profit Margin | AN2: ROA | AO2: ROE | AP2: Asset Turnover | AQ2: Operating Expense Ratio | AR2: Depr Expense Ratio | AS2: Interest Expense Ratio | AT2: NFI Ratio
E3: Tillable Crop Acres: | G3: =B16 -> 1500-3000 | I3: =A17 -> Cow Herd: | K3: =IF(B17="","",B17) -> Yes | P3: =IF(B18="","",B18) ->  | S3: 1500-3000 | T3: BTW | W3: 0 | X3: 2 | Y3: 1 | Z3: 1 | AA3: 1 | AB3: 2 | AC3: 0 | AD3: 0 | AE3: 0 | AF3: 1 | AG3: 2 | AJ3: 0 | AK3: 1 | AL3: 0 | AM3: 0 | AN3: 0 | AO3: 0 | AP3: 0 | AQ3: 0 | AR3: 0 | AS3: 0 | AT3: 0
S4: Greater than 3000 | T4: GT | W4: 3 | X4: 2 | Y4: 7 | Z4: 0 | AA4: 0 | AB4: 2 | AC4: 5 | AD4: 0 | AE4: 0 | AF4: 7 | AG4: 0 | AJ4: 2 | AK4: 1 | AL4: 8 | AM4: 0 | AN4: 0 | AO4: 1 | AP4: 1 | AQ4: 0 | AR4: 0 | AS4: 8 | AT4: 0
E5: Current Ratio | S5: All Farms | T5: All | W5: 3 | X5: 2 | Y5: 1 | Z5: 3 | AA5: 10 | AB5: 7 | AC5: 4 | AD5: 2 | AE5: 0 | AF5: 4 | AG5: 1 | AJ5: 0 | AK5: 0 | AL5: 2 | AM5: 0 | AN5: 2 | AO5: 4 | AP5: 6 | AQ5: 4 | AR5: 3 | AS5: 3 | AT5: 0
F6: =U1 -> 2017 | G6: 10-Year | S6: LTList | T6: =B16&B17&B18 -> 1500-3000Yes | W6: 2 | X6: 2 | Y6: 1 | Z6: 5 | AA6: 2 | AB6: 2 | AC6: 2 | AD6: 1 | AE6: 4 | AF6: 0 | AG6: 6 | AJ6: 2 | AK6: 3 | AL6: 2 | AM6: 1 | AN6: 5 | AO6: 9 | AP6: 5 | AQ6: 2 | AR6: 6 | AS6: 2 | AT6: 2
E7: 0 | F7: =Q7 -> 0 | G7: =R7 -> 0 | S7: Yes | W7: 0 | X7: 0 | Y7: 1 | Z7: 2 | AA7: 1 | AB7: 0 | AC7: 0 | AD7: 2 | AE7: 3 | AF7: 0 | AG7: 2 | AJ7: 2 | AK7: 5 | AL7: 1 | AM7: 2 | AN7: 8 | AO7: 0 | AP7: 1 | AQ7: 8 | AR7: 4 | AS7: 1 | AT7: 3
E8: 0.5 | F8: =Q8 -> 0.1176470588 | G8: =R8 -> 0.07142857143 | Q8: =Q7+Q18 -> 0.1176470588 | R8: =R7+R18 -> 0.07142857143 | S8: No | W8: 0 | X8: 4 | Y8: 0 | Z8: 2 | AA8: 0 | AB8: 0 | AC8: 1 | AD8: 3 | AE8: 2 | AF8: 0 | AG8: 1 | AJ8: 1 | AK8: 3 | AL8: 0 | AM8: 11 | AN8: 0 | AO8: 0 | AP8: 1 | AQ8: 1 | AR8: 1 | AS8: 0 | AT8: 8
E9: 1 | F9: 0.5294117647 | G9: 0.1428571429 | Q9: 0.5294117647 | R9: 0.1428571429 | W9: 0 | X9: 1 | Y9: 0 | Z9: 1 | AA9: 0 | AB9: 0 | AC9: 0 | AD9: 3 | AE9: 3 | AF9: 0 | AG9: 2 | AJ9: 1 | AK9: 0 | AL9: 0 | AM9: 1 | AN9: 0 | AO9: 0 | AP9: 0 | AQ9: 0 | AR9: 1 | AS9: 1 | AT9: 2
E10: 1.5 | F10: 0.6470588235 | G10: 0.4285714286 | Q10: 0.6470588235 | R10: 0.4285714286 | W10: 0 | X10: 0 | Y10: 1 | Z10: 0 | AA10: 0 | AB10: 0 | AC10: 1 | AD10: 2 | AE10: 1 | AF10: 0 | AG10: 0 | AJ10: 0 | AK10: 1 | AL10: 0 | AM10: 0 | AN10: 0 | AO10: 0 | AP10: 0 | AQ10: 0 | AR10: 0 | AS10: 0 | AT10: 0
E11: 2 | F11: 0.7647058824 | G11: 0.5 | Q11: 0.7647058824 | R11: 0.5 | S11: BTWList | T11: Lookup | W11: 0 | X11: 0 | Y11: 2 | Z11: 0 | AA11: 0 | AB11: 1 | AC11: 1 | AD11: 1 | AE11: 1 | AF11: 2 | AG11: 0 | AJ11: 1 | AK11: 0 | AL11: 2 | AM11: 0 | AN11: 0 | AO11: 0 | AP11: 0 | AQ11: 0 | AR11: 0 | AS11: 0 | AT11: 0
E12: 2.5 | F12: 0.8823529412 | G12: 0.5357142857 | Q12: 0.8823529412 | R12: 0.5357142857 | S12: Yes | T12: LL | W12: 6 | X12: 1 | Z12: 0 | AA12: 0 | AB12: 0 | AC12: 0 | AG12: 0 | AJ12: 6 | AK12: 1 | AM12: 0 | AN12: 0 | AO12: 1 | AP12: 1 | AT12: 0
E13: 3 | F13: 0.8823529412 | G13: 0.5357142857 | Q13: 0.8823529412 | R13: 0.5357142857 | S13: No | T13: GG | V13: Count | W13: 14 | X13: 14 | Y13: 14 | Z13: 14 | AA13: 14 | AB13: 14 | AC13: 14 | AD13: 14 | AE13: 14 | AF13: 14 | AG13: 14 | AI13: Count | AJ13: 15 | AK13: 15 | AL13: 15 | AM13: 15 | AN13: 15 | AO13: 15 | AP13: 15 | AQ13: 15 | AR13: 15 | AS13: 15 | AT13: 15
E14: 3.5 | F14: 0.8823529412 | G14: 0.5714285714 | Q14: 0.8823529412 | R14: 0.5714285714 | V14: Average | W14: 0.9177741136 | X14: -0.06296871711 | Y14: 0.2357269913 | Z14: -0.1572129013 | AA14: -0.02544231789 | AB14: -0.04317835862 | AC14: 0.1618335244 | AD14: 0.843585346 | AE14: 0.1216820612 | AF14: 0.07095320093 | AG14: -0.03622060806 | AI14: Average | AJ14: 1.946451742 | AK14: 0.3524765586 | AL14: 0.2052480618 | AM14: 0.09130749083 | AN14: 0.01933958329 | AO14: 0.0114518874 | AP14: 0.2118071926 | AQ14: 0.7070711774 | AR14: 0.08982917012 | AS14: 0.04476366609 | AT14: 0.1583359864
A15: BENCHMARK CATEGORY | E15: 4 | F15: 0.8823529412 | G15: 0.6071428571 | Q15: 0.8823529412 | R15: 0.6071428571 | V15: Non-ratio average | X15: -14060.50314 | AG15: -8087.825143 | AI15: Non-ratio average | AK15: 108454.6442 | AT15: 48718.90813
A16: Tillable Crop Acres: | B16: 1500-3000 | E16: More | F16: 1 | G16: 1 | Q16: 1 | R16: 1 | S16: GTList
A17: =IF(B16="All Farms","","Cow Herd:") -> Cow Herd: | B17: Yes | E17: Count | F17: =IF($T$6=$W$1,$W$13,IF($T$6=$W$17,$W$29,IF($T$6=$W$33,$W$45,IF($T$6=$W$49,$W$61,IF($T$6=$W$65,$W$77,IF($T$6=$W$81,$W$93,IF($T$6=$W$97,$W$109,IF($T$6=$W$113,$W$125,IF($T$6=$W$129,$W$141,IF($T$6=$W$145,$W$157,IF(T6=$W$161,$W$173,"N/A"))))))))))) -> 17 | G17: =IF($T$6=$W$1,$AJ$13,IF($T$6=$W$17,$AJ$29,IF($T$6=$W$33,$AJ$45,IF($T$6=$W$49,$AJ$61,IF($T$6=$W$65,$AJ$77,IF($T$6=$W$81,$AJ$93,IF($T$6=$W$97,$AJ$109,IF($T$6=$W$113,$AJ$125,IF($T$6=$W$129,$AJ$141,IF($T$6=$W$145,$AJ$157, IF($T$6=$W$161,$AJ$173,"N/A"))))))))))) -> 28 | Q17: =IF($T$6=$W$1,W3/$W$13,IF($T$6=$W$17,W19/$W$29,IF($T$6=$W$33,W35/$W$45,IF($T$6=$W$49,W51/$W$61,IF($T$6=$W$65,W67/$W$77,IF($T$6=$W$81,W83/$W$93,IF($T$6=$W$97,W99/$W$109,IF($T$6=$W$113,W115/$W$125,IF($T$6=$W$129,W131/$W$141,IF($T$6=$W$145,W147/$W$157,IF($T$6=$W$161,W163/$W$173,"N/A"))))))))))) -> 0 | R17: =IF($T$6=$W$1,AJ3/$AJ$13,IF($T$6=$W$17,AJ19/$AJ$29,IF($T$6=$W$33,AJ35/$AJ$45,IF($T$6=$W$49,AJ51/$AJ$61,IF($T$6=$W$65,AJ67/$AJ$77,IF($T$6=$W$81,AJ83/$AJ$93,IF($T$6=$W$97,AJ99/$AJ$109,IF($T$6=$W$113,AJ115/$AJ$125,IF($T$6=$W$129,AJ131/$AJ$141,IF($T$6=$W$145,AJ147/$AJ$157,IF($T$6=$W$161,AJ163/$AJ$173,"N/A"))))))))))) -> 0 | S17: Yes | W17: Less than 1500Yes
E18: Average | F18: =IF($T$6=$W$1,$W$14,IF($T$6=$W$17,$W$30,IF($T$6=$W$33,$W$46,IF($T$6=$W$49,$W$62,IF($T$6=$W$65,$W$78,IF($T$6=$W$81,$W$94,IF($T$6=$W$97,$W$110,IF($T$6=$W$113,$W$126,IF($T$6=$W$129,$W$142,IF($T$6=$W$145,$W$158, IF($T$6=$W$161,$W$174,"N/A"))))))))))) -> 1.087088472 | G18: =IF($T$6=$W$1,$AJ$14,IF($T$6=$W$17,$AJ$30,IF($T$6=$W$33,$AJ$46,IF($T$6=$W$49,$AJ$62,IF($T$6=$W$65,$AJ$78,IF($T$6=$W$81,$AJ$94,IF($T$6=$W$97,$AJ$110,IF($T$6=$W$113,$AJ$126,IF($T$6=$W$129,$AJ$142,IF($T$6=$W$145,$AJ$158, IF($T$6=$W$161,$AJ$174,"N/A"))))))))))) -> 2.230932966 | Q18: 0.1176470588 | R18: 0.07142857143 | S18: No | W18: Current Ratio | X18: Working Capital Ratio | Y18: Debt to Asset Ratio | Z18: Operating Profit Margin | AA18: ROA | AB18: ROE | AC18: Asset Turnover | AD18: Operating Expense Ratio | AE18: Depr Expense Ratio | AF18: Interest Expense Ratio | AG18: NFI Ratio | AJ18: Current Ratio | AK18: Working Capital Ratio | AL18: Debt to Asset Ratio | AM18: Operating Profit Margin | AN18: ROA | AO18: ROE | AP18: Asset Turnover | AQ18: Operating Expense Ratio | AR18: Depr Expense Ratio | AS18: Interest Expense Ratio | AT18: NFI Ratio
Q19: 0.4117647059 | R19: 0.07142857143 | W19: 0 | X19: 3 | Y19: 1 | Z19: 3 | AA19: 2 | AB19: 7 | AC19: 0 | AD19: 0 | AE19: 0 | AF19: 1 | AG19: 1 | AJ19: 0 | AK19: 0 | AL19: 0 | AM19: 0 | AN19: 0 | AO19: 2 | AP19: 0 | AQ19: 0 | AR19: 0 | AS19: 0 | AT19: 0
F20: =IF(B22=F18,"","Your Farm") ->  | G20: =IF(B22=F18,"",B22) ->  | Q20: 0.1176470588 | R20: 0.2857142857 | W20: 4 | X20: 3 | Y20: 8 | Z20: 1 | AA20: 3 | AB20: 4 | AC20: 4 | AD20: 0 | AE20: 2 | AF20: 8 | AG20: 1 | AJ20: 0 | AK20: 1 | AL20: 4 | AM20: 0 | AN20: 0 | AO20: 2 | AP20: 1 | AQ20: 0 | AR20: 1 | AS20: 3 | AT20: 0
A21: YOUR FARM VALUES* | Q21: 0.1176470588 | R21: 0.07142857143 | W21: 6 | X21: 4 | Y21: 5 | Z21: 4 | AA21: 8 | AB21: 16 | AC21: 17 | AD21: 2 | AE21: 11 | AF21: 11 | AG21: 2 | AJ21: 2 | AK21: 1 | AL21: 3 | AM21: 0 | AN21: 5 | AO21: 6 | AP21: 9 | AQ21: 2 | AR21: 9 | AS21: 9 | AT21: 0
A22: Current Ratio: | B22: =S37 -> 1.087088472 | Q22: 0.1176470588 | R22: 0.03571428571 | S22: LLList | W22: 6 | X22: 7 | Y22: 4 | Z22: 5 | AA22: 17 | AB22: 5 | AC22: 5 | AD22: 6 | AE22: 8 | AF22: 8 | AG22: 4 | AJ22: 6 | AK22: 6 | AL22: 5 | AM22: 1 | AN22: 9 | AO22: 9 | AP22: 5 | AQ22: 9 | AR22: 5 | AS22: 8 | AT22: 2
A23: Working Capital Ratio: | B23: 0.05483829577 | Q23: 0 | R23: 0 | S23: Yes | W23: 3 | X23: 8 | Y23: 2 | Z23: 10 | AA23: 4 | AB23: 1 | AC23: 5 | AD23: 12 | AE23: 6 | AF23: 2 | AG23: 18 | AJ23: 1 | AK23: 6 | AL23: 4 | AM23: 4 | AN23: 5 | AO23: 2 | AP23: 3 | AQ23: 4 | AR23: 2 | AS23: 0 | AT23: 7
A24: Debt to Asset Ratio: | B24: 0.2828207388 | Q24: 0 | R24: 0.03571428571 | S24: No | W24: 2 | X24: 1 | Y24: 6 | Z24: 10 | AA24: 0 | AB24: 0 | AC24: 2 | AD24: 7 | AE24: 6 | AF24: 4 | AG24: 8 | AJ24: 2 | AK24: 2 | AL24: 4 | AM24: 12 | AN24: 2 | AO24: 0 | AP24: 0 | AQ24: 6 | AR24: 3 | AS24: 1 | AT24: 11
A25: Operating Profit Margin | B25: -0.0540675628 | Q25: 0 | R25: 0.03571428571 | W25: 2 | X25: 3 | Y25: 3 | Z25: 2 | AA25: 0 | AB25: 0 | AC25: 1 | AD25: 4 | AE25: 2 | AF25: 0 | AG25: 1 | AJ25: 1 | AK25: 2 | AL25: 0 | AM25: 4 | AN25: 0 | AO25: 0 | AP25: 2 | AQ25: 0 | AR25: 1 | AS25: 0 | AT25: 1
A26: Rate of Return on Farm Assets | B26: -0.008602589986 | E26: Working Captial Ratio | Q26: 0.1176470588 | R26: 0.3928571429 | W26: 0 | X26: 3 | Y26: 2 | Z26: 0 | AA26: 0 | AB26: 1 | AC26: 0 | AD26: 2 | AE26: 0 | AF26: 1 | AG26: 0 | AJ26: 1 | AK26: 1 | AL26: 0 | AM26: 0 | AN26: 0 | AO26: 0 | AP26: 1 | AQ26: 0 | AR26: 0 | AS26: 0 | AT26: 0
A27: Rate of Return on Farm Equity | B27: -0.03091033846 | F27: =U1 -> 2017 | G27: 10-Year | S27: Your Farm Line-Current Ratio | W27: 2 | X27: 0 | Y27: 4 | Z27: 0 | AA27: 1 | AB27: 0 | AC27: 0 | AD27: 2 | AE27: 0 | AF27: 0 | AG27: 0 | AJ27: 1 | AK27: 1 | AL27: 1 | AM27: 0 | AN27: 0 | AO27: 0 | AP27: 0 | AQ27: 0 | AR27: 0 | AS27: 0 | AT27: 0
A28: Asset Turnover Rate | B28: 0.1591081517 | E28: -0.5 | F28: =Q28 -> 0.1176470588 | G28: =R28 -> 0.07142857143 | Q28: =Q38 -> 0.1176470588 | R28: =R38 -> 0.07142857143 | S28: X's | T28: =IF(B22<4.5,B22,4.5) -> 1.087088472 | U28: =IF(B22<4.5,B22,4.5) -> 1.087088472 | W28: 10 | X28: 3 | Z28: 0 | AA28: 0 | AB28: 1 | AC28: 1 | AG28: 0 | AJ28: 7 | AK28: 1 | AM28: 0 | AN28: 0 | AO28: 0 | AP28: 0 | AT28: 0
A29: Operating Expense Ratio | B29: 0.8195267113 | E29: =E28+0.25 -> -0.25 | F29: =Q29 -> 0.2352941176 | G29: =R29 -> 0.07142857143 | Q29: =Q28+Q39 -> 0.2352941176 | R29: =R28+R39 -> 0.07142857143 | S29: Y's | T29: 0 | U29: 1 | V29: Count | W29: 35 | X29: 35 | Y29: 35 | Z29: 35 | AA29: 35 | AB29: 35 | AC29: 35 | AD29: 35 | AE29: 35 | AF29: 35 | AG29: 35 | AI29: Count | AJ29: 21 | AK29: 21 | AL29: 21 | AM29: 21 | AN29: 21 | AO29: 21 | AP29: 21 | AQ29: 21 | AR29: 21 | AS29: 21 | AT29: 21
A30: Depreciation Expense Ratio | B30: 0.1121674926 | E30: =E29+0.25 -> 0 | F30: 0.5294117647 | G30: 0.1428571429 | Q30: 0.5294117647 | R30: 0.1428571429 | S30: =IF(B22=F18,U1 &" Average","Your Farm") -> 2017 Average | V30: Average | W30: 1.420327675 | X30: 0.2435607042 | Y30: 0.273330133 | Z30: -0.06756643055 | AA30: -0.01165959497 | AB30: -0.03040851109 | AC30: 0.1725649094 | AD30: 0.7957326395 | AE30: 0.07976763004 | AF30: 0.06110979254 | AG30: 0.06338993793 | AI30: Average | AJ30: 1.862955191 | AK30: 0.3585613908 | AL30: 0.2671119163 | AM30: 0.09419924172 | AN30: 0.02033021103 | AO30: 0.009449105171 | AP30: 0.2158213873 | AQ30: 0.711838112 | AR30: 0.06898003004 | AS30: 0.05670530507 | AT30: 0.1624765529
A31: Interest Expense Ratio | B31: 0.08360526565 | E31: 0.25 | F31: 0.6470588235 | G31: 0.4285714286 | Q31: 0.6470588235 | R31: 0.4285714286 | S31: Your Farm Line-Working Capital Ratio | V31: Non-ratio average | X31: 75440.98014 | AG31: 19634.52629 | AI31: Non-ratio average | AK31: 129126.3714 | AT31: 58511.61964
A32: Net Farm Income Ratio: | B32: -0.01529946957 | E32: 0.5 | F32: 0.8823529412 | G32: 0.5357142857 | Q32: 0.8823529412 | R32: 0.5357142857 | S32: X's | T32: =IF(B23>1.75,1.75,B23) -> 0.05483829577 | U32: =IF(B23>1.75,1.75,B23) -> 0.05483829577
A33: *Defaults to Averages for 2017 if not entered | E33: 0.75 | F33: 0.8823529412 | G33: 0.7857142857 | Q33: 0.8823529412 | R33: 0.7857142857 | S33: Y's | T33: 0 | U33: 1 | W33: 1500-3000No
E34: 1 | F34: 0.8823529412 | G34: 0.8928571429 | Q34: 0.8823529412 | R34: 0.8928571429 | S34: =IF(B23=F39,U1 &" Average","Your Farm") -> 2017 Average | W34: Current Ratio | X34: Working Capital Ratio | Y34: Debt to Asset Ratio | Z34: Operating Profit Margin | AA34: ROA | AB34: ROE | AC34: Asset Turnover | AD34: Operating Expense Ratio | AE34: Depr Expense Ratio | AF34: Interest Expense Ratio | AG34: NFI Ratio | AJ34: Current Ratio | AK34: Working Capital Ratio | AL34: Debt to Asset Ratio | AM34: Operating Profit Margin | AN34: ROA | AO34: ROE | AP34: Asset Turnover | AQ34: Operating Expense Ratio | AR34: Depr Expense Ratio | AS34: Interest Expense Ratio | AT34: NFI Ratio
E35: 1.25 | F35: 0.9411764706 | G35: 0.9285714286 | Q35: 0.9411764706 | R35: 0.9285714286 | W35: 0 | X35: 0 | Y35: 3 | Z35: 0 | AA35: 0 | AB35: 0 | AC35: 0 | AD35: 0 | AE35: 0 | AF35: 4 | AG35: 0 | AJ35: 0 | AK35: 0 | AL35: 0 | AM35: 0 | AN35: 0 | AO35: 2 | AP35: 0 | AQ35: 0 | AR35: 0 | AS35: 0 | AT35: 0
E36: 1.5 | F36: 1 | G36: 0.9642857143 | Q36: 1 | R36: 0.9642857143 | W36: 0 | X36: 0 | Y36: 5 | Z36: 1 | AA36: 1 | AB36: 2 | AC36: 2 | AD36: 1 | AE36: 0 | AF36: 7 | AG36: 0 | AJ36: 0 | AK36: 0 | AL36: 9 | AM36: 0 | AN36: 1 | AO36: 0 | AP36: 1 | AQ36: 1 | AR36: 1 | AS36: 14 | AT36: 0
E37: More | F37: 1 | G37: 1 | Q37: 1 | R37: 1 | S37: =$F$18 -> 1.087088472 | W37: 2 | X37: 2 | Y37: 2 | Z37: 1 | AA37: 1 | AB37: 7 | AC37: 6 | AD37: 2 | AE37: 1 | AF37: 2 | AG37: 0 | AJ37: 1 | AK37: 1 | AL37: 4 | AM37: 0 | AN37: 0 | AO37: 1 | AP37: 2 | AQ37: 3 | AR37: 4 | AS37: 3 | AT37: 0
E38: Count | F38: =F17 -> 17 | G38: =G17 -> 28 | Q38: =IF($T$6=$W$1,X3/$F$38,IF($T$6=$W$17,X19/$F$38,IF($T$6=$W$33,X35/$F$38,IF($T$6=$W$49,X51/$F$38,IF($T$6=$W$65,X67/$F$38,IF($T$6=$W$81,X83/$F$38,IF($T$6=$W$97,X99/$F$38,IF($T$6=$W$113,X115/$F$38,IF($T$6=$W$129,X131/$F$38,IF($T$6=$W$145,X147/$F$38,IF($T$6=$W$161,X163/$F$38,"N/A"))))))))))) -> 0.1176470588 | R38: =IF($T$6=$W$1,AK3/$G$38,IF($T$6=$W$17,AK19/$G$38,IF($T$6=$W$33,AK35/$G$38,IF($T$6=$W$49,AK51/$G$38,IF($T$6=$W$65,AK67/$G$38,IF($T$6=$W$81,AK83/$G$38,IF($T$6=$W$97,AK99/$G$38,IF($T$6=$W$113,AK115/$G$38,IF($T$6=$W$129,AK131/$G$38,IF($T$6=$W$145,AK147/$G$38,IF($T$6=$W$161,AK163/$G$38,"N/A"))))))))))) -> 0.07142857143 | S38: =$F$39 -> 0.05483829577 | W38: 0 | X38: 0 | Y38: 1 | Z38: 1 | AA38: 7 | AB38: 2 | AC38: 2 | AD38: 1 | AE38: 3 | AF38: 0 | AG38: 2 | AJ38: 3 | AK38: 4 | AL38: 0 | AM38: 0 | AN38: 5 | AO38: 6 | AP38: 5 | AQ38: 11 | AR38: 2 | AS38: 1 | AT38: 0
E39: Average | F39: =IF($T$6=$W$1,$X$14,IF($T$6=$W$17,$X$30,IF($T$6=$W$33,$X$46,IF($T$6=$W$49,$X$62,IF($T$6=$W$65,$X$78,IF($T$6=$W$81,$X$94,IF($T$6=$W$97,$X$110,IF($T$6=$W$113,$X$126,IF($T$6=$W$129,$X$142,IF($T$6=$W$145,$X$158,IF($T$6=$W$161,$X$174,"N/A"))))))))))) -> 0.05483829577 | G39: =IF($T$6=$W$1,$AK$14,IF($T$6=$W$17,$AK$30,IF($T$6=$W$33,$AK$46,IF($T$6=$W$49,$AK$62,IF($T$6=$W$65,$AK$78,IF($T$6=$W$81,$AK$94,IF($T$6=$W$97,$AK$110,IF($T$6=$W$113,$AK$126,IF($T$6=$W$129,$AK$142,IF($T$6=$W$145,$AK$158,IF($T$6=$W$161,$AK$174,"N/A"))))))))))) -> 0.407529017 | Q39: 0.1176470588 | R39: 0 | S39: =$F$59 -> 0.2828207388 | W39: 0 | X39: 1 | Y39: 0 | Z39: 6 | AA39: 2 | AB39: 0 | AC39: 1 | AD39: 3 | AE39: 3 | AF39: 0 | AG39: 7 | AJ39: 1 | AK39: 0 | AL39: 1 | AM39: 2 | AN39: 4 | AO39: 7 | AP39: 5 | AQ39: 2 | AR39: 7 | AS39: 0 | AT39: 5
E40: Working Capital Avg. | Q40: 0.2941176471 | R40: 0.07142857143 | S40: =$F$81 -> -0.0540675628 | W40: 1 | X40: 1 | Y40: 0 | Z40: 0 | AA40: 1 | AB40: 1 | AC40: 1 | AD40: 5 | AE40: 3 | AF40: 0 | AG40: 3 | AJ40: 0 | AK40: 2 | AL40: 2 | AM40: 4 | AN40: 6 | AO40: 2 | AP40: 2 | AQ40: 1 | AR40: 0 | AS40: 0 | AT40: 8
F41: =IF($T$6=$W$1,$X$15,IF($T$6=$W$17,$X$31,IF($T$6=$W$33,$X$47,IF($T$6=$W$49,$X$63,IF($T$6=$W$65,$X$79,IF($T$6=$W$81,$X$95,IF($T$6=$W$97,$X$111,IF($T$6=$W$113,$X$127,IF($T$6=$W$129,$X$143,IF($T$6=$W$145,$X$159,IF($T$6=$W$161,$X$175,"N/A"))))))))))) -> 28750.42553 | G41: =IF($T$6=$W$1,$AK$15,IF($T$6=$W$17,$AK$31,IF($T$6=$W$33,$AK$47,IF($T$6=$W$49,$AK$63,IF($T$6=$W$65,$AK$79,IF($T$6=$W$81,$AK$95,IF($T$6=$W$97,$AK$111,IF($T$6=$W$113,$AK$127,IF($T$6=$W$129,$AK$143,IF($T$6=$W$145,$AK$159,IF($T$6=$W$161,$AK$175,"N/A"))))))))))) -> 246524.8529 | Q41: 0.1176470588 | R41: 0.2857142857 | S41: =$F$102 -> -0.008602589986 | W41: 0 | X41: 1 | Y41: 1 | Z41: 3 | AA41: 1 | AB41: 1 | AC41: 0 | AD41: 0 | AE41: 2 | AF41: 0 | AG41: 1 | AJ41: 0 | AK41: 3 | AL41: 0 | AM41: 11 | AN41: 2 | AO41: 0 | AP41: 1 | AQ41: 0 | AR41: 4 | AS41: 0 | AT41: 5
Q42: 0.2352941176 | R42: 0.1071428571 | S42: =$F$123 -> -0.03091033846 | W42: 1 | X42: 2 | Y42: 0 | Z42: 1 | AA42: 0 | AB42: 0 | AC42: 1 | AD42: 1 | AE42: 1 | AF42: 0 | AG42: 0 | AJ42: 0 | AK42: 5 | AL42: 1 | AM42: 1 | AN42: 0 | AO42: 0 | AP42: 0 | AQ42: 0 | AR42: 0 | AS42: 0 | AT42: 0
F43: =IF(B23=F39,"","Your Farm") ->  | G43: =IF(B23=F39,"",B23) ->  | Q43: 0 | R43: 0.25 | S43: =$F$144 -> 0.1591081517 | W43: 0 | X43: 2 | Y43: 1 | Z43: 0 | AA43: 0 | AB43: 0 | AC43: 0 | AD43: 0 | AE43: 0 | AF43: 0 | AG43: 0 | AJ43: 0 | AK43: 3 | AL43: 1 | AM43: 0 | AN43: 0 | AO43: 0 | AP43: 1 | AQ43: 0 | AR43: 0 | AS43: 0 | AT43: 0
Q44: 0 | R44: 0.1071428571 | S44: =$F$164 -> 0.8195267113 | W44: 9 | X44: 4 | Z44: 0 | AA44: 0 | AB44: 0 | AC44: 0 | AG44: 0 | AJ44: 13 | AK44: 0 | AM44: 0 | AN44: 0 | AO44: 0 | AP44: 1 | AT44: 0
Q45: 0.05882352941 | R45: 0.03571428571 | S45: =$F$185 -> 0.1121674926 | V45: Count | W45: 13 | X45: 13 | Y45: 13 | Z45: 13 | AA45: 13 | AB45: 13 | AC45: 13 | AD45: 13 | AE45: 13 | AF45: 13 | AG45: 13 | AI45: Count | AJ45: 18 | AK45: 18 | AL45: 18 | AM45: 18 | AN45: 18 | AO45: 18 | AP45: 18 | AQ45: 18 | AR45: 18 | AS45: 18 | AT45: 18
Q46: 0.05882352941 | R46: 0.03571428571 | S46: =$F$206 -> 0.08360526565 | V46: Average | W46: 5.049423977 | X46: 0.9153651722 | Y46: 0.1159632497 | Z46: 0.1133829687 | AA46: 0.01994858491 | AB46: 0.01853982969 | AC46: 0.1759398712 | AD46: 0.6714385633 | AE46: 0.1098893262 | AF46: 0.0196258696 | AG46: 0.1990462409 | AI46: Average | AJ46: 6.27881327 | AK46: 0.8245655717 | AL46: 0.1398342799 | AM46: 0.1979221734 | AN46: 0.05726797833 | AO46: 0.06016175643 | AP46: 0.2893459451 | AQ46: 0.6353399986 | AR46: 0.09811739227 | AS46: 0.01938187531 | AT46: 0.2471607338
E47: Debt to Asset Ratio | Q47: 0 | R47: 0.03571428571 | S47: =$F$228 -> -0.01529946957 | V47: Non-ratio average | X47: 461400.6162 | AG47: 100331.6065 | AI47: Non-ratio average | AK47: 510583.4283 | AT47: 153045.6511
F48: =U1 -> 2017 | G48: 10-Year
E49: 0 | F49: =Q49 -> 0 | G49: =R49 -> 0.03571428571 | Q49: =Q58 -> 0 | R49: =R58 -> 0.03571428571 | S49: Your Farm Line-Debt to Asset | W49: 1500-3000Yes
E50: 0.1 | F50: =Q50 -> 0.1176470588 | G50: =R50 -> 0.2142857143 | Q50: =Q49+Q59 -> 0.1176470588 | R50: 0.2142857143 | S50: X's | T50: =IF(B24>0.8,0.8,B24) -> 0.2828207388 | U50: =IF(B24>0.8,0.8,B24) -> 0.2828207388 | W50: Current Ratio | X50: Working Capital Ratio | Y50: Debt to Asset Ratio | Z50: Operating Profit Margin | AA50: ROA | AB50: ROE | AC50: Asset Turnover | AD50: Operating Expense Ratio | AE50: Depr Expense Ratio | AF50: Interest Expense Ratio | AG50: NFI Ratio | AJ50: Current Ratio | AK50: Working Capital Ratio | AL50: Debt to Asset Ratio | AM50: Operating Profit Margin | AN50: ROA | AO50: ROE | AP50: Asset Turnover | AQ50: Operating Expense Ratio | AR50: Depr Expense Ratio | AS50: Interest Expense Ratio | AT50: NFI Ratio
E51: 0.2 | F51: 0.3529411765 | G51: 0.3928571429 | Q51: 0.3529411765 | R51: 0.3928571429 | S51: Y's | T51: 0 | U51: 1 | W51: 0 | X51: 2 | Y51: 0 | Z51: 0 | AA51: 2 | AB51: 5 | AC51: 0 | AD51: 0 | AE51: 0 | AF51: 0 | AG51: 1 | AJ51: 0 | AK51: 2 | AL51: 1 | AM51: 0 | AN51: 0 | AO51: 2 | AP51: 0 | AQ51: 0 | AR51: 0 | AS51: 0 | AT51: 0
E52: 0.3 | F52: 0.4705882353 | G52: 0.5357142857 | Q52: 0.4705882353 | R52: 0.5357142857 | S52: =IF(B24=F59,U1 &" Average","Your Farm") -> 2017 Average | W52: 2 | X52: 2 | Y52: 2 | Z52: 1 | AA52: 2 | AB52: 1 | AC52: 3 | AD52: 0 | AE52: 0 | AF52: 6 | AG52: 0 | AJ52: 2 | AK52: 0 | AL52: 5 | AM52: 0 | AN52: 0 | AO52: 3 | AP52: 1 | AQ52: 0 | AR52: 0 | AS52: 11 | AT52: 0
E53: 0.4 | F53: 0.5882352941 | G53: 0.6428571429 | Q53: 0.5882352941 | R53: 0.6428571429 | W53: 7 | X53: 5 | Y53: 4 | Z53: 3 | AA53: 2 | AB53: 5 | AC53: 6 | AD53: 1 | AE53: 2 | AF53: 2 | AG53: 4 | AJ53: 2 | AK53: 2 | AL53: 5 | AM53: 0 | AN53: 3 | AO53: 4 | AP53: 4 | AQ53: 3 | AR53: 11 | AS53: 10 | AT53: 1
E54: 0.5 | F54: 0.7058823529 | G54: 0.8214285714 | Q54: 0.7058823529 | R54: 0.8214285714 | W54: 2 | X54: 2 | Y54: 2 | Z54: 2 | AA54: 7 | AB54: 5 | AC54: 3 | AD54: 3 | AE54: 5 | AF54: 3 | AG54: 2 | AJ54: 8 | AK54: 8 | AL54: 4 | AM54: 1 | AN54: 9 | AO54: 11 | AP54: 9 | AQ54: 7 | AR54: 7 | AS54: 4 | AT54: 1
E55: 0.6 | F55: 0.7647058824 | G55: 0.9285714286 | Q55: 0.7647058824 | R55: 0.9285714286 | W55: 2 | X55: 4 | Y55: 2 | Z55: 3 | AA55: 4 | AB55: 0 | AC55: 2 | AD55: 4 | AE55: 5 | AF55: 3 | AG55: 7 | AJ55: 2 | AK55: 3 | AL55: 3 | AM55: 5 | AN55: 9 | AO55: 3 | AP55: 4 | AQ55: 12 | AR55: 7 | AS55: 1 | AT55: 11
E56: 0.7 | F56: 0.7647058824 | G56: 0.9642857143 | Q56: 0.7647058824 | R56: 0.9642857143 | W56: 2 | X56: 0 | Y56: 2 | Z56: 5 | AA56: 0 | AB56: 0 | AC56: 1 | AD56: 5 | AE56: 1 | AF56: 0 | AG56: 2 | AJ56: 1 | AK56: 7 | AL56: 5 | AM56: 15 | AN56: 5 | AO56: 2 | AP56: 4 | AQ56: 4 | AR56: 2 | AS56: 2 | AT56: 12
E57: More | F57: =Q57 -> 1 | G57: 1 | Q57: 1 | R57: 1 | W57: 0 | X57: 0 | Y57: 1 | Z57: 3 | AA57: 0 | AB57: 0 | AC57: 2 | AD57: 1 | AE57: 3 | AF57: 0 | AG57: 1 | AJ57: 0 | AK57: 3 | AL57: 3 | AM57: 6 | AN57: 0 | AO57: 2 | AP57: 3 | AQ57: 1 | AR57: 1 | AS57: 0 | AT57: 3
E58: Count | F58: =F38 -> 17 | G58: =G38 -> 28 | Q58: =IF($T$6=$W$1,Y3/$F$58,IF($T$6=$W$17,Y19/$F$58,IF($T$6=$W$33,Y35/$F$58,IF($T$6=$W$49,Y51/$F$58,IF($T$6=$W$65,Y67/$F$58,IF($T$6=$W$81,Y83/$F$58,IF($T$6=$W$97,Y99/$F$58,IF($T$6=$W$113,Y115/$F$58,IF($T$6=$W$129,Y131/$F$58,IF($T$6=$W$145,Y147/$F$58,IF($T$6=$W$161,Y163/$F$58,"N/A"))))))))))) -> 0 | R58: =IF($T$6=$W$1,AL3/$G$38,IF($T$6=$W$17,AL19/$G$38,IF($T$6=$W$33,AL35/$G$38,IF($T$6=$W$49,AL51/$G$38,IF($T$6=$W$65,AL67/$G$38,IF($T$6=$W$81,AL83/$G$38,IF($T$6=$W$97,AL99/$G$38,IF($T$6=$W$113,AL115/$G$38,IF($T$6=$W$129,AL131/$G$38,IF($T$6=$W$145,AL147/$G$38,IF($T$6=$W$161,AL163/$G$38,"N/A"))))))))))) -> 0.03571428571 | W58: 0 | X58: 1 | Y58: 0 | Z58: 0 | AA58: 0 | AB58: 0 | AC58: 0 | AD58: 2 | AE58: 0 | AF58: 1 | AG58: 0 | AJ58: 1 | AK58: 1 | AL58: 1 | AM58: 1 | AN58: 1 | AO58: 1 | AP58: 2 | AQ58: 1 | AR58: 0 | AS58: 0 | AT58: 0
E59: Average | F59: =IF($T$6=$W$1,$Y$14,IF($T$6=$W$17,$Y$30,IF($T$6=$W$33,$Y$46,IF($T$6=$W$49,$Y$62,IF($T$6=$W$65,$Y$78,IF($T$6=$W$81,$Y$94,IF($T$6=$W$97,$Y$110,IF($T$6=$W$113,$Y$126,IF($T$6=$W$129,$Y$142,IF($T$6=$W$145,$Y$158,IF($T$6=$W$161,$Y$174,"N/A"))))))))))) -> 0.2828207388 | G59: =IF($T$6=$W$1,$AL$14,IF($T$6=$W$17,$AL$30,IF($T$6=$W$33,$AL$46,IF($T$6=$W$49,$AL$62,IF($T$6=$W$65,$AL$78,IF($T$6=$W$81,$AL$94,IF($T$6=$W$97,$AL$110,IF($T$6=$W$113,$AL$126,IF($T$6=$W$129,$AL$142,IF($T$6=$W$145,$AL$158,IF($T$6=$W$161,$AL$174,"N/A"))))))))))) -> 0.251016302 | Q59: 0.1176470588 | R59: 0.1785714286 | W59: 0 | X59: 1 | Y59: 4 | Z59: 0 | AA59: 0 | AB59: 0 | AC59: 0 | AD59: 1 | AE59: 1 | AF59: 2 | AG59: 0 | AJ59: 1 | AK59: 1 | AL59: 1 | AM59: 0 | AN59: 0 | AO59: 0 | AP59: 1 | AQ59: 0 | AR59: 0 | AS59: 0 | AT59: 0
Q60: 0.2352941176 | R60: 0.1785714286 | W60: 2 | X60: 0 | Z60: 0 | AA60: 0 | AB60: 1 | AC60: 0 | AG60: 0 | AJ60: 11 | AK60: 1 | AM60: 0 | AN60: 1 | AO60: 0 | AP60: 0 | AT60: 0
Q61: 0.1176470588 | R61: 0.1428571429 | V61: Count | W61: 17 | X61: 17 | Y61: 17 | Z61: 17 | AA61: 17 | AB61: 17 | AC61: 17 | AD61: 17 | AE61: 17 | AF61: 17 | AG61: 17 | AI61: Count | AJ61: 28 | AK61: 28 | AL61: 28 | AM61: 28 | AN61: 28 | AO61: 28 | AP61: 28 | AQ61: 28 | AR61: 28 | AS61: 28 | AT61: 28
Q62: 0.1176470588 | R62: 0.1071428571 | V62: Average | W62: 1.087088472 | X62: 0.05483829577 | Y62: 0.2828207388 | Z62: -0.0540675628 | AA62: -0.008602589986 | AB62: -0.03091033846 | AC62: 0.1591081517 | AD62: 0.8195267113 | AE62: 0.1121674926 | AF62: 0.08360526565 | AG62: -0.01529946957 | AI62: Average | AJ62: 2.230932966 | AK62: 0.407529017 | AL62: 0.251016302 | AM62: 0.1049832732 | AN62: 0.02851980581 | AO62: 0.02236710392 | AP62: 0.2716604745 | AQ62: 0.7261033826 | AR62: 0.08479896743 | AS62: 0.04153176717 | AT62: 0.1475658828
F63: =IF(B24=F59,"","Your Farm") ->  | G63: =IF(B24=F59,"",B24) ->  | Q63: 0.1176470588 | R63: 0.1785714286 | V63: Non-ratio average | X63: 28750.42553 | AG63: -8021.151176 | AI63: Non-ratio average | AK63: 246524.8529 | AT63: 89266.42286
Q64: 0.05882352941 | R64: 0.1071428571
Q65: 0 | R65: 0.03571428571 | W65: Greater than 3000No
Q66: 0.2352941176 | R66: 0.03571428571 | W66: Current Ratio | X66: Working Capital Ratio | Y66: Debt to Asset Ratio | Z66: Operating Profit Margin | AA66: ROA | AB66: ROE | AC66: Asset Turnover | AD66: Operating Expense Ratio | AE66: Depr Expense Ratio | AF66: Interest Expense Ratio | AG66: NFI Ratio | AJ66: Current Ratio | AK66: Working Capital Ratio | AL66: Debt to Asset Ratio | AM66: Operating Profit Margin | AN66: ROA | AO66: ROE | AP66: Asset Turnover | AQ66: Operating Expense Ratio | AR66: Depr Expense Ratio | AS66: Interest Expense Ratio | AT66: NFI Ratio
W67: 0 | X67: 3 | Y67: 0 | Z67: 0 | AA67: 0 | AB67: 2 | AC67: 0 | AD67: 0 | AE67: 0 | AF67: 1 | AG67: 0 | AJ67: 0 | AK67: 0 | AL67: 0 | AM67: 0 | AN67: 0 | AO67: 0 | AP67: 0 | AQ67: 0 | AR67: 0 | AS67: 0 | AT67: 0
E68: Operating Profit Margin Ratio | W68: 2 | X68: 1 | Y68: 4 | Z68: 0 | AA68: 2 | AB68: 3 | AC68: 2 | AD68: 1 | AE68: 1 | AF68: 10 | AG68: 2 | AJ68: 0 | AK68: 0 | AL68: 2 | AM68: 0 | AN68: 0 | AO68: 0 | AP68: 0 | AQ68: 1 | AR68: 1 | AS68: 8 | AT68: 0
F69: =U1 -> 2017 | G69: 10-Year | W69: 5 | X69: 3 | Y69: 4 | Z69: 2 | AA69: 3 | AB69: 7 | AC69: 6 | AD69: 0 | AE69: 1 | AF69: 6 | AG69: 2 | AJ69: 0 | AK69: 0 | AL69: 4 | AM69: 0 | AN69: 0 | AO69: 1 | AP69: 1 | AQ69: 3 | AR69: 1 | AS69: 3 | AT69: 0
E70: -0.6 | F70: =Q70 -> 0 | G70: =R70 -> 0 | Q70: =Q80 -> 0 | R70: =R80 -> 0 | W70: 4 | X70: 3 | Y70: 4 | Z70: 2 | AA70: 9 | AB70: 5 | AC70: 4 | AD70: 4 | AE70: 3 | AF70: 0 | AG70: 5 | AJ70: 2 | AK70: 2 | AL70: 4 | AM70: 0 | AN70: 1 | AO70: 4 | AP70: 6 | AQ70: 5 | AR70: 4 | AS70: 0 | AT70: 0
E71: -0.45 | F71: =Q71 -> 0.05882352941 | G71: =R71 -> 0 | Q71: =Q70+Q81 -> 0.05882352941 | R71: =R70+R81 -> 0 | S71: Your Farm Line-Operating Profit Margin Ratio | W71: 2 | X71: 4 | Y71: 2 | Z71: 6 | AA71: 3 | AB71: 2 | AC71: 3 | AD71: 5 | AE71: 7 | AF71: 1 | AG71: 7 | AJ71: 0 | AK71: 3 | AL71: 1 | AM71: 0 | AN71: 5 | AO71: 5 | AP71: 4 | AQ71: 3 | AR71: 5 | AS71: 2 | AT71: 3
E72: -0.3 | F72: 0.2352941176 | G72: 0 | Q72: 0.2352941176 | R72: 0 | S72: X's | T72: =IF(B25>0.75,0.75,B25) -> -0.0540675628 | U72: =T72 -> -0.0540675628 | W72: 1 | X72: 3 | Y72: 4 | Z72: 7 | AA72: 3 | AB72: 1 | AC72: 3 | AD72: 5 | AE72: 6 | AF72: 0 | AG72: 4 | AJ72: 1 | AK72: 4 | AL72: 1 | AM72: 2 | AN72: 4 | AO72: 2 | AP72: 0 | AQ72: 1 | AR72: 2 | AS72: 0 | AT72: 6
E73: -0.15 | F73: 0.3529411765 | G73: 0.03571428571 | Q73: 0.3529411765 | R73: 0.03571428571 | S73: Y's | T73: 0 | U73: 1 | W73: 2 | X73: 2 | Y73: 1 | Z73: 3 | AA73: 0 | AB73: 1 | AC73: 3 | AD73: 4 | AE73: 1 | AF73: 2 | AG73: 1 | AJ73: 1 | AK73: 1 | AL73: 1 | AM73: 6 | AN73: 2 | AO73: 1 | AP73: 1 | AQ73: 0 | AR73: 0 | AS73: 0 | AT73: 4
E74: 0 | F74: 0.5294117647 | G74: 0.2142857143 | Q74: 0.5294117647 | R74: 0.2142857143 | S74: =IF(B25=F81,U1 &" Average","Your Farm") -> 2017 Average | W74: 0 | X74: 1 | Y74: 0 | Z74: 1 | AA74: 1 | AB74: 0 | AC74: 0 | AD74: 1 | AE74: 1 | AF74: 0 | AG74: 0 | AJ74: 2 | AK74: 2 | AL74: 0 | AM74: 5 | AN74: 1 | AO74: 0 | AP74: 1 | AQ74: 0 | AR74: 0 | AS74: 0 | AT74: 0
E75: 0.15 | F75: 0.8235294118 | G75: 0.75 | Q75: 0.8235294118 | R75: 0.75 | W75: 1 | X75: 0 | Y75: 2 | Z75: 0 | AA75: 0 | AB75: 0 | AC75: 0 | AD75: 1 | AE75: 1 | AF75: 1 | AG75: 0 | AJ75: 0 | AK75: 1 | AL75: 0 | AM75: 0 | AN75: 0 | AO75: 0 | AP75: 0 | AQ75: 0 | AR75: 0 | AS75: 0 | AT75: 0
E76: 0.3 | F76: 1 | G76: 0.9642857143 | Q76: 1 | R76: 0.9642857143 | W76: 4 | X76: 1 | Z76: 0 | AA76: 0 | AB76: 0 | AC76: 0 | AG76: 0 | AJ76: 7 | AK76: 0 | AM76: 0 | AN76: 0 | AO76: 0 | AP76: 0 | AT76: 0
E77: 0.45 | F77: 1 | G77: 1 | Q77: 1 | R77: 1 | V77: Count | W77: 21 | X77: 21 | Y77: 21 | Z77: 21 | AA77: 21 | AB77: 21 | AC77: 21 | AD77: 21 | AE77: 21 | AF77: 21 | AG77: 21 | AI77: Count | AJ77: 13 | AK77: 13 | AL77: 13 | AM77: 13 | AN77: 13 | AO77: 13 | AP77: 13 | AQ77: 13 | AR77: 13 | AS77: 13 | AT77: 13
E78: 0.6 | F78: 1 | G78: 1 | Q78: 1 | R78: 1 | V78: Average | W78: 2.285792893 | X78: 0.4553639988 | Y78: 0.2731448473 | Z78: 0.1460569092 | AA78: 0.04032754218 | AB78: 0.04258894587 | AC78: 0.2761084184 | AD78: 0.729425489 | AE78: 0.09165193813 | AF78: 0.0344642657 | AG78: 0.1444583072 | AI78: Average | AJ78: 4.048691944 | AK78: 0.6617485837 | AL78: 0.2185418929 | AM78: 0.2217324061 | AN78: 0.06896002094 | AO78: 0.07618923521 | AP78: 0.3110056042 | AQ78: 0.6645284764 | AR78: 0.08212617262 | AS78: 0.0301884679 | AT78: 0.2231568831
E79: More | F79: 1 | G79: 1 | Q79: 1 | R79: 1 | V79: Non-ratio average | X79: 1080917.54 | AG79: 342907.0337 | AI79: Non-ratio average | AK79: 1516039.06 | AT79: 511243.3326
E80: Count | F80: =F58 -> 17 | G80: =G58 -> 28 | Q80: =IF($T$6=$W$1,Z3/$F$80,IF($T$6=$W$17,Z19/$F$80,IF($T$6=$W$33,Z35/$F$80,IF($T$6=$W$49,Z51/$F$80,IF($T$6=$W$65,Z67/$F$80,IF($T$6=$W$81,Z83/$F$80,IF($T$6=$W$97,Z99/$F$80,IF($T$6=$W$113,Z115/$F$80,IF($T$6=$W$129,Z131/$F$80,IF($T$6=$W$145,Z147/$F$80,IF($T$6=$W$161,Z163/$F$80,"N/A"))))))))))) -> 0 | R80: =IF($T$6=$W$1,AM3/$G$38,IF($T$6=$W$17,AM19/$G$38,IF($T$6=$W$33,AM35/$G$38,IF($T$6=$W$49,AM51/$G$38,IF($T$6=$W$65,AM67/$G$38,IF($T$6=$W$81,AM83/$G$38,IF($T$6=$W$97,AM99/$G$38,IF($T$6=$W$113,AM115/$G$38,IF($T$6=$W$129,AM131/$G$38,IF($T$6=$W$145,AM147/$G$38,IF($T$6=$W$161,AM163/$G$38,"N/A"))))))))))) -> 0
E81: Average | F81: =IF($T$6=$W$1,$Z$14,IF($T$6=$W$17,$Z$30,IF($T$6=$W$33,$Z$46,IF($T$6=$W$49,$Z$62,IF($T$6=$W$65,$Z$78,IF($T$6=$W$81,$Z$94,IF($T$6=$W$97,$Z$110,IF($T$6=$W$113,$Z$126,IF($T$6=$W$129,$Z$142,IF($T$6=$W$145,$Z$158,IF($T$6=W161,Z174,"N/A"))))))))))) -> -0.0540675628 | G81: =IF($T$6=$W$1,$AM$14,IF($T$6=$W$17,$AM$30,IF($T$6=$W$33,$AM$46,IF($T$6=$W$49,$AM$62,IF($T$6=$W$65,$AM$78,IF($T$6=$W$81,$AM$94,IF($T$6=$W$97,$AM$110,IF($T$6=$W$113,$AM$126,IF($T$6=$W$129,$AM$142,IF($T$6=$W$145,$AM$158,IF($T$6=$W$161,$AM$174,"N/A"))))))))))) -> 0.1049832732 | Q81: 0.05882352941 | R81: 0 | W81: Greater than 3000Yes
Q82: 0.1764705882 | R82: 0 | W82: Current Ratio | X82: Working Capital Ratio | Y82: Debt to Asset Ratio | Z82: Operating Profit Margin | AA82: ROA | AB82: ROE | AC82: Asset Turnover | AD82: Operating Expense Ratio | AE82: Depr Expense Ratio | AF82: Interest Expense Ratio | AG82: NFI Ratio | AJ82: Current Ratio | AK82: Working Capital Ratio | AL82: Debt to Asset Ratio | AM82: Operating Profit Margin | AN82: ROA | AO82: ROE | AP82: Asset Turnover | AQ82: Operating Expense Ratio | AR82: Depr Expense Ratio | AS82: Interest Expense Ratio | AT82: NFI Ratio
Q83: 0.1176470588 | R83: 0.03571428571 | W83: 0 | X83: 0 | Y83: 0 | Z83: 0 | AA83: 0 | AB83: 3 | AC83: 0 | AD83: 0 | AE83: 0 | AF83: 0 | AG83: 0 | AJ83: 0 | AK83: 0 | AL83: 0 | AM83: 0 | AN83: 0 | AO83: 1 | AP83: 0 | AQ83: 0 | AR83: 0 | AS83: 0 | AT83: 0
Q84: 0.1764705882 | R84: 0.1785714286 | W84: 3 | X84: 4 | Y84: 3 | Z84: 0 | AA84: 1 | AB84: 2 | AC84: 0 | AD84: 1 | AE84: 0 | AF84: 7 | AG84: 0 | AJ84: 0 | AK84: 0 | AL84: 2 | AM84: 0 | AN84: 0 | AO84: 0 | AP84: 0 | AQ84: 0 | AR84: 0 | AS84: 9 | AT84: 0
F85: =IF(B25=F81,"","Your Farm") ->  | G85: =IF(B25=F81,"",B25) ->  | Q85: 0.2941176471 | R85: 0.5357142857 | W85: 6 | X85: 5 | Y85: 6 | Z85: 0 | AA85: 2 | AB85: 5 | AC85: 11 | AD85: 1 | AE85: 5 | AF85: 9 | AG85: 0 | AJ85: 1 | AK85: 1 | AL85: 9 | AM85: 0 | AN85: 1 | AO85: 2 | AP85: 6 | AQ85: 4 | AR85: 3 | AS85: 10 | AT85: 0
Q86: 0.1764705882 | R86: 0.2142857143 | W86: 6 | X86: 7 | Y86: 4 | Z86: 1 | AA86: 7 | AB86: 10 | AC86: 3 | AD86: 9 | AE86: 13 | AF86: 6 | AG86: 5 | AJ86: 4 | AK86: 6 | AL86: 6 | AM86: 0 | AN86: 6 | AO86: 12 | AP86: 9 | AQ86: 4 | AR86: 14 | AS86: 2 | AT86: 1
Q87: 0 | R87: 0.03571428571 | W87: 1 | X87: 3 | Y87: 3 | Z87: 7 | AA87: 11 | AB87: 3 | AC87: 7 | AD87: 6 | AE87: 6 | AF87: 1 | AG87: 9 | AJ87: 5 | AK87: 6 | AL87: 2 | AM87: 2 | AN87: 10 | AO87: 4 | AP87: 4 | AQ87: 8 | AR87: 4 | AS87: 0 | AT87: 10
Q88: 0 | R88: 0 | W88: 1 | X88: 4 | Y88: 2 | Z88: 8 | AA88: 4 | AB88: 1 | AC88: 2 | AD88: 5 | AE88: 1 | AF88: 2 | AG88: 11 | AJ88: 3 | AK88: 5 | AL88: 0 | AM88: 9 | AN88: 4 | AO88: 3 | AP88: 0 | AQ88: 5 | AR88: 1 | AS88: 1 | AT88: 9
E89: Rate of Return on Farm Assets | Q89: 0 | R89: 0 | W89: 3 | X89: 2 | Y89: 3 | Z89: 9 | AA89: 1 | AB89: 1 | AC89: 0 | AD89: 4 | AE89: 1 | AF89: 1 | AG89: 1 | AJ89: 0 | AK89: 2 | AL89: 2 | AM89: 10 | AN89: 1 | AO89: 0 | AP89: 1 | AQ89: 1 | AR89: 0 | AS89: 0 | AT89: 2
F90: =U1 -> 2017 | G90: 10-Year | W90: 1 | X90: 0 | Y90: 1 | Z90: 1 | AA90: 0 | AB90: 0 | AC90: 0 | AD90: 0 | AE90: 0 | AF90: 0 | AG90: 0 | AJ90: 1 | AK90: 1 | AL90: 0 | AM90: 1 | AN90: 0 | AO90: 0 | AP90: 1 | AQ90: 0 | AR90: 0 | AS90: 0 | AT90: 0
E91: -0.1 | F91: =Q91 -> 0.1176470588 | G91: =R91 -> 0 | Q91: =Q101 -> 0.1176470588 | R91: =R101 -> 0 | W91: 3 | X91: 1 | Y91: 4 | Z91: 0 | AA91: 0 | AB91: 1 | AC91: 2 | AD91: 0 | AE91: 0 | AF91: 0 | AG91: 0 | AJ91: 3 | AK91: 1 | AL91: 1 | AM91: 0 | AN91: 0 | AO91: 0 | AP91: 0 | AQ91: 0 | AR91: 0 | AS91: 0 | AT91: 0
E92: -0.06 | F92: =Q92 -> 0.2352941176 | G92: =R92 -> 0 | Q92: =Q91+Q102 -> 0.2352941176 | R92: =R91+R102 -> 0 | W92: 2 | X92: 0 | Z92: 0 | AA92: 0 | AB92: 0 | AC92: 1 | AG92: 0 | AJ92: 5 | AK92: 0 | AM92: 0 | AN92: 0 | AO92: 0 | AP92: 1 | AT92: 0
E93: -0.02 | F93: 0.3529411765 | G93: 0.1071428571 | Q93: 0.3529411765 | R93: 0.1071428571 | S93: Your Farm Line-Return on Assets | V93: Count | W93: 26 | X93: 26 | Y93: 26 | Z93: 26 | AA93: 26 | AB93: 26 | AC93: 26 | AD93: 26 | AE93: 26 | AF93: 26 | AG93: 26 | AI93: Count | AJ93: 22 | AK93: 22 | AL93: 22 | AM93: 22 | AN93: 22 | AO93: 22 | AP93: 22 | AQ93: 22 | AR93: 22 | AS93: 22 | AT93: 22
E94: 0.02 | F94: 0.7647058824 | G94: 0.4285714286 | Q94: 0.7647058824 | R94: 0.4285714286 | S94: X's | T94: =IF(B26>0.24,0.24,B26) -> -0.008602589986 | U94: =T94 -> -0.008602589986 | V94: Average | W94: 1.408099971 | X94: 0.2060887308 | Y94: 0.3101354001 | Z94: 0.0839499602 | AA94: 0.01743769213 | AB94: 0.007278412784 | AC94: 0.2077153114 | AD94: 0.7720530668 | AE94: 0.08147723045 | AF94: 0.05575292791 | AG94: 0.09071677483 | AI94: Average | AJ94: 2.394164134 | AK94: 0.497710884 | AL94: 0.2515768081 | AM94: 0.1437814533 | AN94: 0.03403989226 | AO94: 0.03159501752 | AP94: 0.2367474488 | AQ94: 0.731494676 | AR94: 0.08144623507 | AS94: 0.03973032598 | AT94: 0.1473287629
E95: 0.06 | F95: 1 | G95: 0.75 | Q95: 1 | R95: 0.75 | S95: Y's | T95: 0 | U95: 1 | V95: Non-ratio average | X95: 299659.3177 | AG95: 131904.9651 | AI95: Non-ratio average | AK95: 716321.065 | AT95: 212040.1618
E96: 0.1 | F96: 1 | G96: 0.9285714286 | Q96: 1 | R96: 0.9285714286 | S96: =IF(B26=F102,U1 &" Average","Your Farm") -> 2017 Average
E97: 0.14 | F97: 1 | G97: 0.9285714286 | Q97: 1 | R97: 0.9285714286 | W97: All Farms
E98: 0.18 | F98: 1 | G98: 0.9642857143 | Q98: 1 | R98: 0.9642857143 | W98: Current Ratio | X98: Working Capital Ratio | Y98: Debt to Asset Ratio | Z98: Operating Profit Margin | AA98: ROA | AB98: ROE | AC98: Asset Turnover | AD98: Operating Expense Ratio | AE98: Depr Expense Ratio | AF98: Interest Expense Ratio | AG98: NFI Ratio | AJ98: Current Ratio | AK98: Working Capital Ratio | AL98: Debt to Asset Ratio | AM98: Operating Profit Margin | AN98: ROA | AO98: ROE | AP98: Asset Turnover | AQ98: Operating Expense Ratio | AR98: Depr Expense Ratio | AS98: Interest Expense Ratio | AT98: NFI Ratio
E99: 0.22 | F99: 1 | G99: 0.9642857143 | Q99: 1 | R99: 0.9642857143 | W99: 0 | X99: 10 | Y99: 5 | Z99: 4 | AA99: 5 | AB99: 21 | AC99: 0 | AD99: 0 | AE99: 0 | AF99: 8 | AG99: 4 | AJ99: 0 | AK99: 3 | AL99: 1 | AM99: 0 | AN99: 0 | AO99: 7 | AP99: 0 | AQ99: 0 | AR99: 0 | AS99: 0 | AT99: 0
E100: More | F100: =Q100 -> 1 | G100: =R100 -> 1 | Q100: 1 | R100: 1 | W100: 14 | X100: 13 | Y100: 31 | Z100: 3 | AA100: 9 | AB100: 15 | AC100: 16 | AD100: 3 | AE100: 5 | AF100: 47 | AG100: 3 | AJ100: 4 | AK100: 2 | AL100: 32 | AM100: 0 | AN100: 1 | AO100: 6 | AP100: 4 | AQ100: 2 | AR100: 3 | AS100: 56 | AT100: 0
E101: Count | F101: =F80 -> 17 | G101: =G80 -> 28 | Q101: =IF($T$6=$W$1,AA3/$F$101,IF($T$6=$W$17,AA19/$F$101,IF($T$6=$W$33,AA35/$F$101,IF($T$6=$W$49,AA51/$F$101,IF($T$6=$W$65,AA67/$F$101,IF($T$6=$W$81,AA83/$F$101,IF($T$6=$W$97,AA99/$F$101,IF($T$6=$W$113,AA115/$F$101,IF($T$6=$W$129,AA131/$F$101,IF($T$6=$W$145,AA147/$F$101,IF($T$6=$W$161,AA163/$F$101,"N/A"))))))))))) -> 0.1176470588 | R101: =IF($T$6=$W$1,AN3/$G$38,IF($T$6=$W$17,AN19/$G$38,IF($T$6=$W$33,AN35/$G$38,IF($T$6=$W$49,AN51/$G$38,IF($T$6=$W$65,AN67/$G$38,IF($T$6=$W$81,AN83/$G$38,IF($T$6=$W$97,AN99/$G$38,IF($T$6=$W$113,AN115/$G$38,IF($T$6=$W$129,AN131/$G$38,IF($T$6=$W$145,AN147/$G$38,IF($T$6=$W$161,AN163/$G$38,"N/A"))))))))))) -> 0 | W101: 32 | X101: 23 | Y101: 22 | Z101: 13 | AA101: 27 | AB101: 47 | AC101: 52 | AD101: 8 | AE101: 22 | AF101: 36 | AG101: 10 | AJ101: 6 | AK101: 5 | AL101: 27 | AM101: 0 | AN101: 11 | AO101: 18 | AP101: 29 | AQ101: 19 | AR101: 34 | AS101: 39 | AT101: 1
E102: Average | F102: =IF($T$6=$W$1,$AA$14,IF($T$6=$W$17,$AA$30,IF($T$6=$W$33,$AA$46,IF($T$6=$W$49,$AA$62,IF($T$6=$W$65,$AA$78,IF($T$6=$W$81,$AA$94,IF($T$6=$W$97,$AA$110,IF($T$6=$W$113,$AA$126,IF($T$6=$W$129,$AA$142,IF($T$6=$W$145,$AA$158,IF($T$6=$W$161,AA174,"N/A"))))))))))) -> -0.008602589986 | G102: =IF($T$6=$W$1,$AN$14,IF($T$6=$W$17,$AN$30,IF($T$6=$W$33,$AN$46,IF($T$6=$W$49,$AN$62,IF($T$6=$W$65,$AN$78,IF($T$6=$W$81,$AN$94,IF($T$6=$W$97,$AN$110,IF($T$6=$W$113,$AN$126,IF($T$6=$W$129,$AN$142,IF($T$6=$W$145,$AN$158,IF($T$6=$W$161,$AN$174,"N/A"))))))))))) -> 0.02851980581 | Q102: 0.1176470588 | R102: 0 | W102: 20 | X102: 22 | Y102: 16 | Z102: 17 | AA102: 50 | AB102: 31 | AC102: 21 | AD102: 27 | AE102: 38 | AF102: 18 | AG102: 24 | AJ102: 28 | AK102: 31 | AL102: 21 | AM102: 3 | AN102: 35 | AO102: 53 | AP102: 42 | AQ102: 41 | AR102: 40 | AS102: 19 | AT102: 6
Q103: 0.1176470588 | R103: 0.1071428571 | W103: 8 | X103: 21 | Y103: 10 | Z103: 35 | AA103: 28 | AB103: 6 | AC103: 19 | AD103: 34 | AE103: 31 | AF103: 8 | AG103: 51 | AJ103: 12 | AK103: 25 | AL103: 12 | AM103: 15 | AN103: 45 | AO103: 23 | AP103: 22 | AQ103: 39 | AR103: 30 | AS103: 4 | AT103: 41
Q104: 0.4117647059 | R104: 0.3214285714 | W104: 7 | X104: 13 | Y104: 15 | Z104: 33 | AA104: 9 | AB104: 3 | AC104: 11 | AD104: 31 | AE104: 19 | AF104: 6 | AG104: 33 | AJ104: 8 | AK104: 23 | AL104: 14 | AM104: 54 | AN104: 22 | AO104: 10 | AP104: 7 | AQ104: 19 | AR104: 9 | AS104: 4 | AT104: 58
Q105: 0.2352941176 | R105: 0.3214285714 | W105: 8 | X105: 10 | Y105: 10 | Z105: 24 | AA105: 2 | AB105: 3 | AC105: 6 | AD105: 16 | AE105: 12 | AF105: 3 | AG105: 8 | AJ105: 3 | AK105: 11 | AL105: 8 | AM105: 43 | AN105: 5 | AO105: 3 | AP105: 8 | AQ105: 2 | AR105: 7 | AS105: 1 | AT105: 17
F106: =IF(B26=F102,"","Your Farm") ->  | G106: =IF(B26=F102,"",B26) ->  | Q106: 0 | R106: 0.1785714286 | W106: 3 | X106: 7 | Y106: 4 | Z106: 4 | AA106: 2 | AB106: 1 | AC106: 2 | AD106: 9 | AE106: 3 | AF106: 2 | AG106: 0 | AJ106: 5 | AK106: 12 | AL106: 2 | AM106: 8 | AN106: 3 | AO106: 2 | AP106: 5 | AQ106: 1 | AR106: 0 | AS106: 0 | AT106: 0
Q107: 0 | R107: 0 | W107: 6 | X107: 4 | Y107: 20 | Z107: 0 | AA107: 1 | AB107: 3 | AC107: 3 | AD107: 5 | AE107: 3 | AF107: 5 | AG107: 0 | AJ107: 6 | AK107: 7 | AL107: 6 | AM107: 0 | AN107: 0 | AO107: 0 | AP107: 3 | AQ107: 0 | AR107: 0 | AS107: 0 | AT107: 0
Q108: 0 | R108: 0.03571428571 | W108: 35 | X108: 10 | Z108: 0 | AA108: 0 | AB108: 3 | AC108: 3 | AG108: 0 | AJ108: 51 | AK108: 4 | AM108: 0 | AN108: 1 | AO108: 1 | AP108: 3 | AT108: 0
Q109: 0 | R109: 0 | V109: Count | W109: 133 | X109: 133 | Y109: 133 | Z109: 133 | AA109: 133 | AB109: 133 | AC109: 133 | AD109: 133 | AE109: 133 | AF109: 133 | AG109: 133 | AI109: Count | AJ109: 123 | AK109: 123 | AL109: 123 | AM109: 123 | AN109: 123 | AO109: 123 | AP109: 123 | AQ109: 123 | AR109: 123 | AS109: 123 | AT109: 123
E110: Rate of Return on Farm Equity | Q110: 0 | R110: 0.03571428571 | V110: Average | W110: 1.666687194 | X110: 0.3162113878 | Y110: 0.2830778889 | Z110: 0.07699323543 | AA110: 0.0171186703 | AB110: 0.008193499229 | AC110: 0.2223399264 | AD110: 0.7655126892 | AE110: 0.08944343693 | AF110: 0.04796586331 | AG110: 0.09707801057 | AI110: Average | AJ110: 2.696812055 | AK110: 0.5499339596 | AL110: 0.2415596487 | AM110: 0.1627057593 | AN110: 0.04315263695 | AO110: 0.0427647122 | AP110: 0.2652188659 | AQ110: 0.7020058986 | AR110: 0.08214038592 | AS110: 0.0372856044 | AT110: 0.1785681111
F111: =U1 -> 2017 | G111: 10-Year | V111: Non-ratio average | X111: 300007.8701 | AG111: 92103.47353 | AI111: Non-ratio average | AK111: 501604.2744 | AT111: 162875.062
E112: -0.1 | F112: =Q112 -> 0.2941176471 | G112: =R112 -> 0.07142857143 | Q112: =Q122 -> 0.2941176471 | R112: =R122 -> 0.07142857143
E113: -0.05 | F113: =Q113 -> 0.3529411765 | G113: =R113 -> 0.1785714286 | Q113: =Q112+Q123 -> 0.3529411765 | R113: =R112+R123 -> 0.1785714286 | W113: Blank
E114: 0 | F114: 0.6470588235 | G114: 0.3214285714 | Q114: 0.6470588235 | R114: 0.3214285714 | W114: Current Ratio | X114: Working Capital Ratio | Y114: Debt to Asset Ratio | Z114: Operating Profit Margin | AA114: ROA | AB114: ROE | AC114: Asset Turnover | AD114: Operating Expense Ratio | AE114: Depr Expense Ratio | AF114: Interest Expense Ratio | AG114: NFI Ratio | AJ114: Current Ratio | AK114: Working Capital Ratio | AL114: Debt to Asset Ratio | AM114: Operating Profit Margin | AN114: ROA | AO114: ROE | AP114: Asset Turnover | AQ114: Operating Expense Ratio | AR114: Depr Expense Ratio | AS114: Interest Expense Ratio | AT114: NFI Ratio
E115: 0.05 | F115: 0.9411764706 | G115: 0.7142857143 | Q115: 0.9411764706 | R115: 0.7142857143 | S115: Your Farm Line-Return on Equity
E116: 0.1 | F116: 0.9411764706 | G116: 0.8214285714 | Q116: 0.9411764706 | R116: 0.8214285714 | S116: X's | T116: =IF(B27>0.35,0.35,B27) -> -0.03091033846 | U116: =T116 -> -0.03091033846
E117: 0.15 | F117: 0.9411764706 | G117: 0.8928571429 | Q117: 0.9411764706 | R117: 0.8928571429 | S117: Y's | T117: 0 | U117: 1
E118: 0.2 | F118: 0.9411764706 | G118: 0.9642857143 | Q118: 0.9411764706 | R118: 0.9642857143 | S118: =IF(B27=F123,U1 &" Average","Your Farm") -> 2017 Average
E119: 0.25 | F119: 0.9411764706 | G119: 1 | Q119: 0.9411764706 | R119: 1
E120: 0.3 | F120: 0.9411764706 | G120: 1 | Q120: 0.9411764706 | R120: 1
E121: More | F121: 1 | G121: 1 | Q121: 1 | R121: 1
E122: Count | F122: =F101 -> 17 | G122: =G101 -> 28 | Q122: =IF($T$6=$W$1,AB3/$F$122,IF($T$6=$W$17,AB19/$F$122,IF($T$6=$W$33,AB35/$F$122,IF($T$6=$W$49,AB51/$F$122,IF($T$6=$W$65,AB67/$F$122,IF($T$6=$W$81,AB83/$F$122,IF($T$6=$W$97,AB99/$F$122,IF($T$6=$W$113,AB115/$F$122,IF($T$6=$W$129,AB131/$F$122,IF($T$6=$W$145,AB147/$F$122,IF($T$6=$W$161,AB163/$F$122,"N/A"))))))))))) -> 0.2941176471 | R122: =IF($T$6=$W$1,AO3/$G$38,IF($T$6=$W$17,AO19/$G$38,IF($T$6=$W$33,AO35/$G$38,IF($T$6=$W$49,AO51/$G$38,IF($T$6=$W$65,AO67/$G$38,IF($T$6=$W$81,AO83/$G$38,IF($T$6=$W$97,AO99/$G$38,IF($T$6=$W$113,AO115/$G$38,IF($T$6=$W$129,AO131/$G$38,IF($T$6=$W$145,AO147/$G$38,IF($T$6=$W$161,AO163/$G$38,"N/A"))))))))))) -> 0.07142857143
E123: Average | F123: =IF($T$6=$W$1,$AB$14,IF($T$6=$W$17,$AB$30,IF($T$6=$W$33,$AB$46,IF($T$6=$W$49,$AB$62,IF($T$6=$W$65,$AB$78,IF($T$6=$W$81,$AB$94,IF($T$6=$W$97,$AB$110,IF($T$6=$W$113,$AB$126,IF($T$6=$W$129,$AB$142,IF($T$6=$W$145,$AB$158,IF($T$6=W161,AB174,"N/A"))))))))))) -> -0.03091033846 | G123: =IF($T$6=$W$1,$AO$14,IF($T$6=$W$17,$AO$30,IF($T$6=$W$33,$AO$46,IF($T$6=$W$49,$AO$62,IF($T$6=$W$65,$AO$78,IF($T$6=$W$81,$AO$94,IF($T$6=$W$97,$AO$110,IF($T$6=$W$113,$AO$126,IF($T$6=$W$129,$AO$142,IF($T$6=$W$145,$AO$158,IF($T$6=$W$161,$AO$174,"N/A"))))))))))) -> 0.02236710392 | Q123: 0.05882352941 | R123: 0.1071428571
Q124: 0.2941176471 | R124: 0.1428571429
Q125: 0.2941176471 | R125: 0.3928571429 | V125: Count | AI125: Count
Q126: 0 | R126: 0.1071428571 | V126: Average | AI126: Average
F127: =IF(B27=F123,"","Your Farm") ->  | G127: =IF(B27=F123,"",B27) ->  | Q127: 0 | R127: 0.07142857143 | V127: Non-ratio average | AI127: Non-ratio average
Q128: 0 | R128: 0.07142857143
Q129: 0 | R129: 0.03571428571 | W129: Blank
Q130: 0 | R130: 0 | W130: Current Ratio | X130: Working Capital Ratio | Y130: Debt to Asset Ratio | Z130: Operating Profit Margin | AA130: ROA | AB130: ROE | AC130: Asset Turnover | AD130: Operating Expense Ratio | AE130: Depr Expense Ratio | AF130: Interest Expense Ratio | AG130: NFI Ratio | AJ130: Current Ratio | AK130: Working Capital Ratio | AL130: Debt to Asset Ratio | AM130: Operating Profit Margin | AN130: ROA | AO130: ROE | AP130: Asset Turnover | AQ130: Operating Expense Ratio | AR130: Depr Expense Ratio | AS130: Interest Expense Ratio | AT130: NFI Ratio
E131: Asset Turnover Rate | Q131: 0.05882352941 | R131: 0
F132: =U1 -> 2017 | G132: 10-Year
E133: 0 | F133: =Q133 -> 0 | G133: =R133 -> 0 | Q133: =Q143 -> 0 | R133: =R143 -> 0
E134: 0.1 | F134: =Q134 -> 0.1764705882 | G134: =R134 -> 0.03571428571 | Q134: =Q133+Q144 -> 0.1764705882 | R134: =R133+R144 -> 0.03571428571
E135: 0.2 | F135: 0.5294117647 | G135: 0.1785714286 | Q135: 0.5294117647 | R135: 0.1785714286
E136: 0.3 | F136: 0.7058823529 | G136: 0.5 | Q136: 0.7058823529 | R136: 0.5
E137: 0.4 | F137: 0.8235294118 | G137: 0.6428571429 | Q137: 0.8235294118 | R137: 0.6428571429 | S137: Your Farm Line-Asset Turnover Rate
E138: 0.5 | F138: 0.8823529412 | G138: 0.7857142857 | Q138: 0.8823529412 | R138: 0.7857142857 | S138: X's | T138: =IF(B28>0.9,0.9,B28) -> 0.1591081517 | U138: =T138 -> 0.1591081517
E139: 0.6 | F139: 1 | G139: 0.8928571429 | Q139: 1 | R139: 0.8928571429 | S139: Y's | T139: 0 | U139: 1
E140: 0.7 | F140: 1 | G140: 0.9642857143 | Q140: 1 | R140: 0.9642857143 | S140: =IF(B28=F144,U1 &" Average","Your Farm") -> 2017 Average
E141: 0.8 | F141: 1 | G141: 1 | Q141: 1 | R141: 1 | V141: Count | AI141: Count
E142: More | F142: 1 | G142: 1 | Q142: 1 | R142: 1 | V142: Average | AI142: Average
E143: Count | F143: =F122 -> 17 | G143: =G122 -> 28 | Q143: =IF($T$6=$W$1,AC3/$F$143,IF($T$6=$W$17,AC19/$F$143,IF($T$6=$W$33,AC35/$F$143,IF($T$6=$W$49,AC51/$F$143,IF($T$6=$W$65,AC67/$F$143,IF($T$6=$W$81,AC83/$F$143,IF($T$6=$W$97,AC99/$F$143,IF($T$6=$W$113,AC115/$F$143,IF($T$6=$W$129,AC131/$F$143,IF($T$6=$W$145,AC147/$F$143,IF($T$6=$W$161,AC163/$F$143,"N/A"))))))))))) -> 0 | R143: =IF($T$6=$W$1,AP3/$G$38,IF($T$6=$W$17,AP19/$G$38,IF($T$6=$W$33,AP35/$G$38,IF($T$6=$W$49,AP51/$G$38,IF($T$6=$W$65,AP67/$G$38,IF($T$6=$W$81,AP83/$G$38,IF($T$6=$W$97,AP99/$G$38,IF($T$6=$W$113,AP115/$G$38,IF($T$6=$W$129,AP131/$G$38,IF($T$6=$W$145,AP147/$G$38,IF($T$6=$W$161,AP163/$G$38,"N/A"))))))))))) -> 0 | V143: Non-ratio average | AI143: Non-ratio average
E144: Average | F144: =IF($T$6=$W$1,$AC$14,IF($T$6=$W$17,$AC$30,IF($T$6=$W$33,$AC$46,IF($T$6=$W$49,$AC$62,IF($T$6=$W$65,$AC$78,IF($T$6=$W$81,$AC$94,IF($T$6=$W$97,$AC$110,IF($T$6=$W$113,$AC$126,IF($T$6=$W$129,$AC$142,IF($T$6=$W$145,$AC$158,IF($T$6=W161,AC174,"N/A"))))))))))) -> 0.1591081517 | G144: =IF($T$6=$W$1,$AP$14,IF($T$6=$W$17,$AP$30,IF($T$6=$W$33,$AP$46,IF($T$6=$W$49,$AP$62,IF($T$6=$W$65,$AP$78,IF($T$6=$W$81,$AP$94,IF($T$6=$W$97,$AP$110,IF($T$6=$W$113,$AP$126,IF($T$6=$W$129,$AP$142,IF($T$6=$W$145,$AP$158,IF($T$6=$W$161,$AP$174,"N/A"))))))))))) -> 0.2716604745 | Q144: 0.1764705882 | R144: 0.03571428571
Q145: 0.3529411765 | R145: 0.1428571429 | W145: Blank
Q146: 0.1764705882 | R146: 0.3214285714 | W146: Current Ratio | X146: Working Capital Ratio | Y146: Debt to Asset Ratio | Z146: Operating Profit Margin | AA146: ROA | AB146: ROE | AC146: Asset Turnover | AD146: Operating Expense Ratio | AE146: Depr Expense Ratio | AF146: Interest Expense Ratio | AG146: NFI Ratio | AJ146: Current Ratio | AK146: Working Capital Ratio | AL146: Debt to Asset Ratio | AM146: Operating Profit Margin | AN146: ROA | AO146: ROE | AP146: Asset Turnover | AQ146: Operating Expense Ratio | AR146: Depr Expense Ratio | AS146: Interest Expense Ratio | AT146: NFI Ratio
Q147: 0.1176470588 | R147: 0.1428571429
F148: =IF(B28=F144,"","Your Farm") ->  | G148: =IF(B28=F144,"",B28) ->  | Q148: 0.05882352941 | R148: 0.1428571429
Q149: 0.1176470588 | R149: 0.1071428571
Q150: 0 | R150: 0.07142857143
Q151: 0 | R151: 0.03571428571
E152: Operating Expense Ratio | Q152: 0 | R152: 0
F153: =U1 -> 2017 | G153: 10-Year
E154: 0.4 | F154: =Q154 -> 0 | G154: =R154 -> 0 | Q154: =Q163 -> 0 | R154: =R163 -> 0
E155: 0.5 | F155: =Q155 -> 0 | G155: =R155 -> 0 | Q155: =Q154+Q164 -> 0 | R155: 0
E156: 0.6 | F156: 0.05882352941 | G156: 0.1071428571 | Q156: 0.05882352941 | R156: 0.1071428571
E157: 0.7 | F157: 0.2352941176 | G157: 0.3571428571 | Q157: 0.2352941176 | R157: 0.3571428571 | V157: Count | AI157: Count
E158: 0.8 | F158: 0.4705882353 | G158: 0.7857142857 | Q158: 0.4705882353 | R158: 0.7857142857 | V158: Average | AI158: Average
E159: 0.9 | F159: 0.7647058824 | G159: 0.9285714286 | Q159: 0.7647058824 | R159: 0.9285714286 | S159: Your Farm Line-Operating Expense Ratio | V159: Non-ratio average | AI159: Non-ratio average
E160: 1 | F160: 0.8235294118 | G160: 0.9642857143 | Q160: 0.8235294118 | R160: 0.9642857143 | S160: X's | T160: =IF(B29>1.2,1.2,B29) -> 0.8195267113 | U160: =T160 -> 0.8195267113
E161: 1.1 | F161: 0.9411764706 | G161: 1 | Q161: 0.9411764706 | R161: 1 | S161: Y's | T161: 0 | U161: 1 | W161: Blank
E162: More | F162: 1 | G162: 1 | Q162: 1 | R162: 1 | S162: =IF(B29=F164,U1 &" Average","Your Farm") -> 2017 Average | W162: Current Ratio | X162: Working Capital Ratio | Y162: Debt to Asset Ratio | Z162: Operating Profit Margin | AA162: ROA | AB162: ROE | AC162: Asset Turnover | AD162: Operating Expense Ratio | AE162: Depr Expense Ratio | AF162: Interest Expense Ratio | AG162: NFI Ratio | AJ162: Current Ratio | AK162: Working Capital Ratio | AL162: Debt to Asset Ratio | AM162: Operating Profit Margin | AN162: ROA | AO162: ROE | AP162: Asset Turnover | AQ162: Operating Expense Ratio | AR162: Depr Expense Ratio | AS162: Interest Expense Ratio | AT162: NFI Ratio
E163: Count | F163: =F143 -> 17 | G163: =G143 -> 28 | Q163: =IF($T$6=$W$1,AD3/$F$143,IF($T$6=$W$17,AD19/$F$143,IF($T$6=$W$33,AD35/$F$143,IF($T$6=$W$49,AD51/$F$143,IF($T$6=$W$65,AD67/$F$143,IF($T$6=$W$81,AD83/$F$143,IF($T$6=$W$97,AD99/$F$143,IF($T$6=$W$113,AD115/$F$143,IF($T$6=$W$129,AD131/$F$143,IF($T$6=$W$145,AD147/$F$143,IF($T$6=$W$161,AD163/$F$143,"N/A"))))))))))) -> 0 | R163: =IF($T$6=$W$1,AQ3/$G$38,IF($T$6=$W$17,AQ19/$G$38,IF($T$6=$W$33,AQ35/$G$38,IF($T$6=$W$49,AQ51/$G$38,IF($T$6=$W$65,AQ67/$G$38,IF($T$6=$W$81,AQ83/$G$38,IF($T$6=$W$97,AQ99/$G$38,IF($T$6=$W$113,AQ115/$G$38,IF($T$6=$W$129,AQ131/$G$38,IF($T$6=$W$145,AQ147/$G$38,IF($T$6=$W$161,AQ163/$G$38,"N/A"))))))))))) -> 0
E164: Average | F164: =IF($T$6=$W$1,$AD$14,IF($T$6=$W$17,$AD$30,IF($T$6=$W$33,$AD$46,IF($T$6=$W$49,$AD$62,IF($T$6=$W$65,$AD$78,IF($T$6=$W$81,$AD$94,IF($T$6=$W$97,$AD$110,IF($T$6=$W$113,$AD$126,IF($T$6=$W$129,$AD$142,IF($T$6=$W$145,$AD$158,IF($T$6=W161,AD174,"N/A"))))))))))) -> 0.8195267113 | G164: =IF($T$6=$W$1,$AQ$14,IF($T$6=$W$17,$AQ$30,IF($T$6=$W$33,$AQ$46,IF($T$6=$W$49,$AQ$62,IF($T$6=$W$65,$AQ$78,IF($T$6=$W$81,$AQ$94,IF($T$6=$W$97,$AQ$110,IF($T$6=$W$113,$AQ$126,IF($T$6=$W$129,$AQ$142,IF($T$6=$W$145,$AQ$158,IF($T$6=$W$161,$AQ$174,"N/A"))))))))))) -> 0.7261033826 | Q164: 0 | R164: 0
Q165: 0.05882352941 | R165: 0.1071428571
Q166: 0.1764705882 | R166: 0.25
Q167: 0.2352941176 | R167: 0.4285714286
F168: =IF(B29=F164,"","Your Farm") ->  | G168: =IF(B29=F164,"",B29) ->  | Q168: 0.2941176471 | R168: 0.1428571429
Q169: 0.05882352941 | R169: 0.03571428571
Q170: 0.1176470588 | R170: 0.03571428571
Q171: 0.05882352941 | R171: 0
E173: Depreciation Expense Ratio | V173: Count | AI173: Count
F174: =U1 -> 2017 | G174: 10-Year | V174: Average | AI174: Average
E175: 0 | F175: =Q175 -> 0 | G175: =R175 -> 0 | Q175: =Q184 -> 0 | R175: =R184 -> 0 | V175: Non-ratio average | AI175: Non-ratio average
E176: 0.03 | F176: =Q176 -> 0 | G176: =R176 -> 0 | Q176: =Q175+Q185 -> 0 | R176: 0
E177: 0.06 | F177: 0.1176470588 | G177: 0.3928571429 | Q177: 0.1176470588 | R177: 0.3928571429
E178: 0.09 | F178: 0.4117647059 | G178: 0.6428571429 | Q178: 0.4117647059 | R178: 0.6428571429
E179: 0.12 | F179: 0.7058823529 | G179: 0.8928571429 | Q179: 0.7058823529 | R179: 0.8928571429
E180: 0.15 | F180: 0.7647058824 | G180: 0.9642857143 | Q180: 0.7647058824 | R180: 0.9642857143
E181: 0.18 | F181: 0.9411764706 | G181: 1 | Q181: 0.9411764706 | R181: 1 | S181: Your Farm Line-Depreciation Expense Ratio
E182: 0.21 | F182: 0.9411764706 | G182: 1 | Q182: 0.9411764706 | R182: 1 | S182: X's | T182: =IF(B30>0.24,0.24,B30) -> 0.1121674926 | U182: =T182 -> 0.1121674926
E183: More | F183: 1 | G183: 1 | Q183: 1 | R183: 1 | S183: Y's | T183: 0 | U183: 1
E184: Count | F184: =F163 -> 17 | G184: =G163 -> 28 | Q184: =IF($T$6=$W$1,AE3/$F$143,IF($T$6=$W$17,AE19/$F$143,IF($T$6=$W$33,AE35/$F$143,IF($T$6=$W$49,AE51/$F$143,IF($T$6=$W$65,AE67/$F$143,IF($T$6=$W$81,AE83/$F$143,IF($T$6=$W$97,AE99/$F$143,IF($T$6=$W$113,AE115/$F$143,IF($T$6=$W$129,AE131/$F$143,IF($T$6=$W$145,AE147/$F$143,IF($T$6=$W$161,AE163/$F$143,"N/A"))))))))))) -> 0 | R184: =IF($T$6=$W$1,AR3/$G$38,IF($T$6=$W$17,AR19/$G$38,IF($T$6=$W$33,AR35/$G$38,IF($T$6=$W$49,AR51/$G$38,IF($T$6=$W$65,AR67/$G$38,IF($T$6=$W$81,AR83/$G$38,IF($T$6=$W$97,AR99/$G$38,IF($T$6=$W$113,AR115/$G$38,IF($T$6=$W$129,AR131/$G$38,IF($T$6=$W$145,AR147/$G$38,IF($T$6=$W$161,AR163/$G$38,"N/A"))))))))))) -> 0 | S184: =IF(B30=F185,U1 &" Average","Your Farm") -> 2017 Average
E185: Average | F185: =IF($T$6=$W$1,$AE$14,IF($T$6=$W$17,$AE$30,IF($T$6=$W$33,$AE$46,IF($T$6=$W$49,$AE$62,IF($T$6=$W$65,$AE$78,IF($T$6=$W$81,$AE$94,IF($T$6=$W$97,$AE$110,IF($T$6=$W$113,$AE$126,IF($T$6=$W$129,$AE$142,IF($T$6=$W$145,$AE$158,IF($T$6=$W$161,AE174,"N/A"))))))))))) -> 0.1121674926 | G185: =IF($T$6=$W$1,$AR$14,IF($T$6=$W$17,$AR$30,IF($T$6=$W$33,$AR$46,IF($T$6=$W$49,$AR$62,IF($T$6=$W$65,$AR$78,IF($T$6=$W$81,$AR$94,IF($T$6=$W$97,$AR$110,IF($T$6=$W$113,$AR$126,IF($T$6=$W$129,$AR$142,IF($T$6=$W$145,$AR$158,IF($T$6=$W$161,$AR$174,"N/A"))))))))))) -> 0.08479896743 | Q185: 0 | R185: 0
Q186: 0.1176470588 | R186: 0.3928571429
Q187: 0.2941176471 | R187: 0.25
Q188: 0.2941176471 | R188: 0.25
F189: =IF(B30=F185,"","Your Farm") ->  | G189: =IF(B30=F185,"",B30) ->  | Q189: 0.05882352941 | R189: 0.07142857143
Q190: 0.1764705882 | R190: 0.03571428571
Q191: 0 | R191: 0
Q192: 0.05882352941 | R192: 0
E194: Interest Expense Ratio
F195: =U1 -> 2017 | G195: 10-Year
E196: 0 | F196: =Q196 -> 0 | G196: =R196 -> 0 | Q196: =Q205 -> 0 | R196: =R205 -> 0
E197: 0.03 | F197: =Q197 -> 0.3529411765 | G197: =R197 -> 0.3928571429 | Q197: =Q196+Q206 -> 0.3529411765 | R197: 0.3928571429
E198: 0.06 | F198: 0.4705882353 | G198: 0.75 | Q198: 0.4705882353 | R198: 0.75
E199: 0.09 | F199: 0.6470588235 | G199: 0.8928571429 | Q199: 0.6470588235 | R199: 0.8928571429
E200: 0.12 | F200: 0.8235294118 | G200: 0.9285714286 | Q200: 0.8235294118 | R200: 0.9285714286
E201: 0.15 | F201: 0.8235294118 | G201: 1 | Q201: 0.8235294118 | R201: 1
E202: 0.18 | F202: 0.8235294118 | G202: 1 | Q202: 0.8235294118 | R202: 1
... 33 more rows

Sheet NorthCentral
E1: KSU FARM FINANCIAL BENCHMARKING TOOL-North Central Kansas | S1: Acres | T1: Lookup | U1: 2017 | W1: Less than 750No | AI1: 10-Year
S2: Less than 750 | T2: LT | U2: 2017 KFMA Farms | W2: Current Ratio | X2: Working Capital Ratio | Y2: Debt to Asset Ratio | Z2: Operating Profit Margin | AA2: ROA | AB2: ROE | AC2: Asset Turnover | AD2: Operating Expense Ratio | AE2: Depr Expense Ratio | AF2: Interest Expense Ratio | AG2: NFI Ratio | AJ2: Current Ratio | AK2: Working Capital Ratio | AL2: Debt to Asset Ratio | AM2: Operating Profit Margin | AN2: ROA | AO2: ROE | AP2: Asset Turnover | AQ2: Operating Expense Ratio | AR2: Depr Expense Ratio | AS2: Interest Expense Ratio | AT2: NFI Ratio
E3: Tillable Crop Acres: | G3: =B16 -> 750-1250 | I3: =A17 -> Head of Beef Cows: | K3: =IF(B17="","",B17) -> <100 | L3: =A18 ->  | P3: =IF(B18="","",B18) ->  | S3: 750-1250 | T3: BTW | W3: 0 | X3: 3 | Y3: 6 | Z3: 3 | AA3: 1 | AB3: 3 | AC3: 0 | AD3: 0 | AE3: 0 | AF3: 6 | AG3: 2 | AJ3: 0 | AK3: 0 | AL3: 1 | AM3: 0 | AN3: 0 | AO3: 1 | AP3: 0 | AQ3: 0 | AR3: 0 | AS3: 0 | AT3: 0
S4: Greater than 1250 | T4: GT | W4: 6 | X4: 1 | Y4: 6 | Z4: 1 | AA4: 2 | AB4: 3 | AC4: 8 | AD4: 0 | AE4: 3 | AF4: 9 | AG4: 2 | AJ4: 0 | AK4: 1 | AL4: 5 | AM4: 0 | AN4: 0 | AO4: 1 | AP4: 1 | AQ4: 2 | AR4: 1 | AS4: 6 | AT4: 0
E5: Current Ratio | S5: All Farms | T5: All | W5: 0 | X5: 2 | Y5: 5 | Z5: 1 | AA5: 5 | AB5: 12 | AC5: 9 | AD5: 1 | AE5: 5 | AF5: 5 | AG5: 0 | AJ5: 3 | AK5: 2 | AL5: 0 | AM5: 0 | AN5: 2 | AO5: 3 | AP5: 5 | AQ5: 2 | AR5: 3 | AS5: 5 | AT5: 0
F6: =U1 -> 2017 | G6: 10-Year | S6: LTList | T6: =B16&B17&B18 -> 750-1250<100 | W6: 2 | X6: 1 | Y6: 2 | Z6: 4 | AA6: 13 | AB6: 5 | AC6: 3 | AD6: 5 | AE6: 5 | AF6: 1 | AG6: 5 | AJ6: 0 | AK6: 0 | AL6: 3 | AM6: 1 | AN6: 5 | AO6: 5 | AP6: 1 | AQ6: 3 | AR6: 5 | AS6: 1 | AT6: 0
E7: 0 | F7: =Q7 -> 0 | G7: =R7 -> 0 | S7: Yes | W7: 0 | X7: 4 | Y7: 3 | Z7: 7 | AA7: 2 | AB7: 1 | AC7: 1 | AD7: 8 | AE7: 3 | AF7: 0 | AG7: 4 | AJ7: 0 | AK7: 2 | AL7: 0 | AM7: 3 | AN7: 4 | AO7: 1 | AP7: 3 | AQ7: 2 | AR7: 1 | AS7: 0 | AT7: 5
E8: 0.5 | F8: =Q8 -> 0.12 | G8: =R8 -> 0.06666666667 | Q8: =Q7+Q18 -> 0.12 | R8: =R7+R18 -> 0.06666666667 | S8: No | W8: 1 | X8: 2 | Y8: 0 | Z8: 7 | AA8: 1 | AB8: 0 | AC8: 0 | AD8: 3 | AE8: 2 | AF8: 1 | AG8: 11 | AJ8: 3 | AK8: 1 | AL8: 1 | AM8: 2 | AN8: 1 | AO8: 0 | AP8: 0 | AQ8: 2 | AR8: 1 | AS8: 0 | AT8: 2
E9: 1 | F9: 0.24 | G9: 0.1 | Q9: 0.24 | R9: 0.1 | W9: 1 | X9: 3 | Y9: 1 | Z9: 1 | AA9: 0 | AB9: 0 | AC9: 0 | AD9: 2 | AE9: 2 | AF9: 1 | AG9: 0 | AJ9: 0 | AK9: 2 | AL9: 2 | AM9: 4 | AN9: 0 | AO9: 1 | AP9: 1 | AQ9: 1 | AR9: 1 | AS9: 0 | AT9: 4
E10: 1.5 | F10: 0.4 | G10: 0.3 | Q10: 0.4 | R10: 0.3 | W10: 0 | X10: 0 | Y10: 1 | Z10: 0 | AA10: 0 | AB10: 0 | AC10: 1 | AD10: 1 | AE10: 2 | AF10: 0 | AG10: 0 | AJ10: 0 | AK10: 1 | AL10: 0 | AM10: 2 | AN10: 0 | AO10: 0 | AP10: 0 | AQ10: 0 | AR10: 0 | AS10: 0 | AT10: 1
E11: 2 | F11: 0.48 | G11: 0.4 | Q11: 0.48 | R11: 0.4 | S11: BTWList | W11: 1 | X11: 2 | Y11: 0 | Z11: 0 | AA11: 0 | AB11: 0 | AC11: 0 | AD11: 4 | AE11: 2 | AF11: 1 | AG11: 0 | AJ11: 0 | AK11: 1 | AL11: 0 | AM11: 0 | AN11: 0 | AO11: 0 | AP11: 0 | AQ11: 0 | AR11: 0 | AS11: 0 | AT11: 0
E12: 2.5 | F12: 0.52 | G12: 0.5 | Q12: 0.52 | R12: 0.5 | S12: None | W12: 13 | X12: 6 | Z12: 0 | AA12: 0 | AB12: 0 | AC12: 2 | AG12: 0 | AJ12: 6 | AK12: 2 | AM12: 0 | AN12: 0 | AO12: 0 | AP12: 1 | AT12: 0
E13: 3 | F13: 0.52 | G13: 0.5333333333 | Q13: 0.52 | R13: 0.5333333333 | S13: <100 | V13: Count | W13: 24 | X13: 24 | Y13: 24 | Z13: 24 | AA13: 24 | AB13: 24 | AC13: 24 | AD13: 24 | AE13: 24 | AF13: 24 | AG13: 24 | AI13: Count | AJ13: 12 | AK13: 12 | AL13: 12 | AM13: 12 | AN13: 12 | AO13: 12 | AP13: 12 | AQ13: 12 | AR13: 12 | AS13: 12 | AT13: 12
E14: 3.5 | F14: 0.56 | G14: 0.5333333333 | Q14: 0.56 | R14: 0.5333333333 | S14: 100+ | V14: Average | W14: 4.508616343 | X14: 0.9932605867 | Y14: 0.09084110901 | Z14: -0.06767760487 | AA14: -0.008278924168 | AB14: -0.01280049547 | AC14: 0.1223288588 | AD14: 0.7680110726 | AE14: 0.09410569224 | AF14: 0.0266137177 | AG14: 0.1112695175 | AI14: Average | AJ14: 4.686877451 | AK14: 0.8673384868 | AL14: 0.1043119345 | AM14: 0.1366584596 | AN14: 0.02502391433 | AO14: 0.02290359796 | AP14: 0.1831128084 | AQ14: 0.6565657601 | AR14: 0.07906222604 | AS14: 0.02410109524 | AT14: 0.2402709186
A15: BENCHMARK CATEGORY | E15: 4 | F15: 0.6 | G15: 0.5666666667 | Q15: 0.6 | R15: 0.5666666667 | V15: Non-ratio average | X15: 135825.2883 | AG15: 15215.75958 | AI15: Non-ratio average | AK15: 148927.4682 | AT15: 41256.02649
A16: Tillable Crop Acres: | B16: 750-1250 | E16: More | F16: 1 | G16: 1 | Q16: 1 | R16: 1 | S16: GTList
A17: =IF(B16="Less than 750", "Beef Cows:", IF(B16="All Farms","", "Head of Beef Cows:")) -> Head of Beef Cows: | B17: <100 | E17: Count | F17: =IF($T$6=$W$1,$W$13,IF($T$6=$W$17,$W$29,IF($T$6=$W$33,$W$45,IF($T$6=$W$49,$W$61,IF($T$6=$W$65,$W$77,IF($T$6=$W$81,$W$93,IF($T$6=$W$97,$W$109,IF($T$6=$W$113,$W$125,IF($T$6=$W$129,$W$141,IF($T$6=$W$145,$W$157,IF(T6=$W$161,$W$173,"N/A"))))))))))) -> 25 | G17: =IF($T$6=$W$1,$AJ$13,IF($T$6=$W$17,$AJ$29,IF($T$6=$W$33,$AJ$45,IF($T$6=$W$49,$AJ$61,IF($T$6=$W$65,$AJ$77,IF($T$6=$W$81,$AJ$93,IF($T$6=$W$97,$AJ$109,IF($T$6=$W$113,$AJ$125,IF($T$6=$W$129,$AJ$141,IF($T$6=$W$145,$AJ$157, IF($T$6=$W$161,$AJ$173,"N/A"))))))))))) -> 30 | Q17: =IF($T$6=$W$1,W3/$W$13,IF($T$6=$W$17,W19/$W$29,IF($T$6=$W$33,W35/$W$45,IF($T$6=$W$49,W51/$W$61,IF($T$6=$W$65,W67/$W$77,IF($T$6=$W$81,W83/$W$93,IF($T$6=$W$97,W99/$W$109,IF($T$6=$W$113,W115/$W$125,IF($T$6=$W$129,W131/$W$141,IF($T$6=$W$145,W147/$W$157,IF($T$6=$W$161,W163/$W$173,"N/A"))))))))))) -> 0 | R17: =IF($T$6=$W$1,AJ3/$AJ$13,IF($T$6=$W$17,AJ19/$AJ$29,IF($T$6=$W$33,AJ35/$AJ$45,IF($T$6=$W$49,AJ51/$AJ$61,IF($T$6=$W$65,AJ67/$AJ$77,IF($T$6=$W$81,AJ83/$AJ$93,IF($T$6=$W$97,AJ99/$AJ$109,IF($T$6=$W$113,AJ115/$AJ$125,IF($T$6=$W$129,AJ131/$AJ$141,IF($T$6=$W$145,AJ147/$AJ$157,IF($T$6=$W$161,AJ163/$AJ$173,"N/A"))))))))))) -> 0 | S17: None | W17: Less than 750Yes
A18: =IF(B16="Less than 750","",IF(B17="None", "Backgrounding or Finishing:","")) ->  | E18: Average | F18: =IF($T$6=$W$1,$W$14,IF($T$6=$W$17,$W$30,IF($T$6=$W$33,$W$46,IF($T$6=$W$49,$W$62,IF($T$6=$W$65,$W$78,IF($T$6=$W$81,$W$94,IF($T$6=$W$97,$W$110,IF($T$6=$W$113,$W$126,IF($T$6=$W$129,$W$142,IF($T$6=$W$145,$W$158, IF($T$6=$W$161,$W$174,"N/A"))))))))))) -> 2.252846134 | G18: =IF($T$6=$W$1,$AJ$14,IF($T$6=$W$17,$AJ$30,IF($T$6=$W$33,$AJ$46,IF($T$6=$W$49,$AJ$62,IF($T$6=$W$65,$AJ$78,IF($T$6=$W$81,$AJ$94,IF($T$6=$W$97,$AJ$110,IF($T$6=$W$113,$AJ$126,IF($T$6=$W$129,$AJ$142,IF($T$6=$W$145,$AJ$158, IF($T$6=$W$161,$AJ$174,"N/A"))))))))))) -> 2.789675255 | Q18: 0.12 | R18: 0.06666666667 | S18: <100 | W18: Current Ratio | X18: Working Capital Ratio | Y18: Debt to Asset Ratio | Z18: Operating Profit Margin | AA18: ROA | AB18: ROE | AC18: Asset Turnover | AD18: Operating Expense Ratio | AE18: Depr Expense Ratio | AF18: Interest Expense Ratio | AG18: NFI Ratio | AJ18: Current Ratio | AK18: Working Capital Ratio | AL18: Debt to Asset Ratio | AM18: Operating Profit Margin | AN18: ROA | AO18: ROE | AP18: Asset Turnover | AQ18: Operating Expense Ratio | AR18: Depr Expense Ratio | AS18: Interest Expense Ratio | AT18: NFI Ratio
Q19: 0.12 | R19: 0.03333333333 | S19: 100+ | W19: 0 | X19: 5 | Y19: 5 | Z19: 4 | AA19: 3 | AB19: 5 | AC19: 0 | AD19: 1 | AE19: 1 | AF19: 7 | AG19: 2 | AJ19: 0 | AK19: 1 | AL19: 2 | AM19: 0 | AN19: 2 | AO19: 6 | AP19: 0 | AQ19: 0 | AR19: 0 | AS19: 2 | AT19: 0
F20: =IF(B22=F18,"","Your Farm") ->  | G20: =IF(B22=F18,"",B22) ->  | Q20: 0.16 | R20: 0.2 | W20: 5 | X20: 1 | Y20: 9 | Z20: 1 | AA20: 2 | AB20: 5 | AC20: 13 | AD20: 0 | AE20: 5 | AF20: 8 | AG20: 1 | AJ20: 1 | AK20: 0 | AL20: 13 | AM20: 0 | AN20: 1 | AO20: 3 | AP20: 3 | AQ20: 2 | AR20: 2 | AS20: 17 | AT20: 0
A21: YOUR FARM VALUES* | Q21: 0.08 | R21: 0.1 | W21: 7 | X21: 6 | Y21: 7 | Z21: 5 | AA21: 11 | AB21: 15 | AC21: 11 | AD21: 7 | AE21: 11 | AF21: 6 | AG21: 2 | AJ21: 0 | AK21: 0 | AL21: 9 | AM21: 3 | AN21: 7 | AO21: 14 | AP21: 18 | AQ21: 9 | AR21: 13 | AS21: 9 | AT21: 0
A22: Current Ratio: | B22: =S37 -> 2.252846134 | Q22: 0.04 | R22: 0.1 | S22: None | W22: 3 | X22: 4 | Y22: 3 | Z22: 9 | AA22: 14 | AB22: 4 | AC22: 5 | AD22: 6 | AE22: 3 | AF22: 8 | AG22: 6 | AJ22: 3 | AK22: 4 | AL22: 4 | AM22: 4 | AN22: 19 | AO22: 11 | AP22: 9 | AQ22: 10 | AR22: 11 | AS22: 7 | AT22: 3
A23: Working Capital Ratio: | B23: 0.5110767646 | Q23: 0 | R23: 0.03333333333 | S23: Yes | W23: 1 | X23: 5 | Y23: 4 | Z23: 8 | AA23: 2 | AB23: 2 | AC23: 2 | AD23: 5 | AE23: 6 | AF23: 4 | AG23: 13 | AJ23: 4 | AK23: 11 | AL23: 5 | AM23: 14 | AN23: 6 | AO23: 2 | AP23: 4 | AQ23: 12 | AR23: 7 | AS23: 3 | AT23: 12
A24: Debt to Asset Ratio: | B24: 0.2121090438 | Q24: 0.04 | R24: 0 | S24: No | W24: 2 | X24: 7 | Y24: 1 | Z24: 3 | AA24: 3 | AB24: 1 | AC24: 2 | AD24: 9 | AE24: 5 | AF24: 0 | AG24: 5 | AJ24: 4 | AK24: 10 | AL24: 2 | AM24: 9 | AN24: 3 | AO24: 2 | AP24: 2 | AQ24: 4 | AR24: 4 | AS24: 1 | AT24: 14
A25: Operating Profit Margin | B25: -0.09157607764 | Q25: 0.04 | R25: 0.03333333333 | W25: 2 | X25: 2 | Y25: 2 | Z25: 4 | AA25: 0 | AB25: 1 | AC25: 0 | AD25: 4 | AE25: 2 | AF25: 2 | AG25: 6 | AJ25: 0 | AK25: 4 | AL25: 2 | AM25: 7 | AN25: 1 | AO25: 1 | AP25: 2 | AQ25: 2 | AR25: 1 | AS25: 0 | AT25: 9
A26: Rate of Return on Farm Assets | B26: -0.01490336168 | E26: Working Captial Ratio | Q26: 0.4 | R26: 0.4333333333 | W26: 1 | X26: 0 | Y26: 2 | Z26: 2 | AA26: 0 | AB26: 0 | AC26: 0 | AD26: 0 | AE26: 0 | AF26: 0 | AG26: 0 | AJ26: 2 | AK26: 4 | AL26: 1 | AM26: 2 | AN26: 0 | AO26: 0 | AP26: 0 | AQ26: 0 | AR26: 1 | AS26: 0 | AT26: 1
A27: Rate of Return on Farm Equity | B27: -0.02857200035 | F27: =U1 -> 2017 | G27: 10-Year | S27: Your Farm Line-Current Ratio | W27: 1 | X27: 0 | Y27: 3 | Z27: 0 | AA27: 0 | AB27: 0 | AC27: 2 | AD27: 4 | AE27: 3 | AF27: 1 | AG27: 1 | AJ27: 1 | AK27: 1 | AL27: 1 | AM27: 0 | AN27: 0 | AO27: 0 | AP27: 0 | AQ27: 0 | AR27: 0 | AS27: 0 | AT27: 0
A28: Asset Turnover Rate | B28: 0.1627429572 | E28: -0.5 | F28: =Q28 -> 0 | G28: =R28 -> 0.06666666667 | Q28: =Q38 -> 0 | R28: =R38 -> 0.06666666667 | S28: X's | T28: =IF(B22<4.5,B22,4.5) -> 2.252846134 | U28: =IF(B22<4.5,B22,4.5) -> 2.252846134 | W28: 14 | X28: 6 | Z28: 0 | AA28: 1 | AB28: 3 | AC28: 1 | AG28: 0 | AJ28: 24 | AK28: 4 | AM28: 0 | AN28: 0 | AO28: 0 | AP28: 1 | AT28: 0
A29: Operating Expense Ratio | B29: 0.7581098319 | E29: =E28+0.25 -> -0.25 | F29: =Q29 -> 0.16 | G29: =R29 -> 0.06666666667 | Q29: =Q28+Q39 -> 0.16 | R29: =R28+R39 -> 0.06666666667 | S29: Y's | T29: 0 | U29: 1 | V29: Count | W29: 36 | X29: 36 | Y29: 36 | Z29: 36 | AA29: 36 | AB29: 36 | AC29: 36 | AD29: 36 | AE29: 36 | AF29: 36 | AG29: 36 | AI29: Count | AJ29: 39 | AK29: 39 | AL29: 39 | AM29: 39 | AN29: 39 | AO29: 39 | AP29: 39 | AQ29: 39 | AR29: 39 | AS29: 39 | AT29: 39
A30: Depreciation Expense Ratio | B30: 0.1330154451 | E30: =E29+0.25 -> 0 | F30: 0.24 | G30: 0.1 | Q30: 0.24 | R30: 0.1 | S30: =IF(B22=F18,U1 &" Average","Your Farm") -> 2017 Average | V30: Average | W30: 2.289257846 | X30: 0.6409246745 | Y30: 0.1492124 | Z30: -0.1478949495 | AA30: -0.01462688886 | AB30: -0.02238961677 | AC30: 0.09890052982 | AD30: 0.7736440904 | AE30: 0.08410657731 | AF30: 0.06028768232 | AG30: 0.08196165001 | AI30: Average | AJ30: 4.760523548 | AK30: 0.7575086406 | AL30: 0.1418802919 | AM30: 0.04128876639 | AN30: 0.007482786542 | AO30: 0.0002965581488 | AP30: 0.181230567 | AQ30: 0.655100805 | AR30: 0.07461797701 | AS30: 0.03733640442 | AT30: 0.2329448136
A31: Interest Expense Ratio | B31: 0.05200444915 | E31: 0.25 | F31: 0.36 | G31: 0.2666666667 | Q31: 0.36 | R31: 0.2666666667 | S31: Your Farm Line-Working Capital Ratio | V31: Non-ratio average | X31: 109465.6347 | AG31: 13998.49997 | AI31: Non-ratio average | AK31: 146136.0025 | AT31: 44938.92484
A32: Net Farm Income Ratio: | B32: 0.05687027382 | E32: 0.5 | F32: 0.52 | G32: 0.5333333333 | Q32: 0.52 | R32: 0.5333333333 | S32: X's | T32: =IF(B23>1.75,1.75,B23) -> 0.5110767646 | U32: =IF(B23>1.75,1.75,B23) -> 0.5110767646
A33: *Defaults to Averages for 2017 if not entered | E33: 0.75 | F33: 0.64 | G33: 0.6333333333 | Q33: 0.64 | R33: 0.6333333333 | S33: Y's | T33: 0 | U33: 1 | W33: 750-1250NoneYes
E34: 1 | F34: 0.72 | G34: 0.7666666667 | Q34: 0.72 | R34: 0.7666666667 | S34: =IF(B23=F39,U1 &" Average","Your Farm") -> 2017 Average | W34: Current Ratio | X34: Working Capital Ratio | Y34: Debt to Asset Ratio | Z34: Operating Profit Margin | AA34: ROA | AB34: ROE | AC34: Asset Turnover | AD34: Operating Expense Ratio | AE34: Depr Expense Ratio | AF34: Interest Expense Ratio | AG34: NFI Ratio | AJ34: Current Ratio | AK34: Working Capital Ratio | AL34: Debt to Asset Ratio | AM34: Operating Profit Margin | AN34: ROA | AO34: ROE | AP34: Asset Turnover | AQ34: Operating Expense Ratio | AR34: Depr Expense Ratio | AS34: Interest Expense Ratio | AT34: NFI Ratio
E35: 1.25 | F35: 0.84 | G35: 0.8333333333 | Q35: 0.84 | R35: 0.8333333333 | W35: 0 | X35: 0 | Y35: 0 | Z35: 0 | AA35: 0 | AB35: 1 | AC35: 0 | AD35: 0 | AE35: 0 | AF35: 0 | AG35: 0 | AJ35: 0 | AK35: 0 | AL35: 0 | AM35: 0 | AN35: 0 | AO35: 1 | AP35: 0 | AQ35: 0 | AR35: 0 | AS35: 0 | AT35: 0
E36: 1.5 | F36: 0.92 | G36: 0.9333333333 | Q36: 0.92 | R36: 0.9333333333 | W36: 0 | X36: 0 | Y36: 0 | Z36: 0 | AA36: 0 | AB36: 1 | AC36: 1 | AD36: 0 | AE36: 2 | AF36: 2 | AG36: 0 | AJ36: 0 | AK36: 0 | AL36: 0 | AM36: 0 | AN36: 1 | AO36: 1 | AP36: 0 | AQ36: 0 | AR36: 1 | AS36: 3 | AT36: 0
E37: More | F37: 1 | G37: 1 | Q37: 1 | R37: 1 | S37: =$F$18 -> 2.252846134 | W37: 1 | X37: 1 | Y37: 1 | Z37: 1 | AA37: 2 | AB37: 1 | AC37: 2 | AD37: 0 | AE37: 0 | AF37: 2 | AG37: 1 | AJ37: 1 | AK37: 1 | AL37: 1 | AM37: 0 | AN37: 0 | AO37: 2 | AP37: 2 | AQ37: 0 | AR37: 1 | AS37: 2 | AT37: 0
E38: Count | F38: =F17 -> 25 | G38: =G17 -> 30 | Q38: =IF($T$6=$W$1,X3/$F$38,IF($T$6=$W$17,X19/$F$38,IF($T$6=$W$33,X35/$F$38,IF($T$6=$W$49,X51/$F$38,IF($T$6=$W$65,X67/$F$38,IF($T$6=$W$81,X83/$F$38,IF($T$6=$W$97,X99/$F$38,IF($T$6=$W$113,X115/$F$38,IF($T$6=$W$129,X131/$F$38,IF($T$6=$W$145,X147/$F$38,IF($T$6=$W$161,X163/$F$38,"N/A"))))))))))) -> 0 | R38: =IF($T$6=$W$1,AK3/$G$38,IF($T$6=$W$17,AK19/$G$38,IF($T$6=$W$33,AK35/$G$38,IF($T$6=$W$49,AK51/$G$38,IF($T$6=$W$65,AK67/$G$38,IF($T$6=$W$81,AK83/$G$38,IF($T$6=$W$97,AK99/$G$38,IF($T$6=$W$113,AK115/$G$38,IF($T$6=$W$129,AK131/$G$38,IF($T$6=$W$145,AK147/$G$38,IF($T$6=$W$161,AK163/$G$38,"N/A"))))))))))) -> 0.06666666667 | S38: =$F$39 -> 0.5110767646 | W38: 4 | X38: 2 | Y38: 0 | Z38: 1 | AA38: 1 | AB38: 0 | AC38: 2 | AD38: 2 | AE38: 2 | AF38: 1 | AG38: 1 | AJ38: 2 | AK38: 1 | AL38: 1 | AM38: 0 | AN38: 4 | AO38: 1 | AP38: 2 | AQ38: 1 | AR38: 2 | AS38: 1 | AT38: 0
E39: Average | F39: =IF($T$6=$W$1,$X$14,IF($T$6=$W$17,$X$30,IF($T$6=$W$33,$X$46,IF($T$6=$W$49,$X$62,IF($T$6=$W$65,$X$78,IF($T$6=$W$81,$X$94,IF($T$6=$W$97,$X$110,IF($T$6=$W$113,$X$126,IF($T$6=$W$129,$X$142,IF($T$6=$W$145,$X$158,IF($T$6=$W$161,$X$174,"N/A"))))))))))) -> 0.5110767646 | G39: =IF($T$6=$W$1,$AK$14,IF($T$6=$W$17,$AK$30,IF($T$6=$W$33,$AK$46,IF($T$6=$W$49,$AK$62,IF($T$6=$W$65,$AK$78,IF($T$6=$W$81,$AK$94,IF($T$6=$W$97,$AK$110,IF($T$6=$W$113,$AK$126,IF($T$6=$W$129,$AK$142,IF($T$6=$W$145,$AK$158,IF($T$6=$W$161,$AK$174,"N/A"))))))))))) -> 0.6603873086 | Q39: 0.16 | R39: 0 | S39: =$F$59 -> 0.2121090438 | W39: 1 | X39: 1 | Y39: 3 | Z39: 0 | AA39: 3 | AB39: 2 | AC39: 1 | AD39: 3 | AE39: 3 | AF39: 0 | AG39: 2 | AJ39: 2 | AK39: 3 | AL39: 1 | AM39: 3 | AN39: 1 | AO39: 2 | AP39: 0 | AQ39: 5 | AR39: 2 | AS39: 1 | AT39: 5
E40: Working Capital Avg. | Q40: 0.08 | R40: 0.03333333333 | S40: =$F$81 -> -0.09157607764 | W40: 0 | X40: 2 | Y40: 0 | Z40: 3 | AA40: 1 | AB40: 0 | AC40: 1 | AD40: 1 | AE40: 0 | AF40: 0 | AG40: 3 | AJ40: 1 | AK40: 2 | AL40: 2 | AM40: 3 | AN40: 1 | AO40: 0 | AP40: 2 | AQ40: 1 | AR40: 1 | AS40: 0 | AT40: 2
F41: =IF($T$6=$W$1,$X$15,IF($T$6=$W$17,$X$31,IF($T$6=$W$33,$X$47,IF($T$6=$W$49,$X$63,IF($T$6=$W$65,$X$79,IF($T$6=$W$81,$X$95,IF($T$6=$W$97,$X$111,IF($T$6=$W$113,$X$127,IF($T$6=$W$129,$X$143,IF($T$6=$W$145,$X$159,IF($T$6=$W$161,$X$175,"N/A"))))))))))) -> 169209.8128 | G41: =IF($T$6=$W$1,$AK$15,IF($T$6=$W$17,$AK$31,IF($T$6=$W$33,$AK$47,IF($T$6=$W$49,$AK$63,IF($T$6=$W$65,$AK$79,IF($T$6=$W$81,$AK$95,IF($T$6=$W$97,$AK$111,IF($T$6=$W$113,$AK$127,IF($T$6=$W$129,$AK$143,IF($T$6=$W$145,$AK$159,IF($T$6=$W$161,$AK$175,"N/A"))))))))))) -> 224948.9811 | Q41: 0.12 | R41: 0.1666666667 | S41: =$F$102 -> -0.01490336168 | W41: 0 | X41: 1 | Y41: 2 | Z41: 1 | AA41: 0 | AB41: 1 | AC41: 0 | AD41: 1 | AE41: 0 | AF41: 1 | AG41: 0 | AJ41: 0 | AK41: 0 | AL41: 1 | AM41: 0 | AN41: 0 | AO41: 0 | AP41: 0 | AQ41: 0 | AR41: 0 | AS41: 0 | AT41: 0
Q42: 0.16 | R42: 0.2666666667 | S42: =$F$123 -> -0.02857200035 | W42: 0 | X42: 0 | Y42: 0 | Z42: 0 | AA42: 0 | AB42: 0 | AC42: 0 | AD42: 0 | AE42: 0 | AF42: 0 | AG42: 0 | AJ42: 0 | AK42: 0 | AL42: 1 | AM42: 1 | AN42: 0 | AO42: 0 | AP42: 1 | AQ42: 0 | AR42: 0 | AS42: 0 | AT42: 0
F43: =IF(B23=F39,"","Your Farm") ->  | G43: =IF(B23=F39,"",B23) ->  | Q43: 0.12 | R43: 0.1 | S43: =$F$144 -> 0.1627429572 | W43: 0 | X43: 0 | Y43: 1 | Z43: 0 | AA43: 0 | AB43: 0 | AC43: 0 | AD43: 0 | AE43: 0 | AF43: 1 | AG43: 0 | AJ43: 0 | AK43: 0 | AL43: 0 | AM43: 0 | AN43: 0 | AO43: 0 | AP43: 0 | AQ43: 0 | AR43: 0 | AS43: 0 | AT43: 0
Q44: 0.08 | R44: 0.1333333333 | S44: =$F$164 -> 0.7581098319 | W44: 1 | X44: 0 | Z44: 1 | AA44: 0 | AB44: 1 | AC44: 0 | AG44: 0 | AJ44: 1 | AK44: 0 | AM44: 0 | AN44: 0 | AO44: 0 | AP44: 0 | AT44: 0
Q45: 0.12 | R45: 0.06666666667 | S45: =$F$185 -> 0.1330154451 | V45: Count | W45: 7 | X45: 7 | Y45: 7 | Z45: 7 | AA45: 7 | AB45: 7 | AC45: 7 | AD45: 7 | AE45: 7 | AF45: 7 | AG45: 7 | AI45: Count | AJ45: 7 | AK45: 7 | AL45: 7 | AM45: 7 | AN45: 7 | AO45: 7 | AP45: 7 | AQ45: 7 | AR45: 7 | AS45: 7 | AT45: 7
Q46: 0.08 | R46: 0.1 | S46: =$F$206 -> 0.05200444915 | V46: Average | W46: 1.297594999 | X46: 0.3611672957 | Y46: 0.4890438867 | Z46: 0.2102385692 | AA46: 0.04086212543 | AB46: 0.03409623945 | AC46: 0.1943607473 | AD46: 0.7356969216 | AE46: 0.04234417818 | AF46: 0.06564779042 | AG46: 0.1563111098 | AI46: Average | AJ46: 1.269504417 | AK46: 0.3055080848 | AL46: 0.4916651532 | AM46: 0.1072953718 | AN46: 0.02101150092 | AO46: 0.005862212247 | AP46: 0.1958285858 | AQ46: 0.7955140346 | AR46: 0.04418463397 | AS46: 0.05222397545 | AT46: 0.1080773559
E47: Debt to Asset Ratio | Q47: 0.08 | R47: 0.06666666667 | S47: =$F$228 -> 0.05687027382 | V47: Non-ratio average | X47: 329560.7 | AG47: 142631.9586 | AI47: Non-ratio average | AK47: 195763.9576 | AT47: 69253.98041
F48: =U1 -> 2017 | G48: 10-Year
E49: 0 | F49: =Q49 -> 0.16 | G49: =R49 -> 0.03333333333 | Q49: =Q58 -> 0.16 | R49: =R58 -> 0.03333333333 | S49: Your Farm Line-Debt to Asset | W49: 750-1250NoneNo
E50: 0.1 | F50: =Q50 -> 0.32 | G50: =R50 -> 0.2 | Q50: =Q49+Q59 -> 0.32 | R50: 0.2 | S50: X's | T50: =IF(B24>0.8,0.8,B24) -> 0.2121090438 | U50: =T50 -> 0.2121090438 | W50: Current Ratio | X50: Working Capital Ratio | Y50: Debt to Asset Ratio | Z50: Operating Profit Margin | AA50: ROA | AB50: ROE | AC50: Asset Turnover | AD50: Operating Expense Ratio | AE50: Depr Expense Ratio | AF50: Interest Expense Ratio | AG50: NFI Ratio | AJ50: Current Ratio | AK50: Working Capital Ratio | AL50: Debt to Asset Ratio | AM50: Operating Profit Margin | AN50: ROA | AO50: ROE | AP50: Asset Turnover | AQ50: Operating Expense Ratio | AR50: Depr Expense Ratio | AS50: Interest Expense Ratio | AT50: NFI Ratio
E51: 0.2 | F51: 0.48 | G51: 0.3666666667 | Q51: 0.48 | R51: 0.3666666667 | S51: Y's | T51: 0 | U51: 1 | W51: 0 | X51: 1 | Y51: 2 | Z51: 0 | AA51: 0 | AB51: 3 | AC51: 0 | AD51: 0 | AE51: 0 | AF51: 2 | AG51: 0 | AJ51: 0 | AK51: 0 | AL51: 0 | AM51: 0 | AN51: 0 | AO51: 1 | AP51: 0 | AQ51: 0 | AR51: 0 | AS51: 0 | AT51: 0
E52: 0.3 | F52: 0.56 | G52: 0.5333333333 | Q52: 0.56 | R52: 0.5333333333 | S52: =IF(B24=F59,U1 &" Average","Your Farm") -> 2017 Average | W52: 1 | X52: 0 | Y52: 6 | Z52: 0 | AA52: 3 | AB52: 6 | AC52: 3 | AD52: 0 | AE52: 1 | AF52: 7 | AG52: 0 | AJ52: 1 | AK52: 1 | AL52: 9 | AM52: 0 | AN52: 0 | AO52: 3 | AP52: 0 | AQ52: 1 | AR52: 2 | AS52: 12 | AT52: 0
E53: 0.4 | F53: 0.72 | G53: 0.7333333333 | Q53: 0.72 | R53: 0.7333333333 | W53: 2 | X53: 2 | Y53: 3 | Z53: 4 | AA53: 6 | AB53: 8 | AC53: 11 | AD53: 0 | AE53: 1 | AF53: 4 | AG53: 4 | AJ53: 1 | AK53: 1 | AL53: 4 | AM53: 0 | AN53: 3 | AO53: 5 | AP53: 8 | AQ53: 6 | AR53: 1 | AS53: 3 | AT53: 1
E54: 0.5 | F54: 0.88 | G54: 0.8333333333 | Q54: 0.88 | R54: 0.8333333333 | W54: 4 | X54: 4 | Y54: 3 | Z54: 6 | AA54: 9 | AB54: 1 | AC54: 1 | AD54: 1 | AE54: 5 | AF54: 2 | AG54: 2 | AJ54: 1 | AK54: 4 | AL54: 2 | AM54: 2 | AN54: 7 | AO54: 9 | AP54: 5 | AQ54: 6 | AR54: 5 | AS54: 3 | AT54: 0
E55: 0.6 | F55: 0.88 | G55: 0.9 | Q55: 0.88 | R55: 0.9 | W55: 0 | X55: 6 | Y55: 2 | Z55: 6 | AA55: 0 | AB55: 0 | AC55: 0 | AD55: 9 | AE55: 1 | AF55: 1 | AG55: 9 | AJ55: 1 | AK55: 5 | AL55: 1 | AM55: 4 | AN55: 9 | AO55: 2 | AP55: 5 | AQ55: 5 | AR55: 5 | AS55: 0 | AT55: 4
E56: 0.7 | F56: 0.92 | G56: 0.9333333333 | Q56: 0.92 | R56: 0.9333333333 | W56: 1 | X56: 1 | Y56: 0 | Z56: 1 | AA56: 0 | AB56: 0 | AC56: 1 | AD56: 4 | AE56: 4 | AF56: 2 | AG56: 3 | AJ56: 2 | AK56: 0 | AL56: 2 | AM56: 8 | AN56: 1 | AO56: 0 | AP56: 1 | AQ56: 1 | AR56: 5 | AS56: 1 | AT56: 10
E57: More | F57: =Q57 -> 1 | G57: 1 | Q57: 1 | R57: 1 | W57: 0 | X57: 0 | Y57: 1 | Z57: 1 | AA57: 0 | AB57: 0 | AC57: 2 | AD57: 2 | AE57: 2 | AF57: 0 | AG57: 0 | AJ57: 1 | AK57: 8 | AL57: 1 | AM57: 6 | AN57: 0 | AO57: 0 | AP57: 1 | AQ57: 1 | AR57: 1 | AS57: 1 | AT57: 5
E58: Count | F58: =F38 -> 25 | G58: =G38 -> 30 | Q58: =IF($T$6=$W$1,Y3/$F$58,IF($T$6=$W$17,Y19/$F$58,IF($T$6=$W$33,Y35/$F$58,IF($T$6=$W$49,Y51/$F$58,IF($T$6=$W$65,Y67/$F$58,IF($T$6=$W$81,Y83/$F$58,IF($T$6=$W$97,Y99/$F$58,IF($T$6=$W$113,Y115/$F$58,IF($T$6=$W$129,Y131/$F$58,IF($T$6=$W$145,Y147/$F$58,IF($T$6=$W$161,Y163/$F$58,"N/A"))))))))))) -> 0.16 | R58: =IF($T$6=$W$1,AL3/$G$38,IF($T$6=$W$17,AL19/$G$38,IF($T$6=$W$33,AL35/$G$38,IF($T$6=$W$49,AL51/$G$38,IF($T$6=$W$65,AL67/$G$38,IF($T$6=$W$81,AL83/$G$38,IF($T$6=$W$97,AL99/$G$38,IF($T$6=$W$113,AL115/$G$38,IF($T$6=$W$129,AL131/$G$38,IF($T$6=$W$145,AL147/$G$38,IF($T$6=$W$161,AL163/$G$38,"N/A"))))))))))) -> 0.03333333333 | W58: 2 | X58: 3 | Y58: 0 | Z58: 0 | AA58: 0 | AB58: 0 | AC58: 0 | AD58: 2 | AE58: 1 | AF58: 0 | AG58: 0 | AJ58: 1 | AK58: 0 | AL58: 1 | AM58: 0 | AN58: 0 | AO58: 0 | AP58: 0 | AQ58: 0 | AR58: 0 | AS58: 0 | AT58: 0
E59: Average | F59: =IF($T$6=$W$1,$Y$14,IF($T$6=$W$17,$Y$30,IF($T$6=$W$33,$Y$46,IF($T$6=$W$49,$Y$62,IF($T$6=$W$65,$Y$78,IF($T$6=$W$81,$Y$94,IF($T$6=$W$97,$Y$110,IF($T$6=$W$113,$Y$126,IF($T$6=$W$129,$Y$142,IF($T$6=$W$145,$Y$158,IF($T$6=$W$161,$Y$174,"N/A"))))))))))) -> 0.2121090438 | G59: =IF($T$6=$W$1,$AL$14,IF($T$6=$W$17,$AL$30,IF($T$6=$W$33,$AL$46,IF($T$6=$W$49,$AL$62,IF($T$6=$W$65,$AL$78,IF($T$6=$W$81,$AL$94,IF($T$6=$W$97,$AL$110,IF($T$6=$W$113,$AL$126,IF($T$6=$W$129,$AL$142,IF($T$6=$W$145,$AL$158,IF($T$6=$W$161,$AL$174,"N/A"))))))))))) -> 0.2720417494 | Q59: 0.16 | R59: 0.1666666667 | W59: 0 | X59: 0 | Y59: 1 | Z59: 0 | AA59: 0 | AB59: 0 | AC59: 0 | AD59: 0 | AE59: 3 | AF59: 0 | AG59: 0 | AJ59: 1 | AK59: 0 | AL59: 0 | AM59: 0 | AN59: 0 | AO59: 0 | AP59: 0 | AQ59: 0 | AR59: 1 | AS59: 0 | AT59: 0
Q60: 0.16 | R60: 0.1666666667 | W60: 8 | X60: 1 | Z60: 0 | AA60: 0 | AB60: 0 | AC60: 0 | AG60: 0 | AJ60: 11 | AK60: 1 | AM60: 0 | AN60: 0 | AO60: 0 | AP60: 0 | AT60: 0
Q61: 0.08 | R61: 0.1666666667 | V61: Count | W61: 18 | X61: 18 | Y61: 18 | Z61: 18 | AA61: 18 | AB61: 18 | AC61: 18 | AD61: 18 | AE61: 18 | AF61: 18 | AG61: 18 | AI61: Count | AJ61: 20 | AK61: 20 | AL61: 20 | AM61: 20 | AN61: 20 | AO61: 20 | AP61: 20 | AQ61: 20 | AR61: 20 | AS61: 20 | AT61: 20
Q62: 0.16 | R62: 0.2 | V62: Average | W62: 3.044163286 | X62: 0.4042676296 | Y62: 0.1288876722 | Z62: -0.128989352 | AA62: -0.01861945883 | AB62: -0.02844141142 | AC62: 0.1443488051 | AD62: 0.8023907399 | AE62: 0.1218593197 | AF62: 0.04087687429 | AG62: 0.03487306617 | AI62: Average | AJ62: 5.582232175 | AK62: 0.5952535111 | AL62: 0.1564461479 | AM62: 0.09585712856 | AN62: 0.02063614707 | AO62: 0.01486730704 | AP62: 0.2152802549 | AQ62: 0.6387245564 | AR62: 0.1049611222 | AS62: 0.03725727614 | AT62: 0.2190570453
F63: =IF(B24=F59,"","Your Farm") ->  | G63: =IF(B24=F59,"",B24) ->  | Q63: 0.16 | R63: 0.1 | V63: Non-ratio average | X63: 124458.0844 | AG63: 10736.04389 | AI63: Non-ratio average | AK63: 184075.1599 | AT63: 67740.81948
Q64: 0 | R64: 0.06666666667
Q65: 0.04 | R65: 0.03333333333 | W65: 750-1250<100
Q66: 0.08 | R66: 0.06666666667 | W66: Current Ratio | X66: Working Capital Ratio | Y66: Debt to Asset Ratio | Z66: Operating Profit Margin | AA66: ROA | AB66: ROE | AC66: Asset Turnover | AD66: Operating Expense Ratio | AE66: Depr Expense Ratio | AF66: Interest Expense Ratio | AG66: NFI Ratio | AJ66: Current Ratio | AK66: Working Capital Ratio | AL66: Debt to Asset Ratio | AM66: Operating Profit Margin | AN66: ROA | AO66: ROE | AP66: Asset Turnover | AQ66: Operating Expense Ratio | AR66: Depr Expense Ratio | AS66: Interest Expense Ratio | AT66: NFI Ratio
W67: 0 | X67: 0 | Y67: 4 | Z67: 0 | AA67: 2 | AB67: 3 | AC67: 0 | AD67: 0 | AE67: 0 | AF67: 3 | AG67: 0 | AJ67: 0 | AK67: 2 | AL67: 1 | AM67: 0 | AN67: 0 | AO67: 2 | AP67: 0 | AQ67: 0 | AR67: 0 | AS67: 1 | AT67: 0
E68: Operating Profit Margin Ratio | W68: 3 | X68: 4 | Y68: 4 | Z68: 3 | AA68: 3 | AB68: 7 | AC68: 3 | AD68: 0 | AE68: 1 | AF68: 7 | AG68: 0 | AJ68: 2 | AK68: 0 | AL68: 5 | AM68: 0 | AN68: 0 | AO68: 3 | AP68: 2 | AQ68: 0 | AR68: 2 | AS68: 11 | AT68: 0
F69: =U1 -> 2017 | G69: 10-Year | W69: 3 | X69: 2 | Y69: 4 | Z69: 3 | AA69: 10 | AB69: 9 | AC69: 11 | AD69: 3 | AE69: 5 | AF69: 4 | AG69: 4 | AJ69: 1 | AK69: 1 | AL69: 5 | AM69: 1 | AN69: 4 | AO69: 7 | AP69: 6 | AQ69: 6 | AR69: 10 | AS69: 10 | AT69: 1
E70: -0.6 | F70: =Q70 -> 0 | G70: =R70 -> 0 | Q70: =Q80 -> 0 | R70: =R80 -> 0 | W70: 4 | X70: 3 | Y70: 2 | Z70: 9 | AA70: 7 | AB70: 4 | AC70: 7 | AD70: 5 | AE70: 3 | AF70: 7 | AG70: 7 | AJ70: 6 | AK70: 5 | AL70: 5 | AM70: 1 | AN70: 10 | AO70: 13 | AP70: 10 | AQ70: 11 | AR70: 9 | AS70: 5 | AT70: 1
E71: -0.45 | F71: =Q71 -> 0.12 | G71: =R71 -> 0 | Q71: =Q70+Q81 -> 0.12 | R71: =R70+R81 -> 0 | S71: Your Farm Line-Operating Profit Margin Ratio | W71: 2 | X71: 4 | Y71: 4 | Z71: 3 | AA71: 2 | AB71: 1 | AC71: 0 | AD71: 3 | AE71: 5 | AF71: 2 | AG71: 9 | AJ71: 3 | AK71: 8 | AL71: 6 | AM71: 6 | AN71: 12 | AO71: 3 | AP71: 7 | AQ71: 6 | AR71: 8 | AS71: 1 | AT71: 9
E72: -0.3 | F72: 0.24 | G72: 0.03333333333 | Q72: 0.24 | R72: 0.03333333333 | S72: X's | T72: =IF(B25>0.75,0.75,B25) -> -0.09157607764 | U72: =T72 -> -0.09157607764 | W72: 1 | X72: 3 | Y72: 4 | Z72: 5 | AA72: 1 | AB72: 0 | AC72: 1 | AD72: 7 | AE72: 3 | AF72: 2 | AG72: 4 | AJ72: 3 | AK72: 3 | AL72: 3 | AM72: 15 | AN72: 3 | AO72: 2 | AP72: 2 | AQ72: 6 | AR72: 1 | AS72: 0 | AT72: 13
E73: -0.15 | F73: 0.6 | G73: 0.06666666667 | Q73: 0.6 | R73: 0.06666666667 | S73: Y's | T73: 0 | U73: 1 | W73: 0 | X73: 2 | Y73: 0 | Z73: 2 | AA73: 0 | AB73: 0 | AC73: 1 | AD73: 5 | AE73: 5 | AF73: 0 | AG73: 1 | AJ73: 1 | AK73: 4 | AL73: 2 | AM73: 6 | AN73: 1 | AO73: 0 | AP73: 0 | AQ73: 1 | AR73: 0 | AS73: 2 | AT73: 5
E74: 0 | F74: 0.72 | G74: 0.2666666667 | Q74: 0.72 | R74: 0.2666666667 | S74: =IF(B25=F81,U1 &" Average","Your Farm") -> 2017 Average | W74: 1 | X74: 3 | Y74: 1 | Z74: 0 | AA74: 0 | AB74: 0 | AC74: 0 | AD74: 2 | AE74: 1 | AF74: 0 | AG74: 0 | AJ74: 0 | AK74: 2 | AL74: 1 | AM74: 1 | AN74: 0 | AO74: 0 | AP74: 1 | AQ74: 0 | AR74: 0 | AS74: 0 | AT74: 1
E75: 0.15 | F75: 0.92 | G75: 0.7666666667 | Q75: 0.92 | R75: 0.7666666667 | W75: 1 | X75: 2 | Y75: 2 | Z75: 0 | AA75: 0 | AB75: 1 | AC75: 1 | AD75: 0 | AE75: 2 | AF75: 0 | AG75: 0 | AJ75: 1 | AK75: 3 | AL75: 2 | AM75: 0 | AN75: 0 | AO75: 0 | AP75: 0 | AQ75: 0 | AR75: 0 | AS75: 0 | AT75: 0
E76: 0.3 | F76: 1 | G76: 0.9666666667 | Q76: 1 | R76: 0.9666666667 | W76: 10 | X76: 2 | Z76: 0 | AA76: 0 | AB76: 0 | AC76: 1 | AG76: 0 | AJ76: 13 | AK76: 2 | AM76: 0 | AN76: 0 | AO76: 0 | AP76: 2 | AT76: 0
E77: 0.45 | F77: 1 | G77: 1 | Q77: 1 | R77: 1 | V77: Count | W77: 25 | X77: 25 | Y77: 25 | Z77: 25 | AA77: 25 | AB77: 25 | AC77: 25 | AD77: 25 | AE77: 25 | AF77: 25 | AG77: 25 | AI77: Count | AJ77: 30 | AK77: 30 | AL77: 30 | AM77: 30 | AN77: 30 | AO77: 30 | AP77: 30 | AQ77: 30 | AR77: 30 | AS77: 30 | AT77: 30
E78: 0.6 | F78: 1 | G78: 1 | Q78: 1 | R78: 1 | V78: Average | W78: 2.252846134 | X78: 0.5110767646 | Y78: 0.2121090438 | Z78: -0.09157607764 | AA78: -0.01490336168 | AB78: -0.02857200035 | AC78: 0.1627429572 | AD78: 0.7581098319 | AE78: 0.1330154451 | AF78: 0.05200444915 | AG78: 0.05687027382 | AI78: Average | AJ78: 2.789675255 | AK78: 0.6603873086 | AL78: 0.2720417494 | AM78: 0.09414156673 | AN78: 0.02333056734 | AO78: 0.01564805013 | AP78: 0.2478242944 | AQ78: 0.6876041863 | AR78: 0.07254873041 | AS78: 0.04310196183 | AT78: 0.1967451215
E79: More | F79: 1 | G79: 1 | Q79: 1 | R79: 1 | V79: Non-ratio average | X79: 169209.8128 | AG79: 18828.8904 | AI79: Non-ratio average | AK79: 224948.9811 | AT79: 67017.6638
E80: Count | F80: =F58 -> 25 | G80: =G58 -> 30 | Q80: =IF($T$6=$W$1,Z3/$F$80,IF($T$6=$W$17,Z19/$F$80,IF($T$6=$W$33,Z35/$F$80,IF($T$6=$W$49,Z51/$F$80,IF($T$6=$W$65,Z67/$F$80,IF($T$6=$W$81,Z83/$F$80,IF($T$6=$W$97,Z99/$F$80,IF($T$6=$W$113,Z115/$F$80,IF($T$6=$W$129,Z131/$F$80,IF($T$6=$W$145,Z147/$F$80,IF($T$6=$W$161,Z163/$F$80,"N/A"))))))))))) -> 0 | R80: =IF($T$6=$W$1,AM3/$G$38,IF($T$6=$W$17,AM19/$G$38,IF($T$6=$W$33,AM35/$G$38,IF($T$6=$W$49,AM51/$G$38,IF($T$6=$W$65,AM67/$G$38,IF($T$6=$W$81,AM83/$G$38,IF($T$6=$W$97,AM99/$G$38,IF($T$6=$W$113,AM115/$G$38,IF($T$6=$W$129,AM131/$G$38,IF($T$6=$W$145,AM147/$G$38,IF($T$6=$W$161,AM163/$G$38,"N/A"))))))))))) -> 0
E81: Average | F81: =IF($T$6=$W$1,$Z$14,IF($T$6=$W$17,$Z$30,IF($T$6=$W$33,$Z$46,IF($T$6=$W$49,$Z$62,IF($T$6=$W$65,$Z$78,IF($T$6=$W$81,$Z$94,IF($T$6=$W$97,$Z$110,IF($T$6=$W$113,$Z$126,IF($T$6=$W$129,$Z$142,IF($T$6=$W$145,$Z$158,IF($T$6=W161,Z174,"N/A"))))))))))) -> -0.09157607764 | G81: =IF($T$6=$W$1,$AM$14,IF($T$6=$W$17,$AM$30,IF($T$6=$W$33,$AM$46,IF($T$6=$W$49,$AM$62,IF($T$6=$W$65,$AM$78,IF($T$6=$W$81,$AM$94,IF($T$6=$W$97,$AM$110,IF($T$6=$W$113,$AM$126,IF($T$6=$W$129,$AM$142,IF($T$6=$W$145,$AM$158,IF($T$6=$W$161,$AM$174,"N/A"))))))))))) -> 0.09414156673 | Q81: 0.12 | R81: 0 | W81: 750-1250100+
Q82: 0.12 | R82: 0.03333333333 | W82: Current Ratio | X82: Working Capital Ratio | Y82: Debt to Asset Ratio | Z82: Operating Profit Margin | AA82: ROA | AB82: ROE | AC82: Asset Turnover | AD82: Operating Expense Ratio | AE82: Depr Expense Ratio | AF82: Interest Expense Ratio | AG82: NFI Ratio | AJ82: Current Ratio | AK82: Working Capital Ratio | AL82: Debt to Asset Ratio | AM82: Operating Profit Margin | AN82: ROA | AO82: ROE | AP82: Asset Turnover | AQ82: Operating Expense Ratio | AR82: Depr Expense Ratio | AS82: Interest Expense Ratio | AT82: NFI Ratio
Q83: 0.36 | R83: 0.03333333333 | W83: 0 | X83: 0 | Y83: 2 | Z83: 0 | AA83: 0 | AB83: 4 | AC83: 0 | AD83: 0 | AE83: 0 | AF83: 3 | AG83: 0 | AJ83: 0 | AK83: 0 | AL83: 1 | AM83: 0 | AN83: 0 | AO83: 0 | AP83: 0 | AQ83: 0 | AR83: 0 | AS83: 1 | AT83: 0
Q84: 0.12 | R84: 0.2 | W84: 0 | X84: 0 | Y84: 4 | Z84: 1 | AA84: 2 | AB84: 2 | AC84: 3 | AD84: 0 | AE84: 2 | AF84: 5 | AG84: 1 | AJ84: 0 | AK84: 0 | AL84: 1 | AM84: 0 | AN84: 0 | AO84: 0 | AP84: 0 | AQ84: 0 | AR84: 2 | AS84: 5 | AT84: 0
F85: =IF(B25=F81,"","Your Farm") ->  | G85: =IF(B25=F81,"",B25) ->  | Q85: 0.2 | R85: 0.5 | W85: 2 | X85: 2 | Y85: 3 | Z85: 1 | AA85: 6 | AB85: 9 | AC85: 9 | AD85: 0 | AE85: 2 | AF85: 2 | AG85: 1 | AJ85: 0 | AK85: 0 | AL85: 4 | AM85: 0 | AN85: 0 | AO85: 7 | AP85: 4 | AQ85: 2 | AR85: 2 | AS85: 7 | AT85: 0
Q86: 0.08 | R86: 0.2 | W86: 3 | X86: 1 | Y86: 3 | Z86: 6 | AA86: 8 | AB86: 3 | AC86: 4 | AD86: 4 | AE86: 5 | AF86: 5 | AG86: 5 | AJ86: 3 | AK86: 3 | AL86: 6 | AM86: 0 | AN86: 10 | AO86: 8 | AP86: 9 | AQ86: 7 | AR86: 7 | AS86: 4 | AT86: 1
Q87: 0 | R87: 0.03333333333 | W87: 3 | X87: 5 | Y87: 4 | Z87: 6 | AA87: 2 | AB87: 0 | AC87: 1 | AD87: 5 | AE87: 5 | AF87: 1 | AG87: 7 | AJ87: 0 | AK87: 3 | AL87: 5 | AM87: 5 | AN87: 6 | AO87: 2 | AP87: 3 | AQ87: 7 | AR87: 4 | AS87: 1 | AT87: 5
Q88: 0 | R88: 0 | W88: 0 | X88: 4 | Y88: 0 | Z88: 4 | AA88: 0 | AB88: 0 | AC88: 1 | AD88: 6 | AE88: 2 | AF88: 0 | AG88: 3 | AJ88: 1 | AK88: 8 | AL88: 0 | AM88: 10 | AN88: 2 | AO88: 1 | AP88: 1 | AQ88: 2 | AR88: 3 | AS88: 0 | AT88: 11
E89: Rate of Return on Farm Assets | Q89: 0 | R89: 0 | W89: 0 | X89: 2 | Y89: 1 | Z89: 0 | AA89: 0 | AB89: 0 | AC89: 0 | AD89: 1 | AE89: 1 | AF89: 0 | AG89: 1 | AJ89: 4 | AK89: 3 | AL89: 1 | AM89: 3 | AN89: 0 | AO89: 0 | AP89: 0 | AQ89: 0 | AR89: 0 | AS89: 0 | AT89: 1
F90: =U1 -> 2017 | G90: 10-Year | W90: 0 | X90: 1 | Y90: 1 | Z90: 0 | AA90: 0 | AB90: 0 | AC90: 0 | AD90: 1 | AE90: 0 | AF90: 0 | AG90: 0 | AJ90: 2 | AK90: 1 | AL90: 0 | AM90: 0 | AN90: 0 | AO90: 0 | AP90: 0 | AQ90: 0 | AR90: 0 | AS90: 0 | AT90: 0
E91: -0.1 | F91: =Q91 -> 0.08 | G91: =R91 -> 0 | Q91: =Q101 -> 0.08 | R91: =R101 -> 0 | W91: 1 | X91: 1 | Y91: 0 | Z91: 0 | AA91: 0 | AB91: 0 | AC91: 0 | AD91: 1 | AE91: 1 | AF91: 2 | AG91: 0 | AJ91: 1 | AK91: 0 | AL91: 0 | AM91: 0 | AN91: 0 | AO91: 0 | AP91: 0 | AQ91: 0 | AR91: 0 | AS91: 0 | AT91: 0
E92: -0.06 | F92: =Q92 -> 0.2 | G92: =R92 -> 0 | Q92: =Q91+Q102 -> 0.2 | R92: =R91+R102 -> 0 | W92: 9 | X92: 2 | Z92: 0 | AA92: 0 | AB92: 0 | AC92: 0 | AG92: 0 | AJ92: 7 | AK92: 0 | AM92: 0 | AN92: 0 | AO92: 0 | AP92: 1 | AT92: 0
E93: -0.02 | F93: 0.6 | G93: 0.1333333333 | Q93: 0.6 | R93: 0.1333333333 | S93: Your Farm Line-Return on Assets | V93: Count | W93: 18 | X93: 18 | Y93: 18 | Z93: 18 | AA93: 18 | AB93: 18 | AC93: 18 | AD93: 18 | AE93: 18 | AF93: 18 | AG93: 18 | AI93: Count | AJ93: 18 | AK93: 18 | AL93: 18 | AM93: 18 | AN93: 18 | AO93: 18 | AP93: 18 | AQ93: 18 | AR93: 18 | AS93: 18 | AT93: 18
E94: 0.02 | F94: 0.88 | G94: 0.4666666667 | Q94: 0.88 | R94: 0.4666666667 | S94: X's | T94: =IF(B26>0.24,0.24,B26) -> -0.01490336168 | U94: =T94 -> -0.01490336168 | V94: Average | W94: 2.858304704 | X94: 0.6630123798 | Y94: 0.2194638231 | Z94: -0.1155946305 | AA94: -0.01630880209 | AB94: -0.03324591977 | AC94: 0.1410861562 | AD94: 0.8137264285 | AE94: 0.09319500526 | AF94: 0.06144557803 | AG94: 0.03163298826 | AI94: Average | AJ94: 2.855067676 | AK94: 0.5405901756 | AL94: 0.2545444687 | AM94: 0.08520584959 | AN94: 0.01983990289 | AO94: 0.01260999874 | AP94: 0.2328467234 | AQ94: 0.697612396 | AR94: 0.08371811626 | AS94: 0.04157914898 | AT94: 0.1770903388
E95: 0.06 | F95: 0.96 | G95: 0.8666666667 | Q95: 0.96 | R95: 0.8666666667 | S95: Y's | T95: 0 | U95: 1 | V95: Non-ratio average | X95: 247610.0539 | AG95: 11813.725 | AI95: Non-ratio average | AK95: 237558.6067 | AT95: 77821.12225
E96: 0.1 | F96: 1 | G96: 0.9666666667 | Q96: 1 | R96: 0.9666666667 | S96: =IF(B26=F102,U1 &" Average","Your Farm") -> 2017 Average
E97: 0.14 | F97: 1 | G97: 1 | Q97: 1 | R97: 1 | W97: Greater than 1250NoneYes
E98: 0.18 | F98: 1 | G98: 1 | Q98: 1 | R98: 1 | W98: Current Ratio | X98: Working Capital Ratio | Y98: Debt to Asset Ratio | Z98: Operating Profit Margin | AA98: ROA | AB98: ROE | AC98: Asset Turnover | AD98: Operating Expense Ratio | AE98: Depr Expense Ratio | AF98: Interest Expense Ratio | AG98: NFI Ratio | AJ98: Current Ratio | AK98: Working Capital Ratio | AL98: Debt to Asset Ratio | AM98: Operating Profit Margin | AN98: ROA | AO98: ROE | AP98: Asset Turnover | AQ98: Operating Expense Ratio | AR98: Depr Expense Ratio | AS98: Interest Expense Ratio | AT98: NFI Ratio
E99: 0.22 | F99: 1 | G99: 1 | Q99: 1 | R99: 1 | W99: 0 | X99: 1 | Y99: 0 | Z99: 0 | AA99: 0 | AB99: 1 | AC99: 0 | AD99: 0 | AE99: 0 | AF99: 0 | AG99: 0 | AJ99: 0 | AK99: 0 | AL99: 0 | AM99: 0 | AN99: 0 | AO99: 0 | AP99: 0 | AQ99: 0 | AR99: 0 | AS99: 0 | AT99: 0
E100: More | F100: =Q100 -> 1 | G100: =R100 -> 1 | Q100: 1 | R100: 1 | W100: 1 | X100: 0 | Y100: 1 | Z100: 0 | AA100: 0 | AB100: 4 | AC100: 0 | AD100: 0 | AE100: 0 | AF100: 2 | AG100: 0 | AJ100: 0 | AK100: 0 | AL100: 0 | AM100: 0 | AN100: 0 | AO100: 0 | AP100: 0 | AQ100: 0 | AR100: 0 | AS100: 5 | AT100: 0
E101: Count | F101: =F80 -> 25 | G101: =G80 -> 30 | Q101: =IF($T$6=$W$1,AA3/$F$101,IF($T$6=$W$17,AA19/$F$101,IF($T$6=$W$33,AA35/$F$101,IF($T$6=$W$49,AA51/$F$101,IF($T$6=$W$65,AA67/$F$101,IF($T$6=$W$81,AA83/$F$101,IF($T$6=$W$97,AA99/$F$101,IF($T$6=$W$113,AA115/$F$101,IF($T$6=$W$129,AA131/$F$101,IF($T$6=$W$145,AA147/$F$101,IF($T$6=$W$161,AA163/$F$101,"N/A"))))))))))) -> 0.08 | R101: =IF($T$6=$W$1,AN3/$G$38,IF($T$6=$W$17,AN19/$G$38,IF($T$6=$W$33,AN35/$G$38,IF($T$6=$W$49,AN51/$G$38,IF($T$6=$W$65,AN67/$G$38,IF($T$6=$W$81,AN83/$G$38,IF($T$6=$W$97,AN99/$G$38,IF($T$6=$W$113,AN115/$G$38,IF($T$6=$W$129,AN131/$G$38,IF($T$6=$W$145,AN147/$G$38,IF($T$6=$W$161,AN163/$G$38,"N/A"))))))))))) -> 0 | W101: 1 | X101: 1 | Y101: 2 | Z101: 0 | AA101: 4 | AB101: 2 | AC101: 7 | AD101: 1 | AE101: 2 | AF101: 7 | AG101: 2 | AJ101: 1 | AK101: 1 | AL101: 1 | AM101: 0 | AN101: 0 | AO101: 2 | AP101: 2 | AQ101: 0 | AR101: 2 | AS101: 3 | AT101: 0
E102: Average | F102: =IF($T$6=$W$1,$AA$14,IF($T$6=$W$17,$AA$30,IF($T$6=$W$33,$AA$46,IF($T$6=$W$49,$AA$62,IF($T$6=$W$65,$AA$78,IF($T$6=$W$81,$AA$94,IF($T$6=$W$97,$AA$110,IF($T$6=$W$113,$AA$126,IF($T$6=$W$129,$AA$142,IF($T$6=$W$145,$AA$158,IF($T$6=$W$161,AA174,"N/A"))))))))))) -> -0.01490336168 | G102: =IF($T$6=$W$1,$AN$14,IF($T$6=$W$17,$AN$30,IF($T$6=$W$33,$AN$46,IF($T$6=$W$49,$AN$62,IF($T$6=$W$65,$AN$78,IF($T$6=$W$81,$AN$94,IF($T$6=$W$97,$AN$110,IF($T$6=$W$113,$AN$126,IF($T$6=$W$129,$AN$142,IF($T$6=$W$145,$AN$158,IF($T$6=$W$161,$AN$174,"N/A"))))))))))) -> 0.02333056734 | Q102: 0.12 | R102: 0 | W102: 6 | X102: 4 | Y102: 2 | Z102: 3 | AA102: 5 | AB102: 2 | AC102: 1 | AD102: 1 | AE102: 2 | AF102: 0 | AG102: 3 | AJ102: 2 | AK102: 2 | AL102: 4 | AM102: 0 | AN102: 2 | AO102: 1 | AP102: 3 | AQ102: 3 | AR102: 2 | AS102: 1 | AT102: 0
Q103: 0.4 | R103: 0.1333333333 | W103: 1 | X103: 2 | Y103: 1 | Z103: 3 | AA103: 1 | AB103: 1 | AC103: 2 | AD103: 3 | AE103: 1 | AF103: 2 | AG103: 4 | AJ103: 2 | AK103: 2 | AL103: 1 | AM103: 0 | AN103: 6 | AO103: 5 | AP103: 2 | AQ103: 5 | AR103: 1 | AS103: 0 | AT103: 5
Q104: 0.28 | R104: 0.3333333333 | W104: 1 | X104: 1 | Y104: 3 | Z104: 3 | AA104: 1 | AB104: 1 | AC104: 1 | AD104: 4 | AE104: 3 | AF104: 0 | AG104: 2 | AJ104: 1 | AK104: 2 | AL104: 1 | AM104: 4 | AN104: 0 | AO104: 1 | AP104: 1 | AQ104: 1 | AR104: 3 | AS104: 0 | AT104: 4
Q105: 0.08 | R105: 0.4 | W105: 0 | X105: 1 | Y105: 1 | Z105: 2 | AA105: 0 | AB105: 0 | AC105: 0 | AD105: 2 | AE105: 2 | AF105: 0 | AG105: 0 | AJ105: 2 | AK105: 1 | AL105: 2 | AM105: 5 | AN105: 1 | AO105: 0 | AP105: 0 | AQ105: 0 | AR105: 1 | AS105: 0 | AT105: 0
F106: =IF(B26=F102,"","Your Farm") ->  | G106: =IF(B26=F102,"",B26) ->  | Q106: 0.04 | R106: 0.1 | W106: 0 | X106: 0 | Y106: 0 | Z106: 0 | AA106: 0 | AB106: 0 | AC106: 0 | AD106: 0 | AE106: 0 | AF106: 0 | AG106: 0 | AJ106: 0 | AK106: 1 | AL106: 0 | AM106: 0 | AN106: 0 | AO106: 0 | AP106: 0 | AQ106: 0 | AR106: 0 | AS106: 0 | AT106: 0
Q107: 0 | R107: 0.03333333333 | W107: 0 | X107: 1 | Y107: 1 | Z107: 0 | AA107: 0 | AB107: 0 | AC107: 0 | AD107: 0 | AE107: 1 | AF107: 0 | AG107: 0 | AJ107: 0 | AK107: 0 | AL107: 0 | AM107: 0 | AN107: 0 | AO107: 0 | AP107: 1 | AQ107: 0 | AR107: 0 | AS107: 0 | AT107: 0
Q108: 0 | R108: 0 | W108: 1 | X108: 0 | Z108: 0 | AA108: 0 | AB108: 0 | AC108: 0 | AG108: 0 | AJ108: 1 | AK108: 0 | AM108: 0 | AN108: 0 | AO108: 0 | AP108: 0 | AT108: 0
Q109: 0 | R109: 0 | V109: Count | W109: 11 | X109: 11 | Y109: 11 | Z109: 11 | AA109: 11 | AB109: 11 | AC109: 11 | AD109: 11 | AE109: 11 | AF109: 11 | AG109: 11 | AI109: Count | AJ109: 9 | AK109: 9 | AL109: 9 | AM109: 9 | AN109: 9 | AO109: 9 | AP109: 9 | AQ109: 9 | AR109: 9 | AS109: 9 | AT109: 9
E110: Rate of Return on Farm Equity | Q110: 0 | R110: 0 | V110: Average | W110: 1.31624291 | X110: 0.3407887504 | Y110: 0.3256216029 | Z110: 0.05225559208 | AA110: 0.009494329451 | AB110: -0.002025432842 | AC110: 0.1816902091 | AD110: 0.7913040401 | AE110: 0.08858256644 | AF110: 0.04580287283 | AG110: 0.07431052063 | AI110: Average | AJ110: 1.793500349 | AK110: 0.4747823446 | AL110: 0.3301911493 | AM110: 0.1581916214 | AN110: 0.04533747843 | AO110: 0.05003227103 | AP110: 0.2865984812 | AQ110: 0.7236269277 | AR110: 0.09242272616 | AS110: 0.0347542219 | AT110: 0.1491961243
F111: =U1 -> 2017 | G111: 10-Year | V111: Non-ratio average | X111: 401356.5455 | AG111: 87517.60091 | AI111: Non-ratio average | AK111: 592125.4975 | AT111: 186070.1652
E112: -0.1 | F112: =Q112 -> 0.12 | G112: =R112 -> 0.06666666667 | Q112: =Q122 -> 0.12 | R112: =R122 -> 0.06666666667
E113: -0.05 | F113: =Q113 -> 0.4 | G113: =R113 -> 0.1666666667 | Q113: =Q112+Q123 -> 0.4 | R113: =R112+R123 -> 0.1666666667 | W113: Greater than 1250NoneNo
E114: 0 | F114: 0.76 | G114: 0.4 | Q114: 0.76 | R114: 0.4 | W114: Current Ratio | X114: Working Capital Ratio | Y114: Debt to Asset Ratio | Z114: Operating Profit Margin | AA114: ROA | AB114: ROE | AC114: Asset Turnover | AD114: Operating Expense Ratio | AE114: Depr Expense Ratio | AF114: Interest Expense Ratio | AG114: NFI Ratio | AJ114: Current Ratio | AK114: Working Capital Ratio | AL114: Debt to Asset Ratio | AM114: Operating Profit Margin | AN114: ROA | AO114: ROE | AP114: Asset Turnover | AQ114: Operating Expense Ratio | AR114: Depr Expense Ratio | AS114: Interest Expense Ratio | AT114: NFI Ratio
E115: 0.05 | F115: 0.92 | G115: 0.8333333333 | Q115: 0.92 | R115: 0.8333333333 | S115: Your Farm Line-Return on Equity | W115: 0 | X115: 2 | Y115: 1 | Z115: 1 | AA115: 4 | AB115: 5 | AC115: 0 | AD115: 0 | AE115: 0 | AF115: 4 | AG115: 1 | AJ115: 0 | AK115: 1 | AL115: 1 | AM115: 0 | AN115: 0 | AO115: 0 | AP115: 0 | AQ115: 0 | AR115: 0 | AS115: 0 | AT115: 0
E116: 0.1 | F116: 0.96 | G116: 0.9333333333 | Q116: 0.96 | R116: 0.9333333333 | S116: X's | T116: =IF(B27>0.35,0.35,B27) -> -0.02857200035 | U116: =T116 -> -0.02857200035 | W116: 4 | X116: 2 | Y116: 9 | Z116: 1 | AA116: 2 | AB116: 4 | AC116: 1 | AD116: 1 | AE116: 0 | AF116: 10 | AG116: 1 | AJ116: 2 | AK116: 0 | AL116: 6 | AM116: 0 | AN116: 0 | AO116: 0 | AP116: 0 | AQ116: 0 | AR116: 0 | AS116: 13 | AT116: 0
E117: 0.15 | F117: 0.96 | G117: 1 | Q117: 0.96 | R117: 1 | S117: Y's | T117: 0 | U117: 1 | W117: 4 | X117: 4 | Y117: 7 | Z117: 1 | AA117: 5 | AB117: 10 | AC117: 11 | AD117: 3 | AE117: 4 | AF117: 8 | AG117: 1 | AJ117: 2 | AK117: 3 | AL117: 6 | AM117: 0 | AN117: 0 | AO117: 2 | AP117: 2 | AQ117: 5 | AR117: 2 | AS117: 8 | AT117: 0
E118: 0.2 | F118: 0.96 | G118: 1 | Q118: 0.96 | R118: 1 | S118: =IF(B27=F123,U1 &" Average","Your Farm") -> 2017 Average | W118: 3 | X118: 3 | Y118: 2 | Z118: 5 | AA118: 12 | AB118: 7 | AC118: 4 | AD118: 4 | AE118: 4 | AF118: 3 | AG118: 7 | AJ118: 0 | AK118: 2 | AL118: 5 | AM118: 0 | AN118: 4 | AO118: 11 | AP118: 7 | AQ118: 12 | AR118: 9 | AS118: 1 | AT118: 0
E119: 0.25 | F119: 0.96 | G119: 1 | Q119: 0.96 | R119: 1 | W119: 1 | X119: 3 | Y119: 4 | Z119: 11 | AA119: 4 | AB119: 0 | AC119: 4 | AD119: 8 | AE119: 4 | AF119: 3 | AG119: 9 | AJ119: 3 | AK119: 5 | AL119: 2 | AM119: 1 | AN119: 10 | AO119: 9 | AP119: 6 | AQ119: 5 | AR119: 6 | AS119: 1 | AT119: 2
E120: 0.3 | F120: 1 | G120: 1 | Q120: 1 | R120: 1 | W120: 2 | X120: 4 | Y120: 1 | Z120: 7 | AA120: 0 | AB120: 0 | AC120: 5 | AD120: 5 | AE120: 7 | AF120: 0 | AG120: 7 | AJ120: 0 | AK120: 4 | AL120: 1 | AM120: 15 | AN120: 8 | AO120: 0 | AP120: 0 | AQ120: 1 | AR120: 4 | AS120: 0 | AT120: 17
E121: More | F121: 1 | G121: 1 | Q121: 1 | R121: 1 | W121: 0 | X121: 3 | Y121: 0 | Z121: 2 | AA121: 1 | AB121: 1 | AC121: 1 | AD121: 3 | AE121: 4 | AF121: 0 | AG121: 2 | AJ121: 1 | AK121: 4 | AL121: 1 | AM121: 7 | AN121: 1 | AO121: 1 | AP121: 5 | AQ121: 0 | AR121: 2 | AS121: 0 | AT121: 4
E122: Count | F122: =F101 -> 25 | G122: =G101 -> 30 | Q122: =IF($T$6=$W$1,AB3/$F$122,IF($T$6=$W$17,AB19/$F$122,IF($T$6=$W$33,AB35/$F$122,IF($T$6=$W$49,AB51/$F$122,IF($T$6=$W$65,AB67/$F$122,IF($T$6=$W$81,AB83/$F$122,IF($T$6=$W$97,AB99/$F$122,IF($T$6=$W$113,AB115/$F$122,IF($T$6=$W$129,AB131/$F$122,IF($T$6=$W$145,AB147/$F$122,IF($T$6=$W$161,AB163/$F$122,"N/A"))))))))))) -> 0.12 | R122: =IF($T$6=$W$1,AO3/$G$38,IF($T$6=$W$17,AO19/$G$38,IF($T$6=$W$33,AO35/$G$38,IF($T$6=$W$49,AO51/$G$38,IF($T$6=$W$65,AO67/$G$38,IF($T$6=$W$81,AO83/$G$38,IF($T$6=$W$97,AO99/$G$38,IF($T$6=$W$113,AO115/$G$38,IF($T$6=$W$129,AO131/$G$38,IF($T$6=$W$145,AO147/$G$38,IF($T$6=$W$161,AO163/$G$38,"N/A"))))))))))) -> 0.06666666667 | W122: 1 | X122: 3 | Y122: 2 | Z122: 0 | AA122: 0 | AB122: 1 | AC122: 1 | AD122: 2 | AE122: 2 | AF122: 0 | AG122: 0 | AJ122: 4 | AK122: 2 | AL122: 0 | AM122: 0 | AN122: 0 | AO122: 0 | AP122: 2 | AQ122: 0 | AR122: 0 | AS122: 0 | AT122: 0
E123: Average | F123: =IF($T$6=$W$1,$AB$14,IF($T$6=$W$17,$AB$30,IF($T$6=$W$33,$AB$46,IF($T$6=$W$49,$AB$62,IF($T$6=$W$65,$AB$78,IF($T$6=$W$81,$AB$94,IF($T$6=$W$97,$AB$110,IF($T$6=$W$113,$AB$126,IF($T$6=$W$129,$AB$142,IF($T$6=$W$145,$AB$158,IF($T$6=W161,AB174,"N/A"))))))))))) -> -0.02857200035 | G123: =IF($T$6=$W$1,$AO$14,IF($T$6=$W$17,$AO$30,IF($T$6=$W$33,$AO$46,IF($T$6=$W$49,$AO$62,IF($T$6=$W$65,$AO$78,IF($T$6=$W$81,$AO$94,IF($T$6=$W$97,$AO$110,IF($T$6=$W$113,$AO$126,IF($T$6=$W$129,$AO$142,IF($T$6=$W$145,$AO$158,IF($T$6=$W$161,$AO$174,"N/A"))))))))))) -> 0.01564805013 | Q123: 0.28 | R123: 0.1 | W123: 0 | X123: 2 | Y123: 2 | Z123: 0 | AA123: 0 | AB123: 0 | AC123: 0 | AD123: 2 | AE123: 3 | AF123: 0 | AG123: 0 | AJ123: 0 | AK123: 1 | AL123: 1 | AM123: 0 | AN123: 0 | AO123: 0 | AP123: 1 | AQ123: 0 | AR123: 0 | AS123: 0 | AT123: 0
Q124: 0.36 | R124: 0.2333333333 | W124: 13 | X124: 2 | Z124: 0 | AA124: 0 | AB124: 0 | AC124: 1 | AG124: 0 | AJ124: 11 | AK124: 1 | AM124: 0 | AN124: 0 | AO124: 0 | AP124: 0 | AT124: 0
Q125: 0.16 | R125: 0.4333333333 | V125: Count | W125: 28 | X125: 28 | Y125: 28 | Z125: 28 | AA125: 28 | AB125: 28 | AC125: 28 | AD125: 28 | AE125: 28 | AF125: 28 | AG125: 28 | AI125: Count | AJ125: 23 | AK125: 23 | AL125: 23 | AM125: 23 | AN125: 23 | AO125: 23 | AP125: 23 | AQ125: 23 | AR125: 23 | AS125: 23 | AT125: 23
Q126: 0.04 | R126: 0.1 | V126: Average | W126: 2.726019907 | X126: 0.4880071072 | Y126: 0.1878817865 | Z126: -0.09704467485 | AA126: -0.02186467352 | AB126: -0.03464213555 | AC126: 0.2253052375 | AD126: 0.8314835672 | AE126: 0.1268358871 | AF126: 0.03413309447 | AG126: 0.007547451265 | AI126: Average | AJ126: 4.138109528 | AK126: 0.6143968222 | AL126: 0.1813584237 | AM126: 0.1363046935 | AN126: 0.04695395565 | AO126: 0.04750896934 | AP126: 0.344477908 | AQ126: 0.6632090565 | AR126: 0.09920646865 | AS126: 0.02348604854 | AT126: 0.2140984263
F127: =IF(B27=F123,"","Your Farm") ->  | G127: =IF(B27=F123,"",B27) ->  | Q127: 0 | R127: 0.06666666667 | V127: Non-ratio average | X127: 285744.7507 | AG127: 4419.289286 | AI127: Non-ratio average | AK127: 423238.9656 | AT127: 147485.7832
Q128: 0 | R128: 0
Q129: 0 | R129: 0 | W129: Greater than 1250<100
Q130: 0.04 | R130: 0 | W130: Current Ratio | X130: Working Capital Ratio | Y130: Debt to Asset Ratio | Z130: Operating Profit Margin | AA130: ROA | AB130: ROE | AC130: Asset Turnover | AD130: Operating Expense Ratio | AE130: Depr Expense Ratio | AF130: Interest Expense Ratio | AG130: NFI Ratio | AJ130: Current Ratio | AK130: Working Capital Ratio | AL130: Debt to Asset Ratio | AM130: Operating Profit Margin | AN130: ROA | AO130: ROE | AP130: Asset Turnover | AQ130: Operating Expense Ratio | AR130: Depr Expense Ratio | AS130: Interest Expense Ratio | AT130: NFI Ratio
E131: Asset Turnover Rate | Q131: 0 | R131: 0 | W131: 0 | X131: 3 | Y131: 1 | Z131: 1 | AA131: 0 | AB131: 2 | AC131: 0 | AD131: 0 | AE131: 0 | AF131: 0 | AG131: 0 | AJ131: 0 | AK131: 0 | AL131: 0 | AM131: 0 | AN131: 0 | AO131: 1 | AP131: 0 | AQ131: 0 | AR131: 0 | AS131: 0 | AT131: 0
F132: =U1 -> 2017 | G132: 10-Year | W132: 6 | X132: 3 | Y132: 5 | Z132: 0 | AA132: 2 | AB132: 11 | AC132: 4 | AD132: 0 | AE132: 0 | AF132: 10 | AG132: 0 | AJ132: 0 | AK132: 0 | AL132: 9 | AM132: 0 | AN132: 0 | AO132: 1 | AP132: 0 | AQ132: 1 | AR132: 0 | AS132: 18 | AT132: 0
E133: 0 | F133: =Q133 -> 0 | G133: =R133 -> 0 | Q133: =Q143 -> 0 | R133: =R143 -> 0 | W133: 6 | X133: 6 | Y133: 3 | Z133: 3 | AA133: 11 | AB133: 8 | AC133: 10 | AD133: 1 | AE133: 3 | AF133: 6 | AG133: 3 | AJ133: 1 | AK133: 1 | AL133: 6 | AM133: 0 | AN133: 1 | AO133: 3 | AP133: 6 | AQ133: 10 | AR133: 5 | AS133: 12 | AT133: 0
E134: 0.1 | F134: =Q134 -> 0.12 | G134: =R134 -> 0.06666666667 | Q134: =Q133+Q144 -> 0.12 | R134: =R133+R144 -> 0.06666666667 | W134: 4 | X134: 4 | Y134: 5 | Z134: 4 | AA134: 13 | AB134: 6 | AC134: 10 | AD134: 9 | AE134: 9 | AF134: 5 | AG134: 10 | AJ134: 8 | AK134: 9 | AL134: 7 | AM134: 1 | AN134: 5 | AO134: 12 | AP134: 11 | AQ134: 14 | AR134: 15 | AS134: 2 | AT134: 1
E135: 0.2 | F135: 0.56 | G135: 0.2666666667 | Q135: 0.56 | R135: 0.2666666667 | W135: 2 | X135: 3 | Y135: 7 | Z135: 8 | AA135: 1 | AB135: 0 | AC135: 2 | AD135: 5 | AE135: 7 | AF135: 6 | AG135: 8 | AJ135: 3 | AK135: 8 | AL135: 4 | AM135: 1 | AN135: 17 | AO135: 13 | AP135: 8 | AQ135: 5 | AR135: 8 | AS135: 1 | AT135: 6
E136: 0.3 | F136: 0.84 | G136: 0.6 | Q136: 0.84 | R136: 0.6 | W136: 3 | X136: 5 | Y136: 4 | Z136: 10 | AA136: 1 | AB136: 1 | AC136: 1 | AD136: 9 | AE136: 4 | AF136: 1 | AG136: 7 | AJ136: 6 | AK136: 5 | AL136: 5 | AM136: 12 | AN136: 8 | AO136: 1 | AP136: 5 | AQ136: 3 | AR136: 3 | AS136: 0 | AT136: 17
E137: 0.4 | F137: 0.84 | G137: 0.8333333333 | Q137: 0.84 | R137: 0.8333333333 | S137: Your Farm Line-Asset Turnover Rate | W137: 3 | X137: 3 | Y137: 1 | Z137: 2 | AA137: 1 | AB137: 0 | AC137: 0 | AD137: 5 | AE137: 2 | AF137: 0 | AG137: 1 | AJ137: 0 | AK137: 6 | AL137: 0 | AM137: 19 | AN137: 2 | AO137: 2 | AP137: 2 | AQ137: 0 | AR137: 2 | AS137: 0 | AT137: 9
E138: 0.5 | F138: 0.88 | G138: 0.9 | Q138: 0.88 | R138: 0.9 | S138: X's | T138: =IF(B28>0.9,0.9,B28) -> 0.1627429572 | U138: =T138 -> 0.1627429572 | W138: 0 | X138: 1 | Y138: 1 | Z138: 1 | AA138: 0 | AB138: 0 | AC138: 0 | AD138: 0 | AE138: 0 | AF138: 0 | AG138: 0 | AJ138: 0 | AK138: 2 | AL138: 1 | AM138: 0 | AN138: 0 | AO138: 0 | AP138: 0 | AQ138: 0 | AR138: 0 | AS138: 0 | AT138: 0
E139: 0.6 | F139: 0.92 | G139: 0.9 | Q139: 0.92 | R139: 0.9 | S139: Y's | T139: 0 | U139: 1 | W139: 0 | X139: 1 | Y139: 2 | Z139: 0 | AA139: 0 | AB139: 0 | AC139: 2 | AD139: 0 | AE139: 4 | AF139: 1 | AG139: 0 | AJ139: 0 | AK139: 2 | AL139: 1 | AM139: 0 | AN139: 0 | AO139: 0 | AP139: 0 | AQ139: 0 | AR139: 0 | AS139: 0 | AT139: 0
E140: 0.7 | F140: 0.92 | G140: 0.9333333333 | Q140: 0.92 | R140: 0.9333333333 | S140: =IF(B28=F144,U1 &" Average","Your Farm") -> 2017 Average | W140: 5 | X140: 0 | Z140: 0 | AA140: 0 | AB140: 1 | AC140: 0 | AG140: 0 | AJ140: 15 | AK140: 0 | AM140: 0 | AN140: 0 | AO140: 0 | AP140: 1 | AT140: 0
E141: 0.8 | F141: 0.96 | G141: 0.9333333333 | Q141: 0.96 | R141: 0.9333333333 | V141: Count | W141: 29 | X141: 29 | Y141: 29 | Z141: 29 | AA141: 29 | AB141: 29 | AC141: 29 | AD141: 29 | AE141: 29 | AF141: 29 | AG141: 29 | AI141: Count | AJ141: 33 | AK141: 33 | AL141: 33 | AM141: 33 | AN141: 33 | AO141: 33 | AP141: 33 | AQ141: 33 | AR141: 33 | AS141: 33 | AT141: 33
E142: More | F142: 1 | G142: 1 | Q142: 1 | R142: 1 | V142: Average | W142: 1.334104675 | X142: 0.1717174881 | Y142: 0.2571033643 | Z142: -0.03081900303 | AA142: -0.00565430185 | AB142: -0.02152280052 | AC142: 0.1834680325 | AD142: 0.769674037 | AE142: 0.1150196643 | AF142: 0.05795555168 | AG142: 0.05735074703 | AI142: Average | AJ142: 2.612099549 | AK142: 0.5214691157 | AL142: 0.2258198213 | AM142: 0.1683251823 | AN142: 0.04840648227 | AO142: 0.05090108031 | AP142: 0.287577186 | AQ142: 0.6666612846 | AR142: 0.08534769552 | AS142: 0.02902861033 | AT142: 0.2189624095
E143: Count | F143: =F122 -> 25 | G143: =G122 -> 30 | Q143: =IF($T$6=$W$1,AC3/$F$143,IF($T$6=$W$17,AC19/$F$143,IF($T$6=$W$33,AC35/$F$143,IF($T$6=$W$49,AC51/$F$143,IF($T$6=$W$65,AC67/$F$143,IF($T$6=$W$81,AC83/$F$143,IF($T$6=$W$97,AC99/$F$143,IF($T$6=$W$113,AC115/$F$143,IF($T$6=$W$129,AC131/$F$143,IF($T$6=$W$145,AC147/$F$143,IF($T$6=$W$161,AC163/$F$143,"N/A"))))))))))) -> 0 | R143: =IF($T$6=$W$1,AP3/$G$38,IF($T$6=$W$17,AP19/$G$38,IF($T$6=$W$33,AP35/$G$38,IF($T$6=$W$49,AP51/$G$38,IF($T$6=$W$65,AP67/$G$38,IF($T$6=$W$81,AP83/$G$38,IF($T$6=$W$97,AP99/$G$38,IF($T$6=$W$113,AP115/$G$38,IF($T$6=$W$129,AP131/$G$38,IF($T$6=$W$145,AP147/$G$38,IF($T$6=$W$161,AP163/$G$38,"N/A"))))))))))) -> 0 | V143: Non-ratio average | X143: 86940.61138 | AG143: 29036.69897 | AI143: Non-ratio average | AK143: 357295.5073 | AT143: 150026.6897
E144: Average | F144: =IF($T$6=$W$1,$AC$14,IF($T$6=$W$17,$AC$30,IF($T$6=$W$33,$AC$46,IF($T$6=$W$49,$AC$62,IF($T$6=$W$65,$AC$78,IF($T$6=$W$81,$AC$94,IF($T$6=$W$97,$AC$110,IF($T$6=$W$113,$AC$126,IF($T$6=$W$129,$AC$142,IF($T$6=$W$145,$AC$158,IF($T$6=W161,AC174,"N/A"))))))))))) -> 0.1627429572 | G144: =IF($T$6=$W$1,$AP$14,IF($T$6=$W$17,$AP$30,IF($T$6=$W$33,$AP$46,IF($T$6=$W$49,$AP$62,IF($T$6=$W$65,$AP$78,IF($T$6=$W$81,$AP$94,IF($T$6=$W$97,$AP$110,IF($T$6=$W$113,$AP$126,IF($T$6=$W$129,$AP$142,IF($T$6=$W$145,$AP$158,IF($T$6=$W$161,$AP$174,"N/A"))))))))))) -> 0.2478242944 | Q144: 0.12 | R144: 0.06666666667
Q145: 0.44 | R145: 0.2 | W145: Greater than 1250100+
Q146: 0.28 | R146: 0.3333333333 | W146: Current Ratio | X146: Working Capital Ratio | Y146: Debt to Asset Ratio | Z146: Operating Profit Margin | AA146: ROA | AB146: ROE | AC146: Asset Turnover | AD146: Operating Expense Ratio | AE146: Depr Expense Ratio | AF146: Interest Expense Ratio | AG146: NFI Ratio | AJ146: Current Ratio | AK146: Working Capital Ratio | AL146: Debt to Asset Ratio | AM146: Operating Profit Margin | AN146: ROA | AO146: ROE | AP146: Asset Turnover | AQ146: Operating Expense Ratio | AR146: Depr Expense Ratio | AS146: Interest Expense Ratio | AT146: NFI Ratio
Q147: 0 | R147: 0.2333333333 | W147: 0 | X147: 1 | Y147: 2 | Z147: 0 | AA147: 4 | AB147: 8 | AC147: 0 | AD147: 0 | AE147: 0 | AF147: 2 | AG147: 0 | AJ147: 0 | AK147: 0 | AL147: 0 | AM147: 0 | AN147: 0 | AO147: 1 | AP147: 0 | AQ147: 0 | AR147: 0 | AS147: 0 | AT147: 0
F148: =IF(B28=F144,"","Your Farm") ->  | G148: =IF(B28=F144,"",B28) ->  | Q148: 0.04 | R148: 0.06666666667 | W148: 3 | X148: 6 | Y148: 4 | Z148: 1 | AA148: 0 | AB148: 3 | AC148: 0 | AD148: 0 | AE148: 0 | AF148: 10 | AG148: 0 | AJ148: 0 | AK148: 0 | AL148: 8 | AM148: 0 | AN148: 0 | AO148: 1 | AP148: 0 | AQ148: 0 | AR148: 0 | AS148: 10 | AT148: 0
Q149: 0.04 | R149: 0 | W149: 13 | X149: 9 | Y149: 5 | Z149: 2 | AA149: 7 | AB149: 15 | AC149: 15 | AD149: 1 | AE149: 4 | AF149: 10 | AG149: 6 | AJ149: 5 | AK149: 5 | AL149: 0 | AM149: 0 | AN149: 0 | AO149: 2 | AP149: 4 | AQ149: 2 | AR149: 6 | AS149: 10 | AT149: 0
Q150: 0 | R150: 0.03333333333 | W150: 8 | X150: 10 | Y150: 5 | Z150: 6 | AA150: 19 | AB150: 10 | AC150: 15 | AD150: 8 | AE150: 10 | AF150: 13 | AG150: 9 | AJ150: 3 | AK150: 5 | AL150: 5 | AM150: 0 | AN150: 5 | AO150: 15 | AP150: 10 | AQ150: 12 | AR150: 11 | AS150: 4 | AT150: 1
Q151: 0.04 | R151: 0 | W151: 3 | X151: 3 | Y151: 9 | Z151: 15 | AA151: 8 | AB151: 3 | AC151: 2 | AD151: 11 | AE151: 15 | AF151: 2 | AG151: 14 | AJ151: 4 | AK151: 5 | AL151: 3 | AM151: 1 | AN151: 17 | AO151: 5 | AP151: 7 | AQ151: 9 | AR151: 8 | AS151: 0 | AT151: 8
E152: Operating Expense Ratio | Q152: 0.04 | R152: 0.06666666667 | W152: 2 | X152: 5 | Y152: 6 | Z152: 12 | AA152: 1 | AB152: 0 | AC152: 6 | AD152: 10 | AE152: 8 | AF152: 2 | AG152: 9 | AJ152: 3 | AK152: 6 | AL152: 7 | AM152: 16 | AN152: 2 | AO152: 1 | AP152: 1 | AQ152: 3 | AR152: 0 | AS152: 2 | AT152: 15
F153: =U1 -> 2017 | G153: 10-Year | W153: 1 | X153: 3 | Y153: 2 | Z153: 2 | AA153: 0 | AB153: 0 | AC153: 0 | AD153: 3 | AE153: 2 | AF153: 0 | AG153: 1 | AJ153: 2 | AK153: 2 | AL153: 1 | AM153: 8 | AN153: 2 | AO153: 0 | AP153: 1 | AQ153: 0 | AR153: 1 | AS153: 0 | AT153: 2
E154: 0.4 | F154: =Q154 -> 0 | G154: =R154 -> 0 | Q154: =Q163 -> 0 | R154: =R163 -> 0 | W154: 0 | X154: 1 | Y154: 5 | Z154: 1 | AA154: 0 | AB154: 0 | AC154: 0 | AD154: 5 | AE154: 0 | AF154: 0 | AG154: 0 | AJ154: 0 | AK154: 2 | AL154: 0 | AM154: 1 | AN154: 0 | AO154: 0 | AP154: 1 | AQ154: 0 | AR154: 0 | AS154: 0 | AT154: 0
E155: 0.5 | F155: =Q155 -> 0 | G155: =R155 -> 0 | Q155: =Q154+Q164 -> 0 | R155: 0 | W155: 0 | X155: 0 | Y155: 1 | Z155: 0 | AA155: 0 | AB155: 0 | AC155: 1 | AD155: 1 | AE155: 0 | AF155: 0 | AG155: 0 | AJ155: 1 | AK155: 1 | AL155: 2 | AM155: 0 | AN155: 0 | AO155: 0 | AP155: 1 | AQ155: 0 | AR155: 0 | AS155: 0 | AT155: 0
E156: 0.6 | F156: 0.12 | G156: 0.2 | Q156: 0.12 | R156: 0.2 | W156: 9 | X156: 1 | Z156: 0 | AA156: 0 | AB156: 0 | AC156: 0 | AG156: 0 | AJ156: 8 | AK156: 0 | AM156: 0 | AN156: 0 | AO156: 1 | AP156: 1 | AT156: 0
E157: 0.7 | F157: 0.32 | G157: 0.5666666667 | Q157: 0.32 | R157: 0.5666666667 | V157: Count | W157: 39 | X157: 39 | Y157: 39 | Z157: 39 | AA157: 39 | AB157: 39 | AC157: 39 | AD157: 39 | AE157: 39 | AF157: 39 | AG157: 39 | AI157: Count | AJ157: 26 | AK157: 26 | AL157: 26 | AM157: 26 | AN157: 26 | AO157: 26 | AP157: 26 | AQ157: 26 | AR157: 26 | AS157: 26 | AT157: 26
E158: 0.8 | F158: 0.44 | G158: 0.7666666667 | Q158: 0.44 | R158: 0.7666666667 | V158: Average | W158: 1.426133146 | X158: 0.2276280511 | Y158: 0.3048031175 | Z158: -0.03554833068 | AA158: -0.007877320332 | AB158: -0.02791730878 | AC158: 0.2215946623 | AD158: 0.8202464432 | AE158: 0.1050645767 | AF158: 0.04923503539 | AG158: 0.02545394463 | AI158: Average | AJ158: 1.880636943 | AK158: 0.3744812323 | AL158: 0.3060393901 | AM158: 0.1386325599 | AN158: 0.04332260543 | AO158: 0.04245504035 | AP158: 0.3124994984 | AQ158: 0.7137049371 | AR158: 0.07592287428 | AS158: 0.04052648918 | AT158: 0.1698456995
E159: 0.9 | F159: 0.72 | G159: 0.9666666667 | Q159: 0.72 | R159: 0.9666666667 | S159: Your Farm Line-Operating Expense Ratio | V159: Non-ratio average | X159: 182517.5756 | AG159: 20409.57713 | AI159: Non-ratio average | AK159: 361784.198 | AT159: 164086.9685
E160: 1 | F160: 0.92 | G160: 1 | Q160: 0.92 | R160: 1 | S160: X's | T160: =IF(B29>1.2,1.2,B29) -> 0.7581098319 | U160: =T160 -> 0.7581098319
E161: 1.1 | F161: 1 | G161: 1 | Q161: 1 | R161: 1 | S161: Y's | T161: 0 | U161: 1 | W161: All Farms
E162: More | F162: 1 | G162: 1 | Q162: 1 | R162: 1 | S162: =IF(B29=F164,U1 &" Average","Your Farm") -> 2017 Average | W162: Current Ratio | X162: Working Capital Ratio | Y162: Debt to Asset Ratio | Z162: Operating Profit Margin | AA162: ROA | AB162: ROE | AC162: Asset Turnover | AD162: Operating Expense Ratio | AE162: Depr Expense Ratio | AF162: Interest Expense Ratio | AG162: NFI Ratio | AJ162: Current Ratio | AK162: Working Capital Ratio | AL162: Debt to Asset Ratio | AM162: Operating Profit Margin | AN162: ROA | AO162: ROE | AP162: Asset Turnover | AQ162: Operating Expense Ratio | AR162: Depr Expense Ratio | AS162: Interest Expense Ratio | AT162: NFI Ratio
E163: Count | F163: =F143 -> 25 | G163: =G143 -> 30 | Q163: =IF($T$6=$W$1,AD3/$F$143,IF($T$6=$W$17,AD19/$F$143,IF($T$6=$W$33,AD35/$F$143,IF($T$6=$W$49,AD51/$F$143,IF($T$6=$W$65,AD67/$F$143,IF($T$6=$W$81,AD83/$F$143,IF($T$6=$W$97,AD99/$F$143,IF($T$6=$W$113,AD115/$F$143,IF($T$6=$W$129,AD131/$F$143,IF($T$6=$W$145,AD147/$F$143,IF($T$6=$W$161,AD163/$F$143,"N/A"))))))))))) -> 0 | R163: =IF($T$6=$W$1,AQ3/$G$38,IF($T$6=$W$17,AQ19/$G$38,IF($T$6=$W$33,AQ35/$G$38,IF($T$6=$W$49,AQ51/$G$38,IF($T$6=$W$65,AQ67/$G$38,IF($T$6=$W$81,AQ83/$G$38,IF($T$6=$W$97,AQ99/$G$38,IF($T$6=$W$113,AQ115/$G$38,IF($T$6=$W$129,AQ131/$G$38,IF($T$6=$W$145,AQ147/$G$38,IF($T$6=$W$161,AQ163/$G$38,"N/A"))))))))))) -> 0 | W163: 0 | X163: 17 | Y163: 23 | Z163: 9 | AA163: 14 | AB163: 36 | AC163: 0 | AD163: 1 | AE163: 1 | AF163: 27 | AG163: 5 | AJ163: 0 | AK163: 4 | AL163: 6 | AM163: 0 | AN163: 2 | AO163: 16 | AP163: 0 | AQ163: 0 | AR163: 0 | AS163: 4 | AT163: 0
E164: Average | F164: =IF($T$6=$W$1,$AD$14,IF($T$6=$W$17,$AD$30,IF($T$6=$W$33,$AD$46,IF($T$6=$W$49,$AD$62,IF($T$6=$W$65,$AD$78,IF($T$6=$W$81,$AD$94,IF($T$6=$W$97,$AD$110,IF($T$6=$W$113,$AD$126,IF($T$6=$W$129,$AD$142,IF($T$6=$W$145,$AD$158,IF($T$6=W161,AD174,"N/A"))))))))))) -> 0.7581098319 | G164: =IF($T$6=$W$1,$AQ$14,IF($T$6=$W$17,$AQ$30,IF($T$6=$W$33,$AQ$46,IF($T$6=$W$49,$AQ$62,IF($T$6=$W$65,$AQ$78,IF($T$6=$W$81,$AQ$94,IF($T$6=$W$97,$AQ$110,IF($T$6=$W$113,$AQ$126,IF($T$6=$W$129,$AQ$142,IF($T$6=$W$145,$AQ$158,IF($T$6=$W$161,$AQ$174,"N/A"))))))))))) -> 0.6876041863 | Q164: 0 | R164: 0 | W164: 29 | X164: 17 | Y164: 49 | Z164: 8 | AA164: 16 | AB164: 47 | AC164: 36 | AD164: 1 | AE164: 15 | AF164: 72 | AG164: 5 | AJ164: 6 | AK164: 2 | AL164: 56 | AM164: 0 | AN164: 2 | AO164: 13 | AP164: 7 | AQ164: 6 | AR164: 12 | AS164: 99 | AT164: 0
Q165: 0.12 | R165: 0.2 | W165: 42 | X165: 37 | Y165: 40 | Z165: 21 | AA165: 67 | AB165: 90 | AC165: 97 | AD165: 17 | AE165: 38 | AF165: 55 | AG165: 24 | AJ165: 16 | AK165: 16 | AL165: 36 | AM165: 4 | AN165: 18 | AO165: 46 | AP165: 56 | AQ165: 41 | AR165: 44 | AS165: 68 | AT165: 2
Q166: 0.2 | R166: 0.3666666667 | W166: 42 | X166: 37 | Y166: 28 | Z166: 53 | AA166: 104 | AB166: 43 | AC166: 56 | AD166: 47 | AE166: 51 | AF166: 46 | AG166: 57 | AJ166: 30 | AK166: 36 | AL166: 42 | AM166: 10 | AN166: 72 | AO166: 85 | AP166: 68 | AQ166: 80 | AR166: 78 | AS166: 31 | AT166: 8
Q167: 0.12 | R167: 0.2 | W167: 14 | X167: 36 | Y167: 42 | Z167: 70 | AA167: 26 | AB167: 11 | AC167: 16 | AD167: 61 | AE167: 51 | AF167: 22 | AG167: 80 | AJ167: 21 | AK167: 52 | AL167: 27 | AM167: 39 | AN167: 88 | AO167: 45 | AP167: 47 | AQ167: 61 | AR167: 49 | AS167: 8 | AT167: 62
F168: =IF(B29=F164,"","Your Farm") ->  | G168: =IF(B29=F164,"",B29) ->  | Q168: 0.28 | R168: 0.2 | W168: 13 | X168: 35 | Y168: 20 | Z168: 56 | AA168: 10 | AB168: 3 | AC168: 19 | AD168: 61 | AE168: 38 | AF168: 9 | AG168: 56 | AJ168: 24 | AK168: 40 | AL168: 24 | AM168: 95 | AN168: 29 | AO168: 8 | AP168: 15 | AQ168: 26 | AR168: 25 | AS168: 5 | AT168: 106
Q169: 0.2 | R169: 0.03333333333 | W169: 8 | X169: 20 | Y169: 11 | Z169: 18 | AA169: 3 | AB169: 4 | AC169: 4 | AD169: 28 | AE169: 22 | AF169: 4 | AG169: 13 | AJ169: 12 | AK169: 34 | AL169: 13 | AM169: 63 | AN169: 8 | AO169: 5 | AP169: 12 | AQ169: 5 | AR169: 9 | AS169: 3 | AT169: 38
Q170: 0.08 | R170: 0 | W170: 5 | X170: 12 | Y170: 13 | Z170: 4 | AA170: 0 | AB170: 1 | AC170: 2 | AD170: 13 | AE170: 6 | AF170: 0 | AG170: 0 | AJ170: 9 | AK170: 16 | AL170: 6 | AM170: 8 | AN170: 0 | AO170: 0 | AP170: 5 | AQ170: 0 | AR170: 1 | AS170: 1 | AT170: 3
Q171: 0 | R171: 0 | W171: 4 | X171: 10 | Y171: 15 | Z171: 1 | AA171: 0 | AB171: 1 | AC171: 6 | AD171: 12 | AE171: 19 | AF171: 6 | AG171: 1 | AJ171: 4 | AK171: 9 | AL171: 9 | AM171: 0 | AN171: 0 | AO171: 0 | AP171: 3 | AQ171: 0 | AR171: 1 | AS171: 0 | AT171: 0
W172: 84 | X172: 20 | Z172: 1 | AA172: 1 | AB172: 5 | AC172: 5 | AG172: 0 | AJ172: 97 | AK172: 10 | AM172: 0 | AN172: 0 | AO172: 1 | AP172: 6 | AT172: 0
E173: Depreciation Expense Ratio | V173: Count | W173: 241 | X173: 241 | Y173: 241 | Z173: 241 | AA173: 241 | AB173: 241 | AC173: 241 | AD173: 241 | AE173: 241 | AF173: 241 | AG173: 241 | AI173: Count | AJ173: 219 | AK173: 219 | AL173: 219 | AM173: 219 | AN173: 219 | AO173: 219 | AP173: 219 | AQ173: 219 | AR173: 219 | AS173: 219 | AT173: 219
F174: =U1 -> 2017 | G174: 10-Year | V174: Average | W174: 1.710120333 | X174: 0.3906376003 | Y174: 0.2431018223 | Z174: -0.0377704598 | AA174: -0.006815939397 | AB174: -0.02097219287 | AC174: 0.1804568817 | AD174: 0.7933917917 | AE174: 0.1018565355 | AF174: 0.04816492049 | AG174: 0.0565867523 | AI174: Average | AJ174: 2.449028005 | AK174: 0.5274894019 | AL174: 0.2436101993 | AM174: 0.1271197719 | AN174: 0.034179997 | AO174: 0.0310356156 | AP174: 0.2688802574 | AQ174: 0.6923989356 | AR174: 0.08192764409 | AS174: 0.03540190111 | AT174: 0.1902715192
E175: 0 | F175: =Q175 -> 0 | G175: =R175 -> 0 | Q175: =Q184 -> 0 | R175: =R184 -> 0 | V175: Non-ratio average | X175: 189210.0798 | AG175: 27408.48273 | AI175: Non-ratio average | AK175: 274372.4312 | AT175: 98969.30463
E176: 0.03 | F176: =Q176 -> 0.04 | G176: =R176 -> 0.06666666667 | Q176: =Q175+Q185 -> 0.04 | R176: 0.06666666667
E177: 0.06 | F177: 0.24 | G177: 0.4 | Q177: 0.24 | R177: 0.4
E178: 0.09 | F178: 0.36 | G178: 0.7 | Q178: 0.36 | R178: 0.7
E179: 0.12 | F179: 0.56 | G179: 0.9666666667 | Q179: 0.56 | R179: 0.9666666667
E180: 0.15 | F180: 0.68 | G180: 1 | Q180: 0.68 | R180: 1
E181: 0.18 | F181: 0.88 | G181: 1 | Q181: 0.88 | R181: 1 | S181: Your Farm Line-Depreciation Expense Ratio
E182: 0.21 | F182: 0.92 | G182: 1 | Q182: 0.92 | R182: 1 | S182: X's | T182: =IF(B30>0.24,0.24,B30) -> 0.1330154451 | U182: =T182 -> 0.1330154451
E183: More | F183: 1 | G183: 1 | Q183: 1 | R183: 1 | S183: Y's | T183: 0 | U183: 1
E184: Count | F184: =F163 -> 25 | G184: =G163 -> 30 | Q184: =IF($T$6=$W$1,AE3/$F$143,IF($T$6=$W$17,AE19/$F$143,IF($T$6=$W$33,AE35/$F$143,IF($T$6=$W$49,AE51/$F$143,IF($T$6=$W$65,AE67/$F$143,IF($T$6=$W$81,AE83/$F$143,IF($T$6=$W$97,AE99/$F$143,IF($T$6=$W$113,AE115/$F$143,IF($T$6=$W$129,AE131/$F$143,IF($T$6=$W$145,AE147/$F$143,IF($T$6=$W$161,AE163/$F$143,"N/A"))))))))))) -> 0 | R184: =IF($T$6=$W$1,AR3/$G$38,IF($T$6=$W$17,AR19/$G$38,IF($T$6=$W$33,AR35/$G$38,IF($T$6=$W$49,AR51/$G$38,IF($T$6=$W$65,AR67/$G$38,IF($T$6=$W$81,AR83/$G$38,IF($T$6=$W$97,AR99/$G$38,IF($T$6=$W$113,AR115/$G$38,IF($T$6=$W$129,AR131/$G$38,IF($T$6=$W$145,AR147/$G$38,IF($T$6=$W$161,AR163/$G$38,"N/A"))))))))))) -> 0 | S184: =IF(B30=F185,U1 &" Average","Your Farm") -> 2017 Average
E185: Average | F185: =IF($T$6=$W$1,$AE$14,IF($T$6=$W$17,$AE$30,IF($T$6=$W$33,$AE$46,IF($T$6=$W$49,$AE$62,IF($T$6=$W$65,$AE$78,IF($T$6=$W$81,$AE$94,IF($T$6=$W$97,$AE$110,IF($T$6=$W$113,$AE$126,IF($T$6=$W$129,$AE$142,IF($T$6=$W$145,$AE$158,IF($T$6=$W$161,AE174,"N/A"))))))))))) -> 0.1330154451 | G185: =IF($T$6=$W$1,$AR$14,IF($T$6=$W$17,$AR$30,IF($T$6=$W$33,$AR$46,IF($T$6=$W$49,$AR$62,IF($T$6=$W$65,$AR$78,IF($T$6=$W$81,$AR$94,IF($T$6=$W$97,$AR$110,IF($T$6=$W$113,$AR$126,IF($T$6=$W$129,$AR$142,IF($T$6=$W$145,$AR$158,IF($T$6=$W$161,$AR$174,"N/A"))))))))))) -> 0.07254873041 | Q185: 0.04 | R185: 0.06666666667
Q186: 0.2 | R186: 0.3333333333
Q187: 0.12 | R187: 0.3
Q188: 0.2 | R188: 0.2666666667
F189: =IF(B30=F185,"","Your Farm") ->  | G189: =IF(B30=F185,"",B30) ->  | Q189: 0.12 | R189: 0.03333333333
Q190: 0.2 | R190: 0
Q191: 0.04 | R191: 0
Q192: 0.08 | R192: 0
E194: Interest Expense Ratio
F195: =U1 -> 2017 | G195: 10-Year
E196: 0 | F196: =Q196 -> 0.12 | G196: =R196 -> 0.03333333333 | Q196: =Q205 -> 0.12 | R196: =R205 -> 0.03333333333
E197: 0.03 | F197: =Q197 -> 0.4 | G197: =R197 -> 0.4 | Q197: =Q196+Q206 -> 0.4 | R197: 0.4
E198: 0.06 | F198: 0.56 | G198: 0.7333333333 | Q198: 0.56 | R198: 0.7333333333
E199: 0.09 | F199: 0.84 | G199: 0.9 | Q199: 0.84 | R199: 0.9
E200: 0.12 | F200: 0.92 | G200: 0.9333333333 | Q200: 0.92 | R200: 0.9333333333
E201: 0.15 | F201: 1 | G201: 0.9333333333 | Q201: 1 | R201: 0.9333333333
... 34 more rows

Sheet NorthEast
E1: KSU FARM FINANCIAL BENCHMARKING TOOL-Northeast Kansas | S1: Acres | T1: Lookup | U1: 2017 | W1: Less than 500No | AI1: 10-Year
S2: Less than 500 | T2: LT | U2: 2017 KFMA Farms | W2: Current Ratio | X2: Working Capital Ratio | Y2: Debt to Asset Ratio | Z2: Operating Profit Margin | AA2: ROA | AB2: ROE | AC2: Asset Turnover | AD2: Operating Expense Ratio | AE2: Depr Expense Ratio | AF2: Interest Expense Ratio | AG2: NFI Ratio | AJ2: Current Ratio | AK2: Working Capital Ratio | AL2: Debt to Asset Ratio | AM2: Operating Profit Margin | AN2: ROA | AO2: ROE | AP2: Asset Turnover | AQ2: Operating Expense Ratio | AR2: Depr Expense Ratio | AS2: Interest Expense Ratio | AT2: NFI Ratio
E3: Tillable Crop Acres: | G3: =B16 -> 500-1000 | I3: =A17 -> Beef Cows: | K3: =IF(B17="","",B17) -> No | P3: =IF(B18="","",B18) ->  | S3: 500-1000 | T3: BTW | U3: =J3 -> 0 | W3: 0 | X3: 1 | Y3: 4 | Z3: 1 | AA3: 0 | AB3: 1 | AC3: 0 | AD3: 1 | AE3: 0 | AF3: 5 | AG3: 0 | AJ3: 0 | AK3: 0 | AL3: 4 | AM3: 1 | AN3: 1 | AO3: 0 | AP3: 0 | AQ3: 0 | AR3: 0 | AS3: 5 | AT3: 0
S4: Greater than 1000 | T4: GT | W4: 1 | X4: 3 | Y4: 4 | Z4: 0 | AA4: 0 | AB4: 2 | AC4: 4 | AD4: 0 | AE4: 2 | AF4: 4 | AG4: 1 | AJ4: 0 | AK4: 0 | AL4: 6 | AM4: 0 | AN4: 0 | AO4: 1 | AP4: 2 | AQ4: 0 | AR4: 3 | AS4: 5 | AT4: 0
E5: Current Ratio | S5: All Farms | T5: All | W5: 3 | X5: 0 | Y5: 1 | Z5: 1 | AA5: 2 | AB5: 11 | AC5: 6 | AD5: 1 | AE5: 3 | AF5: 1 | AG5: 1 | AJ5: 0 | AK5: 0 | AL5: 1 | AM5: 0 | AN5: 1 | AO5: 3 | AP5: 6 | AQ5: 5 | AR5: 5 | AS5: 2 | AT5: 1
F6: =U1 -> 2017 | G6: 10-Year | S6: LTList | T6: =B16&B17&B18 -> 500-1000No | W6: 2 | X6: 2 | Y6: 1 | Z6: 2 | AA6: 11 | AB6: 0 | AC6: 2 | AD6: 2 | AE6: 0 | AF6: 1 | AG6: 2 | AJ6: 0 | AK6: 2 | AL6: 0 | AM6: 1 | AN6: 8 | AO6: 7 | AP6: 1 | AQ6: 6 | AR6: 4 | AS6: 1 | AT6: 0
E7: 0 | F7: =Q7 -> 0 | G7: =R7 -> 0 | S7: Yes | W7: 0 | X7: 1 | Y7: 0 | Z7: 7 | AA7: 1 | AB7: 0 | AC7: 0 | AD7: 5 | AE7: 3 | AF7: 2 | AG7: 5 | AJ7: 2 | AK7: 1 | AL7: 2 | AM7: 3 | AN7: 2 | AO7: 0 | AP7: 2 | AQ7: 2 | AR7: 0 | AS7: 0 | AT7: 1
E8: 0.5 | F8: =Q8 -> 0 | G8: =R8 -> 0 | Q8: =Q7+Q18 -> 0 | R8: =R7+R18 -> 0 | S8: No | W8: 0 | X8: 0 | Y8: 2 | Z8: 3 | AA8: 0 | AB8: 0 | AC8: 0 | AD8: 3 | AE8: 1 | AF8: 0 | AG8: 3 | AJ8: 0 | AK8: 1 | AL8: 0 | AM8: 3 | AN8: 0 | AO8: 1 | AP8: 2 | AQ8: 0 | AR8: 2 | AS8: 0 | AT8: 6
E9: 1 | F9: 0 | G9: 0 | Q9: 0 | R9: 0 | W9: 0 | X9: 0 | Y9: 0 | Z9: 0 | AA9: 0 | AB9: 0 | AC9: 0 | AD9: 2 | AE9: 1 | AF9: 0 | AG9: 1 | AJ9: 0 | AK9: 2 | AL9: 0 | AM9: 6 | AN9: 1 | AO9: 0 | AP9: 0 | AQ9: 1 | AR9: 0 | AS9: 0 | AT9: 6
E10: 1.5 | F10: 0.1333333333 | G10: 0.1538461538 | Q10: 0.1333333333 | R10: 0.1538461538 | W10: 0 | X10: 1 | Y10: 1 | Z10: 0 | AA10: 0 | AB10: 0 | AC10: 0 | AD10: 0 | AE10: 2 | AF10: 0 | AG10: 1 | AJ10: 0 | AK10: 0 | AL10: 0 | AM10: 0 | AN10: 0 | AO10: 1 | AP10: 0 | AQ10: 0 | AR10: 0 | AS10: 1 | AT10: 0
E11: 2 | F11: 0.2 | G11: 0.3076923077 | Q11: 0.2 | R11: 0.3076923077 | S11: BTWList | T11: Lookup | W11: 0 | X11: 4 | Y11: 1 | Z11: 0 | AA11: 0 | AB11: 0 | AC11: 0 | AD11: 0 | AE11: 2 | AF11: 1 | AG11: 0 | AJ11: 0 | AK11: 0 | AL11: 1 | AM11: 0 | AN11: 1 | AO11: 0 | AP11: 0 | AQ11: 0 | AR11: 0 | AS11: 0 | AT11: 0
E12: 2.5 | F12: 0.2 | G12: 0.3076923077 | Q12: 0.2 | R12: 0.3076923077 | S12: Yes | T12: LL | W12: 8 | X12: 2 | Z12: 0 | AA12: 0 | AB12: 0 | AC12: 2 | AG12: 0 | AJ12: 12 | AK12: 8 | AM12: 0 | AN12: 0 | AO12: 1 | AP12: 1 | AT12: 0
E13: 3 | F13: 0.2 | G13: 0.4615384615 | Q13: 0.2 | R13: 0.4615384615 | S13: No | T13: GG | V13: Count | W13: 14 | X13: 14 | Y13: 14 | Z13: 14 | AA13: 14 | AB13: 14 | AC13: 14 | AD13: 14 | AE13: 14 | AF13: 14 | AG13: 14 | AI13: Count | AJ13: 14 | AK13: 14 | AL13: 14 | AM13: 14 | AN13: 14 | AO13: 14 | AP13: 14 | AQ13: 14 | AR13: 14 | AS13: 14 | AT13: 14
E14: 3.5 | F14: 0.2 | G14: 0.4615384615 | Q14: 0.2 | R14: 0.4615384615 | V14: Average | W14: 2.695353982 | X14: 0.720237859 | Y14: 0.143708911 | Z14: -0.104027958 | AA14: -0.01240067226 | AB14: -0.02074677096 | AC14: 0.1192051877 | AD14: 0.7327761784 | AE14: 0.1231007057 | AF14: 0.04404508651 | AG14: 0.1000780294 | AI14: Average | AJ14: 16.61159461 | AK14: 1.501471628 | AL14: 0.07195320005 | AM14: 0.07081160578 | AN14: 0.0131667006 | AO14: 0.009178432268 | AP14: 0.1859398676 | AQ14: 0.6435139581 | AR14: 0.05530128198 | AS14: 0.02078718411 | AT14: 0.2803975758
A15: BENCHMARK CATEGORY | E15: 4 | F15: 0.3333333333 | G15: 0.4615384615 | Q15: 0.3333333333 | R15: 0.4615384615 | V15: Non-ratio average | X15: 126476.7457 | AG15: 17574.11571 | AI15: Non-ratio average | AK15: 191881.558 | AT15: 35833.59331
A16: Tillable Crop Acres: | B16: 500-1000 | E16: More | F16: 1 | G16: 1 | Q16: 1 | R16: 1 | S16: GTList
A17: =IF(B16="All Farms", "", "Beef Cows:") -> Beef Cows: | B17: No | E17: Count | F17: =IF($T$6=$W$1,$W$13,IF($T$6=$W$17,$W$29,IF($T$6=$W$33,$W$45,IF($T$6=$W$49,$W$61,IF($T$6=$W$65,$W$77,IF($T$6=$W$81,$W$93,IF($T$6=$W$97,$W$109,IF($T$6=$W$113,$W$125,IF($T$6=$W$129,$W$141,IF($T$6=$W$145,$W$157,IF(T6=$W$161,$W$173,"N/A"))))))))))) -> 15 | G17: =IF($T$6=$W$1,$AJ$13,IF($T$6=$W$17,$AJ$29,IF($T$6=$W$33,$AJ$45,IF($T$6=$W$49,$AJ$61,IF($T$6=$W$65,$AJ$77,IF($T$6=$W$81,$AJ$93,IF($T$6=$W$97,$AJ$109,IF($T$6=$W$113,$AJ$125,IF($T$6=$W$129,$AJ$141,IF($T$6=$W$145,$AJ$157, IF($T$6=$W$161,$AJ$173,"N/A"))))))))))) -> 13 | Q17: =IF($T$6=$W$1,W3/$W$13,IF($T$6=$W$17,W19/$W$29,IF($T$6=$W$33,W35/$W$45,IF($T$6=$W$49,W51/$W$61,IF($T$6=$W$65,W67/$W$77,IF($T$6=$W$81,W83/$W$93,IF($T$6=$W$97,W99/$W$109,IF($T$6=$W$113,W115/$W$125,IF($T$6=$W$129,W131/$W$141,IF($T$6=$W$145,W147/$W$157,IF($T$6=$W$161,W163/$W$173,"N/A"))))))))))) -> 0 | R17: =IF($T$6=$W$1,AJ3/$AJ$13,IF($T$6=$W$17,AJ19/$AJ$29,IF($T$6=$W$33,AJ35/$AJ$45,IF($T$6=$W$49,AJ51/$AJ$61,IF($T$6=$W$65,AJ67/$AJ$77,IF($T$6=$W$81,AJ83/$AJ$93,IF($T$6=$W$97,AJ99/$AJ$109,IF($T$6=$W$113,AJ115/$AJ$125,IF($T$6=$W$129,AJ131/$AJ$141,IF($T$6=$W$145,AJ147/$AJ$157,IF($T$6=$W$161,AJ163/$AJ$173,"N/A"))))))))))) -> 0 | S17: Yes | W17: Less than 500Yes
E18: Average | F18: =IF($T$6=$W$1,$W$14,IF($T$6=$W$17,$W$30,IF($T$6=$W$33,$W$46,IF($T$6=$W$49,$W$62,IF($T$6=$W$65,$W$78,IF($T$6=$W$81,$W$94,IF($T$6=$W$97,$W$110,IF($T$6=$W$113,$W$126,IF($T$6=$W$129,$W$142,IF($T$6=$W$145,$W$158, IF($T$6=$W$161,$W$174,"N/A"))))))))))) -> 8.142710697 | G18: =IF($T$6=$W$1,$AJ$14,IF($T$6=$W$17,$AJ$30,IF($T$6=$W$33,$AJ$46,IF($T$6=$W$49,$AJ$62,IF($T$6=$W$65,$AJ$78,IF($T$6=$W$81,$AJ$94,IF($T$6=$W$97,$AJ$110,IF($T$6=$W$113,$AJ$126,IF($T$6=$W$129,$AJ$142,IF($T$6=$W$145,$AJ$158, IF($T$6=$W$161,$AJ$174,"N/A"))))))))))) -> 5.533046483 | Q18: 0 | R18: 0 | S18: No | W18: Current Ratio | X18: Working Capital Ratio | Y18: Debt to Asset Ratio | Z18: Operating Profit Margin | AA18: ROA | AB18: ROE | AC18: Asset Turnover | AD18: Operating Expense Ratio | AE18: Depr Expense Ratio | AF18: Interest Expense Ratio | AG18: NFI Ratio | AJ18: Current Ratio | AK18: Working Capital Ratio | AL18: Debt to Asset Ratio | AM18: Operating Profit Margin | AN18: ROA | AO18: ROE | AP18: Asset Turnover | AQ18: Operating Expense Ratio | AR18: Depr Expense Ratio | AS18: Interest Expense Ratio | AT18: NFI Ratio
Q19: 0 | R19: 0 | S19: 100+ | W19: 0 | X19: 1 | Y19: 6 | Z19: 5 | AA19: 4 | AB19: 6 | AC19: 0 | AD19: 0 | AE19: 0 | AF19: 5 | AG19: 3 | AJ19: 0 | AK19: 1 | AL19: 4 | AM19: 7 | AN19: 3 | AO19: 10 | AP19: 0 | AQ19: 0 | AR19: 0 | AS19: 4 | AT19: 1
F20: =IF(B22=F18,"","Your Farm") ->  | G20: =IF(B22=F18,"",B22) ->  | Q20: 0.1333333333 | R20: 0.1538461538 | W20: 1 | X20: 0 | Y20: 5 | Z20: 0 | AA20: 2 | AB20: 4 | AC20: 11 | AD20: 0 | AE20: 4 | AF20: 2 | AG20: 1 | AJ20: 1 | AK20: 3 | AL20: 10 | AM20: 3 | AN20: 5 | AO20: 4 | AP20: 8 | AQ20: 1 | AR20: 5 | AS20: 7 | AT20: 1
A21: YOUR FARM VALUES* | Q21: 0.06666666667 | R21: 0.1538461538 | W21: 1 | X21: 1 | Y21: 1 | Z21: 5 | AA21: 4 | AB21: 7 | AC21: 7 | AD21: 3 | AE21: 2 | AF21: 7 | AG21: 2 | AJ21: 6 | AK21: 3 | AL21: 3 | AM21: 3 | AN21: 7 | AO21: 10 | AP21: 14 | AQ21: 3 | AR21: 6 | AS21: 9 | AT21: 4
A22: Current Ratio: | B22: =S37 -> 8.142710697 | Q22: 0 | R22: 0 | S22: AllList | W22: 3 | X22: 3 | Y22: 2 | Z22: 5 | AA22: 9 | AB22: 3 | AC22: 4 | AD22: 3 | AE22: 4 | AF22: 3 | AG22: 2 | AJ22: 4 | AK22: 3 | AL22: 1 | AM22: 5 | AN22: 10 | AO22: 4 | AP22: 4 | AQ22: 2 | AR22: 6 | AS22: 4 | AT22: 5
A23: Working Capital Ratio: | B23: 0.8455200441 | Q23: 0 | R23: 0.1538461538 | S23: Yes | W23: 2 | X23: 3 | Y23: 1 | Z23: 2 | AA23: 1 | AB23: 1 | AC23: 0 | AD23: 7 | AE23: 5 | AF23: 1 | AG23: 6 | AJ23: 2 | AK23: 4 | AL23: 2 | AM23: 5 | AN23: 3 | AO23: 1 | AP23: 2 | AQ23: 5 | AR23: 4 | AS23: 1 | AT23: 11
A24: Debt to Asset Ratio: | B24: 0.06297066149 | Q24: 0 | R24: 0 | S24: No | W24: 0 | X24: 6 | Y24: 3 | Z24: 1 | AA24: 2 | AB24: 1 | AC24: 0 | AD24: 3 | AE24: 2 | AF24: 3 | AG24: 4 | AJ24: 0 | AK24: 2 | AL24: 5 | AM24: 2 | AN24: 1 | AO24: 0 | AP24: 1 | AQ24: 10 | AR24: 3 | AS24: 2 | AT24: 4
A25: Operating Profit Margin | B25: -0.06676091028 | Q25: 0.1333333333 | R25: 0 | W25: 1 | X25: 4 | Y25: 2 | Z25: 3 | AA25: 0 | AB25: 0 | AC25: 0 | AD25: 2 | AE25: 1 | AF25: 0 | AG25: 3 | AJ25: 2 | AK25: 6 | AL25: 3 | AM25: 4 | AN25: 0 | AO25: 0 | AP25: 0 | AQ25: 5 | AR25: 1 | AS25: 1 | AT25: 2
A26: Rate of Return on Farm Assets | B26: -0.009033498548 | E26: Working Captial Ratio | Q26: 0.6666666667 | R26: 0.5384615385 | W26: 2 | X26: 1 | Y26: 0 | Z26: 1 | AA26: 0 | AB26: 0 | AC26: 0 | AD26: 2 | AE26: 3 | AF26: 0 | AG26: 1 | AJ26: 3 | AK26: 2 | AL26: 1 | AM26: 0 | AN26: 0 | AO26: 0 | AP26: 0 | AQ26: 1 | AR26: 1 | AS26: 0 | AT26: 1
A27: Rate of Return on Farm Equity | B27: -0.0126860206 | F27: =U1 -> 2017 | G27: 10-Year | S27: Your Farm Line-Current Ratio | W27: 0 | X27: 0 | Y27: 2 | Z27: 0 | AA27: 0 | AB27: 0 | AC27: 0 | AD27: 2 | AE27: 1 | AF27: 1 | AG27: 0 | AJ27: 0 | AK27: 2 | AL27: 0 | AM27: 0 | AN27: 0 | AO27: 0 | AP27: 0 | AQ27: 2 | AR27: 3 | AS27: 1 | AT27: 0
A28: Asset Turnover Rate | B28: 0.135311195 | E28: -0.5 | F28: =Q28 -> 0 | G28: =R28 -> 0 | Q28: =Q38 -> 0 | R28: =R38 -> 0 | S28: X's | T28: =IF(B22<4.5,B22,4.5) -> 4.5 | U28: =IF(B22<4.5,B22,4.5) -> 4.5 | W28: 12 | X28: 3 | Z28: 0 | AA28: 0 | AB28: 0 | AC28: 0 | AG28: 0 | AJ28: 11 | AK28: 3 | AM28: 0 | AN28: 0 | AO28: 0 | AP28: 0 | AT28: 0
A29: Operating Expense Ratio | B29: 0.7581466476 | E29: =E28+0.25 -> -0.25 | F29: =Q29 -> 0 | G29: =R29 -> 0 | Q29: =Q28+Q39 -> 0 | R29: =R28+R39 -> 0 | S29: Y's | T29: 0 | U29: 1 | V29: Count | W29: 22 | X29: 22 | Y29: 22 | Z29: 22 | AA29: 22 | AB29: 22 | AC29: 22 | AD29: 22 | AE29: 22 | AF29: 22 | AG29: 22 | AI29: Count | AJ29: 29 | AK29: 29 | AL29: 29 | AM29: 29 | AN29: 29 | AO29: 29 | AP29: 29 | AQ29: 29 | AR29: 29 | AS29: 29 | AT29: 29
A30: Depreciation Expense Ratio | B30: 0.0997327079 | E30: =E29+0.25 -> 0 | F30: 0 | G30: 0 | Q30: 0 | R30: 0 | S30: =IF(B22=F18,U1 &" Average","Your Farm") -> 2017 Average | V30: Average | W30: 1.994528694 | X30: 0.5130575695 | Y30: 0.1894982394 | Z30: -0.1044807768 | AA30: -0.01101200878 | AB30: -0.02503690954 | AC30: 0.1053974628 | AD30: 0.8048667005 | AE30: 0.06392284563 | AF30: 0.06324294273 | AG30: 0.06796751114 | AI30: Average | AJ30: 2.009708791 | AK30: 0.4798216019 | AL30: 0.1745908466 | AM30: -0.07995789999 | AN30: -0.0113617128 | AO30: -0.02395704641 | AP30: 0.1420961882 | AQ30: 0.7907350063 | AR30: 0.06671837687 | AS30: 0.04439591558 | AT30: 0.09815070122
A31: Interest Expense Ratio | B31: 0.02114393245 | E31: 0.25 | F31: 0.2 | G31: 0.3076923077 | Q31: 0.2 | R31: 0.3076923077 | S31: Your Farm Line-Working Capital Ratio | V31: Non-ratio average | X31: 129086.0195 | AG31: 17100.72318 | AI31: Non-ratio average | AK31: 92970.57308 | AT31: 19017.74931
A32: Net Farm Income Ratio: | B32: 0.1209767121 | E32: 0.5 | F32: 0.5333333333 | G32: 0.5384615385 | Q32: 0.5333333333 | R32: 0.5384615385 | S32: X's | T32: =IF(B23>1.75,1.75,B23) -> 0.8455200441 | U32: =IF(B23>1.75,1.75,B23) -> 0.8455200441
A33: *Defaults to Averages for 2017 if not entered | E33: 0.75 | F33: 0.6 | G33: 0.6153846154 | Q33: 0.6 | R33: 0.6153846154 | S33: Y's | T33: 0 | U33: 1 | W33: 500-1000No
E34: 1 | F34: 0.6666666667 | G34: 0.6923076923 | Q34: 0.6666666667 | R34: 0.6923076923 | S34: =IF(B23=F39,U1 &" Average","Your Farm") -> 2017 Average | W34: Current Ratio | X34: Working Capital Ratio | Y34: Debt to Asset Ratio | Z34: Operating Profit Margin | AA34: ROA | AB34: ROE | AC34: Asset Turnover | AD34: Operating Expense Ratio | AE34: Depr Expense Ratio | AF34: Interest Expense Ratio | AG34: NFI Ratio | AJ34: Current Ratio | AK34: Working Capital Ratio | AL34: Debt to Asset Ratio | AM34: Operating Profit Margin | AN34: ROA | AO34: ROE | AP34: Asset Turnover | AQ34: Operating Expense Ratio | AR34: Depr Expense Ratio | AS34: Interest Expense Ratio | AT34: NFI Ratio
E35: 1.25 | F35: 0.7333333333 | G35: 0.6923076923 | Q35: 0.7333333333 | R35: 0.6923076923 | W35: 0 | X35: 0 | Y35: 4 | Z35: 1 | AA35: 1 | AB35: 1 | AC35: 0 | AD35: 0 | AE35: 0 | AF35: 3 | AG35: 1 | AJ35: 0 | AK35: 0 | AL35: 2 | AM35: 1 | AN35: 0 | AO35: 0 | AP35: 0 | AQ35: 0 | AR35: 0 | AS35: 1 | AT35: 0
E36: 1.5 | F36: 0.8 | G36: 0.7692307692 | Q36: 0.8 | R36: 0.7692307692 | W36: 0 | X36: 0 | Y36: 5 | Z36: 1 | AA36: 1 | AB36: 4 | AC36: 3 | AD36: 2 | AE36: 2 | AF36: 6 | AG36: 0 | AJ36: 0 | AK36: 0 | AL36: 5 | AM36: 0 | AN36: 1 | AO36: 1 | AP36: 0 | AQ36: 1 | AR36: 1 | AS36: 7 | AT36: 0
E37: More | F37: 1 | G37: 1 | Q37: 1 | R37: 1 | S37: =$F$18 -> 8.142710697 | W37: 0 | X37: 0 | Y37: 3 | Z37: 2 | AA37: 4 | AB37: 4 | AC37: 5 | AD37: 1 | AE37: 2 | AF37: 4 | AG37: 2 | AJ37: 0 | AK37: 0 | AL37: 1 | AM37: 0 | AN37: 1 | AO37: 2 | AP37: 6 | AQ37: 4 | AR37: 3 | AS37: 4 | AT37: 0
E38: Count | F38: =F17 -> 15 | G38: =G17 -> 13 | Q38: =IF($T$6=$W$1,X3/$F$38,IF($T$6=$W$17,X19/$F$38,IF($T$6=$W$33,X35/$F$38,IF($T$6=$W$49,X51/$F$38,IF($T$6=$W$65,X67/$F$38,IF($T$6=$W$81,X83/$F$38,IF($T$6=$W$97,X99/$F$38,IF($T$6=$W$113,X115/$F$38,IF($T$6=$W$129,X131/$F$38,IF($T$6=$W$145,X147/$F$38,IF($T$6=$W$161,X163/$F$38,"N/A"))))))))))) -> 0 | R38: =IF($T$6=$W$1,AK3/$G$38,IF($T$6=$W$17,AK19/$G$38,IF($T$6=$W$33,AK35/$G$38,IF($T$6=$W$49,AK51/$G$38,IF($T$6=$W$65,AK67/$G$38,IF($T$6=$W$81,AK83/$G$38,IF($T$6=$W$97,AK99/$G$38,IF($T$6=$W$113,AK115/$G$38,IF($T$6=$W$129,AK131/$G$38,IF($T$6=$W$145,AK147/$G$38,IF($T$6=$W$161,AK163/$G$38,"N/A"))))))))))) -> 0 | S38: =$F$39 -> 0.8455200441 | W38: 2 | X38: 3 | Y38: 0 | Z38: 2 | AA38: 6 | AB38: 3 | AC38: 3 | AD38: 3 | AE38: 2 | AF38: 2 | AG38: 3 | AJ38: 2 | AK38: 4 | AL38: 1 | AM38: 1 | AN38: 4 | AO38: 8 | AP38: 3 | AQ38: 4 | AR38: 1 | AS38: 1 | AT38: 1
E39: Average | F39: =IF($T$6=$W$1,$X$14,IF($T$6=$W$17,$X$30,IF($T$6=$W$33,$X$46,IF($T$6=$W$49,$X$62,IF($T$6=$W$65,$X$78,IF($T$6=$W$81,$X$94,IF($T$6=$W$97,$X$110,IF($T$6=$W$113,$X$126,IF($T$6=$W$129,$X$142,IF($T$6=$W$145,$X$158,IF($T$6=$W$161,$X$174,"N/A"))))))))))) -> 0.8455200441 | G39: =IF($T$6=$W$1,$AK$14,IF($T$6=$W$17,$AK$30,IF($T$6=$W$33,$AK$46,IF($T$6=$W$49,$AK$62,IF($T$6=$W$65,$AK$78,IF($T$6=$W$81,$AK$94,IF($T$6=$W$97,$AK$110,IF($T$6=$W$113,$AK$126,IF($T$6=$W$129,$AK$142,IF($T$6=$W$145,$AK$158,IF($T$6=$W$161,$AK$174,"N/A"))))))))))) -> 0.7232954054 | Q39: 0 | R39: 0 | S39: =$F$59 -> 0.06297066149 | W39: 1 | X39: 5 | Y39: 2 | Z39: 3 | AA39: 0 | AB39: 1 | AC39: 1 | AD39: 2 | AE39: 2 | AF39: 0 | AG39: 2 | AJ39: 2 | AK39: 3 | AL39: 2 | AM39: 0 | AN39: 5 | AO39: 1 | AP39: 1 | AQ39: 3 | AR39: 7 | AS39: 0 | AT39: 3
E40: Working Capital Avg. | Q40: 0 | R40: 0 | S40: =$F$81 -> -0.06676091028 | W40: 0 | X40: 1 | Y40: 0 | Z40: 3 | AA40: 1 | AB40: 1 | AC40: 2 | AD40: 2 | AE40: 4 | AF40: 0 | AG40: 4 | AJ40: 0 | AK40: 1 | AL40: 1 | AM40: 8 | AN40: 1 | AO40: 0 | AP40: 1 | AQ40: 0 | AR40: 1 | AS40: 0 | AT40: 5
F41: =IF($T$6=$W$1,$X$15,IF($T$6=$W$17,$X$31,IF($T$6=$W$33,$X$47,IF($T$6=$W$49,$X$63,IF($T$6=$W$65,$X$79,IF($T$6=$W$81,$X$95,IF($T$6=$W$97,$X$111,IF($T$6=$W$113,$X$127,IF($T$6=$W$129,$X$143,IF($T$6=$W$145,$X$159,IF($T$6=$W$161,$X$175,"N/A"))))))))))) -> 264339.7993 | G41: =IF($T$6=$W$1,$AK$15,IF($T$6=$W$17,$AK$31,IF($T$6=$W$33,$AK$47,IF($T$6=$W$49,$AK$63,IF($T$6=$W$65,$AK$79,IF($T$6=$W$81,$AK$95,IF($T$6=$W$97,$AK$111,IF($T$6=$W$113,$AK$127,IF($T$6=$W$129,$AK$143,IF($T$6=$W$145,$AK$159,IF($T$6=$W$161,$AK$175,"N/A"))))))))))) -> 237491.3494 | Q41: 0.2 | R41: 0.3076923077 | S41: =$F$102 -> -0.009033498548 | W41: 0 | X41: 1 | Y41: 1 | Z41: 1 | AA41: 0 | AB41: 0 | AC41: 0 | AD41: 3 | AE41: 2 | AF41: 0 | AG41: 1 | AJ41: 2 | AK41: 1 | AL41: 1 | AM41: 3 | AN41: 1 | AO41: 1 | AP41: 1 | AQ41: 0 | AR41: 0 | AS41: 0 | AT41: 3
Q42: 0.3333333333 | R42: 0.2307692308 | S42: =$F$123 -> -0.0126860206 | W42: 0 | X42: 1 | Y42: 0 | Z42: 2 | AA42: 1 | AB42: 0 | AC42: 0 | AD42: 0 | AE42: 1 | AF42: 0 | AG42: 2 | AJ42: 0 | AK42: 0 | AL42: 0 | AM42: 0 | AN42: 0 | AO42: 0 | AP42: 0 | AQ42: 1 | AR42: 0 | AS42: 0 | AT42: 1
F43: =IF(B23=F39,"","Your Farm") ->  | G43: =IF(B23=F39,"",B23) ->  | Q43: 0.06666666667 | R43: 0.07692307692 | S43: =$F$144 -> 0.135311195 | W43: 2 | X43: 1 | Y43: 0 | Z43: 0 | AA43: 0 | AB43: 0 | AC43: 0 | AD43: 2 | AE43: 0 | AF43: 0 | AG43: 0 | AJ43: 0 | AK43: 1 | AL43: 0 | AM43: 0 | AN43: 0 | AO43: 0 | AP43: 0 | AQ43: 0 | AR43: 0 | AS43: 0 | AT43: 0
Q44: 0.06666666667 | R44: 0.07692307692 | S44: =$F$164 -> 0.7581466476 | W44: 10 | X44: 3 | Z44: 0 | AA44: 1 | AB44: 1 | AC44: 1 | AG44: 0 | AJ44: 7 | AK44: 3 | AM44: 0 | AN44: 0 | AO44: 0 | AP44: 1 | AT44: 0
Q45: 0.06666666667 | R45: 0 | S45: =$F$185 -> 0.0997327079 | V45: Count | W45: 15 | X45: 15 | Y45: 15 | Z45: 15 | AA45: 15 | AB45: 15 | AC45: 15 | AD45: 15 | AE45: 15 | AF45: 15 | AG45: 15 | AI45: Count | AJ45: 13 | AK45: 13 | AL45: 13 | AM45: 13 | AN45: 13 | AO45: 13 | AP45: 13 | AQ45: 13 | AR45: 13 | AS45: 13 | AT45: 13
Q46: 0.06666666667 | R46: 0.07692307692 | S46: =$F$206 -> 0.02114393245 | V46: Average | W46: 8.142710697 | X46: 0.8455200441 | Y46: 0.06297066149 | Z46: -0.06676091028 | AA46: -0.009033498548 | AB46: -0.0126860206 | AC46: 0.135311195 | AD46: 0.7581466476 | AE46: 0.0997327079 | AF46: 0.02114393245 | AG46: 0.1209767121 | AI46: Average | AJ46: 5.533046483 | AK46: 0.7232954054 | AL46: 0.09836288163 | AM46: 0.06325991278 | AN46: 0.01248969662 | AO46: 0.008149786924 | AP46: 0.1974346164 | AQ46: 0.6716050574 | AR46: 0.0830555815 | AS46: 0.02558114103 | AT46: 0.2197582201
E47: Debt to Asset Ratio | Q47: 0.2 | R47: 0.2307692308 | S47: =$F$228 -> 0.1209767121 | V47: Non-ratio average | X47: 264339.7993 | AG47: 37821.646 | AI47: Non-ratio average | AK47: 237491.3494 | AT47: 72156.79216
F48: =U1 -> 2017 | G48: 10-Year
E49: 0 | F49: =Q49 -> 0.2666666667 | G49: =R49 -> 0.1538461538 | Q49: =Q58 -> 0.2666666667 | R49: =R58 -> 0.1538461538 | S49: Your Farm Line-Debt to Asset | W49: 500-1000Yes
E50: 0.1 | F50: =Q50 -> 0.6 | G50: =R50 -> 0.5384615385 | Q50: =Q49+Q59 -> 0.6 | R50: 0.5384615385 | S50: X's | T50: =IF(B24>0.8,0.8,B24) -> 0.06297066149 | U50: =T50 -> 0.06297066149 | W50: Current Ratio | X50: Working Capital Ratio | Y50: Debt to Asset Ratio | Z50: Operating Profit Margin | AA50: ROA | AB50: ROE | AC50: Asset Turnover | AD50: Operating Expense Ratio | AE50: Depr Expense Ratio | AF50: Interest Expense Ratio | AG50: NFI Ratio | AJ50: Current Ratio | AK50: Working Capital Ratio | AL50: Debt to Asset Ratio | AM50: Operating Profit Margin | AN50: ROA | AO50: ROE | AP50: Asset Turnover | AQ50: Operating Expense Ratio | AR50: Depr Expense Ratio | AS50: Interest Expense Ratio | AT50: NFI Ratio
E51: 0.2 | F51: 0.8 | G51: 0.6153846154 | Q51: 0.8 | R51: 0.6153846154 | S51: Y's | T51: 0 | U51: 1 | W51: 0 | X51: 1 | Y51: 7 | Z51: 0 | AA51: 4 | AB51: 11 | AC51: 0 | AD51: 1 | AE51: 0 | AF51: 2 | AG51: 0 | AJ51: 0 | AK51: 0 | AL51: 2 | AM51: 0 | AN51: 0 | AO51: 2 | AP51: 0 | AQ51: 0 | AR51: 0 | AS51: 2 | AT51: 0
E52: 0.3 | F52: 0.8 | G52: 0.6923076923 | Q52: 0.8 | R52: 0.6923076923 | S52: =IF(B24=F59,U1 &" Average","Your Farm") -> 2017 Average | W52: 0 | X52: 0 | Y52: 5 | Z52: 2 | AA52: 5 | AB52: 5 | AC52: 6 | AD52: 1 | AE52: 2 | AF52: 14 | AG52: 2 | AJ52: 0 | AK52: 1 | AL52: 9 | AM52: 1 | AN52: 0 | AO52: 3 | AP52: 2 | AQ52: 1 | AR52: 4 | AS52: 14 | AT52: 0
E53: 0.4 | F53: 0.9333333333 | G53: 0.8461538462 | Q53: 0.9333333333 | R53: 0.8461538462 | W53: 7 | X53: 6 | Y53: 3 | Z53: 9 | AA53: 10 | AB53: 11 | AC53: 11 | AD53: 1 | AE53: 6 | AF53: 7 | AG53: 4 | AJ53: 3 | AK53: 2 | AL53: 6 | AM53: 0 | AN53: 5 | AO53: 9 | AP53: 12 | AQ53: 4 | AR53: 7 | AS53: 8 | AT53: 0
E54: 0.5 | F54: 0.9333333333 | G54: 0.9230769231 | Q54: 0.9333333333 | R54: 0.9230769231 | W54: 4 | X54: 8 | Y54: 4 | Z54: 6 | AA54: 10 | AB54: 4 | AC54: 7 | AD54: 6 | AE54: 10 | AF54: 4 | AG54: 11 | AJ54: 3 | AK54: 3 | AL54: 4 | AM54: 3 | AN54: 16 | AO54: 14 | AP54: 9 | AQ54: 18 | AR54: 10 | AS54: 6 | AT54: 3
E55: 0.6 | F55: 1 | G55: 1 | Q55: 1 | R55: 1 | W55: 4 | X55: 5 | Y55: 6 | Z55: 10 | AA55: 3 | AB55: 1 | AC55: 4 | AD55: 7 | AE55: 2 | AF55: 5 | AG55: 10 | AJ55: 2 | AK55: 11 | AL55: 6 | AM55: 9 | AN55: 9 | AO55: 2 | AP55: 5 | AQ55: 5 | AR55: 6 | AS55: 1 | AT55: 9
E56: 0.7 | F56: 1 | G56: 1 | Q56: 1 | R56: 1 | W56: 1 | X56: 4 | Y56: 2 | Z56: 4 | AA56: 2 | AB56: 0 | AC56: 2 | AD56: 11 | AE56: 5 | AF56: 1 | AG56: 5 | AJ56: 2 | AK56: 5 | AL56: 3 | AM56: 16 | AN56: 1 | AO56: 1 | AP56: 3 | AQ56: 5 | AR56: 2 | AS56: 1 | AT56: 16
E57: More | F57: =Q57 -> 1 | G57: 1 | Q57: 1 | R57: 1 | W57: 0 | X57: 4 | Y57: 2 | Z57: 2 | AA57: 0 | AB57: 1 | AC57: 0 | AD57: 5 | AE57: 4 | AF57: 1 | AG57: 1 | AJ57: 3 | AK57: 3 | AL57: 1 | AM57: 4 | AN57: 3 | AO57: 2 | AP57: 1 | AQ57: 1 | AR57: 4 | AS57: 1 | AT57: 6
E58: Count | F58: =F38 -> 15 | G58: =G38 -> 13 | Q58: =IF($T$6=$W$1,Y3/$F$58,IF($T$6=$W$17,Y19/$F$58,IF($T$6=$W$33,Y35/$F$58,IF($T$6=$W$49,Y51/$F$58,IF($T$6=$W$65,Y67/$F$58,IF($T$6=$W$81,Y83/$F$58,IF($T$6=$W$97,Y99/$F$58,IF($T$6=$W$113,Y115/$F$58,IF($T$6=$W$129,Y131/$F$58,IF($T$6=$W$145,Y147/$F$58,IF($T$6=$W$161,Y163/$F$58,"N/A"))))))))))) -> 0.2666666667 | R58: =IF($T$6=$W$1,AL3/$G$38,IF($T$6=$W$17,AL19/$G$38,IF($T$6=$W$33,AL35/$G$38,IF($T$6=$W$49,AL51/$G$38,IF($T$6=$W$65,AL67/$G$38,IF($T$6=$W$81,AL83/$G$38,IF($T$6=$W$97,AL99/$G$38,IF($T$6=$W$113,AL115/$G$38,IF($T$6=$W$129,AL131/$G$38,IF($T$6=$W$145,AL147/$G$38,IF($T$6=$W$161,AL163/$G$38,"N/A"))))))))))) -> 0.1538461538 | W58: 1 | X58: 0 | Y58: 1 | Z58: 1 | AA58: 0 | AB58: 1 | AC58: 1 | AD58: 2 | AE58: 2 | AF58: 0 | AG58: 2 | AJ58: 3 | AK58: 1 | AL58: 1 | AM58: 1 | AN58: 0 | AO58: 0 | AP58: 1 | AQ58: 0 | AR58: 0 | AS58: 1 | AT58: 0
E59: Average | F59: =IF($T$6=$W$1,$Y$14,IF($T$6=$W$17,$Y$30,IF($T$6=$W$33,$Y$46,IF($T$6=$W$49,$Y$62,IF($T$6=$W$65,$Y$78,IF($T$6=$W$81,$Y$94,IF($T$6=$W$97,$Y$110,IF($T$6=$W$113,$Y$126,IF($T$6=$W$129,$Y$142,IF($T$6=$W$145,$Y$158,IF($T$6=$W$161,$Y$174,"N/A"))))))))))) -> 0.06297066149 | G59: =IF($T$6=$W$1,$AL$14,IF($T$6=$W$17,$AL$30,IF($T$6=$W$33,$AL$46,IF($T$6=$W$49,$AL$62,IF($T$6=$W$65,$AL$78,IF($T$6=$W$81,$AL$94,IF($T$6=$W$97,$AL$110,IF($T$6=$W$113,$AL$126,IF($T$6=$W$129,$AL$142,IF($T$6=$W$145,$AL$158,IF($T$6=$W$161,$AL$174,"N/A"))))))))))) -> 0.09836288163 | Q59: 0.3333333333 | R59: 0.3846153846 | W59: 0 | X59: 1 | Y59: 5 | Z59: 1 | AA59: 0 | AB59: 0 | AC59: 1 | AD59: 1 | AE59: 4 | AF59: 1 | AG59: 0 | AJ59: 0 | AK59: 2 | AL59: 2 | AM59: 0 | AN59: 0 | AO59: 0 | AP59: 0 | AQ59: 0 | AR59: 1 | AS59: 0 | AT59: 0
Q60: 0.2 | R60: 0.07692307692 | W60: 18 | X60: 6 | Z60: 0 | AA60: 1 | AB60: 1 | AC60: 3 | AG60: 0 | AJ60: 18 | AK60: 6 | AM60: 0 | AN60: 0 | AO60: 1 | AP60: 1 | AT60: 0
Q61: 0 | R61: 0.07692307692 | V61: Count | W61: 35 | X61: 35 | Y61: 35 | Z61: 35 | AA61: 35 | AB61: 35 | AC61: 35 | AD61: 35 | AE61: 35 | AF61: 35 | AG61: 35 | AI61: Count | AJ61: 34 | AK61: 34 | AL61: 34 | AM61: 34 | AN61: 34 | AO61: 34 | AP61: 34 | AQ61: 34 | AR61: 34 | AS61: 34 | AT61: 34
Q62: 0.1333333333 | R62: 0.1538461538 | V62: Average | W62: 2.107931203 | X62: 0.4804846614 | Y62: 0.2605018307 | Z62: -0.07123783783 | AA62: -0.01376380371 | AB62: -0.03182003819 | AC62: 0.1932091727 | AD62: 0.7719744527 | AE62: 0.1103091263 | AF62: 0.04733100799 | AG62: 0.07038541303 | AI62: Average | AJ62: 3.533975917 | AK62: 0.6944750477 | AL62: 0.2051023176 | AM62: 0.06215952493 | AN62: 0.01286798624 | AO62: 0.003753867917 | AP62: 0.2070155179 | AQ62: 0.6816792613 | AR62: 0.08703456675 | AS62: 0.04416204297 | AT62: 0.1871241289
F63: =IF(B24=F59,"","Your Farm") ->  | G63: =IF(B24=F59,"",B24) ->  | Q63: 0 | R63: 0.07692307692 | V63: Non-ratio average | X63: 183014.4574 | AG63: 26809.48886 | AI63: Non-ratio average | AK63: 243465.4519 | AT63: 65601.00433
Q64: 0.06666666667 | R64: 0.07692307692
Q65: 0 | R65: 0 | W65: Blank
Q66: 0 | R66: 0 | W66: Current Ratio | X66: Working Capital Ratio | Y66: Debt to Asset Ratio | Z66: Operating Profit Margin | AA66: ROA | AB66: ROE | AC66: Asset Turnover | AD66: Operating Expense Ratio | AE66: Depr Expense Ratio | AF66: Interest Expense Ratio | AG66: NFI Ratio | AJ66: Current Ratio | AK66: Working Capital Ratio | AL66: Debt to Asset Ratio | AM66: Operating Profit Margin | AN66: ROA | AO66: ROE | AP66: Asset Turnover | AQ66: Operating Expense Ratio | AR66: Depr Expense Ratio | AS66: Interest Expense Ratio | AT66: NFI Ratio
E68: Operating Profit Margin Ratio
F69: =U1 -> 2017 | G69: 10-Year
E70: -0.6 | F70: =Q70 -> 0.06666666667 | G70: =R70 -> 0.07692307692 | Q70: =Q80 -> 0.06666666667 | R70: =R80 -> 0.07692307692
E71: -0.45 | F71: =Q71 -> 0.1333333333 | G71: =R71 -> 0.07692307692 | Q71: =Q70+Q81 -> 0.1333333333 | R71: =R70+R81 -> 0.07692307692 | S71: Your Farm Line-Operating Profit Margin Ratio
E72: -0.3 | F72: 0.2666666667 | G72: 0.07692307692 | Q72: 0.2666666667 | R72: 0.07692307692 | S72: X's | T72: =IF(B25>0.75,0.75,B25) -> -0.06676091028 | U72: =T72 -> -0.06676091028
E73: -0.15 | F73: 0.4 | G73: 0.1538461538 | Q73: 0.4 | R73: 0.1538461538 | S73: Y's | T73: 0 | U73: 1
E74: 0 | F74: 0.6 | G74: 0.1538461538 | Q74: 0.6 | R74: 0.1538461538 | S74: =IF(B25=F81,U1 &" Average","Your Farm") -> 2017 Average
E75: 0.15 | F75: 0.8 | G75: 0.7692307692 | Q75: 0.8 | R75: 0.7692307692
E76: 0.3 | F76: 0.8666666667 | G76: 1 | Q76: 0.8666666667 | R76: 1
E77: 0.45 | F77: 1 | G77: 1 | Q77: 1 | R77: 1 | V77: Count | AI77: Count
E78: 0.6 | F78: 1 | G78: 1 | Q78: 1 | R78: 1 | V78: Average | AI78: Average
E79: More | F79: 1 | G79: 1 | Q79: 1 | R79: 1 | V79: Non-ratio average | AI79: Non-ratio average
E80: Count | F80: =F58 -> 15 | G80: =G58 -> 13 | Q80: =IF($T$6=$W$1,Z3/$F$80,IF($T$6=$W$17,Z19/$F$80,IF($T$6=$W$33,Z35/$F$80,IF($T$6=$W$49,Z51/$F$80,IF($T$6=$W$65,Z67/$F$80,IF($T$6=$W$81,Z83/$F$80,IF($T$6=$W$97,Z99/$F$80,IF($T$6=$W$113,Z115/$F$80,IF($T$6=$W$129,Z131/$F$80,IF($T$6=$W$145,Z147/$F$80,IF($T$6=$W$161,Z163/$F$80,"N/A"))))))))))) -> 0.06666666667 | R80: =IF($T$6=$W$1,AM3/$G$38,IF($T$6=$W$17,AM19/$G$38,IF($T$6=$W$33,AM35/$G$38,IF($T$6=$W$49,AM51/$G$38,IF($T$6=$W$65,AM67/$G$38,IF($T$6=$W$81,AM83/$G$38,IF($T$6=$W$97,AM99/$G$38,IF($T$6=$W$113,AM115/$G$38,IF($T$6=$W$129,AM131/$G$38,IF($T$6=$W$145,AM147/$G$38,IF($T$6=$W$161,AM163/$G$38,"N/A"))))))))))) -> 0.07692307692
E81: Average | F81: =IF($T$6=$W$1,$Z$14,IF($T$6=$W$17,$Z$30,IF($T$6=$W$33,$Z$46,IF($T$6=$W$49,$Z$62,IF($T$6=$W$65,$Z$78,IF($T$6=$W$81,$Z$94,IF($T$6=$W$97,$Z$110,IF($T$6=$W$113,$Z$126,IF($T$6=$W$129,$Z$142,IF($T$6=$W$145,$Z$158,IF($T$6=W161,Z174,"N/A"))))))))))) -> -0.06676091028 | G81: =IF($T$6=$W$1,$AM$14,IF($T$6=$W$17,$AM$30,IF($T$6=$W$33,$AM$46,IF($T$6=$W$49,$AM$62,IF($T$6=$W$65,$AM$78,IF($T$6=$W$81,$AM$94,IF($T$6=$W$97,$AM$110,IF($T$6=$W$113,$AM$126,IF($T$6=$W$129,$AM$142,IF($T$6=$W$145,$AM$158,IF($T$6=$W$161,$AM$174,"N/A"))))))))))) -> 0.06325991278 | Q81: 0.06666666667 | R81: 0 | W81: Greater than 1000No
Q82: 0.1333333333 | R82: 0 | W82: Current Ratio | X82: Working Capital Ratio | Y82: Debt to Asset Ratio | Z82: Operating Profit Margin | AA82: ROA | AB82: ROE | AC82: Asset Turnover | AD82: Operating Expense Ratio | AE82: Depr Expense Ratio | AF82: Interest Expense Ratio | AG82: NFI Ratio | AJ82: Current Ratio | AK82: Working Capital Ratio | AL82: Debt to Asset Ratio | AM82: Operating Profit Margin | AN82: ROA | AO82: ROE | AP82: Asset Turnover | AQ82: Operating Expense Ratio | AR82: Depr Expense Ratio | AS82: Interest Expense Ratio | AT82: NFI Ratio
Q83: 0.1333333333 | R83: 0.07692307692 | W83: 0 | X83: 0 | Y83: 3 | Z83: 0 | AA83: 0 | AB83: 6 | AC83: 0 | AD83: 0 | AE83: 0 | AF83: 2 | AG83: 0 | AJ83: 0 | AK83: 0 | AL83: 0 | AM83: 0 | AN83: 1 | AO83: 2 | AP83: 0 | AQ83: 1 | AR83: 0 | AS83: 0 | AT83: 0
Q84: 0.2 | R84: 0 | W84: 1 | X84: 4 | Y84: 6 | Z84: 0 | AA84: 3 | AB84: 5 | AC84: 2 | AD84: 1 | AE84: 0 | AF84: 19 | AG84: 0 | AJ84: 0 | AK84: 0 | AL84: 7 | AM84: 0 | AN84: 0 | AO84: 1 | AP84: 0 | AQ84: 0 | AR84: 0 | AS84: 24 | AT84: 0
F85: =IF(B25=F81,"","Your Farm") ->  | G85: =IF(B25=F81,"",B25) ->  | Q85: 0.2 | R85: 0.6153846154 | W85: 6 | X85: 3 | Y85: 8 | Z85: 1 | AA85: 13 | AB85: 10 | AC85: 7 | AD85: 7 | AE85: 5 | AF85: 12 | AG85: 2 | AJ85: 4 | AK85: 4 | AL85: 8 | AM85: 0 | AN85: 0 | AO85: 3 | AP85: 3 | AQ85: 8 | AR85: 4 | AS85: 8 | AT85: 0
Q86: 0.06666666667 | R86: 0.2307692308 | W86: 7 | X86: 9 | Y86: 4 | Z86: 3 | AA86: 8 | AB86: 11 | AC86: 5 | AD86: 6 | AE86: 11 | AF86: 2 | AG86: 9 | AJ86: 3 | AK86: 8 | AL86: 7 | AM86: 1 | AN86: 6 | AO86: 9 | AP86: 4 | AQ86: 15 | AR86: 14 | AS86: 3 | AT86: 0
Q87: 0.1333333333 | R87: 0 | W87: 6 | X87: 7 | Y87: 6 | Z87: 14 | AA87: 9 | AB87: 4 | AC87: 4 | AD87: 11 | AE87: 7 | AF87: 2 | AG87: 9 | AJ87: 2 | AK87: 8 | AL87: 1 | AM87: 2 | AN87: 13 | AO87: 10 | AP87: 7 | AQ87: 6 | AR87: 13 | AS87: 1 | AT87: 10
Q88: 0 | R88: 0 | W88: 0 | X88: 4 | Y88: 2 | Z88: 16 | AA88: 4 | AB88: 1 | AC88: 6 | AD88: 6 | AE88: 10 | AF88: 0 | AG88: 16 | AJ88: 6 | AK88: 6 | AL88: 10 | AM88: 19 | AN88: 6 | AO88: 5 | AP88: 5 | AQ88: 6 | AR88: 4 | AS88: 0 | AT88: 20
E89: Rate of Return on Farm Assets | Q89: 0 | R89: 0 | W89: 2 | X89: 6 | Y89: 2 | Z89: 3 | AA89: 0 | AB89: 0 | AC89: 6 | AD89: 6 | AE89: 2 | AF89: 0 | AG89: 1 | AJ89: 4 | AK89: 6 | AL89: 0 | AM89: 13 | AN89: 9 | AO89: 5 | AP89: 4 | AQ89: 0 | AR89: 1 | AS89: 0 | AT89: 5
F90: =U1 -> 2017 | G90: 10-Year | W90: 1 | X90: 5 | Y90: 3 | Z90: 1 | AA90: 0 | AB90: 0 | AC90: 2 | AD90: 1 | AE90: 0 | AF90: 1 | AG90: 1 | AJ90: 1 | AK90: 3 | AL90: 2 | AM90: 1 | AN90: 1 | AO90: 0 | AP90: 4 | AQ90: 0 | AR90: 0 | AS90: 0 | AT90: 1
E91: -0.1 | F91: =Q91 -> 0.06666666667 | G91: =R91 -> 0 | Q91: =Q101 -> 0.06666666667 | R91: =R101 -> 0 | W91: 1 | X91: 0 | Y91: 4 | Z91: 0 | AA91: 1 | AB91: 0 | AC91: 2 | AD91: 0 | AE91: 3 | AF91: 0 | AG91: 0 | AJ91: 1 | AK91: 1 | AL91: 1 | AM91: 0 | AN91: 0 | AO91: 1 | AP91: 3 | AQ91: 0 | AR91: 0 | AS91: 0 | AT91: 0
E92: -0.06 | F92: =Q92 -> 0.1333333333 | G92: =R92 -> 0.07692307692 | Q92: =Q91+Q102 -> 0.1333333333 | R92: =R91+R102 -> 0.07692307692 | W92: 14 | X92: 0 | Z92: 0 | AA92: 0 | AB92: 1 | AC92: 4 | AG92: 0 | AJ92: 15 | AK92: 0 | AM92: 0 | AN92: 0 | AO92: 0 | AP92: 6 | AT92: 0
E93: -0.02 | F93: 0.4 | G93: 0.1538461538 | Q93: 0.4 | R93: 0.1538461538 | S93: Your Farm Line-Return on Assets | V93: Count | W93: 38 | X93: 38 | Y93: 38 | Z93: 38 | AA93: 38 | AB93: 38 | AC93: 38 | AD93: 38 | AE93: 38 | AF93: 38 | AG93: 38 | AI93: Count | AJ93: 36 | AK93: 36 | AL93: 36 | AM93: 36 | AN93: 36 | AO93: 36 | AP93: 36 | AQ93: 36 | AR93: 36 | AS93: 36 | AT93: 36
E94: 0.02 | F94: 0.8 | G94: 0.4615384615 | Q94: 0.8 | R94: 0.4615384615 | S94: X's | T94: =IF(B26>0.24,0.24,B26) -> -0.009033498548 | U94: =T94 -> -0.009033498548 | V94: Average | W94: 1.973209992 | X94: 0.3319203883 | Y94: 0.2367527103 | Z94: 0.001910005675 | AA94: 0.0006259356926 | AB94: -0.01222346043 | AC94: 0.3277140486 | AD94: 0.76172543 | AE94: 0.1131631772 | AF94: 0.03120859451 | AG94: 0.09390279828 | AI94: Average | AJ94: 2.87749909 | AK94: 0.416724999 | AL94: 0.2423028042 | AM94: 0.1231954867 | AN94: 0.0526796038 | AO94: 0.05273142608 | AP94: 0.4276098518 | AQ94: 0.6855290398 | AR94: 0.09403016196 | AS94: 0.02651242171 | AT94: 0.1939283765
E95: 0.06 | F95: 0.8 | G95: 0.8461538462 | Q95: 0.8 | R95: 0.8461538462 | S95: Y's | T95: 0 | U95: 1 | V95: Non-ratio average | X95: 265433.2374 | AG95: 75093.07842 | AI95: Non-ratio average | AK95: 360378.1986 | AT95: 167706.663
E96: 0.1 | F96: 0.8666666667 | G96: 0.9230769231 | Q96: 0.8666666667 | R96: 0.9230769231 | S96: =IF(B26=F102,U1 &" Average","Your Farm") -> 2017 Average
E97: 0.14 | F97: 0.8666666667 | G97: 1 | Q97: 0.8666666667 | R97: 1 | W97: Greater than 1000Yes
E98: 0.18 | F98: 0.9333333333 | G98: 1 | Q98: 0.9333333333 | R98: 1 | W98: Current Ratio | X98: Working Capital Ratio | Y98: Debt to Asset Ratio | Z98: Operating Profit Margin | AA98: ROA | AB98: ROE | AC98: Asset Turnover | AD98: Operating Expense Ratio | AE98: Depr Expense Ratio | AF98: Interest Expense Ratio | AG98: NFI Ratio | AJ98: Current Ratio | AK98: Working Capital Ratio | AL98: Debt to Asset Ratio | AM98: Operating Profit Margin | AN98: ROA | AO98: ROE | AP98: Asset Turnover | AQ98: Operating Expense Ratio | AR98: Depr Expense Ratio | AS98: Interest Expense Ratio | AT98: NFI Ratio
E99: 0.22 | F99: 0.9333333333 | G99: 1 | Q99: 0.9333333333 | R99: 1 | W99: 0 | X99: 0 | Y99: 5 | Z99: 0 | AA99: 0 | AB99: 3 | AC99: 0 | AD99: 0 | AE99: 0 | AF99: 4 | AG99: 0 | AJ99: 0 | AK99: 0 | AL99: 0 | AM99: 0 | AN99: 0 | AO99: 0 | AP99: 0 | AQ99: 0 | AR99: 0 | AS99: 0 | AT99: 0
E100: More | F100: =Q100 -> 1 | G100: =R100 -> 1 | Q100: 1 | R100: 1 | W100: 0 | X100: 0 | Y100: 8 | Z100: 1 | AA100: 3 | AB100: 2 | AC100: 6 | AD100: 2 | AE100: 0 | AF100: 15 | AG100: 0 | AJ100: 0 | AK100: 0 | AL100: 9 | AM100: 0 | AN100: 0 | AO100: 2 | AP100: 0 | AQ100: 1 | AR100: 1 | AS100: 18 | AT100: 0
E101: Count | F101: =F80 -> 15 | G101: =G80 -> 13 | Q101: =IF($T$6=$W$1,AA3/$F$101,IF($T$6=$W$17,AA19/$F$101,IF($T$6=$W$33,AA35/$F$101,IF($T$6=$W$49,AA51/$F$101,IF($T$6=$W$65,AA67/$F$101,IF($T$6=$W$81,AA83/$F$101,IF($T$6=$W$97,AA99/$F$101,IF($T$6=$W$113,AA115/$F$101,IF($T$6=$W$129,AA131/$F$101,IF($T$6=$W$145,AA147/$F$101,IF($T$6=$W$161,AA163/$F$101,"N/A"))))))))))) -> 0.06666666667 | R101: =IF($T$6=$W$1,AN3/$G$38,IF($T$6=$W$17,AN19/$G$38,IF($T$6=$W$33,AN35/$G$38,IF($T$6=$W$49,AN51/$G$38,IF($T$6=$W$65,AN67/$G$38,IF($T$6=$W$81,AN83/$G$38,IF($T$6=$W$97,AN99/$G$38,IF($T$6=$W$113,AN115/$G$38,IF($T$6=$W$129,AN131/$G$38,IF($T$6=$W$145,AN147/$G$38,IF($T$6=$W$161,AN163/$G$38,"N/A"))))))))))) -> 0 | W101: 2 | X101: 2 | Y101: 7 | Z101: 0 | AA101: 5 | AB101: 17 | AC101: 19 | AD101: 4 | AE101: 1 | AF101: 12 | AG101: 2 | AJ101: 1 | AK101: 1 | AL101: 7 | AM101: 0 | AN101: 0 | AO101: 3 | AP101: 14 | AQ101: 8 | AR101: 7 | AS101: 19 | AT101: 0
E102: Average | F102: =IF($T$6=$W$1,$AA$14,IF($T$6=$W$17,$AA$30,IF($T$6=$W$33,$AA$46,IF($T$6=$W$49,$AA$62,IF($T$6=$W$65,$AA$78,IF($T$6=$W$81,$AA$94,IF($T$6=$W$97,$AA$110,IF($T$6=$W$113,$AA$126,IF($T$6=$W$129,$AA$142,IF($T$6=$W$145,$AA$158,IF($T$6=$W$161,AA174,"N/A"))))))))))) -> -0.009033498548 | G102: =IF($T$6=$W$1,$AN$14,IF($T$6=$W$17,$AN$30,IF($T$6=$W$33,$AN$46,IF($T$6=$W$49,$AN$62,IF($T$6=$W$65,$AN$78,IF($T$6=$W$81,$AN$94,IF($T$6=$W$97,$AN$110,IF($T$6=$W$113,$AN$126,IF($T$6=$W$129,$AN$142,IF($T$6=$W$145,$AN$158,IF($T$6=$W$161,$AN$174,"N/A"))))))))))) -> 0.01248969662 | Q102: 0.06666666667 | R102: 0.07692307692 | W102: 4 | X102: 3 | Y102: 8 | Z102: 6 | AA102: 21 | AB102: 16 | AC102: 4 | AD102: 9 | AE102: 13 | AF102: 5 | AG102: 7 | AJ102: 3 | AK102: 5 | AL102: 17 | AM102: 0 | AN102: 11 | AO102: 23 | AP102: 15 | AQ102: 25 | AR102: 15 | AS102: 7 | AT102: 0
Q103: 0.2666666667 | R103: 0.07692307692 | W103: 5 | X103: 9 | Y103: 6 | Z103: 10 | AA103: 10 | AB103: 1 | AC103: 7 | AD103: 11 | AE103: 12 | AF103: 3 | AG103: 18 | AJ103: 7 | AK103: 15 | AL103: 9 | AM103: 1 | AN103: 28 | AO103: 15 | AP103: 6 | AQ103: 10 | AR103: 16 | AS103: 2 | AT103: 7
Q104: 0.4 | R104: 0.3076923077 | W104: 3 | X104: 9 | Y104: 3 | Z104: 17 | AA104: 1 | AB104: 2 | AC104: 3 | AD104: 7 | AE104: 10 | AF104: 0 | AG104: 12 | AJ104: 7 | AK104: 12 | AL104: 2 | AM104: 20 | AN104: 4 | AO104: 1 | AP104: 8 | AQ104: 2 | AR104: 6 | AS104: 0 | AT104: 34
Q105: 0 | R105: 0.3846153846 | W105: 2 | X105: 9 | Y105: 2 | Z105: 5 | AA105: 1 | AB105: 0 | AC105: 1 | AD105: 5 | AE105: 4 | AF105: 2 | AG105: 2 | AJ105: 6 | AK105: 8 | AL105: 1 | AM105: 24 | AN105: 3 | AO105: 2 | AP105: 2 | AQ105: 0 | AR105: 1 | AS105: 0 | AT105: 5
F106: =IF(B26=F102,"","Your Farm") ->  | G106: =IF(B26=F102,"",B26) ->  | Q106: 0.06666666667 | R106: 0.07692307692 | W106: 1 | X106: 3 | Y106: 0 | Z106: 2 | AA106: 0 | AB106: 0 | AC106: 0 | AD106: 3 | AE106: 1 | AF106: 0 | AG106: 0 | AJ106: 2 | AK106: 4 | AL106: 0 | AM106: 1 | AN106: 0 | AO106: 0 | AP106: 1 | AQ106: 0 | AR106: 0 | AS106: 0 | AT106: 0
Q107: 0 | R107: 0.07692307692 | W107: 3 | X107: 2 | Y107: 2 | Z107: 0 | AA107: 0 | AB107: 0 | AC107: 1 | AD107: 0 | AE107: 0 | AF107: 0 | AG107: 0 | AJ107: 1 | AK107: 1 | AL107: 1 | AM107: 0 | AN107: 0 | AO107: 0 | AP107: 0 | AQ107: 0 | AR107: 0 | AS107: 0 | AT107: 0
Q108: 0.06666666667 | R108: 0 | W108: 21 | X108: 4 | Z108: 0 | AA108: 0 | AB108: 0 | AC108: 0 | AG108: 0 | AJ108: 19 | AK108: 0 | AM108: 0 | AN108: 0 | AO108: 0 | AP108: 0 | AT108: 0
Q109: 0 | R109: 0 | V109: Count | W109: 41 | X109: 41 | Y109: 41 | Z109: 41 | AA109: 41 | AB109: 41 | AC109: 41 | AD109: 41 | AE109: 41 | AF109: 41 | AG109: 41 | AI109: Count | AJ109: 46 | AK109: 46 | AL109: 46 | AM109: 46 | AN109: 46 | AO109: 46 | AP109: 46 | AQ109: 46 | AR109: 46 | AS109: 46 | AT109: 46
E110: Rate of Return on Farm Equity | Q110: 0.06666666667 | R110: 0 | V110: Average | W110: 3.499238226 | X110: 0.6615722638 | Y110: 0.2246500611 | Z110: 0.02189813921 | AA110: 0.003931277323 | AB110: -0.006042346553 | AC110: 0.1795256339 | AD110: 0.7596257356 | AE110: 0.1024850896 | AF110: 0.0448007818 | AG110: 0.09308839302 | AI110: Average | AJ110: 3.199600255 | AK110: 0.5822865125 | AL110: 0.2272563998 | AM110: 0.1657101128 | AN110: 0.04421523166 | AO110: 0.04394066197 | AP110: 0.2668227721 | AQ110: 0.6680507845 | AR110: 0.08190923464 | AS110: 0.03574149082 | AT110: 0.2142984901
F111: =U1 -> 2017 | G111: 10-Year | V111: Non-ratio average | X111: 612779.062 | AG111: 86222.8078 | AI111: Non-ratio average | AK111: 578006.6983 | AT111: 212723.3931
E112: -0.1 | F112: =Q112 -> 0.06666666667 | G112: =R112 -> 0 | Q112: =Q122 -> 0.06666666667 | R112: =R122 -> 0
E113: -0.05 | F113: =Q113 -> 0.3333333333 | G113: =R113 -> 0.07692307692 | Q113: =Q112+Q123 -> 0.3333333333 | R113: =R112+R123 -> 0.07692307692 | W113: Blank
E114: 0 | F114: 0.6 | G114: 0.2307692308 | Q114: 0.6 | R114: 0.2307692308 | W114: Current Ratio | X114: Working Capital Ratio | Y114: Debt to Asset Ratio | Z114: Operating Profit Margin | AA114: ROA | AB114: ROE | AC114: Asset Turnover | AD114: Operating Expense Ratio | AE114: Depr Expense Ratio | AF114: Interest Expense Ratio | AG114: NFI Ratio | AJ114: Current Ratio | AK114: Working Capital Ratio | AL114: Debt to Asset Ratio | AM114: Operating Profit Margin | AN114: ROA | AO114: ROE | AP114: Asset Turnover | AQ114: Operating Expense Ratio | AR114: Depr Expense Ratio | AS114: Interest Expense Ratio | AT114: NFI Ratio
E115: 0.05 | F115: 0.8 | G115: 0.8461538462 | Q115: 0.8 | R115: 0.8461538462 | S115: Your Farm Line-Return on Equity
E116: 0.1 | F116: 0.8666666667 | G116: 0.9230769231 | Q116: 0.8666666667 | R116: 0.9230769231 | S116: X's | T116: =IF(B27>0.35,0.35,B27) -> -0.0126860206 | U116: =T116 -> -0.0126860206
E117: 0.15 | F117: 0.9333333333 | G117: 0.9230769231 | Q117: 0.9333333333 | R117: 0.9230769231 | S117: Y's | T117: 0 | U117: 1
E118: 0.2 | F118: 0.9333333333 | G118: 1 | Q118: 0.9333333333 | R118: 1 | S118: =IF(B27=F123,U1 &" Average","Your Farm") -> 2017 Average
E119: 0.25 | F119: 0.9333333333 | G119: 1 | Q119: 0.9333333333 | R119: 1
E120: 0.3 | F120: 0.9333333333 | G120: 1 | Q120: 0.9333333333 | R120: 1
E121: More | F121: 1 | G121: 1 | Q121: 1 | R121: 1
E122: Count | F122: =F101 -> 15 | G122: =G101 -> 13 | Q122: =IF($T$6=$W$1,AB3/$F$122,IF($T$6=$W$17,AB19/$F$122,IF($T$6=$W$33,AB35/$F$122,IF($T$6=$W$49,AB51/$F$122,IF($T$6=$W$65,AB67/$F$122,IF($T$6=$W$81,AB83/$F$122,IF($T$6=$W$97,AB99/$F$122,IF($T$6=$W$113,AB115/$F$122,IF($T$6=$W$129,AB131/$F$122,IF($T$6=$W$145,AB147/$F$122,IF($T$6=$W$161,AB163/$F$122,"N/A"))))))))))) -> 0.06666666667 | R122: =IF($T$6=$W$1,AO3/$G$38,IF($T$6=$W$17,AO19/$G$38,IF($T$6=$W$33,AO35/$G$38,IF($T$6=$W$49,AO51/$G$38,IF($T$6=$W$65,AO67/$G$38,IF($T$6=$W$81,AO83/$G$38,IF($T$6=$W$97,AO99/$G$38,IF($T$6=$W$113,AO115/$G$38,IF($T$6=$W$129,AO131/$G$38,IF($T$6=$W$145,AO147/$G$38,IF($T$6=$W$161,AO163/$G$38,"N/A"))))))))))) -> 0
E123: Average | F123: =IF($T$6=$W$1,$AB$14,IF($T$6=$W$17,$AB$30,IF($T$6=$W$33,$AB$46,IF($T$6=$W$49,$AB$62,IF($T$6=$W$65,$AB$78,IF($T$6=$W$81,$AB$94,IF($T$6=$W$97,$AB$110,IF($T$6=$W$113,$AB$126,IF($T$6=$W$129,$AB$142,IF($T$6=$W$145,$AB$158,IF($T$6=W161,AB174,"N/A"))))))))))) -> -0.0126860206 | G123: =IF($T$6=$W$1,$AO$14,IF($T$6=$W$17,$AO$30,IF($T$6=$W$33,$AO$46,IF($T$6=$W$49,$AO$62,IF($T$6=$W$65,$AO$78,IF($T$6=$W$81,$AO$94,IF($T$6=$W$97,$AO$110,IF($T$6=$W$113,$AO$126,IF($T$6=$W$129,$AO$142,IF($T$6=$W$145,$AO$158,IF($T$6=$W$161,$AO$174,"N/A"))))))))))) -> 0.008149786924 | Q123: 0.2666666667 | R123: 0.07692307692
Q124: 0.2666666667 | R124: 0.1538461538
Q125: 0.2 | R125: 0.6153846154 | V125: Count | AI125: Count
Q126: 0.06666666667 | R126: 0.07692307692 | V126: Average | AI126: Average
F127: =IF(B27=F123,"","Your Farm") ->  | G127: =IF(B27=F123,"",B27) ->  | Q127: 0.06666666667 | R127: 0 | V127: Non-ratio average | AI127: Non-ratio average
Q128: 0 | R128: 0.07692307692
Q129: 0 | R129: 0 | W129: All Farms
Q130: 0 | R130: 0 | W130: Current Ratio | X130: Working Capital Ratio | Y130: Debt to Asset Ratio | Z130: Operating Profit Margin | AA130: ROA | AB130: ROE | AC130: Asset Turnover | AD130: Operating Expense Ratio | AE130: Depr Expense Ratio | AF130: Interest Expense Ratio | AG130: NFI Ratio | AJ130: Current Ratio | AK130: Working Capital Ratio | AL130: Debt to Asset Ratio | AM130: Operating Profit Margin | AN130: ROA | AO130: ROE | AP130: Asset Turnover | AQ130: Operating Expense Ratio | AR130: Depr Expense Ratio | AS130: Interest Expense Ratio | AT130: NFI Ratio
E131: Asset Turnover Rate | Q131: 0.06666666667 | R131: 0 | W131: 1 | X131: 5 | Y131: 32 | Z131: 11 | AA131: 12 | AB131: 33 | AC131: 1 | AD131: 3 | AE131: 1 | AF131: 25 | AG131: 7 | AJ131: 0 | AK131: 1 | AL131: 13 | AM131: 9 | AN131: 5 | AO131: 16 | AP131: 0 | AQ131: 1 | AR131: 0 | AS131: 13 | AT131: 1
F132: =U1 -> 2017 | G132: 10-Year | W132: 4 | X132: 9 | Y132: 33 | Z132: 4 | AA132: 15 | AB132: 25 | AC132: 39 | AD132: 7 | AE132: 10 | AF132: 61 | AG132: 5 | AJ132: 1 | AK132: 4 | AL132: 50 | AM132: 4 | AN132: 6 | AO132: 14 | AP132: 16 | AQ132: 4 | AR132: 16 | AS132: 78 | AT132: 1
E133: 0 | F133: =Q133 -> 0 | G133: =R133 -> 0 | Q133: =Q143 -> 0 | R133: =R143 -> 0 | W133: 22 | X133: 13 | Y133: 25 | Z133: 20 | AA133: 43 | AB133: 63 | AC133: 60 | AD133: 20 | AE133: 26 | AF133: 48 | AG133: 14 | AJ133: 16 | AK133: 12 | AL133: 30 | AM133: 3 | AN133: 16 | AO133: 36 | AP133: 61 | AQ133: 35 | AR133: 39 | AS133: 61 | AT133: 5
E134: 0.1 | F134: =Q134 -> 0.2 | G134: =R134 -> 0 | Q134: =Q133+Q144 -> 0.2 | R134: =R133+R144 -> 0 | W134: 28 | X134: 30 | Y134: 23 | Z134: 25 | AA134: 71 | AB134: 44 | AC134: 28 | AD134: 31 | AE134: 45 | AF134: 19 | AG134: 36 | AJ134: 19 | AK134: 27 | AL134: 37 | AM134: 12 | AN134: 65 | AO134: 72 | AP134: 41 | AQ134: 79 | AR134: 58 | AS134: 27 | AT134: 11
E135: 0.2 | F135: 0.5333333333 | G135: 0.4615384615 | Q135: 0.5333333333 | R135: 0.4615384615 | W135: 19 | X135: 34 | Y135: 22 | Z135: 48 | AA135: 27 | AB135: 8 | AC135: 18 | AD135: 47 | AE135: 32 | AF135: 15 | AG135: 56 | AJ135: 22 | AK135: 48 | AL135: 23 | AM135: 24 | AN135: 68 | AO135: 32 | AP135: 26 | AQ135: 34 | AR135: 50 | AS135: 7 | AT135: 49
E136: 0.3 | F136: 0.7333333333 | G136: 0.6923076923 | Q136: 0.7333333333 | R136: 0.6923076923 | W136: 5 | X136: 26 | Y136: 15 | Z136: 47 | AA136: 11 | AB136: 5 | AC136: 14 | AD136: 34 | AE136: 34 | AF136: 6 | AG136: 45 | AJ136: 15 | AK136: 34 | AL136: 23 | AM136: 76 | AN136: 13 | AO136: 10 | AP136: 24 | AQ136: 29 | AR136: 19 | AS136: 3 | AT136: 93
E137: 0.4 | F137: 0.8 | G137: 0.7692307692 | Q137: 0.8 | R137: 0.7692307692 | S137: Your Farm Line-Asset Turnover Rate | W137: 5 | X137: 26 | Y137: 10 | Z137: 18 | AA137: 1 | AB137: 1 | AC137: 7 | AD137: 24 | AE137: 15 | AF137: 4 | AG137: 13 | AJ137: 18 | AK137: 28 | AL137: 6 | AM137: 60 | AN137: 19 | AO137: 10 | AP137: 8 | AQ137: 8 | AR137: 7 | AS137: 2 | AT137: 31
E138: 0.5 | F138: 0.9333333333 | G138: 0.8461538462 | Q138: 0.9333333333 | R138: 0.8461538462 | S138: X's | T138: =IF(B28>0.9,0.9,B28) -> 0.135311195 | U138: =T138 -> 0.135311195 | W138: 7 | X138: 12 | Y138: 7 | Z138: 9 | AA138: 1 | AB138: 2 | AC138: 3 | AD138: 9 | AE138: 9 | AF138: 1 | AG138: 7 | AJ138: 11 | AK138: 10 | AL138: 6 | AM138: 6 | AN138: 1 | AO138: 1 | AP138: 6 | AQ138: 2 | AR138: 1 | AS138: 2 | AT138: 3
E139: 0.6 | F139: 0.9333333333 | G139: 0.9230769231 | Q139: 0.9333333333 | R139: 0.9230769231 | S139: Y's | T139: 0 | U139: 1 | W139: 6 | X139: 9 | Y139: 17 | Z139: 1 | AA139: 1 | AB139: 0 | AC139: 4 | AD139: 9 | AE139: 12 | AF139: 5 | AG139: 0 | AJ139: 3 | AK139: 9 | AL139: 6 | AM139: 0 | AN139: 1 | AO139: 1 | AP139: 3 | AQ139: 2 | AR139: 4 | AS139: 1 | AT139: 0
E140: 0.7 | F140: 0.9333333333 | G140: 0.9230769231 | Q140: 0.9333333333 | R140: 0.9230769231 | S140: =IF(B28=F144,U1 &" Average","Your Farm") -> 2017 Average | W140: 87 | X140: 20 | Z140: 1 | AA140: 2 | AB140: 3 | AC140: 10 | AG140: 1 | AJ140: 89 | AK140: 21 | AM140: 0 | AN140: 0 | AO140: 2 | AP140: 9 | AT140: 0
E141: 0.8 | F141: 0.9333333333 | G141: 0.9230769231 | Q141: 0.9333333333 | R141: 0.9230769231 | V141: Count | W141: 184 | X141: 184 | Y141: 184 | Z141: 184 | AA141: 184 | AB141: 184 | AC141: 184 | AD141: 184 | AE141: 184 | AF141: 184 | AG141: 184 | AI141: Count | AJ141: 194 | AK141: 194 | AL141: 194 | AM141: 194 | AN141: 194 | AO141: 194 | AP141: 194 | AQ141: 194 | AR141: 194 | AS141: 194 | AT141: 194
E142: More | F142: 1 | G142: 1 | Q142: 1 | R142: 1 | V142: Average | W142: 2.523032473 | X142: 0.5456490665 | Y142: 0.2195833045 | Z142: -0.01093105918 | AA142: -0.002149116825 | AB142: -0.01401908272 | AC142: 0.1966064577 | AD142: 0.7672005012 | AE142: 0.1038905328 | AF142: 0.04241639715 | AG142: 0.08649256889 | AI142: Average | AJ142: 3.050475307 | AK142: 0.5829977408 | AL142: 0.2125135828 | AM142: 0.1245205512 | AN142: 0.03298898935 | AO142: 0.02878546346 | AP142: 0.2649280704 | AQ142: 0.6859240016 | AR142: 0.08324590369 | AS142: 0.03478236913 | AT142: 0.1960477256
E143: Count | F143: =F122 -> 15 | G143: =G122 -> 13 | Q143: =IF($T$6=$W$1,AC3/$F$143,IF($T$6=$W$17,AC19/$F$143,IF($T$6=$W$33,AC35/$F$143,IF($T$6=$W$49,AC51/$F$143,IF($T$6=$W$65,AC67/$F$143,IF($T$6=$W$81,AC83/$F$143,IF($T$6=$W$97,AC99/$F$143,IF($T$6=$W$113,AC115/$F$143,IF($T$6=$W$129,AC131/$F$143,IF($T$6=$W$145,AC147/$F$143,IF($T$6=$W$161,AC163/$F$143,"N/A"))))))))))) -> 0 | R143: =IF($T$6=$W$1,AP3/$G$38,IF($T$6=$W$17,AP19/$G$38,IF($T$6=$W$33,AP35/$G$38,IF($T$6=$W$49,AP51/$G$38,IF($T$6=$W$65,AP67/$G$38,IF($T$6=$W$81,AP83/$G$38,IF($T$6=$W$97,AP99/$G$38,IF($T$6=$W$113,AP115/$G$38,IF($T$6=$W$129,AP131/$G$38,IF($T$6=$W$145,AP147/$G$38,IF($T$6=$W$161,AP163/$G$38,"N/A"))))))))))) -> 0 | V143: Non-ratio average | X143: 313246.9558 | AG143: 49653.7712 | AI143: Non-ratio average | AK143: 344944.3526 | AT143: 115996.257
E144: Average | F144: =IF($T$6=$W$1,$AC$14,IF($T$6=$W$17,$AC$30,IF($T$6=$W$33,$AC$46,IF($T$6=$W$49,$AC$62,IF($T$6=$W$65,$AC$78,IF($T$6=$W$81,$AC$94,IF($T$6=$W$97,$AC$110,IF($T$6=$W$113,$AC$126,IF($T$6=$W$129,$AC$142,IF($T$6=$W$145,$AC$158,IF($T$6=W161,AC174,"N/A"))))))))))) -> 0.135311195 | G144: =IF($T$6=$W$1,$AP$14,IF($T$6=$W$17,$AP$30,IF($T$6=$W$33,$AP$46,IF($T$6=$W$49,$AP$62,IF($T$6=$W$65,$AP$78,IF($T$6=$W$81,$AP$94,IF($T$6=$W$97,$AP$110,IF($T$6=$W$113,$AP$126,IF($T$6=$W$129,$AP$142,IF($T$6=$W$145,$AP$158,IF($T$6=$W$161,$AP$174,"N/A"))))))))))) -> 0.1974346164 | Q144: 0.2 | R144: 0
Q145: 0.3333333333 | R145: 0.4615384615 | W145: Blank
Q146: 0.2 | R146: 0.2307692308 | W146: Current Ratio | X146: Working Capital Ratio | Y146: Debt to Asset Ratio | Z146: Operating Profit Margin | AA146: ROA | AB146: ROE | AC146: Asset Turnover | AD146: Operating Expense Ratio | AE146: Depr Expense Ratio | AF146: Interest Expense Ratio | AG146: NFI Ratio | AJ146: Current Ratio | AK146: Working Capital Ratio | AL146: Debt to Asset Ratio | AM146: Operating Profit Margin | AN146: ROA | AO146: ROE | AP146: Asset Turnover | AQ146: Operating Expense Ratio | AR146: Depr Expense Ratio | AS146: Interest Expense Ratio | AT146: NFI Ratio
Q147: 0.06666666667 | R147: 0.07692307692
F148: =IF(B28=F144,"","Your Farm") ->  | G148: =IF(B28=F144,"",B28) ->  | Q148: 0.1333333333 | R148: 0.07692307692
Q149: 0 | R149: 0.07692307692
Q150: 0 | R150: 0
Q151: 0 | R151: 0
E152: Operating Expense Ratio | Q152: 0.06666666667 | R152: 0.07692307692
F153: =U1 -> 2017 | G153: 10-Year
E154: 0.4 | F154: =Q154 -> 0 | G154: =R154 -> 0 | Q154: =Q163 -> 0 | R154: =R163 -> 0
E155: 0.5 | F155: =Q155 -> 0.1333333333 | G155: =R155 -> 0.07692307692 | Q155: =Q154+Q164 -> 0.1333333333 | R155: 0.07692307692
E156: 0.6 | F156: 0.2 | G156: 0.3846153846 | Q156: 0.2 | R156: 0.3846153846
E157: 0.7 | F157: 0.4 | G157: 0.6923076923 | Q157: 0.4 | R157: 0.6923076923 | V157: Count | AI157: Count
E158: 0.8 | F158: 0.5333333333 | G158: 0.9230769231 | Q158: 0.5333333333 | R158: 0.9230769231 | V158: Average | AI158: Average
E159: 0.9 | F159: 0.6666666667 | G159: 0.9230769231 | Q159: 0.6666666667 | R159: 0.9230769231 | S159: Your Farm Line-Operating Expense Ratio | V159: Non-ratio average | AI159: Non-ratio average
E160: 1 | F160: 0.8666666667 | G160: 0.9230769231 | Q160: 0.8666666667 | R160: 0.9230769231 | S160: X's | T160: =IF(B29>1.2,1.2,B29) -> 0.7581466476 | U160: =T160 -> 0.7581466476
E161: 1.1 | F161: 0.8666666667 | G161: 1 | Q161: 0.8666666667 | R161: 1 | S161: Y's | T161: 0 | U161: 1 | W161: Blank
E162: More | F162: 1 | G162: 1 | Q162: 1 | R162: 1 | S162: =IF(B29=F164,U1 &" Average","Your Farm") -> 2017 Average | W162: Current Ratio | X162: Working Capital Ratio | Y162: Debt to Asset Ratio | Z162: Operating Profit Margin | AA162: ROA | AB162: ROE | AC162: Asset Turnover | AD162: Operating Expense Ratio | AE162: Depr Expense Ratio | AF162: Interest Expense Ratio | AG162: NFI Ratio | AJ162: Current Ratio | AK162: Working Capital Ratio | AL162: Debt to Asset Ratio | AM162: Operating Profit Margin | AN162: ROA | AO162: ROE | AP162: Asset Turnover | AQ162: Operating Expense Ratio | AR162: Depr Expense Ratio | AS162: Interest Expense Ratio | AT162: NFI Ratio
E163: Count | F163: =F143 -> 15 | G163: =G143 -> 13 | Q163: =IF($T$6=$W$1,AD3/$F$143,IF($T$6=$W$17,AD19/$F$143,IF($T$6=$W$33,AD35/$F$143,IF($T$6=$W$49,AD51/$F$143,IF($T$6=$W$65,AD67/$F$143,IF($T$6=$W$81,AD83/$F$143,IF($T$6=$W$97,AD99/$F$143,IF($T$6=$W$113,AD115/$F$143,IF($T$6=$W$129,AD131/$F$143,IF($T$6=$W$145,AD147/$F$143,IF($T$6=$W$161,AD163/$F$143,"N/A"))))))))))) -> 0 | R163: =IF($T$6=$W$1,AQ3/$G$38,IF($T$6=$W$17,AQ19/$G$38,IF($T$6=$W$33,AQ35/$G$38,IF($T$6=$W$49,AQ51/$G$38,IF($T$6=$W$65,AQ67/$G$38,IF($T$6=$W$81,AQ83/$G$38,IF($T$6=$W$97,AQ99/$G$38,IF($T$6=$W$113,AQ115/$G$38,IF($T$6=$W$129,AQ131/$G$38,IF($T$6=$W$145,AQ147/$G$38,IF($T$6=$W$161,AQ163/$G$38,"N/A"))))))))))) -> 0
E164: Average | F164: =IF($T$6=$W$1,$AD$14,IF($T$6=$W$17,$AD$30,IF($T$6=$W$33,$AD$46,IF($T$6=$W$49,$AD$62,IF($T$6=$W$65,$AD$78,IF($T$6=$W$81,$AD$94,IF($T$6=$W$97,$AD$110,IF($T$6=$W$113,$AD$126,IF($T$6=$W$129,$AD$142,IF($T$6=$W$145,$AD$158,IF($T$6=W161,AD174,"N/A"))))))))))) -> 0.7581466476 | G164: =IF($T$6=$W$1,$AQ$14,IF($T$6=$W$17,$AQ$30,IF($T$6=$W$33,$AQ$46,IF($T$6=$W$49,$AQ$62,IF($T$6=$W$65,$AQ$78,IF($T$6=$W$81,$AQ$94,IF($T$6=$W$97,$AQ$110,IF($T$6=$W$113,$AQ$126,IF($T$6=$W$129,$AQ$142,IF($T$6=$W$145,$AQ$158,IF($T$6=$W$161,$AQ$174,"N/A"))))))))))) -> 0.6716050574 | Q164: 0.1333333333 | R164: 0.07692307692
Q165: 0.06666666667 | R165: 0.3076923077
Q166: 0.2 | R166: 0.3076923077
Q167: 0.1333333333 | R167: 0.2307692308
F168: =IF(B29=F164,"","Your Farm") ->  | G168: =IF(B29=F164,"",B29) ->  | Q168: 0.1333333333 | R168: 0
Q169: 0.2 | R169: 0
Q170: 0 | R170: 0.07692307692
Q171: 0.1333333333 | R171: 0
E173: Depreciation Expense Ratio | V173: Count | AI173: Count
F174: =U1 -> 2017 | G174: 10-Year | V174: Average | AI174: Average
E175: 0 | F175: =Q175 -> 0 | G175: =R175 -> 0 | Q175: =Q184 -> 0 | R175: =R184 -> 0 | V175: Non-ratio average | AI175: Non-ratio average
E176: 0.03 | F176: =Q176 -> 0.1333333333 | G176: =R176 -> 0.07692307692 | Q176: =Q175+Q185 -> 0.1333333333 | R176: 0.07692307692
E177: 0.06 | F177: 0.2666666667 | G177: 0.3076923077 | Q177: 0.2666666667 | R177: 0.3076923077
E178: 0.09 | F178: 0.4 | G178: 0.3846153846 | Q178: 0.4 | R178: 0.3846153846
E179: 0.12 | F179: 0.5333333333 | G179: 0.9230769231 | Q179: 0.5333333333 | R179: 0.9230769231
E180: 0.15 | F180: 0.8 | G180: 1 | Q180: 0.8 | R180: 1
E181: 0.18 | F181: 0.9333333333 | G181: 1 | Q181: 0.9333333333 | R181: 1 | S181: Your Farm Line-Depreciation Expense Ratio
E182: 0.21 | F182: 1 | G182: 1 | Q182: 1 | R182: 1 | S182: X's | T182: =IF(B30>0.24,0.24,B30) -> 0.0997327079 | U182: =T182 -> 0.0997327079
E183: More | F183: 1 | G183: 1 | Q183: 1 | R183: 1 | S183: Y's | T183: 0 | U183: 1
E184: Count | F184: =F163 -> 15 | G184: =G163 -> 13 | Q184: =IF($T$6=$W$1,AE3/$F$143,IF($T$6=$W$17,AE19/$F$143,IF($T$6=$W$33,AE35/$F$143,IF($T$6=$W$49,AE51/$F$143,IF($T$6=$W$65,AE67/$F$143,IF($T$6=$W$81,AE83/$F$143,IF($T$6=$W$97,AE99/$F$143,IF($T$6=$W$113,AE115/$F$143,IF($T$6=$W$129,AE131/$F$143,IF($T$6=$W$145,AE147/$F$143,IF($T$6=$W$161,AE163/$F$143,"N/A"))))))))))) -> 0 | R184: =IF($T$6=$W$1,AR3/$G$38,IF($T$6=$W$17,AR19/$G$38,IF($T$6=$W$33,AR35/$G$38,IF($T$6=$W$49,AR51/$G$38,IF($T$6=$W$65,AR67/$G$38,IF($T$6=$W$81,AR83/$G$38,IF($T$6=$W$97,AR99/$G$38,IF($T$6=$W$113,AR115/$G$38,IF($T$6=$W$129,AR131/$G$38,IF($T$6=$W$145,AR147/$G$38,IF($T$6=$W$161,AR163/$G$38,"N/A"))))))))))) -> 0 | S184: =IF(B30=F185,U1 &" Average","Your Farm") -> 2017 Average
E185: Average | F185: =IF($T$6=$W$1,$AE$14,IF($T$6=$W$17,$AE$30,IF($T$6=$W$33,$AE$46,IF($T$6=$W$49,$AE$62,IF($T$6=$W$65,$AE$78,IF($T$6=$W$81,$AE$94,IF($T$6=$W$97,$AE$110,IF($T$6=$W$113,$AE$126,IF($T$6=$W$129,$AE$142,IF($T$6=$W$145,$AE$158,IF($T$6=$W$161,AE174,"N/A"))))))))))) -> 0.0997327079 | G185: =IF($T$6=$W$1,$AR$14,IF($T$6=$W$17,$AR$30,IF($T$6=$W$33,$AR$46,IF($T$6=$W$49,$AR$62,IF($T$6=$W$65,$AR$78,IF($T$6=$W$81,$AR$94,IF($T$6=$W$97,$AR$110,IF($T$6=$W$113,$AR$126,IF($T$6=$W$129,$AR$142,IF($T$6=$W$145,$AR$158,IF($T$6=$W$161,$AR$174,"N/A"))))))))))) -> 0.0830555815 | Q185: 0.1333333333 | R185: 0.07692307692
Q186: 0.1333333333 | R186: 0.2307692308
Q187: 0.1333333333 | R187: 0.07692307692
Q188: 0.1333333333 | R188: 0.5384615385
F189: =IF(B30=F185,"","Your Farm") ->  | G189: =IF(B30=F185,"",B30) ->  | Q189: 0.2666666667 | R189: 0.07692307692
Q190: 0.1333333333 | R190: 0
Q191: 0.06666666667 | R191: 0
Q192: 0 | R192: 0
E194: Interest Expense Ratio
F195: =U1 -> 2017 | G195: 10-Year
E196: 0 | F196: =Q196 -> 0.2 | G196: =R196 -> 0.07692307692 | Q196: =Q205 -> 0.2 | R196: =R205 -> 0.07692307692
E197: 0.03 | F197: =Q197 -> 0.6 | G197: =R197 -> 0.6153846154 | Q197: =Q196+Q206 -> 0.6 | R197: 0.6153846154
E198: 0.06 | F198: 0.8666666667 | G198: 0.9230769231 | Q198: 0.8666666667 | R198: 0.9230769231
E199: 0.09 | F199: 1 | G199: 1 | Q199: 1 | R199: 1
E200: 0.12 | F200: 1 | G200: 1 | Q200: 1 | R200: 1
E201: 0.15 | F201: 1 | G201: 1 | Q201: 1 | R201: 1
E202: 0.18 | F202: 1 | G202: 1 | Q202: 1 | R202: 1
E203: 0.21 | F203: 1 | G203: 1 | Q203: 1 | R203: 1 | S203: Your Farm Line-Interest Expense Ratio
... 32 more rows

Sheet SouthEast
E1: KSU FARM FINANCIAL BENCHMARKING TOOL-Southeast Kansas | S1: Acres | T1: Lookup | U1: 2017 | W1: Less than 500No | AI1: 10-Year
S2: Less than 500 | T2: LT | U2: 2017 KFMA Farms | W2: Current Ratio | X2: Working Capital Ratio | Y2: Debt to Asset Ratio | Z2: Operating Profit Margin | AA2: ROA | AB2: ROE | AC2: Asset Turnover | AD2: Operating Expense Ratio | AE2: Depr Expense Ratio | AF2: Interest Expense Ratio | AG2: NFI Ratio | AJ2: Current Ratio | AK2: Working Capital Ratio | AL2: Debt to Asset Ratio | AM2: Operating Profit Margin | AN2: ROA | AO2: ROE | AP2: Asset Turnover | AQ2: Operating Expense Ratio | AR2: Depr Expense Ratio | AS2: Interest Expense Ratio | AT2: NFI Ratio
E3: Tillable Crop Acres: | G3: =B16 -> Greater than 1500 | I3: =A17 -> Beef Cows: | K3: =IF(B17="","",B17) -> No | P3: =IF(B18="","",B18) ->  | S3: 500-1500 | T3: BTW | U3: =J3 -> 0 | W3: 0 | X3: 1 | Y3: 4 | Z3: 0 | AA3: 1 | AB3: 3 | AC3: 0 | AD3: 2 | AE3: 0 | AF3: 4 | AG3: 0 | AJ3: 0 | AK3: 1 | AL3: 4 | AM3: 0 | AN3: 1 | AO3: 2 | AP3: 0 | AQ3: 2 | AR3: 0 | AS3: 5 | AT3: 0
S4: Greater than 1500 | T4: GT | W4: 2 | X4: 0 | Y4: 4 | Z4: 1 | AA4: 1 | AB4: 1 | AC4: 6 | AD4: 0 | AE4: 2 | AF4: 5 | AG4: 1 | AJ4: 3 | AK4: 1 | AL4: 7 | AM4: 0 | AN4: 2 | AO4: 1 | AP4: 7 | AQ4: 1 | AR4: 4 | AS4: 7 | AT4: 0
E5: Current Ratio | S5: All Farms | T5: All | W5: 2 | X5: 3 | Y5: 0 | Z5: 2 | AA5: 2 | AB5: 3 | AC5: 4 | AD5: 5 | AE5: 4 | AF5: 1 | AG5: 2 | AJ5: 2 | AK5: 3 | AL5: 3 | AM5: 2 | AN5: 3 | AO5: 6 | AP5: 6 | AQ5: 6 | AR5: 5 | AS5: 6 | AT5: 1
F6: =U1 -> 2017 | G6: 10-Year | S6: LTList | T6: =B16&B17&B18 -> Greater than 1500No | W6: 0 | X6: 0 | Y6: 0 | Z6: 2 | AA6: 8 | AB6: 7 | AC6: 2 | AD6: 2 | AE6: 2 | AF6: 1 | AG6: 1 | AJ6: 2 | AK6: 3 | AL6: 2 | AM6: 3 | AN6: 10 | AO6: 8 | AP6: 3 | AQ6: 6 | AR6: 6 | AS6: 4 | AT6: 0
E7: 0 | F7: =Q7 -> 0 | G7: =R7 -> 0 | S7: No | W7: 0 | X7: 4 | Y7: 3 | Z7: 1 | AA7: 2 | AB7: 0 | AC7: 2 | AD7: 1 | AE7: 1 | AF7: 1 | AG7: 1 | AJ7: 1 | AK7: 5 | AL7: 0 | AM7: 5 | AN7: 4 | AO7: 2 | AP7: 0 | AQ7: 5 | AR7: 3 | AS7: 1 | AT7: 4
E8: 0.5 | F8: =Q8 -> 0.03448275862 | G8: =R8 -> 0 | Q8: =Q7+Q18 -> 0.03448275862 | R8: =R7+R18 -> 0 | S8: Yes | W8: 1 | X8: 2 | Y8: 1 | Z8: 5 | AA8: 0 | AB8: 0 | AC8: 0 | AD8: 2 | AE8: 2 | AF8: 1 | AG8: 7 | AJ8: 1 | AK8: 2 | AL8: 2 | AM8: 6 | AN8: 2 | AO8: 0 | AP8: 2 | AQ8: 2 | AR8: 3 | AS8: 0 | AT8: 11
E9: 1 | F9: 0.1379310345 | G9: 0.02941176471 | Q9: 0.1379310345 | R9: 0.02941176471 | W9: 2 | X9: 2 | Y9: 0 | Z9: 3 | AA9: 1 | AB9: 1 | AC9: 0 | AD9: 1 | AE9: 0 | AF9: 2 | AG9: 2 | AJ9: 1 | AK9: 2 | AL9: 0 | AM9: 4 | AN9: 0 | AO9: 0 | AP9: 3 | AQ9: 0 | AR9: 2 | AS9: 0 | AT9: 4
E10: 1.5 | F10: 0.3103448276 | G10: 0.1764705882 | Q10: 0.3103448276 | R10: 0.1764705882 | W10: 0 | X10: 0 | Y10: 2 | Z10: 1 | AA10: 0 | AB10: 0 | AC10: 0 | AD10: 1 | AE10: 0 | AF10: 0 | AG10: 1 | AJ10: 0 | AK10: 0 | AL10: 0 | AM10: 2 | AN10: 1 | AO10: 1 | AP10: 0 | AQ10: 0 | AR10: 0 | AS10: 0 | AT10: 2
E11: 2 | F11: 0.4137931034 | G11: 0.2941176471 | Q11: 0.4137931034 | R11: 0.2941176471 | S11: BTWList | W11: 0 | X11: 0 | Y11: 1 | Z11: 0 | AA11: 0 | AB11: 0 | AC11: 0 | AD11: 1 | AE11: 4 | AF11: 0 | AG11: 0 | AJ11: 1 | AK11: 1 | AL11: 5 | AM11: 1 | AN11: 0 | AO11: 0 | AP11: 1 | AQ11: 1 | AR11: 0 | AS11: 0 | AT11: 1
E12: 2.5 | F12: 0.4482758621 | G12: 0.3823529412 | Q12: 0.4482758621 | R12: 0.3823529412 | S12: No | W12: 8 | X12: 3 | Z12: 0 | AA12: 0 | AB12: 0 | AC12: 1 | AG12: 0 | AJ12: 12 | AK12: 5 | AM12: 0 | AN12: 0 | AO12: 3 | AP12: 1 | AT12: 0
E13: 3 | F13: 0.5172413793 | G13: 0.4117647059 | Q13: 0.5172413793 | R13: 0.4117647059 | S13: Yes | V13: Count | W13: 15 | X13: 15 | Y13: 15 | Z13: 15 | AA13: 15 | AB13: 15 | AC13: 15 | AD13: 15 | AE13: 15 | AF13: 15 | AG13: 15 | AI13: Count | AJ13: 23 | AK13: 23 | AL13: 23 | AM13: 23 | AN13: 23 | AO13: 23 | AP13: 23 | AQ13: 23 | AR13: 23 | AS13: 23 | AT13: 23
E14: 3.5 | F14: 0.5172413793 | G14: 0.4705882353 | Q14: 0.5172413793 | R14: 0.4705882353 | V14: Average | W14: 3.179954113 | X14: 0.6876054493 | Y14: 0.1120992985 | Z14: 0.002983995212 | AA14: 0.0003622603372 | AB14: -0.005448338983 | AC14: 0.1214011121 | AD14: 0.6823680931 | AE14: 0.1288192549 | AF14: 0.041239682 | AG14: 0.14757297 | AI14: Average | AJ14: 3.626473961 | AK14: 0.5636111957 | AL14: 0.1166866351 | AM14: 0.1215624674 | AN14: 0.01927547406 | AO14: 0.01345071414 | AP14: 0.1585643536 | AQ14: 0.6046816798 | AR14: 0.08392231119 | AS14: 0.03405542011 | AT14: 0.2773405889
A15: BENCHMARK CATEGORY | E15: 4 | F15: 0.5172413793 | G15: 0.5294117647 | Q15: 0.5172413793 | R15: 0.5294117647 | V15: Non-ratio average | X15: 102070.714 | AG15: 21906.28133 | AI15: Non-ratio average | AK15: 74459.31697 | AT15: 36639.78106
A16: Tillable Crop Acres: | B16: Greater than 1500 | E16: More | F16: 1 | G16: 1 | Q16: 1 | R16: 1 | S16: GTList
A17: =IF(B16="All Farms","","Beef Cows:") -> Beef Cows: | B17: No | E17: Count | F17: =IF($T$6=$W$1,$W$13,IF($T$6=$W$17,$W$29,IF($T$6=$W$33,$W$45,IF($T$6=$W$49,$W$61,IF($T$6=$W$65,$W$77,IF($T$6=$W$81,$W$93,IF($T$6=$W$97,$W$109,IF($T$6=$W$113,$W$125,IF($T$6=$W$129,$W$141,IF($T$6=$W$145,$W$157,IF(T6=$W$161,$W$173,"N/A"))))))))))) -> 29 | G17: =IF($T$6=$W$1,$AJ$13,IF($T$6=$W$17,$AJ$29,IF($T$6=$W$33,$AJ$45,IF($T$6=$W$49,$AJ$61,IF($T$6=$W$65,$AJ$77,IF($T$6=$W$81,$AJ$93,IF($T$6=$W$97,$AJ$109,IF($T$6=$W$113,$AJ$125,IF($T$6=$W$129,$AJ$141,IF($T$6=$W$145,$AJ$157, IF($T$6=$W$161,$AJ$173,"N/A"))))))))))) -> 34 | Q17: =IF($T$6=$W$1,W3/$W$13,IF($T$6=$W$17,W19/$W$29,IF($T$6=$W$33,W35/$W$45,IF($T$6=$W$49,W51/$W$61,IF($T$6=$W$65,W67/$W$77,IF($T$6=$W$81,W83/$W$93,IF($T$6=$W$97,W99/$W$109,IF($T$6=$W$113,W115/$W$125,IF($T$6=$W$129,W131/$W$141,IF($T$6=$W$145,W147/$W$157,IF($T$6=$W$161,W163/$W$173,"N/A"))))))))))) -> 0 | R17: =IF($T$6=$W$1,AJ3/$AJ$13,IF($T$6=$W$17,AJ19/$AJ$29,IF($T$6=$W$33,AJ35/$AJ$45,IF($T$6=$W$49,AJ51/$AJ$61,IF($T$6=$W$65,AJ67/$AJ$77,IF($T$6=$W$81,AJ83/$AJ$93,IF($T$6=$W$97,AJ99/$AJ$109,IF($T$6=$W$113,AJ115/$AJ$125,IF($T$6=$W$129,AJ131/$AJ$141,IF($T$6=$W$145,AJ147/$AJ$157,IF($T$6=$W$161,AJ163/$AJ$173,"N/A"))))))))))) -> 0 | S17: No | W17: Less than 500Yes
E18: Average | F18: =IF($T$6=$W$1,$W$14,IF($T$6=$W$17,$W$30,IF($T$6=$W$33,$W$46,IF($T$6=$W$49,$W$62,IF($T$6=$W$65,$W$78,IF($T$6=$W$81,$W$94,IF($T$6=$W$97,$W$110,IF($T$6=$W$113,$W$126,IF($T$6=$W$129,$W$142,IF($T$6=$W$145,$W$158, IF($T$6=$W$161,$W$174,"N/A"))))))))))) -> 3.381977803 | G18: =IF($T$6=$W$1,$AJ$14,IF($T$6=$W$17,$AJ$30,IF($T$6=$W$33,$AJ$46,IF($T$6=$W$49,$AJ$62,IF($T$6=$W$65,$AJ$78,IF($T$6=$W$81,$AJ$94,IF($T$6=$W$97,$AJ$110,IF($T$6=$W$113,$AJ$126,IF($T$6=$W$129,$AJ$142,IF($T$6=$W$145,$AJ$158, IF($T$6=$W$161,$AJ$174,"N/A"))))))))))) -> 4.114419521 | Q18: 0.03448275862 | R18: 0 | S18: Yes | W18: Current Ratio | X18: Working Capital Ratio | Y18: Debt to Asset Ratio | Z18: Operating Profit Margin | AA18: ROA | AB18: ROE | AC18: Asset Turnover | AD18: Operating Expense Ratio | AE18: Depr Expense Ratio | AF18: Interest Expense Ratio | AG18: NFI Ratio | AJ18: Current Ratio | AK18: Working Capital Ratio | AL18: Debt to Asset Ratio | AM18: Operating Profit Margin | AN18: ROA | AO18: ROE | AP18: Asset Turnover | AQ18: Operating Expense Ratio | AR18: Depr Expense Ratio | AS18: Interest Expense Ratio | AT18: NFI Ratio
Q19: 0.1034482759 | R19: 0.02941176471 | W19: 0 | X19: 2 | Y19: 3 | Z19: 6 | AA19: 4 | AB19: 6 | AC19: 0 | AD19: 2 | AE19: 0 | AF19: 2 | AG19: 2 | AJ19: 0 | AK19: 2 | AL19: 2 | AM19: 5 | AN19: 2 | AO19: 6 | AP19: 0 | AQ19: 1 | AR19: 0 | AS19: 1 | AT19: 0
F20: =IF(B22=F18,"","Your Farm") ->  | G20: =IF(B22=F18,"",B22) ->  | Q20: 0.1724137931 | R20: 0.1470588235 | W20: 1 | X20: 0 | Y20: 8 | Z20: 2 | AA20: 1 | AB20: 4 | AC20: 10 | AD20: 2 | AE20: 5 | AF20: 9 | AG20: 2 | AJ20: 2 | AK20: 1 | AL20: 26 | AM20: 1 | AN20: 4 | AO20: 9 | AP20: 19 | AQ20: 7 | AR20: 4 | AS20: 29 | AT20: 0
A21: YOUR FARM VALUES* | Q21: 0.1034482759 | R21: 0.1176470588 | W21: 3 | X21: 2 | Y21: 7 | Z21: 7 | AA21: 9 | AB21: 11 | AC21: 10 | AD21: 2 | AE21: 6 | AF21: 6 | AG21: 3 | AJ21: 3 | AK21: 2 | AL21: 15 | AM21: 4 | AN21: 15 | AO21: 27 | AP21: 27 | AQ21: 12 | AR21: 15 | AS21: 14 | AT21: 3
A22: Current Ratio: | B22: =S37 -> 3.381977803 | Q22: 0.03448275862 | R22: 0.08823529412 | S22: None | W22: 4 | X22: 5 | Y22: 5 | Z22: 0 | AA22: 9 | AB22: 3 | AC22: 4 | AD22: 2 | AE22: 7 | AF22: 7 | AG22: 7 | AJ22: 4 | AK22: 11 | AL22: 6 | AM22: 11 | AN22: 24 | AO22: 15 | AP22: 9 | AQ22: 15 | AR22: 27 | AS22: 8 | AT22: 6
A23: Working Capital Ratio: | B23: 0.6589513462 | Q23: 0.06896551724 | R23: 0.02941176471 | S23: Yes | W23: 1 | X23: 4 | Y23: 2 | Z23: 3 | AA23: 1 | AB23: 4 | AC23: 4 | AD23: 4 | AE23: 2 | AF23: 3 | AG23: 7 | AJ23: 5 | AK23: 15 | AL23: 6 | AM23: 16 | AN23: 13 | AO23: 4 | AP23: 3 | AQ23: 16 | AR23: 9 | AS23: 7 | AT23: 21
A24: Debt to Asset Ratio: | B24: 0.1729367161 | Q24: 0 | R24: 0.05882352941 | S24: No | W24: 1 | X24: 3 | Y24: 1 | Z24: 4 | AA24: 4 | AB24: 1 | AC24: 0 | AD24: 8 | AE24: 2 | AF24: 1 | AG24: 1 | AJ24: 7 | AK24: 10 | AL24: 4 | AM24: 12 | AN24: 6 | AO24: 2 | AP24: 7 | AQ24: 11 | AR24: 6 | AS24: 4 | AT24: 19
A25: Operating Profit Margin | B25: 0.05036901801 | Q25: 0 | R25: 0.05882352941 | W25: 0 | X25: 4 | Y25: 1 | Z25: 2 | AA25: 1 | AB25: 0 | AC25: 1 | AD25: 1 | AE25: 4 | AF25: 0 | AG25: 3 | AJ25: 5 | AK25: 10 | AL25: 3 | AM25: 11 | AN25: 1 | AO25: 1 | AP25: 0 | AQ25: 2 | AR25: 2 | AS25: 2 | AT25: 14
A26: Rate of Return on Farm Assets | B26: 0.01463068108 | E26: Working Captial Ratio | Q26: 0.4827586207 | R26: 0.4705882353 | W26: 1 | X26: 2 | Y26: 0 | Z26: 4 | AA26: 0 | AB26: 0 | AC26: 0 | AD26: 4 | AE26: 1 | AF26: 0 | AG26: 3 | AJ26: 2 | AK26: 7 | AL26: 0 | AM26: 6 | AN26: 1 | AO26: 0 | AP26: 1 | AQ26: 1 | AR26: 2 | AS26: 1 | AT26: 3
A27: Rate of Return on Farm Equity | B27: 0.01052665455 | F27: =U1 -> 2017 | G27: 10-Year | S27: Your Farm Line-Current Ratio | W27: 1 | X27: 4 | Y27: 2 | Z27: 1 | AA27: 0 | AB27: 0 | AC27: 0 | AD27: 4 | AE27: 2 | AF27: 1 | AG27: 1 | AJ27: 1 | AK27: 3 | AL27: 4 | AM27: 0 | AN27: 0 | AO27: 1 | AP27: 0 | AQ27: 1 | AR27: 1 | AS27: 0 | AT27: 0
A28: Asset Turnover Rate | B28: 0.2904698495 | E28: -0.5 | F28: =Q28 -> 0 | G28: =R28 -> 0 | Q28: =Q38 -> 0 | R28: =R38 -> 0 | S28: X's | T28: =IF(B22<4.5,B22,4.5) -> 3.381977803 | U28: =IF(B22<4.5,B22,4.5) -> 3.381977803 | W28: 17 | X28: 3 | Z28: 0 | AA28: 0 | AB28: 0 | AC28: 0 | AG28: 0 | AJ28: 37 | AK28: 5 | AM28: 0 | AN28: 0 | AO28: 1 | AP28: 0 | AT28: 0
A29: Operating Expense Ratio | B29: 0.7325287296 | E29: =E28+0.25 -> -0.25 | F29: =Q29 -> 0.03448275862 | G29: =R29 -> 0 | Q29: =Q28+Q39 -> 0.03448275862 | R29: =R28+R39 -> 0 | S29: Y's | T29: 0 | U29: 1 | V29: Count | W29: 29 | X29: 29 | Y29: 29 | Z29: 29 | AA29: 29 | AB29: 29 | AC29: 29 | AD29: 29 | AE29: 29 | AF29: 29 | AG29: 29 | AI29: Count | AJ29: 66 | AK29: 66 | AL29: 66 | AM29: 66 | AN29: 66 | AO29: 66 | AP29: 66 | AQ29: 66 | AR29: 66 | AS29: 66 | AT29: 66
A30: Depreciation Expense Ratio | B30: 0.1266384577 | E30: =E29+0.25 -> 0 | F30: 0.1379310345 | G30: 0.02941176471 | Q30: 0.1379310345 | R30: 0.02941176471 | S30: =IF(B22=F18,U1 &" Average","Your Farm") -> 2017 Average | V30: Average | W30: 1.487255661 | X30: 0.4219732205 | Y30: 0.2570748005 | Z30: -0.1003071965 | AA30: -0.01268105013 | AB30: -0.03108930563 | AC30: 0.1264221369 | AD30: 0.8663686511 | AE30: 0.06231318547 | AF30: 0.0560672667 | AG30: 0.01525089677 | AI30: Average | AJ30: 2.063677883 | AK30: 0.5216261409 | AL30: 0.1990831524 | AM30: 0.02737983475 | AN30: 0.004085849875 | AO30: -0.006696637036 | AP30: 0.1492284344 | AQ30: 0.7124362841 | AR30: 0.06335879223 | AS30: 0.04967844842 | AT30: 0.1745264752
A31: Interest Expense Ratio | B31: 0.02042036173 | E31: 0.25 | F31: 0.3448275862 | G31: 0.2647058824 | Q31: 0.3448275862 | R31: 0.2647058824 | S31: Your Farm Line-Working Capital Ratio | V31: Non-ratio average | X31: 120108.0317 | AG31: 4340.927586 | AI31: Non-ratio average | AK31: 99098.79626 | AT31: 33156.62743
A32: Net Farm Income Ratio: | B32: 0.120412451 | E32: 0.5 | F32: 0.4827586207 | G32: 0.5294117647 | Q32: 0.4827586207 | R32: 0.5294117647 | S32: X's | T32: =IF(B23>1.75,1.75,B23) -> 0.6589513462 | U32: =IF(B23>1.75,1.75,B23) -> 0.6589513462
A33: *Defaults to Averages for 2017 if not entered | E33: 0.75 | F33: 0.5862068966 | G33: 0.5882352941 | Q33: 0.5862068966 | R33: 0.5882352941 | S33: Y's | T33: 0 | U33: 1 | W33: Blank
E34: 1 | F34: 0.6896551724 | G34: 0.7352941176 | Q34: 0.6896551724 | R34: 0.7352941176 | S34: =IF(B23=F39,U1 &" Average","Your Farm") -> 2017 Average | W34: Current Ratio | X34: Working Capital Ratio | Y34: Debt to Asset Ratio | Z34: Operating Profit Margin | AA34: ROA | AB34: ROE | AC34: Asset Turnover | AD34: Operating Expense Ratio | AE34: Depr Expense Ratio | AF34: Interest Expense Ratio | AG34: NFI Ratio | AJ34: Current Ratio | AK34: Working Capital Ratio | AL34: Debt to Asset Ratio | AM34: Operating Profit Margin | AN34: ROA | AO34: ROE | AP34: Asset Turnover | AQ34: Operating Expense Ratio | AR34: Depr Expense Ratio | AS34: Interest Expense Ratio | AT34: NFI Ratio
E35: 1.25 | F35: 0.7931034483 | G35: 0.9705882353 | Q35: 0.7931034483 | R35: 0.9705882353
E36: 1.5 | F36: 0.8275862069 | G36: 0.9705882353 | Q36: 0.8275862069 | R36: 0.9705882353
E37: More | F37: 1 | G37: 1 | Q37: 1 | R37: 1 | S37: =$F$18 -> 3.381977803
E38: Count | F38: =F17 -> 29 | G38: =G17 -> 34 | Q38: =IF($T$6=$W$1,X3/$F$38,IF($T$6=$W$17,X19/$F$38,IF($T$6=$W$33,X35/$F$38,IF($T$6=$W$49,X51/$F$38,IF($T$6=$W$65,X67/$F$38,IF($T$6=$W$81,X83/$F$38,IF($T$6=$W$97,X99/$F$38,IF($T$6=$W$113,X115/$F$38,IF($T$6=$W$129,X131/$F$38,IF($T$6=$W$145,X147/$F$38,IF($T$6=$W$161,X163/$F$38,"N/A"))))))))))) -> 0 | R38: =IF($T$6=$W$1,AK3/$G$38,IF($T$6=$W$17,AK19/$G$38,IF($T$6=$W$33,AK35/$G$38,IF($T$6=$W$49,AK51/$G$38,IF($T$6=$W$65,AK67/$G$38,IF($T$6=$W$81,AK83/$G$38,IF($T$6=$W$97,AK99/$G$38,IF($T$6=$W$113,AK115/$G$38,IF($T$6=$W$129,AK131/$G$38,IF($T$6=$W$145,AK147/$G$38,IF($T$6=$W$161,AK163/$G$38,"N/A"))))))))))) -> 0 | S38: =$F$39 -> 0.6589513462
E39: Average | F39: =IF($T$6=$W$1,$X$14,IF($T$6=$W$17,$X$30,IF($T$6=$W$33,$X$46,IF($T$6=$W$49,$X$62,IF($T$6=$W$65,$X$78,IF($T$6=$W$81,$X$94,IF($T$6=$W$97,$X$110,IF($T$6=$W$113,$X$126,IF($T$6=$W$129,$X$142,IF($T$6=$W$145,$X$158,IF($T$6=$W$161,$X$174,"N/A"))))))))))) -> 0.6589513462 | G39: =IF($T$6=$W$1,$AK$14,IF($T$6=$W$17,$AK$30,IF($T$6=$W$33,$AK$46,IF($T$6=$W$49,$AK$62,IF($T$6=$W$65,$AK$78,IF($T$6=$W$81,$AK$94,IF($T$6=$W$97,$AK$110,IF($T$6=$W$113,$AK$126,IF($T$6=$W$129,$AK$142,IF($T$6=$W$145,$AK$158,IF($T$6=$W$161,$AK$174,"N/A"))))))))))) -> 0.6188810638 | Q39: 0.03448275862 | R39: 0 | S39: =$F$59 -> 0.1729367161
E40: Working Capital Avg. | Q40: 0.1034482759 | R40: 0.02941176471 | S40: =$F$81 -> 0.05036901801
F41: =IF($T$6=$W$1,$X$15,IF($T$6=$W$17,$X$31,IF($T$6=$W$33,$X$47,IF($T$6=$W$49,$X$63,IF($T$6=$W$65,$X$79,IF($T$6=$W$81,$X$95,IF($T$6=$W$97,$X$111,IF($T$6=$W$113,$X$127,IF($T$6=$W$129,$X$143,IF($T$6=$W$145,$X$159,IF($T$6=$W$161,$X$175,"N/A"))))))))))) -> 640215.7186 | G41: =IF($T$6=$W$1,$AK$15,IF($T$6=$W$17,$AK$31,IF($T$6=$W$33,$AK$47,IF($T$6=$W$49,$AK$63,IF($T$6=$W$65,$AK$79,IF($T$6=$W$81,$AK$95,IF($T$6=$W$97,$AK$111,IF($T$6=$W$113,$AK$127,IF($T$6=$W$129,$AK$143,IF($T$6=$W$145,$AK$159,IF($T$6=$W$161,$AK$175,"N/A"))))))))))) -> 650123.3373 | Q41: 0.2068965517 | R41: 0.2352941176 | S41: =$F$102 -> 0.01463068108
Q42: 0.1379310345 | R42: 0.2647058824 | S42: =$F$123 -> 0.01052665455
F43: =IF(B23=F39,"","Your Farm") ->  | G43: =IF(B23=F39,"",B23) ->  | Q43: 0.1034482759 | R43: 0.05882352941 | S43: =$F$144 -> 0.2904698495
Q44: 0.1034482759 | R44: 0.1470588235 | S44: =$F$164 -> 0.7325287296
Q45: 0.1034482759 | R45: 0.2352941176 | S45: =$F$185 -> 0.1266384577 | V45: Count | AI45: Count
Q46: 0.03448275862 | R46: 0 | S46: =$F$206 -> 0.02042036173 | V46: Average | AI46: Average
E47: Debt to Asset Ratio | Q47: 0.1724137931 | R47: 0.02941176471 | S47: =$F$228 -> 0.120412451 | V47: Non-ratio average | AI47: Non-ratio average
F48: =U1 -> 2017 | G48: 10-Year
E49: 0 | F49: =Q49 -> 0.1034482759 | G49: =R49 -> 0.02941176471 | Q49: =Q58 -> 0.1034482759 | R49: =R58 -> 0.02941176471 | S49: Your Farm Line-Debt to Asset | W49: 500-1500No
E50: 0.1 | F50: =Q50 -> 0.3448275862 | G50: =R50 -> 0.2647058824 | Q50: =Q49+Q59 -> 0.3448275862 | R50: 0.2647058824 | S50: X's | T50: =IF(B24>0.8,0.8,B24) -> 0.1729367161 | U50: =T50 -> 0.1729367161 | W50: Current Ratio | X50: Working Capital Ratio | Y50: Debt to Asset Ratio | Z50: Operating Profit Margin | AA50: ROA | AB50: ROE | AC50: Asset Turnover | AD50: Operating Expense Ratio | AE50: Depr Expense Ratio | AF50: Interest Expense Ratio | AG50: NFI Ratio | AJ50: Current Ratio | AK50: Working Capital Ratio | AL50: Debt to Asset Ratio | AM50: Operating Profit Margin | AN50: ROA | AO50: ROE | AP50: Asset Turnover | AQ50: Operating Expense Ratio | AR50: Depr Expense Ratio | AS50: Interest Expense Ratio | AT50: NFI Ratio
E51: 0.2 | F51: 0.4827586207 | G51: 0.4411764706 | Q51: 0.4827586207 | R51: 0.4411764706 | S51: Y's | T51: 0 | U51: 1 | W51: 0 | X51: 3 | Y51: 7 | Z51: 0 | AA51: 3 | AB51: 4 | AC51: 0 | AD51: 1 | AE51: 0 | AF51: 5 | AG51: 0 | AJ51: 0 | AK51: 0 | AL51: 2 | AM51: 0 | AN51: 0 | AO51: 1 | AP51: 0 | AQ51: 1 | AR51: 0 | AS51: 2 | AT51: 0
E52: 0.3 | F52: 0.5517241379 | G52: 0.6470588235 | Q52: 0.5517241379 | R52: 0.6470588235 | S52: =IF(B24=F59,U1 &" Average","Your Farm") -> 2017 Average | W52: 4 | X52: 3 | Y52: 7 | Z52: 0 | AA52: 1 | AB52: 4 | AC52: 1 | AD52: 1 | AE52: 1 | AF52: 16 | AG52: 0 | AJ52: 1 | AK52: 1 | AL52: 17 | AM52: 0 | AN52: 1 | AO52: 1 | AP52: 2 | AQ52: 4 | AR52: 2 | AS52: 26 | AT52: 0
E53: 0.4 | F53: 0.7586206897 | G53: 0.7647058824 | Q53: 0.7586206897 | R53: 0.7647058824 | W53: 2 | X53: 0 | Y53: 2 | Z53: 2 | AA53: 5 | AB53: 10 | AC53: 11 | AD53: 2 | AE53: 3 | AF53: 7 | AG53: 1 | AJ53: 3 | AK53: 3 | AL53: 4 | AM53: 2 | AN53: 3 | AO53: 5 | AP53: 8 | AQ53: 11 | AR53: 8 | AS53: 13 | AT53: 0
E54: 0.5 | F54: 0.7931034483 | G54: 0.7941176471 | Q54: 0.7931034483 | R54: 0.7941176471 | W54: 6 | X54: 6 | Y54: 5 | Z54: 4 | AA54: 15 | AB54: 11 | AC54: 8 | AD54: 9 | AE54: 7 | AF54: 2 | AG54: 4 | AJ54: 4 | AK54: 5 | AL54: 10 | AM54: 0 | AN54: 11 | AO54: 21 | AP54: 12 | AQ54: 20 | AR54: 9 | AS54: 4 | AT54: 0
E55: 0.6 | F55: 0.9655172414 | G55: 0.8823529412 | Q55: 0.9655172414 | R55: 0.8823529412 | W55: 1 | X55: 5 | Y55: 3 | Z55: 12 | AA55: 6 | AB55: 1 | AC55: 1 | AD55: 10 | AE55: 8 | AF55: 1 | AG55: 12 | AJ55: 5 | AK55: 13 | AL55: 3 | AM55: 3 | AN55: 21 | AO55: 12 | AP55: 7 | AQ55: 9 | AR55: 15 | AS55: 1 | AT55: 9
E56: 0.7 | F56: 0.9655172414 | G56: 0.9411764706 | Q56: 0.9655172414 | R56: 0.9411764706 | W56: 2 | X56: 2 | Y56: 3 | Z56: 10 | AA56: 1 | AB56: 0 | AC56: 7 | AD56: 9 | AE56: 7 | AF56: 1 | AG56: 13 | AJ56: 4 | AK56: 7 | AL56: 3 | AM56: 22 | AN56: 8 | AO56: 3 | AP56: 8 | AQ56: 1 | AR56: 7 | AS56: 0 | AT56: 25
E57: More | F57: =Q57 -> 1 | G57: 1 | Q57: 1 | R57: 1 | W57: 0 | X57: 5 | Y57: 2 | Z57: 4 | AA57: 0 | AB57: 0 | AC57: 1 | AD57: 1 | AE57: 3 | AF57: 1 | AG57: 2 | AJ57: 1 | AK57: 10 | AL57: 2 | AM57: 17 | AN57: 1 | AO57: 0 | AP57: 5 | AQ57: 0 | AR57: 2 | AS57: 0 | AT57: 9
E58: Count | F58: =F38 -> 29 | G58: =G38 -> 34 | Q58: =IF($T$6=$W$1,Y3/$F$58,IF($T$6=$W$17,Y19/$F$58,IF($T$6=$W$33,Y35/$F$58,IF($T$6=$W$49,Y51/$F$58,IF($T$6=$W$65,Y67/$F$58,IF($T$6=$W$81,Y83/$F$58,IF($T$6=$W$97,Y99/$F$58,IF($T$6=$W$113,Y115/$F$58,IF($T$6=$W$129,Y131/$F$58,IF($T$6=$W$145,Y147/$F$58,IF($T$6=$W$161,Y163/$F$58,"N/A"))))))))))) -> 0.1034482759 | R58: =IF($T$6=$W$1,AL3/$G$38,IF($T$6=$W$17,AL19/$G$38,IF($T$6=$W$33,AL35/$G$38,IF($T$6=$W$49,AL51/$G$38,IF($T$6=$W$65,AL67/$G$38,IF($T$6=$W$81,AL83/$G$38,IF($T$6=$W$97,AL99/$G$38,IF($T$6=$W$113,AL115/$G$38,IF($T$6=$W$129,AL131/$G$38,IF($T$6=$W$145,AL147/$G$38,IF($T$6=$W$161,AL163/$G$38,"N/A"))))))))))) -> 0.02941176471 | W58: 1 | X58: 3 | Y58: 1 | Z58: 0 | AA58: 0 | AB58: 0 | AC58: 2 | AD58: 0 | AE58: 1 | AF58: 0 | AG58: 0 | AJ58: 1 | AK58: 2 | AL58: 2 | AM58: 1 | AN58: 0 | AO58: 1 | AP58: 2 | AQ58: 0 | AR58: 3 | AS58: 0 | AT58: 3
E59: Average | F59: =IF($T$6=$W$1,$Y$14,IF($T$6=$W$17,$Y$30,IF($T$6=$W$33,$Y$46,IF($T$6=$W$49,$Y$62,IF($T$6=$W$65,$Y$78,IF($T$6=$W$81,$Y$94,IF($T$6=$W$97,$Y$110,IF($T$6=$W$113,$Y$126,IF($T$6=$W$129,$Y$142,IF($T$6=$W$145,$Y$158,IF($T$6=$W$161,$Y$174,"N/A"))))))))))) -> 0.1729367161 | G59: =IF($T$6=$W$1,$AL$14,IF($T$6=$W$17,$AL$30,IF($T$6=$W$33,$AL$46,IF($T$6=$W$49,$AL$62,IF($T$6=$W$65,$AL$78,IF($T$6=$W$81,$AL$94,IF($T$6=$W$97,$AL$110,IF($T$6=$W$113,$AL$126,IF($T$6=$W$129,$AL$142,IF($T$6=$W$145,$AL$158,IF($T$6=$W$161,$AL$174,"N/A"))))))))))) -> 0.2065920427 | Q59: 0.2413793103 | R59: 0.2352941176 | W59: 0 | X59: 2 | Y59: 3 | Z59: 0 | AA59: 0 | AB59: 0 | AC59: 0 | AD59: 0 | AE59: 3 | AF59: 0 | AG59: 1 | AJ59: 2 | AK59: 2 | AL59: 3 | AM59: 1 | AN59: 0 | AO59: 0 | AP59: 1 | AQ59: 0 | AR59: 0 | AS59: 0 | AT59: 0
Q60: 0.1379310345 | R60: 0.1764705882 | W60: 17 | X60: 4 | Z60: 1 | AA60: 2 | AB60: 3 | AC60: 2 | AG60: 0 | AJ60: 25 | AK60: 3 | AM60: 0 | AN60: 1 | AO60: 2 | AP60: 1 | AT60: 0
Q61: 0.06896551724 | R61: 0.2058823529 | V61: Count | W61: 33 | X61: 33 | Y61: 33 | Z61: 33 | AA61: 33 | AB61: 33 | AC61: 33 | AD61: 33 | AE61: 33 | AF61: 33 | AG61: 33 | AI61: Count | AJ61: 46 | AK61: 46 | AL61: 46 | AM61: 46 | AN61: 46 | AO61: 46 | AP61: 46 | AQ61: 46 | AR61: 46 | AS61: 46 | AT61: 46
Q62: 0.2068965517 | R62: 0.1176470588 | V62: Average | W62: 2.907185404 | X62: 0.6012702884 | Y62: 0.2095899103 | Z62: 0.01513185646 | AA62: 0.00341182177 | AB62: -0.00426831703 | AC62: 0.2254727819 | AD62: 0.7169819062 | AE62: 0.1156381505 | AF62: 0.02972903118 | AG62: 0.1376509122 | AI62: Average | AJ62: 3.90806384 | AK62: 0.6035265504 | AL62: 0.1828820548 | AM62: 0.1650966395 | AN62: 0.04710159538 | AO62: 0.04741239697 | AP62: 0.2852971176 | AQ62: 0.6057680649 | AR62: 0.1011069573 | AS62: 0.02622629129 | AT62: 0.2668986865
F63: =IF(B24=F59,"","Your Farm") ->  | G63: =IF(B24=F59,"",B24) ->  | Q63: 0.03448275862 | R63: 0.02941176471 | V63: Non-ratio average | X63: 225045.577 | AG63: 51520.47182 | AI63: Non-ratio average | AK63: 228653.7627 | AT63: 101117.9854
Q64: 0.1724137931 | R64: 0.08823529412
Q65: 0 | R65: 0.05882352941 | W65: Blank
Q66: 0.03448275862 | R66: 0.05882352941 | AJ66: Current Ratio | AK66: Working Capital Ratio | AL66: Debt to Asset Ratio | AM66: Operating Profit Margin | AN66: ROA | AO66: ROE | AP66: Asset Turnover | AQ66: Operating Expense Ratio | AR66: Depr Expense Ratio | AS66: Interest Expense Ratio | AT66: NFI Ratio
E68: Operating Profit Margin Ratio
F69: =U1 -> 2017 | G69: 10-Year
E70: -0.6 | F70: =Q70 -> 0 | G70: =R70 -> 0 | Q70: =Q80 -> 0 | R70: =R80 -> 0
E71: -0.45 | F71: =Q71 -> 0 | G71: =R71 -> 0 | Q71: =Q70+Q81 -> 0 | R71: =R70+R81 -> 0 | S71: Your Farm Line-Operating Profit Margin Ratio
E72: -0.3 | F72: 0 | G72: 0 | Q72: 0 | R72: 0 | S72: X's | T72: =IF(B25>0.75,0.75,B25) -> 0.05036901801 | U72: =T72 -> 0.05036901801
E73: -0.15 | F73: 0.06896551724 | G73: 0 | Q73: 0.06896551724 | R73: 0 | S73: Y's | T73: 0 | U73: 1
E74: 0 | F74: 0.3793103448 | G74: 0.05882352941 | Q74: 0.3793103448 | R74: 0.05882352941 | S74: =IF(B25=F81,U1 &" Average","Your Farm") -> 2017 Average
E75: 0.15 | F75: 0.7586206897 | G75: 0.4117647059 | Q75: 0.7586206897 | R75: 0.4117647059
E76: 0.3 | F76: 1 | G76: 0.9705882353 | Q76: 1 | R76: 0.9705882353
E77: 0.45 | F77: 1 | G77: 1 | Q77: 1 | R77: 1 | AI77: Count
E78: 0.6 | F78: 1 | G78: 1 | Q78: 1 | R78: 1 | AI78: Average
E79: More | F79: 1 | G79: 1 | Q79: 1 | R79: 1 | AI79: Non-ratio average
E80: Count | F80: =F58 -> 29 | G80: =G58 -> 34 | Q80: =IF($T$6=$W$1,Z3/$F$80,IF($T$6=$W$17,Z19/$F$80,IF($T$6=$W$33,Z35/$F$80,IF($T$6=$W$49,Z51/$F$80,IF($T$6=$W$65,Z67/$F$80,IF($T$6=$W$81,Z83/$F$80,IF($T$6=$W$97,Z99/$F$80,IF($T$6=$W$113,Z115/$F$80,IF($T$6=$W$129,Z131/$F$80,IF($T$6=$W$145,Z147/$F$80,IF($T$6=$W$161,Z163/$F$80,"N/A"))))))))))) -> 0 | R80: =IF($T$6=$W$1,AM3/$G$38,IF($T$6=$W$17,AM19/$G$38,IF($T$6=$W$33,AM35/$G$38,IF($T$6=$W$49,AM51/$G$38,IF($T$6=$W$65,AM67/$G$38,IF($T$6=$W$81,AM83/$G$38,IF($T$6=$W$97,AM99/$G$38,IF($T$6=$W$113,AM115/$G$38,IF($T$6=$W$129,AM131/$G$38,IF($T$6=$W$145,AM147/$G$38,IF($T$6=$W$161,AM163/$G$38,"N/A"))))))))))) -> 0
E81: Average | F81: =IF($T$6=$W$1,$Z$14,IF($T$6=$W$17,$Z$30,IF($T$6=$W$33,$Z$46,IF($T$6=$W$49,$Z$62,IF($T$6=$W$65,$Z$78,IF($T$6=$W$81,$Z$94,IF($T$6=$W$97,$Z$110,IF($T$6=$W$113,$Z$126,IF($T$6=$W$129,$Z$142,IF($T$6=$W$145,$Z$158,IF($T$6=W161,Z174,"N/A"))))))))))) -> 0.05036901801 | G81: =IF($T$6=$W$1,$AM$14,IF($T$6=$W$17,$AM$30,IF($T$6=$W$33,$AM$46,IF($T$6=$W$49,$AM$62,IF($T$6=$W$65,$AM$78,IF($T$6=$W$81,$AM$94,IF($T$6=$W$97,$AM$110,IF($T$6=$W$113,$AM$126,IF($T$6=$W$129,$AM$142,IF($T$6=$W$145,$AM$158,IF($T$6=$W$161,$AM$174,"N/A"))))))))))) -> 0.1928401827 | Q81: 0 | R81: 0 | W81: 500-1500Yes
Q82: 0 | R82: 0 | W82: Current Ratio | X82: Working Capital Ratio | Y82: Debt to Asset Ratio | Z82: Operating Profit Margin | AA82: ROA | AB82: ROE | AC82: Asset Turnover | AD82: Operating Expense Ratio | AE82: Depr Expense Ratio | AF82: Interest Expense Ratio | AG82: NFI Ratio | AJ82: Current Ratio | AK82: Working Capital Ratio | AL82: Debt to Asset Ratio | AM82: Operating Profit Margin | AN82: ROA | AO82: ROE | AP82: Asset Turnover | AQ82: Operating Expense Ratio | AR82: Depr Expense Ratio | AS82: Interest Expense Ratio | AT82: NFI Ratio
Q83: 0.06896551724 | R83: 0 | W83: 0 | X83: 1 | Y83: 5 | Z83: 1 | AA83: 0 | AB83: 3 | AC83: 0 | AD83: 0 | AE83: 0 | AF83: 5 | AG83: 0 | AJ83: 0 | AK83: 0 | AL83: 2 | AM83: 0 | AN83: 0 | AO83: 3 | AP83: 0 | AQ83: 1 | AR83: 0 | AS83: 5 | AT83: 0
Q84: 0.3103448276 | R84: 0.05882352941 | W84: 1 | X84: 2 | Y84: 6 | Z84: 1 | AA84: 3 | AB84: 5 | AC84: 5 | AD84: 4 | AE84: 2 | AF84: 17 | AG84: 1 | AJ84: 0 | AK84: 0 | AL84: 24 | AM84: 0 | AN84: 0 | AO84: 4 | AP84: 4 | AQ84: 3 | AR84: 2 | AS84: 28 | AT84: 0
F85: =IF(B25=F81,"","Your Farm") ->  | G85: =IF(B25=F81,"",B25) ->  | Q85: 0.3793103448 | R85: 0.3529411765 | W85: 6 | X85: 4 | Y85: 10 | Z85: 0 | AA85: 8 | AB85: 15 | AC85: 17 | AD85: 6 | AE85: 6 | AF85: 12 | AG85: 0 | AJ85: 10 | AK85: 10 | AL85: 12 | AM85: 0 | AN85: 8 | AO85: 24 | AP85: 25 | AQ85: 11 | AR85: 15 | AS85: 26 | AT85: 0
Q86: 0.2413793103 | R86: 0.5588235294 | W86: 3 | X86: 6 | Y86: 8 | Z86: 6 | AA86: 18 | AB86: 9 | AC86: 5 | AD86: 11 | AE86: 10 | AF86: 4 | AG86: 5 | AJ86: 10 | AK86: 12 | AL86: 14 | AM86: 4 | AN86: 30 | AO86: 35 | AP86: 23 | AQ86: 33 | AR86: 34 | AS86: 12 | AT86: 2
Q87: 0 | R87: 0.02941176471 | W87: 6 | X87: 8 | Y87: 6 | Z87: 13 | AA87: 4 | AB87: 5 | AC87: 8 | AD87: 11 | AE87: 8 | AF87: 1 | AG87: 11 | AJ87: 7 | AK87: 18 | AL87: 11 | AM87: 12 | AN87: 31 | AO87: 7 | AP87: 13 | AQ87: 27 | AR87: 22 | AS87: 7 | AT87: 19
Q88: 0 | R88: 0 | W88: 2 | X88: 8 | Y88: 1 | Z88: 9 | AA88: 3 | AB88: 1 | AC88: 2 | AD88: 7 | AE88: 7 | AF88: 0 | AG88: 13 | AJ88: 1 | AK88: 15 | AL88: 9 | AM88: 42 | AN88: 5 | AO88: 4 | AP88: 7 | AQ88: 2 | AR88: 4 | AS88: 1 | AT88: 49
E89: Rate of Return on Farm Assets | Q89: 0 | R89: 0 | W89: 3 | X89: 5 | Y89: 2 | Z89: 9 | AA89: 3 | AB89: 0 | AC89: 1 | AD89: 0 | AE89: 4 | AF89: 0 | AG89: 8 | AJ89: 7 | AK89: 12 | AL89: 3 | AM89: 17 | AN89: 5 | AO89: 0 | AP89: 3 | AQ89: 2 | AR89: 2 | AS89: 0 | AT89: 5
F90: =U1 -> 2017 | G90: 10-Year | W90: 0 | X90: 1 | Y90: 2 | Z90: 1 | AA90: 0 | AB90: 0 | AC90: 0 | AD90: 0 | AE90: 1 | AF90: 1 | AG90: 2 | AJ90: 1 | AK90: 5 | AL90: 1 | AM90: 4 | AN90: 0 | AO90: 0 | AP90: 2 | AQ90: 0 | AR90: 0 | AS90: 0 | AT90: 4
E91: -0.1 | F91: =Q91 -> 0 | G91: =R91 -> 0 | Q91: =Q101 -> 0 | R91: =R101 -> 0 | W91: 2 | X91: 1 | Y91: 0 | Z91: 0 | AA91: 0 | AB91: 1 | AC91: 0 | AD91: 1 | AE91: 2 | AF91: 0 | AG91: 0 | AJ91: 5 | AK91: 3 | AL91: 3 | AM91: 0 | AN91: 0 | AO91: 0 | AP91: 1 | AQ91: 0 | AR91: 0 | AS91: 0 | AT91: 0
E92: -0.06 | F92: =Q92 -> 0.06896551724 | G92: =R92 -> 0 | Q92: =Q91+Q102 -> 0.06896551724 | R92: =R91+R102 -> 0 | W92: 17 | X92: 4 | Z92: 0 | AA92: 1 | AB92: 1 | AC92: 2 | AG92: 0 | AJ92: 38 | AK92: 4 | AM92: 0 | AN92: 0 | AO92: 2 | AP92: 1 | AT92: 0
E93: -0.02 | F93: 0.2068965517 | G93: 0.02941176471 | Q93: 0.2068965517 | R93: 0.02941176471 | S93: Your Farm Line-Return on Assets | V93: Count | W93: 40 | X93: 40 | Y93: 40 | Z93: 40 | AA93: 40 | AB93: 40 | AC93: 40 | AD93: 40 | AE93: 40 | AF93: 40 | AG93: 40 | AI93: Count | AJ93: 79 | AK93: 79 | AL93: 79 | AM93: 79 | AN93: 79 | AO93: 79 | AP93: 79 | AQ93: 79 | AR93: 79 | AS93: 79 | AT93: 79
E94: 0.02 | F94: 0.6206896552 | G94: 0.08823529412 | Q94: 0.6206896552 | R94: 0.08823529412 | S94: X's | T94: =IF(B26>0.24,0.24,B26) -> 0.01463068108 | U94: =T94 -> 0.01463068108 | V94: Average | W94: 2.701747204 | X94: 0.5694833113 | Y94: 0.1701481705 | Z94: 0.0383156571 | AA94: 0.007336873703 | AB94: 0.001071961115 | AC94: 0.1914850027 | AD94: 0.6767914093 | AE94: 0.1029760196 | AF94: 0.0319928275 | AG94: 0.1882397436 | AI94: Average | AJ94: 3.456184388 | AK94: 0.5925062146 | AL94: 0.1714428878 | AM94: 0.1039546838 | AN94: 0.02265294971 | AO94: 0.01656653322 | AP94: 0.2179117753 | AQ94: 0.6777555309 | AR94: 0.07950566852 | AS94: 0.03772857489 | AT94: 0.2050102257
E95: 0.06 | F95: 0.7586206897 | G95: 0.3823529412 | Q95: 0.7586206897 | R95: 0.3823529412 | S95: Y's | T95: 0 | U95: 1 | V95: Non-ratio average | X95: 215164.9444 | AG95: 71121.65212 | AI95: Non-ratio average | AK95: 229554.3347 | AT95: 79426.99133
E96: 0.1 | F96: 0.9310344828 | G96: 0.7941176471 | Q96: 0.9310344828 | R96: 0.7941176471 | S96: =IF(B26=F102,U1 &" Average","Your Farm") -> 2017 Average
E97: 0.14 | F97: 0.9655172414 | G97: 0.9117647059 | Q97: 0.9655172414 | R97: 0.9117647059 | W97: Blank
E98: 0.18 | F98: 1 | G98: 1 | Q98: 1 | R98: 1 | W98: Current Ratio | X98: Working Capital Ratio | Y98: Debt to Asset Ratio | Z98: Operating Profit Margin | AA98: ROA | AB98: ROE | AC98: Asset Turnover | AD98: Operating Expense Ratio | AE98: Depr Expense Ratio | AF98: Interest Expense Ratio | AG98: NFI Ratio | AJ98: Current Ratio | AK98: Working Capital Ratio | AL98: Debt to Asset Ratio | AM98: Operating Profit Margin | AN98: ROA | AO98: ROE | AP98: Asset Turnover | AQ98: Operating Expense Ratio | AR98: Depr Expense Ratio | AS98: Interest Expense Ratio | AT98: NFI Ratio
E99: 0.22 | F99: 1 | G99: 1 | Q99: 1 | R99: 1
E100: More | F100: =Q100 -> 1 | G100: =R100 -> 1 | Q100: 1 | R100: 1
E101: Count | F101: =F80 -> 29 | G101: =G80 -> 34 | Q101: =IF($T$6=$W$1,AA3/$F$101,IF($T$6=$W$17,AA19/$F$101,IF($T$6=$W$33,AA35/$F$101,IF($T$6=$W$49,AA51/$F$101,IF($T$6=$W$65,AA67/$F$101,IF($T$6=$W$81,AA83/$F$101,IF($T$6=$W$97,AA99/$F$101,IF($T$6=$W$113,AA115/$F$101,IF($T$6=$W$129,AA131/$F$101,IF($T$6=$W$145,AA147/$F$101,IF($T$6=$W$161,AA163/$F$101,"N/A"))))))))))) -> 0 | R101: =IF($T$6=$W$1,AN3/$G$38,IF($T$6=$W$17,AN19/$G$38,IF($T$6=$W$33,AN35/$G$38,IF($T$6=$W$49,AN51/$G$38,IF($T$6=$W$65,AN67/$G$38,IF($T$6=$W$81,AN83/$G$38,IF($T$6=$W$97,AN99/$G$38,IF($T$6=$W$113,AN115/$G$38,IF($T$6=$W$129,AN131/$G$38,IF($T$6=$W$145,AN147/$G$38,IF($T$6=$W$161,AN163/$G$38,"N/A"))))))))))) -> 0
E102: Average | F102: =IF($T$6=$W$1,$AA$14,IF($T$6=$W$17,$AA$30,IF($T$6=$W$33,$AA$46,IF($T$6=$W$49,$AA$62,IF($T$6=$W$65,$AA$78,IF($T$6=$W$81,$AA$94,IF($T$6=$W$97,$AA$110,IF($T$6=$W$113,$AA$126,IF($T$6=$W$129,$AA$142,IF($T$6=$W$145,$AA$158,IF($T$6=$W$161,AA174,"N/A"))))))))))) -> 0.01463068108 | G102: =IF($T$6=$W$1,$AN$14,IF($T$6=$W$17,$AN$30,IF($T$6=$W$33,$AN$46,IF($T$6=$W$49,$AN$62,IF($T$6=$W$65,$AN$78,IF($T$6=$W$81,$AN$94,IF($T$6=$W$97,$AN$110,IF($T$6=$W$113,$AN$126,IF($T$6=$W$129,$AN$142,IF($T$6=$W$145,$AN$158,IF($T$6=$W$161,$AN$174,"N/A"))))))))))) -> 0.06867215652 | Q102: 0.06896551724 | R102: 0
Q103: 0.1379310345 | R103: 0.02941176471
Q104: 0.4137931034 | R104: 0.05882352941
Q105: 0.1379310345 | R105: 0.2941176471
F106: =IF(B26=F102,"","Your Farm") ->  | G106: =IF(B26=F102,"",B26) ->  | Q106: 0.1724137931 | R106: 0.4117647059
Q107: 0.03448275862 | R107: 0.1176470588
Q108: 0.03448275862 | R108: 0.08823529412
Q109: 0 | R109: 0 | V109: Count | AI109: Count
E110: Rate of Return on Farm Equity | Q110: 0 | R110: 0 | V110: Average | AI110: Average
F111: =U1 -> 2017 | G111: 10-Year | V111: Non-ratio average | AI111: Non-ratio average
E112: -0.1 | F112: =Q112 -> 0.1034482759 | G112: =R112 -> 0 | Q112: =Q122 -> 0.1034482759 | R112: =R122 -> 0
E113: -0.05 | F113: =Q113 -> 0.1724137931 | G113: =R113 -> 0 | Q113: =Q112+Q123 -> 0.1724137931 | R113: =R112+R123 -> 0 | W113: Greater than 1500No
E114: 0 | F114: 0.4137931034 | G114: 0.1176470588 | Q114: 0.4137931034 | R114: 0.1176470588 | W114: Current Ratio | X114: Working Capital Ratio | Y114: Debt to Asset Ratio | Z114: Operating Profit Margin | AA114: ROA | AB114: ROE | AC114: Asset Turnover | AD114: Operating Expense Ratio | AE114: Depr Expense Ratio | AF114: Interest Expense Ratio | AG114: NFI Ratio | AJ114: Current Ratio | AK114: Working Capital Ratio | AL114: Debt to Asset Ratio | AM114: Operating Profit Margin | AN114: ROA | AO114: ROE | AP114: Asset Turnover | AQ114: Operating Expense Ratio | AR114: Depr Expense Ratio | AS114: Interest Expense Ratio | AT114: NFI Ratio
E115: 0.05 | F115: 0.724137931 | G115: 0.3235294118 | Q115: 0.724137931 | R115: 0.3235294118 | S115: Your Farm Line-Return on Equity | W115: 0 | X115: 0 | Y115: 3 | Z115: 0 | AA115: 0 | AB115: 3 | AC115: 0 | AD115: 0 | AE115: 0 | AF115: 7 | AG115: 0 | AJ115: 0 | AK115: 0 | AL115: 1 | AM115: 0 | AN115: 0 | AO115: 0 | AP115: 0 | AQ115: 0 | AR115: 0 | AS115: 0 | AT115: 0
E116: 0.1 | F116: 0.8965517241 | G116: 0.6764705882 | Q116: 0.8965517241 | R116: 0.6764705882 | S116: X's | T116: =IF(B27>0.35,0.35,B27) -> 0.01052665455 | U116: =T116 -> 0.01052665455 | W116: 1 | X116: 1 | Y116: 7 | Z116: 0 | AA116: 2 | AB116: 2 | AC116: 1 | AD116: 0 | AE116: 1 | AF116: 14 | AG116: 0 | AJ116: 0 | AK116: 0 | AL116: 8 | AM116: 0 | AN116: 0 | AO116: 0 | AP116: 0 | AQ116: 3 | AR116: 1 | AS116: 22 | AT116: 0
E117: 0.15 | F117: 0.9310344828 | G117: 0.8823529412 | Q117: 0.9310344828 | R117: 0.8823529412 | S117: Y's | T117: 0 | U117: 1 | W117: 3 | X117: 3 | Y117: 4 | Z117: 0 | AA117: 4 | AB117: 7 | AC117: 5 | AD117: 4 | AE117: 4 | AF117: 7 | AG117: 1 | AJ117: 1 | AK117: 1 | AL117: 6 | AM117: 0 | AN117: 1 | AO117: 4 | AP117: 4 | AQ117: 10 | AR117: 1 | AS117: 11 | AT117: 0
E118: 0.2 | F118: 0.9655172414 | G118: 0.9705882353 | Q118: 0.9655172414 | R118: 0.9705882353 | S118: =IF(B27=F123,U1 &" Average","Your Farm") -> 2017 Average | W118: 5 | X118: 6 | Y118: 2 | Z118: 2 | AA118: 12 | AB118: 9 | AC118: 7 | AD118: 8 | AE118: 3 | AF118: 1 | AG118: 4 | AJ118: 5 | AK118: 8 | AL118: 7 | AM118: 0 | AN118: 2 | AO118: 7 | AP118: 6 | AQ118: 14 | AR118: 7 | AS118: 1 | AT118: 1
E119: 0.25 | F119: 0.9655172414 | G119: 1 | Q119: 0.9655172414 | R119: 1 | W119: 3 | X119: 4 | Y119: 6 | Z119: 9 | AA119: 4 | AB119: 5 | AC119: 5 | AD119: 11 | AE119: 6 | AF119: 0 | AG119: 10 | AJ119: 4 | AK119: 9 | AL119: 4 | AM119: 2 | AN119: 10 | AO119: 12 | AP119: 8 | AQ119: 4 | AR119: 13 | AS119: 0 | AT119: 6
E120: 0.3 | F120: 0.9655172414 | G120: 1 | Q120: 0.9655172414 | R120: 1 | W120: 1 | X120: 3 | Y120: 1 | Z120: 11 | AA120: 5 | AB120: 1 | AC120: 3 | AD120: 2 | AE120: 5 | AF120: 0 | AG120: 12 | AJ120: 3 | AK120: 2 | AL120: 1 | AM120: 12 | AN120: 14 | AO120: 7 | AP120: 6 | AQ120: 3 | AR120: 5 | AS120: 0 | AT120: 18
E121: More | F121: 1 | G121: 1 | Q121: 1 | R121: 1 | W121: 2 | X121: 3 | Y121: 5 | Z121: 7 | AA121: 1 | AB121: 1 | AC121: 3 | AD121: 4 | AE121: 5 | AF121: 0 | AG121: 2 | AJ121: 1 | AK121: 5 | AL121: 3 | AM121: 19 | AN121: 4 | AO121: 3 | AP121: 6 | AQ121: 0 | AR121: 4 | AS121: 0 | AT121: 9
